Workbook

Sheet PLAN Rekapitulacija
A1: штампа | B1: ПРИКАЖИ РАДОВЕ ОДОБРЕНЕ ОД СТРАНЕ НАДЗОРНОГ ОГРАНА: | I1: ДА
A2: штампа
A3: штампа | B3: АВГУСТ | D3: 2025. | E3: За период | F3: од | G3: =VLOOKUP($B$3,MeseciDaniStartKraj,2,FALSE)&$D$3 -> 01.08.2025. | I3: до | J3: =VLOOKUP($B$3,MeseciDaniStartKraj,3,FALSE)&$D$3 -> 31.08.2025.
A4: штампа | B4: Број позиције | C4: ОПИС ПОЗИЦИЈЕ РАДОВА | D4: Једин. мере | E4: Јединична цена | F4: Општински путеви | G4: Улице | H4: Јавне зелене површине | I4: Фудбалски терени | J4: Количина | K4: Вредност | N4: formule gađaju linkove naniže | P4: ćelije za premeštanje
A5: штампа | B5: 1 | C5: 2 | D5: 3 | E5: 4 | F5: 5 | G5: 6 | H5: 7 | I5: 8 | J5: 9 = Σ(5:8) | K5: 10 = 4 x 9
A6: =IF(OR(J8:K8),"штампа","не") -> не | B6: 1 | C6: Послови јавних овлашћења из заштите путева | N6: =$I$1 -> ДА
A7: =IF(OR(J7:K7),"штампа","не") -> не | B7: 1.1 | C7: Послови на утврђивању штетних радњи на трупу пута и узурпацији земљишта у заштитном појасу пута, идентификацији прекршиоца, вођењу управног поступка и евиденције. Цена обухвата: рад грађевинског инжењера и путничког возила и то 70% у вожњи и 30% по цени за чекање. | D7: час | E7: 2094.41 | F7: =SUMIFS('Plan unos i pregled'!$I$7:$I$788,'Plan unos i pregled'!$B$7:$B$788,'PLAN Rekapitulacija'!$N$7,'Plan unos i pregled'!$M$7:$M$788,'PLAN Rekapitulacija'!$N$6, 'Plan unos i pregled'!$E$7:$E$788,'PLAN Rekapitulacija'!$B7, 'Plan unos i pregled'!$C$7:$C$788,'PLAN Rekapitulacija'!F$4, 'Plan unos i pregled'!$A$7:$A$788,$D$3) -> 0 | G7: =SUMIFS('Plan unos i pregled'!$I$7:$I$788,'Plan unos i pregled'!$B$7:$B$788,'PLAN Rekapitulacija'!$N$7,'Plan unos i pregled'!$M$7:$M$788,'PLAN Rekapitulacija'!$N$6, 'Plan unos i pregled'!$E$7:$E$788,'PLAN Rekapitulacija'!$B7, 'Plan unos i pregled'!$C$7:$C$788,'PLAN Rekapitulacija'!G$4, 'Plan unos i pregled'!$A$7:$A$788,$D$3) -> 0 | H7: =SUMIFS('Plan unos i pregled'!$I$7:$I$788,'Plan unos i pregled'!$B$7:$B$788,'PLAN Rekapitulacija'!$N$7,'Plan unos i pregled'!$M$7:$M$788,'PLAN Rekapitulacija'!$N$6, 'Plan unos i pregled'!$E$7:$E$788,'PLAN Rekapitulacija'!$B7, 'Plan unos i pregled'!$C$7:$C$788,'PLAN Rekapitulacija'!H$4, 'Plan unos i pregled'!$A$7:$A$788,$D$3) -> 0 | I7: =SUMIFS('Plan unos i pregled'!$I$7:$I$788,'Plan unos i pregled'!$B$7:$B$788,'PLAN Rekapitulacija'!$N$7,'Plan unos i pregled'!$M$7:$M$788,'PLAN Rekapitulacija'!$N$6, 'Plan unos i pregled'!$E$7:$E$788,'PLAN Rekapitulacija'!$B7, 'Plan unos i pregled'!$C$7:$C$788,'PLAN Rekapitulacija'!I$4, 'Plan unos i pregled'!$A$7:$A$788,$D$3) -> 0 | J7: =SUM(F7:I7) -> 0 | K7: =ROUND(E7*J7,2) -> 0 | N7: =$B$3 -> АВГУСТ
A8: =IF(OR(J8:K8),"штампа","не") -> не | C8: УКУПНО: | F8: =SUMPRODUCT($E$7:$E$7,F7:F7) -> 0 | G8: =SUMPRODUCT($E$7:$E$7,G7:G7) -> 0 | H8: =SUMPRODUCT($E$7:$E$7,H7:H7) -> 0 | I8: =SUMPRODUCT($E$7:$E$7,I7:I7) -> 0 | K8: =SUM(K6:K7) -> 0
A9: =IF(OR(J17:K17),"штампа","не") -> не | B9: 2 | C9: Преглед јавних путева
A10: =IF(OR(J10:K10),"штампа","не") -> не | B10: 2.1 | C10: Редовни прегледи јавних путева | D10: km | E10: 83.78 | F10: =SUMIFS('Plan unos i pregled'!$I$7:$I$788,'Plan unos i pregled'!$B$7:$B$788,'PLAN Rekapitulacija'!$N$7,'Plan unos i pregled'!$M$7:$M$788,'PLAN Rekapitulacija'!$N$6, 'Plan unos i pregled'!$E$7:$E$788,'PLAN Rekapitulacija'!$B10, 'Plan unos i pregled'!$C$7:$C$788,'PLAN Rekapitulacija'!F$4, 'Plan unos i pregled'!$A$7:$A$788,$D$3) -> 0 | G10: =SUMIFS('Plan unos i pregled'!$I$7:$I$788,'Plan unos i pregled'!$B$7:$B$788,'PLAN Rekapitulacija'!$N$7,'Plan unos i pregled'!$M$7:$M$788,'PLAN Rekapitulacija'!$N$6, 'Plan unos i pregled'!$E$7:$E$788,'PLAN Rekapitulacija'!$B10, 'Plan unos i pregled'!$C$7:$C$788,'PLAN Rekapitulacija'!G$4, 'Plan unos i pregled'!$A$7:$A$788,$D$3) -> 0 | H10: =SUMIFS('Plan unos i pregled'!$I$7:$I$788,'Plan unos i pregled'!$B$7:$B$788,'PLAN Rekapitulacija'!$N$7,'Plan unos i pregled'!$M$7:$M$788,'PLAN Rekapitulacija'!$N$6, 'Plan unos i pregled'!$E$7:$E$788,'PLAN Rekapitulacija'!$B10, 'Plan unos i pregled'!$C$7:$C$788,'PLAN Rekapitulacija'!H$4, 'Plan unos i pregled'!$A$7:$A$788,$D$3) -> 0 | I10: =SUMIFS('Plan unos i pregled'!$I$7:$I$788,'Plan unos i pregled'!$B$7:$B$788,'PLAN Rekapitulacija'!$N$7,'Plan unos i pregled'!$M$7:$M$788,'PLAN Rekapitulacija'!$N$6, 'Plan unos i pregled'!$E$7:$E$788,'PLAN Rekapitulacija'!$B10, 'Plan unos i pregled'!$C$7:$C$788,'PLAN Rekapitulacija'!I$4, 'Plan unos i pregled'!$A$7:$A$788,$D$3) -> 0 | J10: =SUM(F10:I10) -> 0 | K10: =ROUND(E10*J10,2) -> 0
A11: не | B11: 2.2 | C11: Сезонски прегледи јавних путева, два пута годишње | D11: km | E11: 363.6 | F11: =SUMIFS('Plan unos i pregled'!$I$7:$I$788,'Plan unos i pregled'!$B$7:$B$788,'PLAN Rekapitulacija'!$N$7,'Plan unos i pregled'!$M$7:$M$788,'PLAN Rekapitulacija'!$N$6, 'Plan unos i pregled'!$E$7:$E$788,'PLAN Rekapitulacija'!$B11, 'Plan unos i pregled'!$C$7:$C$788,'PLAN Rekapitulacija'!F$4, 'Plan unos i pregled'!$A$7:$A$788,$D$3) -> 0 | G11: =SUMIFS('Plan unos i pregled'!$I$7:$I$788,'Plan unos i pregled'!$B$7:$B$788,'PLAN Rekapitulacija'!$N$7,'Plan unos i pregled'!$M$7:$M$788,'PLAN Rekapitulacija'!$N$6, 'Plan unos i pregled'!$E$7:$E$788,'PLAN Rekapitulacija'!$B11, 'Plan unos i pregled'!$C$7:$C$788,'PLAN Rekapitulacija'!G$4, 'Plan unos i pregled'!$A$7:$A$788,$D$3) -> 0 | H11: =SUMIFS('Plan unos i pregled'!$I$7:$I$788,'Plan unos i pregled'!$B$7:$B$788,'PLAN Rekapitulacija'!$N$7,'Plan unos i pregled'!$M$7:$M$788,'PLAN Rekapitulacija'!$N$6, 'Plan unos i pregled'!$E$7:$E$788,'PLAN Rekapitulacija'!$B11, 'Plan unos i pregled'!$C$7:$C$788,'PLAN Rekapitulacija'!H$4, 'Plan unos i pregled'!$A$7:$A$788,$D$3) -> 0 | I11: =SUMIFS('Plan unos i pregled'!$I$7:$I$788,'Plan unos i pregled'!$B$7:$B$788,'PLAN Rekapitulacija'!$N$7,'Plan unos i pregled'!$M$7:$M$788,'PLAN Rekapitulacija'!$N$6, 'Plan unos i pregled'!$E$7:$E$788,'PLAN Rekapitulacija'!$B11, 'Plan unos i pregled'!$C$7:$C$788,'PLAN Rekapitulacija'!I$4, 'Plan unos i pregled'!$A$7:$A$788,$D$3) -> 0 | J11: 0 | K11: 0
A12: =IF(OR(J13:K16),"штампа","не") -> не | B12: 2.3 | C12: Викенд служба - дежурство суботом, недељом и празником (искључује се период зимске службе). Екипу сачињавају: техничар и два радника путара са полутеретним камионом-путарцем.
A13: =IF(OR(J13:K13),"штампа","не") -> не | B13: 2.3.1 | C13: Техничар | D13: час | E13: 694.81 | F13: =SUMIFS('Plan unos i pregled'!$I$7:$I$788,'Plan unos i pregled'!$B$7:$B$788,'PLAN Rekapitulacija'!$N$7,'Plan unos i pregled'!$M$7:$M$788,'PLAN Rekapitulacija'!$N$6, 'Plan unos i pregled'!$E$7:$E$788,'PLAN Rekapitulacija'!$B13, 'Plan unos i pregled'!$C$7:$C$788,'PLAN Rekapitulacija'!F$4, 'Plan unos i pregled'!$A$7:$A$788,$D$3) -> 0 | G13: =SUMIFS('Plan unos i pregled'!$I$7:$I$788,'Plan unos i pregled'!$B$7:$B$788,'PLAN Rekapitulacija'!$N$7,'Plan unos i pregled'!$M$7:$M$788,'PLAN Rekapitulacija'!$N$6, 'Plan unos i pregled'!$E$7:$E$788,'PLAN Rekapitulacija'!$B13, 'Plan unos i pregled'!$C$7:$C$788,'PLAN Rekapitulacija'!G$4, 'Plan unos i pregled'!$A$7:$A$788,$D$3) -> 0 | H13: =SUMIFS('Plan unos i pregled'!$I$7:$I$788,'Plan unos i pregled'!$B$7:$B$788,'PLAN Rekapitulacija'!$N$7,'Plan unos i pregled'!$M$7:$M$788,'PLAN Rekapitulacija'!$N$6, 'Plan unos i pregled'!$E$7:$E$788,'PLAN Rekapitulacija'!$B13, 'Plan unos i pregled'!$C$7:$C$788,'PLAN Rekapitulacija'!H$4, 'Plan unos i pregled'!$A$7:$A$788,$D$3) -> 0 | I13: =SUMIFS('Plan unos i pregled'!$I$7:$I$788,'Plan unos i pregled'!$B$7:$B$788,'PLAN Rekapitulacija'!$N$7,'Plan unos i pregled'!$M$7:$M$788,'PLAN Rekapitulacija'!$N$6, 'Plan unos i pregled'!$E$7:$E$788,'PLAN Rekapitulacija'!$B13, 'Plan unos i pregled'!$C$7:$C$788,'PLAN Rekapitulacija'!I$4, 'Plan unos i pregled'!$A$7:$A$788,$D$3) -> 0 | J13: =SUM(F13:I13) -> 0 | K13: =ROUND(E13*J13,2) -> 0
A14: не | B14: 2.3.2 | C14: Радник путар (за једног радника) | D14: час | E14: 518.27 | F14: =SUMIFS('Plan unos i pregled'!$I$7:$I$788,'Plan unos i pregled'!$B$7:$B$788,'PLAN Rekapitulacija'!$N$7,'Plan unos i pregled'!$M$7:$M$788,'PLAN Rekapitulacija'!$N$6, 'Plan unos i pregled'!$E$7:$E$788,'PLAN Rekapitulacija'!$B14, 'Plan unos i pregled'!$C$7:$C$788,'PLAN Rekapitulacija'!F$4, 'Plan unos i pregled'!$A$7:$A$788,$D$3) -> 0 | G14: =SUMIFS('Plan unos i pregled'!$I$7:$I$788,'Plan unos i pregled'!$B$7:$B$788,'PLAN Rekapitulacija'!$N$7,'Plan unos i pregled'!$M$7:$M$788,'PLAN Rekapitulacija'!$N$6, 'Plan unos i pregled'!$E$7:$E$788,'PLAN Rekapitulacija'!$B14, 'Plan unos i pregled'!$C$7:$C$788,'PLAN Rekapitulacija'!G$4, 'Plan unos i pregled'!$A$7:$A$788,$D$3) -> 0 | H14: =SUMIFS('Plan unos i pregled'!$I$7:$I$788,'Plan unos i pregled'!$B$7:$B$788,'PLAN Rekapitulacija'!$N$7,'Plan unos i pregled'!$M$7:$M$788,'PLAN Rekapitulacija'!$N$6, 'Plan unos i pregled'!$E$7:$E$788,'PLAN Rekapitulacija'!$B14, 'Plan unos i pregled'!$C$7:$C$788,'PLAN Rekapitulacija'!H$4, 'Plan unos i pregled'!$A$7:$A$788,$D$3) -> 0 | I14: =SUMIFS('Plan unos i pregled'!$I$7:$I$788,'Plan unos i pregled'!$B$7:$B$788,'PLAN Rekapitulacija'!$N$7,'Plan unos i pregled'!$M$7:$M$788,'PLAN Rekapitulacija'!$N$6, 'Plan unos i pregled'!$E$7:$E$788,'PLAN Rekapitulacija'!$B14, 'Plan unos i pregled'!$C$7:$C$788,'PLAN Rekapitulacija'!I$4, 'Plan unos i pregled'!$A$7:$A$788,$D$3) -> 0 | J14: 0 | K14: 0
A15: не | B15: 2.3.3 | C15: Камион путарац - ефективан рад | D15: час | E15: 1692.88 | F15: =SUMIFS('Plan unos i pregled'!$I$7:$I$788,'Plan unos i pregled'!$B$7:$B$788,'PLAN Rekapitulacija'!$N$7,'Plan unos i pregled'!$M$7:$M$788,'PLAN Rekapitulacija'!$N$6, 'Plan unos i pregled'!$E$7:$E$788,'PLAN Rekapitulacija'!$B15, 'Plan unos i pregled'!$C$7:$C$788,'PLAN Rekapitulacija'!F$4, 'Plan unos i pregled'!$A$7:$A$788,$D$3) -> 0 | G15: =SUMIFS('Plan unos i pregled'!$I$7:$I$788,'Plan unos i pregled'!$B$7:$B$788,'PLAN Rekapitulacija'!$N$7,'Plan unos i pregled'!$M$7:$M$788,'PLAN Rekapitulacija'!$N$6, 'Plan unos i pregled'!$E$7:$E$788,'PLAN Rekapitulacija'!$B15, 'Plan unos i pregled'!$C$7:$C$788,'PLAN Rekapitulacija'!G$4, 'Plan unos i pregled'!$A$7:$A$788,$D$3) -> 0 | H15: =SUMIFS('Plan unos i pregled'!$I$7:$I$788,'Plan unos i pregled'!$B$7:$B$788,'PLAN Rekapitulacija'!$N$7,'Plan unos i pregled'!$M$7:$M$788,'PLAN Rekapitulacija'!$N$6, 'Plan unos i pregled'!$E$7:$E$788,'PLAN Rekapitulacija'!$B15, 'Plan unos i pregled'!$C$7:$C$788,'PLAN Rekapitulacija'!H$4, 'Plan unos i pregled'!$A$7:$A$788,$D$3) -> 0 | I15: =SUMIFS('Plan unos i pregled'!$I$7:$I$788,'Plan unos i pregled'!$B$7:$B$788,'PLAN Rekapitulacija'!$N$7,'Plan unos i pregled'!$M$7:$M$788,'PLAN Rekapitulacija'!$N$6, 'Plan unos i pregled'!$E$7:$E$788,'PLAN Rekapitulacija'!$B15, 'Plan unos i pregled'!$C$7:$C$788,'PLAN Rekapitulacija'!I$4, 'Plan unos i pregled'!$A$7:$A$788,$D$3) -> 0 | J15: 0 | K15: 0
A16: не | B16: 2.3.4 | C16: Камион путарац - дежурство | D16: час | E16: 540 | F16: =SUMIFS('Plan unos i pregled'!$I$7:$I$788,'Plan unos i pregled'!$B$7:$B$788,'PLAN Rekapitulacija'!$N$7,'Plan unos i pregled'!$M$7:$M$788,'PLAN Rekapitulacija'!$N$6, 'Plan unos i pregled'!$E$7:$E$788,'PLAN Rekapitulacija'!$B16, 'Plan unos i pregled'!$C$7:$C$788,'PLAN Rekapitulacija'!F$4, 'Plan unos i pregled'!$A$7:$A$788,$D$3) -> 0 | G16: =SUMIFS('Plan unos i pregled'!$I$7:$I$788,'Plan unos i pregled'!$B$7:$B$788,'PLAN Rekapitulacija'!$N$7,'Plan unos i pregled'!$M$7:$M$788,'PLAN Rekapitulacija'!$N$6, 'Plan unos i pregled'!$E$7:$E$788,'PLAN Rekapitulacija'!$B16, 'Plan unos i pregled'!$C$7:$C$788,'PLAN Rekapitulacija'!G$4, 'Plan unos i pregled'!$A$7:$A$788,$D$3) -> 0 | H16: =SUMIFS('Plan unos i pregled'!$I$7:$I$788,'Plan unos i pregled'!$B$7:$B$788,'PLAN Rekapitulacija'!$N$7,'Plan unos i pregled'!$M$7:$M$788,'PLAN Rekapitulacija'!$N$6, 'Plan unos i pregled'!$E$7:$E$788,'PLAN Rekapitulacija'!$B16, 'Plan unos i pregled'!$C$7:$C$788,'PLAN Rekapitulacija'!H$4, 'Plan unos i pregled'!$A$7:$A$788,$D$3) -> 0 | I16: =SUMIFS('Plan unos i pregled'!$I$7:$I$788,'Plan unos i pregled'!$B$7:$B$788,'PLAN Rekapitulacija'!$N$7,'Plan unos i pregled'!$M$7:$M$788,'PLAN Rekapitulacija'!$N$6, 'Plan unos i pregled'!$E$7:$E$788,'PLAN Rekapitulacija'!$B16, 'Plan unos i pregled'!$C$7:$C$788,'PLAN Rekapitulacija'!I$4, 'Plan unos i pregled'!$A$7:$A$788,$D$3) -> 0 | J16: 0 | K16: 0
A17: не | C17: УКУПНО: | F17: =SUMPRODUCT($E$10:$E$16,F10:F16) -> 0 | G17: =SUMPRODUCT($E$10:$E$16,G10:G16) -> 0 | H17: =SUMPRODUCT($E$10:$E$16,H10:H16) -> 0 | I17: =SUMPRODUCT($E$10:$E$16,I10:I16) -> 0 | K17: =SUM(K9:K16) -> 0
A18: =IF(OR(J30:K30),"штампа","не") -> не | B18: 3 | C18: Одржавање саобраћајне сигнализације
A19: =IF(OR(J19:K21),"штампа","не") -> не | B19: 3.1 | C19: Постављање саобраћајног знака на једном стубу и бетонском темељу МБ 20. Обрачун по комаду комплет изведене позиције са ископом земље за темељ
A20: не | B20: 3.1.1 | C20: Само рад без материјала | D20: ком | E20: 881 | F20: =SUMIFS('Plan unos i pregled'!$I$7:$I$788,'Plan unos i pregled'!$B$7:$B$788,'PLAN Rekapitulacija'!$N$7,'Plan unos i pregled'!$M$7:$M$788,'PLAN Rekapitulacija'!$N$6, 'Plan unos i pregled'!$E$7:$E$788,'PLAN Rekapitulacija'!$B20, 'Plan unos i pregled'!$C$7:$C$788,'PLAN Rekapitulacija'!F$4, 'Plan unos i pregled'!$A$7:$A$788,$D$3) -> 0 | G20: =SUMIFS('Plan unos i pregled'!$I$7:$I$788,'Plan unos i pregled'!$B$7:$B$788,'PLAN Rekapitulacija'!$N$7,'Plan unos i pregled'!$M$7:$M$788,'PLAN Rekapitulacija'!$N$6, 'Plan unos i pregled'!$E$7:$E$788,'PLAN Rekapitulacija'!$B20, 'Plan unos i pregled'!$C$7:$C$788,'PLAN Rekapitulacija'!G$4, 'Plan unos i pregled'!$A$7:$A$788,$D$3) -> 0 | H20: =SUMIFS('Plan unos i pregled'!$I$7:$I$788,'Plan unos i pregled'!$B$7:$B$788,'PLAN Rekapitulacija'!$N$7,'Plan unos i pregled'!$M$7:$M$788,'PLAN Rekapitulacija'!$N$6, 'Plan unos i pregled'!$E$7:$E$788,'PLAN Rekapitulacija'!$B20, 'Plan unos i pregled'!$C$7:$C$788,'PLAN Rekapitulacija'!H$4, 'Plan unos i pregled'!$A$7:$A$788,$D$3) -> 0 | I20: =SUMIFS('Plan unos i pregled'!$I$7:$I$788,'Plan unos i pregled'!$B$7:$B$788,'PLAN Rekapitulacija'!$N$7,'Plan unos i pregled'!$M$7:$M$788,'PLAN Rekapitulacija'!$N$6, 'Plan unos i pregled'!$E$7:$E$788,'PLAN Rekapitulacija'!$B20, 'Plan unos i pregled'!$C$7:$C$788,'PLAN Rekapitulacija'!I$4, 'Plan unos i pregled'!$A$7:$A$788,$D$3) -> 0 | J20: =SUM(F20:I20) -> 0 | K20: =ROUND(E20*J20,2) -> 0
A21: не | B21: 3.1.2 | C21: Рад са материјалом, без табле саобраћајног знака | D21: ком | E21: 3117 | F21: =SUMIFS('Plan unos i pregled'!$I$7:$I$788,'Plan unos i pregled'!$B$7:$B$788,'PLAN Rekapitulacija'!$N$7,'Plan unos i pregled'!$M$7:$M$788,'PLAN Rekapitulacija'!$N$6, 'Plan unos i pregled'!$E$7:$E$788,'PLAN Rekapitulacija'!$B21, 'Plan unos i pregled'!$C$7:$C$788,'PLAN Rekapitulacija'!F$4, 'Plan unos i pregled'!$A$7:$A$788,$D$3) -> 0 | G21: =SUMIFS('Plan unos i pregled'!$I$7:$I$788,'Plan unos i pregled'!$B$7:$B$788,'PLAN Rekapitulacija'!$N$7,'Plan unos i pregled'!$M$7:$M$788,'PLAN Rekapitulacija'!$N$6, 'Plan unos i pregled'!$E$7:$E$788,'PLAN Rekapitulacija'!$B21, 'Plan unos i pregled'!$C$7:$C$788,'PLAN Rekapitulacija'!G$4, 'Plan unos i pregled'!$A$7:$A$788,$D$3) -> 0 | H21: =SUMIFS('Plan unos i pregled'!$I$7:$I$788,'Plan unos i pregled'!$B$7:$B$788,'PLAN Rekapitulacija'!$N$7,'Plan unos i pregled'!$M$7:$M$788,'PLAN Rekapitulacija'!$N$6, 'Plan unos i pregled'!$E$7:$E$788,'PLAN Rekapitulacija'!$B21, 'Plan unos i pregled'!$C$7:$C$788,'PLAN Rekapitulacija'!H$4, 'Plan unos i pregled'!$A$7:$A$788,$D$3) -> 0 | I21: =SUMIFS('Plan unos i pregled'!$I$7:$I$788,'Plan unos i pregled'!$B$7:$B$788,'PLAN Rekapitulacija'!$N$7,'Plan unos i pregled'!$M$7:$M$788,'PLAN Rekapitulacija'!$N$6, 'Plan unos i pregled'!$E$7:$E$788,'PLAN Rekapitulacija'!$B21, 'Plan unos i pregled'!$C$7:$C$788,'PLAN Rekapitulacija'!I$4, 'Plan unos i pregled'!$A$7:$A$788,$D$3) -> 0 | J21: 0 | K21: 0
A22: не | B22: 3.2 | C22: Демонтажа постојећег и поновна монтажа табле саобраћајног знака на постојећем стубу и темељу. Обрачун по комаду демонтираног и поново монтираног знака само рад без материјала | D22: ком | E22: 730 | F22: =SUMIFS('Plan unos i pregled'!$I$7:$I$788,'Plan unos i pregled'!$B$7:$B$788,'PLAN Rekapitulacija'!$N$7,'Plan unos i pregled'!$M$7:$M$788,'PLAN Rekapitulacija'!$N$6, 'Plan unos i pregled'!$E$7:$E$788,'PLAN Rekapitulacija'!$B22, 'Plan unos i pregled'!$C$7:$C$788,'PLAN Rekapitulacija'!F$4, 'Plan unos i pregled'!$A$7:$A$788,$D$3) -> 0 | G22: =SUMIFS('Plan unos i pregled'!$I$7:$I$788,'Plan unos i pregled'!$B$7:$B$788,'PLAN Rekapitulacija'!$N$7,'Plan unos i pregled'!$M$7:$M$788,'PLAN Rekapitulacija'!$N$6, 'Plan unos i pregled'!$E$7:$E$788,'PLAN Rekapitulacija'!$B22, 'Plan unos i pregled'!$C$7:$C$788,'PLAN Rekapitulacija'!G$4, 'Plan unos i pregled'!$A$7:$A$788,$D$3) -> 0 | H22: =SUMIFS('Plan unos i pregled'!$I$7:$I$788,'Plan unos i pregled'!$B$7:$B$788,'PLAN Rekapitulacija'!$N$7,'Plan unos i pregled'!$M$7:$M$788,'PLAN Rekapitulacija'!$N$6, 'Plan unos i pregled'!$E$7:$E$788,'PLAN Rekapitulacija'!$B22, 'Plan unos i pregled'!$C$7:$C$788,'PLAN Rekapitulacija'!H$4, 'Plan unos i pregled'!$A$7:$A$788,$D$3) -> 0 | I22: =SUMIFS('Plan unos i pregled'!$I$7:$I$788,'Plan unos i pregled'!$B$7:$B$788,'PLAN Rekapitulacija'!$N$7,'Plan unos i pregled'!$M$7:$M$788,'PLAN Rekapitulacija'!$N$6, 'Plan unos i pregled'!$E$7:$E$788,'PLAN Rekapitulacija'!$B22, 'Plan unos i pregled'!$C$7:$C$788,'PLAN Rekapitulacija'!I$4, 'Plan unos i pregled'!$A$7:$A$788,$D$3) -> 0 | J22: 0 | K22: 0
A23: =IF(OR(J23:K25),"штампа","не") -> не | B23: 3.3 | C23: Монтажа табле саобраћајног знака са једним стубом. Обрачун по комаду намонтиране табле на постојећем стубу комплет са спојним материјалом.
A24: не | B24: 3.3.1 | C24: Само мотажа, за више од 10 комада | D24: ком | E24: 475 | F24: =SUMIFS('Plan unos i pregled'!$I$7:$I$788,'Plan unos i pregled'!$B$7:$B$788,'PLAN Rekapitulacija'!$N$7,'Plan unos i pregled'!$M$7:$M$788,'PLAN Rekapitulacija'!$N$6, 'Plan unos i pregled'!$E$7:$E$788,'PLAN Rekapitulacija'!$B24, 'Plan unos i pregled'!$C$7:$C$788,'PLAN Rekapitulacija'!F$4, 'Plan unos i pregled'!$A$7:$A$788,$D$3) -> 0 | G24: =SUMIFS('Plan unos i pregled'!$I$7:$I$788,'Plan unos i pregled'!$B$7:$B$788,'PLAN Rekapitulacija'!$N$7,'Plan unos i pregled'!$M$7:$M$788,'PLAN Rekapitulacija'!$N$6, 'Plan unos i pregled'!$E$7:$E$788,'PLAN Rekapitulacija'!$B24, 'Plan unos i pregled'!$C$7:$C$788,'PLAN Rekapitulacija'!G$4, 'Plan unos i pregled'!$A$7:$A$788,$D$3) -> 0 | H24: =SUMIFS('Plan unos i pregled'!$I$7:$I$788,'Plan unos i pregled'!$B$7:$B$788,'PLAN Rekapitulacija'!$N$7,'Plan unos i pregled'!$M$7:$M$788,'PLAN Rekapitulacija'!$N$6, 'Plan unos i pregled'!$E$7:$E$788,'PLAN Rekapitulacija'!$B24, 'Plan unos i pregled'!$C$7:$C$788,'PLAN Rekapitulacija'!H$4, 'Plan unos i pregled'!$A$7:$A$788,$D$3) -> 0 | I24: =SUMIFS('Plan unos i pregled'!$I$7:$I$788,'Plan unos i pregled'!$B$7:$B$788,'PLAN Rekapitulacija'!$N$7,'Plan unos i pregled'!$M$7:$M$788,'PLAN Rekapitulacija'!$N$6, 'Plan unos i pregled'!$E$7:$E$788,'PLAN Rekapitulacija'!$B24, 'Plan unos i pregled'!$C$7:$C$788,'PLAN Rekapitulacija'!I$4, 'Plan unos i pregled'!$A$7:$A$788,$D$3) -> 0 | J24: =SUM(F24:I24) -> 0 | K24: =ROUND(E24*J24,2) -> 0
A25: не | B25: 3.3.2 | C25: Само монтажа, за 10 комада или мање | D25: ком | E25: 582 | F25: =SUMIFS('Plan unos i pregled'!$I$7:$I$788,'Plan unos i pregled'!$B$7:$B$788,'PLAN Rekapitulacija'!$N$7,'Plan unos i pregled'!$M$7:$M$788,'PLAN Rekapitulacija'!$N$6, 'Plan unos i pregled'!$E$7:$E$788,'PLAN Rekapitulacija'!$B25, 'Plan unos i pregled'!$C$7:$C$788,'PLAN Rekapitulacija'!F$4, 'Plan unos i pregled'!$A$7:$A$788,$D$3) -> 0 | G25: =SUMIFS('Plan unos i pregled'!$I$7:$I$788,'Plan unos i pregled'!$B$7:$B$788,'PLAN Rekapitulacija'!$N$7,'Plan unos i pregled'!$M$7:$M$788,'PLAN Rekapitulacija'!$N$6, 'Plan unos i pregled'!$E$7:$E$788,'PLAN Rekapitulacija'!$B25, 'Plan unos i pregled'!$C$7:$C$788,'PLAN Rekapitulacija'!G$4, 'Plan unos i pregled'!$A$7:$A$788,$D$3) -> 0 | H25: =SUMIFS('Plan unos i pregled'!$I$7:$I$788,'Plan unos i pregled'!$B$7:$B$788,'PLAN Rekapitulacija'!$N$7,'Plan unos i pregled'!$M$7:$M$788,'PLAN Rekapitulacija'!$N$6, 'Plan unos i pregled'!$E$7:$E$788,'PLAN Rekapitulacija'!$B25, 'Plan unos i pregled'!$C$7:$C$788,'PLAN Rekapitulacija'!H$4, 'Plan unos i pregled'!$A$7:$A$788,$D$3) -> 0 | I25: =SUMIFS('Plan unos i pregled'!$I$7:$I$788,'Plan unos i pregled'!$B$7:$B$788,'PLAN Rekapitulacija'!$N$7,'Plan unos i pregled'!$M$7:$M$788,'PLAN Rekapitulacija'!$N$6, 'Plan unos i pregled'!$E$7:$E$788,'PLAN Rekapitulacija'!$B25, 'Plan unos i pregled'!$C$7:$C$788,'PLAN Rekapitulacija'!I$4, 'Plan unos i pregled'!$A$7:$A$788,$D$3) -> 0 | J25: 0 | K25: 0
A26: не | B26: 3.4 | C26: Монтажа саобраћајне табле са два стуба. Обрачун по комаду монтиране табле без материјала | D26: ком | E26: 621 | F26: =SUMIFS('Plan unos i pregled'!$I$7:$I$788,'Plan unos i pregled'!$B$7:$B$788,'PLAN Rekapitulacija'!$N$7,'Plan unos i pregled'!$M$7:$M$788,'PLAN Rekapitulacija'!$N$6, 'Plan unos i pregled'!$E$7:$E$788,'PLAN Rekapitulacija'!$B26, 'Plan unos i pregled'!$C$7:$C$788,'PLAN Rekapitulacija'!F$4, 'Plan unos i pregled'!$A$7:$A$788,$D$3) -> 0 | G26: =SUMIFS('Plan unos i pregled'!$I$7:$I$788,'Plan unos i pregled'!$B$7:$B$788,'PLAN Rekapitulacija'!$N$7,'Plan unos i pregled'!$M$7:$M$788,'PLAN Rekapitulacija'!$N$6, 'Plan unos i pregled'!$E$7:$E$788,'PLAN Rekapitulacija'!$B26, 'Plan unos i pregled'!$C$7:$C$788,'PLAN Rekapitulacija'!G$4, 'Plan unos i pregled'!$A$7:$A$788,$D$3) -> 0 | H26: =SUMIFS('Plan unos i pregled'!$I$7:$I$788,'Plan unos i pregled'!$B$7:$B$788,'PLAN Rekapitulacija'!$N$7,'Plan unos i pregled'!$M$7:$M$788,'PLAN Rekapitulacija'!$N$6, 'Plan unos i pregled'!$E$7:$E$788,'PLAN Rekapitulacija'!$B26, 'Plan unos i pregled'!$C$7:$C$788,'PLAN Rekapitulacija'!H$4, 'Plan unos i pregled'!$A$7:$A$788,$D$3) -> 0 | I26: =SUMIFS('Plan unos i pregled'!$I$7:$I$788,'Plan unos i pregled'!$B$7:$B$788,'PLAN Rekapitulacija'!$N$7,'Plan unos i pregled'!$M$7:$M$788,'PLAN Rekapitulacija'!$N$6, 'Plan unos i pregled'!$E$7:$E$788,'PLAN Rekapitulacija'!$B26, 'Plan unos i pregled'!$C$7:$C$788,'PLAN Rekapitulacija'!I$4, 'Plan unos i pregled'!$A$7:$A$788,$D$3) -> 0 | J26: 0 | K26: 0
A27: =IF(OR(J27:K29),"штампа","не") -> не | B27: 3.5 | C27: Постављање комплет саобраћајног знака са два носећа стуба и темељима од бетона МБ 20. Обрачун по комаду монтираног знака без цене табле која се наплаћује по фактури добављача
A28: не | B28: 3.5.1 | C28: Комплет са материјалом (без табле) | D28: ком | E28: 4636 | F28: =SUMIFS('Plan unos i pregled'!$I$7:$I$788,'Plan unos i pregled'!$B$7:$B$788,'PLAN Rekapitulacija'!$N$7,'Plan unos i pregled'!$M$7:$M$788,'PLAN Rekapitulacija'!$N$6, 'Plan unos i pregled'!$E$7:$E$788,'PLAN Rekapitulacija'!$B28, 'Plan unos i pregled'!$C$7:$C$788,'PLAN Rekapitulacija'!F$4, 'Plan unos i pregled'!$A$7:$A$788,$D$3) -> 0 | G28: =SUMIFS('Plan unos i pregled'!$I$7:$I$788,'Plan unos i pregled'!$B$7:$B$788,'PLAN Rekapitulacija'!$N$7,'Plan unos i pregled'!$M$7:$M$788,'PLAN Rekapitulacija'!$N$6, 'Plan unos i pregled'!$E$7:$E$788,'PLAN Rekapitulacija'!$B28, 'Plan unos i pregled'!$C$7:$C$788,'PLAN Rekapitulacija'!G$4, 'Plan unos i pregled'!$A$7:$A$788,$D$3) -> 0 | H28: =SUMIFS('Plan unos i pregled'!$I$7:$I$788,'Plan unos i pregled'!$B$7:$B$788,'PLAN Rekapitulacija'!$N$7,'Plan unos i pregled'!$M$7:$M$788,'PLAN Rekapitulacija'!$N$6, 'Plan unos i pregled'!$E$7:$E$788,'PLAN Rekapitulacija'!$B28, 'Plan unos i pregled'!$C$7:$C$788,'PLAN Rekapitulacija'!H$4, 'Plan unos i pregled'!$A$7:$A$788,$D$3) -> 0 | I28: =SUMIFS('Plan unos i pregled'!$I$7:$I$788,'Plan unos i pregled'!$B$7:$B$788,'PLAN Rekapitulacija'!$N$7,'Plan unos i pregled'!$M$7:$M$788,'PLAN Rekapitulacija'!$N$6, 'Plan unos i pregled'!$E$7:$E$788,'PLAN Rekapitulacija'!$B28, 'Plan unos i pregled'!$C$7:$C$788,'PLAN Rekapitulacija'!I$4, 'Plan unos i pregled'!$A$7:$A$788,$D$3) -> 0 | J28: =SUM(F28:I28) -> 0 | K28: =ROUND(E28*J28,2) -> 0
A29: не | B29: 3.5.2 | C29: Само монтажа на постојећим стубовима (без табле) | D29: ком | E29: 730 | F29: =SUMIFS('Plan unos i pregled'!$I$7:$I$788,'Plan unos i pregled'!$B$7:$B$788,'PLAN Rekapitulacija'!$N$7,'Plan unos i pregled'!$M$7:$M$788,'PLAN Rekapitulacija'!$N$6, 'Plan unos i pregled'!$E$7:$E$788,'PLAN Rekapitulacija'!$B29, 'Plan unos i pregled'!$C$7:$C$788,'PLAN Rekapitulacija'!F$4, 'Plan unos i pregled'!$A$7:$A$788,$D$3) -> 0 | G29: =SUMIFS('Plan unos i pregled'!$I$7:$I$788,'Plan unos i pregled'!$B$7:$B$788,'PLAN Rekapitulacija'!$N$7,'Plan unos i pregled'!$M$7:$M$788,'PLAN Rekapitulacija'!$N$6, 'Plan unos i pregled'!$E$7:$E$788,'PLAN Rekapitulacija'!$B29, 'Plan unos i pregled'!$C$7:$C$788,'PLAN Rekapitulacija'!G$4, 'Plan unos i pregled'!$A$7:$A$788,$D$3) -> 0 | H29: =SUMIFS('Plan unos i pregled'!$I$7:$I$788,'Plan unos i pregled'!$B$7:$B$788,'PLAN Rekapitulacija'!$N$7,'Plan unos i pregled'!$M$7:$M$788,'PLAN Rekapitulacija'!$N$6, 'Plan unos i pregled'!$E$7:$E$788,'PLAN Rekapitulacija'!$B29, 'Plan unos i pregled'!$C$7:$C$788,'PLAN Rekapitulacija'!H$4, 'Plan unos i pregled'!$A$7:$A$788,$D$3) -> 0 | I29: =SUMIFS('Plan unos i pregled'!$I$7:$I$788,'Plan unos i pregled'!$B$7:$B$788,'PLAN Rekapitulacija'!$N$7,'Plan unos i pregled'!$M$7:$M$788,'PLAN Rekapitulacija'!$N$6, 'Plan unos i pregled'!$E$7:$E$788,'PLAN Rekapitulacija'!$B29, 'Plan unos i pregled'!$C$7:$C$788,'PLAN Rekapitulacija'!I$4, 'Plan unos i pregled'!$A$7:$A$788,$D$3) -> 0 | J29: 0 | K29: 0
A30: не | C30: УКУПНО: | F30: =SUMPRODUCT($E$19:$E$29,F19:F29) -> 0 | G30: =SUMPRODUCT($E$19:$E$29,G19:G29) -> 0 | H30: =SUMPRODUCT($E$19:$E$29,H19:H29) -> 0 | I30: =SUMPRODUCT($E$19:$E$29,I19:I29) -> 0 | K30: =SUM(K18:K29) -> 0
A31: =IF(OR(J74:K74),"штампа","не") -> штампа | B31: 4 | C31: Одржавање зелених површина и спортских терена
A32: не | B32: 4.1 | C32: Грабуљање паркова од лишћа и отпадака са одвозом. | D32: m2 | E32: 5.2 | F32: =SUMIFS('Plan unos i pregled'!$I$7:$I$788,'Plan unos i pregled'!$B$7:$B$788,'PLAN Rekapitulacija'!$N$7,'Plan unos i pregled'!$M$7:$M$788,'PLAN Rekapitulacija'!$N$6, 'Plan unos i pregled'!$E$7:$E$788,'PLAN Rekapitulacija'!$B32, 'Plan unos i pregled'!$C$7:$C$788,'PLAN Rekapitulacija'!F$4, 'Plan unos i pregled'!$A$7:$A$788,$D$3) -> 0 | G32: =SUMIFS('Plan unos i pregled'!$I$7:$I$788,'Plan unos i pregled'!$B$7:$B$788,'PLAN Rekapitulacija'!$N$7,'Plan unos i pregled'!$M$7:$M$788,'PLAN Rekapitulacija'!$N$6, 'Plan unos i pregled'!$E$7:$E$788,'PLAN Rekapitulacija'!$B32, 'Plan unos i pregled'!$C$7:$C$788,'PLAN Rekapitulacija'!G$4, 'Plan unos i pregled'!$A$7:$A$788,$D$3) -> 0 | H32: =SUMIFS('Plan unos i pregled'!$I$7:$I$788,'Plan unos i pregled'!$B$7:$B$788,'PLAN Rekapitulacija'!$N$7,'Plan unos i pregled'!$M$7:$M$788,'PLAN Rekapitulacija'!$N$6, 'Plan unos i pregled'!$E$7:$E$788,'PLAN Rekapitulacija'!$B32, 'Plan unos i pregled'!$C$7:$C$788,'PLAN Rekapitulacija'!H$4, 'Plan unos i pregled'!$A$7:$A$788,$D$3) -> 0 | I32: =SUMIFS('Plan unos i pregled'!$I$7:$I$788,'Plan unos i pregled'!$B$7:$B$788,'PLAN Rekapitulacija'!$N$7,'Plan unos i pregled'!$M$7:$M$788,'PLAN Rekapitulacija'!$N$6, 'Plan unos i pregled'!$E$7:$E$788,'PLAN Rekapitulacija'!$B32, 'Plan unos i pregled'!$C$7:$C$788,'PLAN Rekapitulacija'!I$4, 'Plan unos i pregled'!$A$7:$A$788,$D$3) -> 0 | J32: =SUM(F32:I32) -> 0 | K32: =ROUND(E32*J32,2) -> 0
A33: не | B33: 4.2 | C33: Ручно сакупљање отпадака са парковских површина. | D33: m2 | E33: 4 | F33: =SUMIFS('Plan unos i pregled'!$I$7:$I$788,'Plan unos i pregled'!$B$7:$B$788,'PLAN Rekapitulacija'!$N$7,'Plan unos i pregled'!$M$7:$M$788,'PLAN Rekapitulacija'!$N$6, 'Plan unos i pregled'!$E$7:$E$788,'PLAN Rekapitulacija'!$B33, 'Plan unos i pregled'!$C$7:$C$788,'PLAN Rekapitulacija'!F$4, 'Plan unos i pregled'!$A$7:$A$788,$D$3) -> 0 | G33: =SUMIFS('Plan unos i pregled'!$I$7:$I$788,'Plan unos i pregled'!$B$7:$B$788,'PLAN Rekapitulacija'!$N$7,'Plan unos i pregled'!$M$7:$M$788,'PLAN Rekapitulacija'!$N$6, 'Plan unos i pregled'!$E$7:$E$788,'PLAN Rekapitulacija'!$B33, 'Plan unos i pregled'!$C$7:$C$788,'PLAN Rekapitulacija'!G$4, 'Plan unos i pregled'!$A$7:$A$788,$D$3) -> 0 | H33: =SUMIFS('Plan unos i pregled'!$I$7:$I$788,'Plan unos i pregled'!$B$7:$B$788,'PLAN Rekapitulacija'!$N$7,'Plan unos i pregled'!$M$7:$M$788,'PLAN Rekapitulacija'!$N$6, 'Plan unos i pregled'!$E$7:$E$788,'PLAN Rekapitulacija'!$B33, 'Plan unos i pregled'!$C$7:$C$788,'PLAN Rekapitulacija'!H$4, 'Plan unos i pregled'!$A$7:$A$788,$D$3) -> 0 | I33: =SUMIFS('Plan unos i pregled'!$I$7:$I$788,'Plan unos i pregled'!$B$7:$B$788,'PLAN Rekapitulacija'!$N$7,'Plan unos i pregled'!$M$7:$M$788,'PLAN Rekapitulacija'!$N$6, 'Plan unos i pregled'!$E$7:$E$788,'PLAN Rekapitulacija'!$B33, 'Plan unos i pregled'!$C$7:$C$788,'PLAN Rekapitulacija'!I$4, 'Plan unos i pregled'!$A$7:$A$788,$D$3) -> 0 | J33: 0 | K33: 0
A34: не | B34: 4.3 | C34: Кошење парковског травњака косачицом са ручном поправком. | D34: m2 | E34: 10 | F34: =SUMIFS('Plan unos i pregled'!$I$7:$I$788,'Plan unos i pregled'!$B$7:$B$788,'PLAN Rekapitulacija'!$N$7,'Plan unos i pregled'!$M$7:$M$788,'PLAN Rekapitulacija'!$N$6, 'Plan unos i pregled'!$E$7:$E$788,'PLAN Rekapitulacija'!$B34, 'Plan unos i pregled'!$C$7:$C$788,'PLAN Rekapitulacija'!F$4, 'Plan unos i pregled'!$A$7:$A$788,$D$3) -> 0 | G34: =SUMIFS('Plan unos i pregled'!$I$7:$I$788,'Plan unos i pregled'!$B$7:$B$788,'PLAN Rekapitulacija'!$N$7,'Plan unos i pregled'!$M$7:$M$788,'PLAN Rekapitulacija'!$N$6, 'Plan unos i pregled'!$E$7:$E$788,'PLAN Rekapitulacija'!$B34, 'Plan unos i pregled'!$C$7:$C$788,'PLAN Rekapitulacija'!G$4, 'Plan unos i pregled'!$A$7:$A$788,$D$3) -> 0 | H34: =SUMIFS('Plan unos i pregled'!$I$7:$I$788,'Plan unos i pregled'!$B$7:$B$788,'PLAN Rekapitulacija'!$N$7,'Plan unos i pregled'!$M$7:$M$788,'PLAN Rekapitulacija'!$N$6, 'Plan unos i pregled'!$E$7:$E$788,'PLAN Rekapitulacija'!$B34, 'Plan unos i pregled'!$C$7:$C$788,'PLAN Rekapitulacija'!H$4, 'Plan unos i pregled'!$A$7:$A$788,$D$3) -> 0 | I34: =SUMIFS('Plan unos i pregled'!$I$7:$I$788,'Plan unos i pregled'!$B$7:$B$788,'PLAN Rekapitulacija'!$N$7,'Plan unos i pregled'!$M$7:$M$788,'PLAN Rekapitulacija'!$N$6, 'Plan unos i pregled'!$E$7:$E$788,'PLAN Rekapitulacija'!$B34, 'Plan unos i pregled'!$C$7:$C$788,'PLAN Rekapitulacija'!I$4, 'Plan unos i pregled'!$A$7:$A$788,$D$3) -> 0 | J34: 0 | K34: 0
A35: не | B35: 4.4 | C35: Грабуљање травњака од отпадака са одвозом. | D35: m2 | E35: 8 | F35: =SUMIFS('Plan unos i pregled'!$I$7:$I$788,'Plan unos i pregled'!$B$7:$B$788,'PLAN Rekapitulacija'!$N$7,'Plan unos i pregled'!$M$7:$M$788,'PLAN Rekapitulacija'!$N$6, 'Plan unos i pregled'!$E$7:$E$788,'PLAN Rekapitulacija'!$B35, 'Plan unos i pregled'!$C$7:$C$788,'PLAN Rekapitulacija'!F$4, 'Plan unos i pregled'!$A$7:$A$788,$D$3) -> 0 | G35: =SUMIFS('Plan unos i pregled'!$I$7:$I$788,'Plan unos i pregled'!$B$7:$B$788,'PLAN Rekapitulacija'!$N$7,'Plan unos i pregled'!$M$7:$M$788,'PLAN Rekapitulacija'!$N$6, 'Plan unos i pregled'!$E$7:$E$788,'PLAN Rekapitulacija'!$B35, 'Plan unos i pregled'!$C$7:$C$788,'PLAN Rekapitulacija'!G$4, 'Plan unos i pregled'!$A$7:$A$788,$D$3) -> 0 | H35: =SUMIFS('Plan unos i pregled'!$I$7:$I$788,'Plan unos i pregled'!$B$7:$B$788,'PLAN Rekapitulacija'!$N$7,'Plan unos i pregled'!$M$7:$M$788,'PLAN Rekapitulacija'!$N$6, 'Plan unos i pregled'!$E$7:$E$788,'PLAN Rekapitulacija'!$B35, 'Plan unos i pregled'!$C$7:$C$788,'PLAN Rekapitulacija'!H$4, 'Plan unos i pregled'!$A$7:$A$788,$D$3) -> 0 | I35: =SUMIFS('Plan unos i pregled'!$I$7:$I$788,'Plan unos i pregled'!$B$7:$B$788,'PLAN Rekapitulacija'!$N$7,'Plan unos i pregled'!$M$7:$M$788,'PLAN Rekapitulacija'!$N$6, 'Plan unos i pregled'!$E$7:$E$788,'PLAN Rekapitulacija'!$B35, 'Plan unos i pregled'!$C$7:$C$788,'PLAN Rekapitulacija'!I$4, 'Plan unos i pregled'!$A$7:$A$788,$D$3) -> 0 | J35: 0 | K35: 0
A36: не | B36: 4.5 | C36: Заливање | D36: m2 | E36: 31 | F36: =SUMIFS('Plan unos i pregled'!$I$7:$I$788,'Plan unos i pregled'!$B$7:$B$788,'PLAN Rekapitulacija'!$N$7,'Plan unos i pregled'!$M$7:$M$788,'PLAN Rekapitulacija'!$N$6, 'Plan unos i pregled'!$E$7:$E$788,'PLAN Rekapitulacija'!$B36, 'Plan unos i pregled'!$C$7:$C$788,'PLAN Rekapitulacija'!F$4, 'Plan unos i pregled'!$A$7:$A$788,$D$3) -> 0 | G36: =SUMIFS('Plan unos i pregled'!$I$7:$I$788,'Plan unos i pregled'!$B$7:$B$788,'PLAN Rekapitulacija'!$N$7,'Plan unos i pregled'!$M$7:$M$788,'PLAN Rekapitulacija'!$N$6, 'Plan unos i pregled'!$E$7:$E$788,'PLAN Rekapitulacija'!$B36, 'Plan unos i pregled'!$C$7:$C$788,'PLAN Rekapitulacija'!G$4, 'Plan unos i pregled'!$A$7:$A$788,$D$3) -> 0 | H36: =SUMIFS('Plan unos i pregled'!$I$7:$I$788,'Plan unos i pregled'!$B$7:$B$788,'PLAN Rekapitulacija'!$N$7,'Plan unos i pregled'!$M$7:$M$788,'PLAN Rekapitulacija'!$N$6, 'Plan unos i pregled'!$E$7:$E$788,'PLAN Rekapitulacija'!$B36, 'Plan unos i pregled'!$C$7:$C$788,'PLAN Rekapitulacija'!H$4, 'Plan unos i pregled'!$A$7:$A$788,$D$3) -> 0 | I36: =SUMIFS('Plan unos i pregled'!$I$7:$I$788,'Plan unos i pregled'!$B$7:$B$788,'PLAN Rekapitulacija'!$N$7,'Plan unos i pregled'!$M$7:$M$788,'PLAN Rekapitulacija'!$N$6, 'Plan unos i pregled'!$E$7:$E$788,'PLAN Rekapitulacija'!$B36, 'Plan unos i pregled'!$C$7:$C$788,'PLAN Rekapitulacija'!I$4, 'Plan unos i pregled'!$A$7:$A$788,$D$3) -> 0 | J36: 0 | K36: 0
A37: штампа | B37: 4.6 | C37: Кошење парковског травњака тримером | D37: m2 | E37: 6.5 | F37: =SUMIFS('Plan unos i pregled'!$I$7:$I$788,'Plan unos i pregled'!$B$7:$B$788,'PLAN Rekapitulacija'!$N$7,'Plan unos i pregled'!$M$7:$M$788,'PLAN Rekapitulacija'!$N$6, 'Plan unos i pregled'!$E$7:$E$788,'PLAN Rekapitulacija'!$B37, 'Plan unos i pregled'!$C$7:$C$788,'PLAN Rekapitulacija'!F$4, 'Plan unos i pregled'!$A$7:$A$788,$D$3) -> 0 | G37: =SUMIFS('Plan unos i pregled'!$I$7:$I$788,'Plan unos i pregled'!$B$7:$B$788,'PLAN Rekapitulacija'!$N$7,'Plan unos i pregled'!$M$7:$M$788,'PLAN Rekapitulacija'!$N$6, 'Plan unos i pregled'!$E$7:$E$788,'PLAN Rekapitulacija'!$B37, 'Plan unos i pregled'!$C$7:$C$788,'PLAN Rekapitulacija'!G$4, 'Plan unos i pregled'!$A$7:$A$788,$D$3) -> 0 | H37: =SUMIFS('Plan unos i pregled'!$I$7:$I$788,'Plan unos i pregled'!$B$7:$B$788,'PLAN Rekapitulacija'!$N$7,'Plan unos i pregled'!$M$7:$M$788,'PLAN Rekapitulacija'!$N$6, 'Plan unos i pregled'!$E$7:$E$788,'PLAN Rekapitulacija'!$B37, 'Plan unos i pregled'!$C$7:$C$788,'PLAN Rekapitulacija'!H$4, 'Plan unos i pregled'!$A$7:$A$788,$D$3) -> 37977 | I37: =SUMIFS('Plan unos i pregled'!$I$7:$I$788,'Plan unos i pregled'!$B$7:$B$788,'PLAN Rekapitulacija'!$N$7,'Plan unos i pregled'!$M$7:$M$788,'PLAN Rekapitulacija'!$N$6, 'Plan unos i pregled'!$E$7:$E$788,'PLAN Rekapitulacija'!$B37, 'Plan unos i pregled'!$C$7:$C$788,'PLAN Rekapitulacija'!I$4, 'Plan unos i pregled'!$A$7:$A$788,$D$3) -> 0 | J37: 37977 | K37: 246850.5
A38: штампа | B38: 4.7 | C38: Кошење траве са банкина самоходном моторном косачицом | D38: m2 | E38: 3.99 | F38: =SUMIFS('Plan unos i pregled'!$I$7:$I$788,'Plan unos i pregled'!$B$7:$B$788,'PLAN Rekapitulacija'!$N$7,'Plan unos i pregled'!$M$7:$M$788,'PLAN Rekapitulacija'!$N$6, 'Plan unos i pregled'!$E$7:$E$788,'PLAN Rekapitulacija'!$B38, 'Plan unos i pregled'!$C$7:$C$788,'PLAN Rekapitulacija'!F$4, 'Plan unos i pregled'!$A$7:$A$788,$D$3) -> 86680 | G38: =SUMIFS('Plan unos i pregled'!$I$7:$I$788,'Plan unos i pregled'!$B$7:$B$788,'PLAN Rekapitulacija'!$N$7,'Plan unos i pregled'!$M$7:$M$788,'PLAN Rekapitulacija'!$N$6, 'Plan unos i pregled'!$E$7:$E$788,'PLAN Rekapitulacija'!$B38, 'Plan unos i pregled'!$C$7:$C$788,'PLAN Rekapitulacija'!G$4, 'Plan unos i pregled'!$A$7:$A$788,$D$3) -> 12050 | H38: =SUMIFS('Plan unos i pregled'!$I$7:$I$788,'Plan unos i pregled'!$B$7:$B$788,'PLAN Rekapitulacija'!$N$7,'Plan unos i pregled'!$M$7:$M$788,'PLAN Rekapitulacija'!$N$6, 'Plan unos i pregled'!$E$7:$E$788,'PLAN Rekapitulacija'!$B38, 'Plan unos i pregled'!$C$7:$C$788,'PLAN Rekapitulacija'!H$4, 'Plan unos i pregled'!$A$7:$A$788,$D$3) -> 0 | I38: =SUMIFS('Plan unos i pregled'!$I$7:$I$788,'Plan unos i pregled'!$B$7:$B$788,'PLAN Rekapitulacija'!$N$7,'Plan unos i pregled'!$M$7:$M$788,'PLAN Rekapitulacija'!$N$6, 'Plan unos i pregled'!$E$7:$E$788,'PLAN Rekapitulacija'!$B38, 'Plan unos i pregled'!$C$7:$C$788,'PLAN Rekapitulacija'!I$4, 'Plan unos i pregled'!$A$7:$A$788,$D$3) -> 0 | J38: 98730 | K38: 393932.7
A39: не | B39: 4.8 | C39: Утовар траве у камион и превоз на депонију на 5 km | D39: m2 | E39: 3.61 | F39: =SUMIFS('Plan unos i pregled'!$I$7:$I$788,'Plan unos i pregled'!$B$7:$B$788,'PLAN Rekapitulacija'!$N$7,'Plan unos i pregled'!$M$7:$M$788,'PLAN Rekapitulacija'!$N$6, 'Plan unos i pregled'!$E$7:$E$788,'PLAN Rekapitulacija'!$B39, 'Plan unos i pregled'!$C$7:$C$788,'PLAN Rekapitulacija'!F$4, 'Plan unos i pregled'!$A$7:$A$788,$D$3) -> 0 | G39: =SUMIFS('Plan unos i pregled'!$I$7:$I$788,'Plan unos i pregled'!$B$7:$B$788,'PLAN Rekapitulacija'!$N$7,'Plan unos i pregled'!$M$7:$M$788,'PLAN Rekapitulacija'!$N$6, 'Plan unos i pregled'!$E$7:$E$788,'PLAN Rekapitulacija'!$B39, 'Plan unos i pregled'!$C$7:$C$788,'PLAN Rekapitulacija'!G$4, 'Plan unos i pregled'!$A$7:$A$788,$D$3) -> 0 | H39: =SUMIFS('Plan unos i pregled'!$I$7:$I$788,'Plan unos i pregled'!$B$7:$B$788,'PLAN Rekapitulacija'!$N$7,'Plan unos i pregled'!$M$7:$M$788,'PLAN Rekapitulacija'!$N$6, 'Plan unos i pregled'!$E$7:$E$788,'PLAN Rekapitulacija'!$B39, 'Plan unos i pregled'!$C$7:$C$788,'PLAN Rekapitulacija'!H$4, 'Plan unos i pregled'!$A$7:$A$788,$D$3) -> 0 | I39: =SUMIFS('Plan unos i pregled'!$I$7:$I$788,'Plan unos i pregled'!$B$7:$B$788,'PLAN Rekapitulacija'!$N$7,'Plan unos i pregled'!$M$7:$M$788,'PLAN Rekapitulacija'!$N$6, 'Plan unos i pregled'!$E$7:$E$788,'PLAN Rekapitulacija'!$B39, 'Plan unos i pregled'!$C$7:$C$788,'PLAN Rekapitulacija'!I$4, 'Plan unos i pregled'!$A$7:$A$788,$D$3) -> 0 | J39: 0 | K39: 0
A40: не | B40: 4.9 | C40: Разастирање ђубрива | D40: m2 | E40: 15.6 | F40: =SUMIFS('Plan unos i pregled'!$I$7:$I$788,'Plan unos i pregled'!$B$7:$B$788,'PLAN Rekapitulacija'!$N$7,'Plan unos i pregled'!$M$7:$M$788,'PLAN Rekapitulacija'!$N$6, 'Plan unos i pregled'!$E$7:$E$788,'PLAN Rekapitulacija'!$B40, 'Plan unos i pregled'!$C$7:$C$788,'PLAN Rekapitulacija'!F$4, 'Plan unos i pregled'!$A$7:$A$788,$D$3) -> 0 | G40: =SUMIFS('Plan unos i pregled'!$I$7:$I$788,'Plan unos i pregled'!$B$7:$B$788,'PLAN Rekapitulacija'!$N$7,'Plan unos i pregled'!$M$7:$M$788,'PLAN Rekapitulacija'!$N$6, 'Plan unos i pregled'!$E$7:$E$788,'PLAN Rekapitulacija'!$B40, 'Plan unos i pregled'!$C$7:$C$788,'PLAN Rekapitulacija'!G$4, 'Plan unos i pregled'!$A$7:$A$788,$D$3) -> 0 | H40: =SUMIFS('Plan unos i pregled'!$I$7:$I$788,'Plan unos i pregled'!$B$7:$B$788,'PLAN Rekapitulacija'!$N$7,'Plan unos i pregled'!$M$7:$M$788,'PLAN Rekapitulacija'!$N$6, 'Plan unos i pregled'!$E$7:$E$788,'PLAN Rekapitulacija'!$B40, 'Plan unos i pregled'!$C$7:$C$788,'PLAN Rekapitulacija'!H$4, 'Plan unos i pregled'!$A$7:$A$788,$D$3) -> 0 | I40: =SUMIFS('Plan unos i pregled'!$I$7:$I$788,'Plan unos i pregled'!$B$7:$B$788,'PLAN Rekapitulacija'!$N$7,'Plan unos i pregled'!$M$7:$M$788,'PLAN Rekapitulacija'!$N$6, 'Plan unos i pregled'!$E$7:$E$788,'PLAN Rekapitulacija'!$B40, 'Plan unos i pregled'!$C$7:$C$788,'PLAN Rekapitulacija'!I$4, 'Plan unos i pregled'!$A$7:$A$788,$D$3) -> 0 | J40: 0 | K40: 0
A41: не | B41: 4.10 | C41: Набавка ђубрива | D41: по рачуну | E41: 1 | F41: =SUMIFS('Plan unos i pregled'!$I$7:$I$788,'Plan unos i pregled'!$B$7:$B$788,'PLAN Rekapitulacija'!$N$7,'Plan unos i pregled'!$M$7:$M$788,'PLAN Rekapitulacija'!$N$6, 'Plan unos i pregled'!$E$7:$E$788,'PLAN Rekapitulacija'!$B41, 'Plan unos i pregled'!$C$7:$C$788,'PLAN Rekapitulacija'!F$4, 'Plan unos i pregled'!$A$7:$A$788,$D$3) -> 0 | G41: =SUMIFS('Plan unos i pregled'!$I$7:$I$788,'Plan unos i pregled'!$B$7:$B$788,'PLAN Rekapitulacija'!$N$7,'Plan unos i pregled'!$M$7:$M$788,'PLAN Rekapitulacija'!$N$6, 'Plan unos i pregled'!$E$7:$E$788,'PLAN Rekapitulacija'!$B41, 'Plan unos i pregled'!$C$7:$C$788,'PLAN Rekapitulacija'!G$4, 'Plan unos i pregled'!$A$7:$A$788,$D$3) -> 0 | H41: =SUMIFS('Plan unos i pregled'!$I$7:$I$788,'Plan unos i pregled'!$B$7:$B$788,'PLAN Rekapitulacija'!$N$7,'Plan unos i pregled'!$M$7:$M$788,'PLAN Rekapitulacija'!$N$6, 'Plan unos i pregled'!$E$7:$E$788,'PLAN Rekapitulacija'!$B41, 'Plan unos i pregled'!$C$7:$C$788,'PLAN Rekapitulacija'!H$4, 'Plan unos i pregled'!$A$7:$A$788,$D$3) -> 0 | I41: =SUMIFS('Plan unos i pregled'!$I$7:$I$788,'Plan unos i pregled'!$B$7:$B$788,'PLAN Rekapitulacija'!$N$7,'Plan unos i pregled'!$M$7:$M$788,'PLAN Rekapitulacija'!$N$6, 'Plan unos i pregled'!$E$7:$E$788,'PLAN Rekapitulacija'!$B41, 'Plan unos i pregled'!$C$7:$C$788,'PLAN Rekapitulacija'!I$4, 'Plan unos i pregled'!$A$7:$A$788,$D$3) -> 0 | J41: 0 | K41: 0
A42: штампа | B42: 4.11 | C42: Обележавање фудбалског терена (по фактури добављача), ценом није обухваћен превоз и рад радника | D42: m2 | E42: 26.8 | F42: =SUMIFS('Plan unos i pregled'!$I$7:$I$788,'Plan unos i pregled'!$B$7:$B$788,'PLAN Rekapitulacija'!$N$7,'Plan unos i pregled'!$M$7:$M$788,'PLAN Rekapitulacija'!$N$6, 'Plan unos i pregled'!$E$7:$E$788,'PLAN Rekapitulacija'!$B42, 'Plan unos i pregled'!$C$7:$C$788,'PLAN Rekapitulacija'!F$4, 'Plan unos i pregled'!$A$7:$A$788,$D$3) -> 0 | G42: =SUMIFS('Plan unos i pregled'!$I$7:$I$788,'Plan unos i pregled'!$B$7:$B$788,'PLAN Rekapitulacija'!$N$7,'Plan unos i pregled'!$M$7:$M$788,'PLAN Rekapitulacija'!$N$6, 'Plan unos i pregled'!$E$7:$E$788,'PLAN Rekapitulacija'!$B42, 'Plan unos i pregled'!$C$7:$C$788,'PLAN Rekapitulacija'!G$4, 'Plan unos i pregled'!$A$7:$A$788,$D$3) -> 0 | H42: =SUMIFS('Plan unos i pregled'!$I$7:$I$788,'Plan unos i pregled'!$B$7:$B$788,'PLAN Rekapitulacija'!$N$7,'Plan unos i pregled'!$M$7:$M$788,'PLAN Rekapitulacija'!$N$6, 'Plan unos i pregled'!$E$7:$E$788,'PLAN Rekapitulacija'!$B42, 'Plan unos i pregled'!$C$7:$C$788,'PLAN Rekapitulacija'!H$4, 'Plan unos i pregled'!$A$7:$A$788,$D$3) -> 0 | I42: =SUMIFS('Plan unos i pregled'!$I$7:$I$788,'Plan unos i pregled'!$B$7:$B$788,'PLAN Rekapitulacija'!$N$7,'Plan unos i pregled'!$M$7:$M$788,'PLAN Rekapitulacija'!$N$6, 'Plan unos i pregled'!$E$7:$E$788,'PLAN Rekapitulacija'!$B42, 'Plan unos i pregled'!$C$7:$C$788,'PLAN Rekapitulacija'!I$4, 'Plan unos i pregled'!$A$7:$A$788,$D$3) -> 8420 | J42: 8420 | K42: 225656
A43: штампа | B43: 4.12 | C43: Поливање травњака (ценом није обухваћен рад радника) | D43: m2 | E43: 3.1 | F43: =SUMIFS('Plan unos i pregled'!$I$7:$I$788,'Plan unos i pregled'!$B$7:$B$788,'PLAN Rekapitulacija'!$N$7,'Plan unos i pregled'!$M$7:$M$788,'PLAN Rekapitulacija'!$N$6, 'Plan unos i pregled'!$E$7:$E$788,'PLAN Rekapitulacija'!$B43, 'Plan unos i pregled'!$C$7:$C$788,'PLAN Rekapitulacija'!F$4, 'Plan unos i pregled'!$A$7:$A$788,$D$3) -> 0 | G43: =SUMIFS('Plan unos i pregled'!$I$7:$I$788,'Plan unos i pregled'!$B$7:$B$788,'PLAN Rekapitulacija'!$N$7,'Plan unos i pregled'!$M$7:$M$788,'PLAN Rekapitulacija'!$N$6, 'Plan unos i pregled'!$E$7:$E$788,'PLAN Rekapitulacija'!$B43, 'Plan unos i pregled'!$C$7:$C$788,'PLAN Rekapitulacija'!G$4, 'Plan unos i pregled'!$A$7:$A$788,$D$3) -> 0 | H43: =SUMIFS('Plan unos i pregled'!$I$7:$I$788,'Plan unos i pregled'!$B$7:$B$788,'PLAN Rekapitulacija'!$N$7,'Plan unos i pregled'!$M$7:$M$788,'PLAN Rekapitulacija'!$N$6, 'Plan unos i pregled'!$E$7:$E$788,'PLAN Rekapitulacija'!$B43, 'Plan unos i pregled'!$C$7:$C$788,'PLAN Rekapitulacija'!H$4, 'Plan unos i pregled'!$A$7:$A$788,$D$3) -> 0 | I43: =SUMIFS('Plan unos i pregled'!$I$7:$I$788,'Plan unos i pregled'!$B$7:$B$788,'PLAN Rekapitulacija'!$N$7,'Plan unos i pregled'!$M$7:$M$788,'PLAN Rekapitulacija'!$N$6, 'Plan unos i pregled'!$E$7:$E$788,'PLAN Rekapitulacija'!$B43, 'Plan unos i pregled'!$C$7:$C$788,'PLAN Rekapitulacija'!I$4, 'Plan unos i pregled'!$A$7:$A$788,$D$3) -> 272700 | J43: 272700 | K43: 845370
A44: не | B44: 4.13 | C44: Сејање траве (ценом није обухваћен рад радника и семе траве по фактури добављача) | D44: m2 | E44: 15.6 | F44: =SUMIFS('Plan unos i pregled'!$I$7:$I$788,'Plan unos i pregled'!$B$7:$B$788,'PLAN Rekapitulacija'!$N$7,'Plan unos i pregled'!$M$7:$M$788,'PLAN Rekapitulacija'!$N$6, 'Plan unos i pregled'!$E$7:$E$788,'PLAN Rekapitulacija'!$B44, 'Plan unos i pregled'!$C$7:$C$788,'PLAN Rekapitulacija'!F$4, 'Plan unos i pregled'!$A$7:$A$788,$D$3) -> 0 | G44: =SUMIFS('Plan unos i pregled'!$I$7:$I$788,'Plan unos i pregled'!$B$7:$B$788,'PLAN Rekapitulacija'!$N$7,'Plan unos i pregled'!$M$7:$M$788,'PLAN Rekapitulacija'!$N$6, 'Plan unos i pregled'!$E$7:$E$788,'PLAN Rekapitulacija'!$B44, 'Plan unos i pregled'!$C$7:$C$788,'PLAN Rekapitulacija'!G$4, 'Plan unos i pregled'!$A$7:$A$788,$D$3) -> 0 | H44: =SUMIFS('Plan unos i pregled'!$I$7:$I$788,'Plan unos i pregled'!$B$7:$B$788,'PLAN Rekapitulacija'!$N$7,'Plan unos i pregled'!$M$7:$M$788,'PLAN Rekapitulacija'!$N$6, 'Plan unos i pregled'!$E$7:$E$788,'PLAN Rekapitulacija'!$B44, 'Plan unos i pregled'!$C$7:$C$788,'PLAN Rekapitulacija'!H$4, 'Plan unos i pregled'!$A$7:$A$788,$D$3) -> 0 | I44: =SUMIFS('Plan unos i pregled'!$I$7:$I$788,'Plan unos i pregled'!$B$7:$B$788,'PLAN Rekapitulacija'!$N$7,'Plan unos i pregled'!$M$7:$M$788,'PLAN Rekapitulacija'!$N$6, 'Plan unos i pregled'!$E$7:$E$788,'PLAN Rekapitulacija'!$B44, 'Plan unos i pregled'!$C$7:$C$788,'PLAN Rekapitulacija'!I$4, 'Plan unos i pregled'!$A$7:$A$788,$D$3) -> 0 | J44: 0 | K44: 0
A45: не | B45: 4.14 | C45: Отклањање дотрајалог стабла у дрвореду са вађењем пања после сечења | D45: ком | E45: 4145 | F45: =SUMIFS('Plan unos i pregled'!$I$7:$I$788,'Plan unos i pregled'!$B$7:$B$788,'PLAN Rekapitulacija'!$N$7,'Plan unos i pregled'!$M$7:$M$788,'PLAN Rekapitulacija'!$N$6, 'Plan unos i pregled'!$E$7:$E$788,'PLAN Rekapitulacija'!$B45, 'Plan unos i pregled'!$C$7:$C$788,'PLAN Rekapitulacija'!F$4, 'Plan unos i pregled'!$A$7:$A$788,$D$3) -> 0 | G45: =SUMIFS('Plan unos i pregled'!$I$7:$I$788,'Plan unos i pregled'!$B$7:$B$788,'PLAN Rekapitulacija'!$N$7,'Plan unos i pregled'!$M$7:$M$788,'PLAN Rekapitulacija'!$N$6, 'Plan unos i pregled'!$E$7:$E$788,'PLAN Rekapitulacija'!$B45, 'Plan unos i pregled'!$C$7:$C$788,'PLAN Rekapitulacija'!G$4, 'Plan unos i pregled'!$A$7:$A$788,$D$3) -> 0 | H45: =SUMIFS('Plan unos i pregled'!$I$7:$I$788,'Plan unos i pregled'!$B$7:$B$788,'PLAN Rekapitulacija'!$N$7,'Plan unos i pregled'!$M$7:$M$788,'PLAN Rekapitulacija'!$N$6, 'Plan unos i pregled'!$E$7:$E$788,'PLAN Rekapitulacija'!$B45, 'Plan unos i pregled'!$C$7:$C$788,'PLAN Rekapitulacija'!H$4, 'Plan unos i pregled'!$A$7:$A$788,$D$3) -> 0 | I45: =SUMIFS('Plan unos i pregled'!$I$7:$I$788,'Plan unos i pregled'!$B$7:$B$788,'PLAN Rekapitulacija'!$N$7,'Plan unos i pregled'!$M$7:$M$788,'PLAN Rekapitulacija'!$N$6, 'Plan unos i pregled'!$E$7:$E$788,'PLAN Rekapitulacija'!$B45, 'Plan unos i pregled'!$C$7:$C$788,'PLAN Rekapitulacija'!I$4, 'Plan unos i pregled'!$A$7:$A$788,$D$3) -> 0 | J45: 0 | K45: 0
A46: не | B46: 4.15 | C46: Орезивање дрвореда са прикупљањем грана и корективно орезивање. Обрачун по комаду стабла | D46: ком | E46: 800 | F46: =SUMIFS('Plan unos i pregled'!$I$7:$I$788,'Plan unos i pregled'!$B$7:$B$788,'PLAN Rekapitulacija'!$N$7,'Plan unos i pregled'!$M$7:$M$788,'PLAN Rekapitulacija'!$N$6, 'Plan unos i pregled'!$E$7:$E$788,'PLAN Rekapitulacija'!$B46, 'Plan unos i pregled'!$C$7:$C$788,'PLAN Rekapitulacija'!F$4, 'Plan unos i pregled'!$A$7:$A$788,$D$3) -> 0 | G46: =SUMIFS('Plan unos i pregled'!$I$7:$I$788,'Plan unos i pregled'!$B$7:$B$788,'PLAN Rekapitulacija'!$N$7,'Plan unos i pregled'!$M$7:$M$788,'PLAN Rekapitulacija'!$N$6, 'Plan unos i pregled'!$E$7:$E$788,'PLAN Rekapitulacija'!$B46, 'Plan unos i pregled'!$C$7:$C$788,'PLAN Rekapitulacija'!G$4, 'Plan unos i pregled'!$A$7:$A$788,$D$3) -> 0 | H46: =SUMIFS('Plan unos i pregled'!$I$7:$I$788,'Plan unos i pregled'!$B$7:$B$788,'PLAN Rekapitulacija'!$N$7,'Plan unos i pregled'!$M$7:$M$788,'PLAN Rekapitulacija'!$N$6, 'Plan unos i pregled'!$E$7:$E$788,'PLAN Rekapitulacija'!$B46, 'Plan unos i pregled'!$C$7:$C$788,'PLAN Rekapitulacija'!H$4, 'Plan unos i pregled'!$A$7:$A$788,$D$3) -> 0 | I46: =SUMIFS('Plan unos i pregled'!$I$7:$I$788,'Plan unos i pregled'!$B$7:$B$788,'PLAN Rekapitulacija'!$N$7,'Plan unos i pregled'!$M$7:$M$788,'PLAN Rekapitulacija'!$N$6, 'Plan unos i pregled'!$E$7:$E$788,'PLAN Rekapitulacija'!$B46, 'Plan unos i pregled'!$C$7:$C$788,'PLAN Rekapitulacija'!I$4, 'Plan unos i pregled'!$A$7:$A$788,$D$3) -> 0 | J46: 0 | K46: 0
A47: не | B47: 4.16 | C47: Окопавање земље око стабла и плевљење корова | D47: ком | E47: 311 | F47: =SUMIFS('Plan unos i pregled'!$I$7:$I$788,'Plan unos i pregled'!$B$7:$B$788,'PLAN Rekapitulacija'!$N$7,'Plan unos i pregled'!$M$7:$M$788,'PLAN Rekapitulacija'!$N$6, 'Plan unos i pregled'!$E$7:$E$788,'PLAN Rekapitulacija'!$B47, 'Plan unos i pregled'!$C$7:$C$788,'PLAN Rekapitulacija'!F$4, 'Plan unos i pregled'!$A$7:$A$788,$D$3) -> 0 | G47: =SUMIFS('Plan unos i pregled'!$I$7:$I$788,'Plan unos i pregled'!$B$7:$B$788,'PLAN Rekapitulacija'!$N$7,'Plan unos i pregled'!$M$7:$M$788,'PLAN Rekapitulacija'!$N$6, 'Plan unos i pregled'!$E$7:$E$788,'PLAN Rekapitulacija'!$B47, 'Plan unos i pregled'!$C$7:$C$788,'PLAN Rekapitulacija'!G$4, 'Plan unos i pregled'!$A$7:$A$788,$D$3) -> 0 | H47: =SUMIFS('Plan unos i pregled'!$I$7:$I$788,'Plan unos i pregled'!$B$7:$B$788,'PLAN Rekapitulacija'!$N$7,'Plan unos i pregled'!$M$7:$M$788,'PLAN Rekapitulacija'!$N$6, 'Plan unos i pregled'!$E$7:$E$788,'PLAN Rekapitulacija'!$B47, 'Plan unos i pregled'!$C$7:$C$788,'PLAN Rekapitulacija'!H$4, 'Plan unos i pregled'!$A$7:$A$788,$D$3) -> 0 | I47: =SUMIFS('Plan unos i pregled'!$I$7:$I$788,'Plan unos i pregled'!$B$7:$B$788,'PLAN Rekapitulacija'!$N$7,'Plan unos i pregled'!$M$7:$M$788,'PLAN Rekapitulacija'!$N$6, 'Plan unos i pregled'!$E$7:$E$788,'PLAN Rekapitulacija'!$B47, 'Plan unos i pregled'!$C$7:$C$788,'PLAN Rekapitulacija'!I$4, 'Plan unos i pregled'!$A$7:$A$788,$D$3) -> 0 | J47: 0 | K47: 0
A48: =IF(OR(J48:K50),"штампа","не") -> не | B48: 4.17 | C48: Садња новог стабла са ископом јаме у постојећу фризу | D48: ком | E48: 1295 | F48: =SUMIFS('Plan unos i pregled'!$I$7:$I$788,'Plan unos i pregled'!$B$7:$B$788,'PLAN Rekapitulacija'!$N$7,'Plan unos i pregled'!$M$7:$M$788,'PLAN Rekapitulacija'!$N$6, 'Plan unos i pregled'!$E$7:$E$788,'PLAN Rekapitulacija'!$B48, 'Plan unos i pregled'!$C$7:$C$788,'PLAN Rekapitulacija'!F$4, 'Plan unos i pregled'!$A$7:$A$788,$D$3) -> 0 | G48: =SUMIFS('Plan unos i pregled'!$I$7:$I$788,'Plan unos i pregled'!$B$7:$B$788,'PLAN Rekapitulacija'!$N$7,'Plan unos i pregled'!$M$7:$M$788,'PLAN Rekapitulacija'!$N$6, 'Plan unos i pregled'!$E$7:$E$788,'PLAN Rekapitulacija'!$B48, 'Plan unos i pregled'!$C$7:$C$788,'PLAN Rekapitulacija'!G$4, 'Plan unos i pregled'!$A$7:$A$788,$D$3) -> 0 | H48: =SUMIFS('Plan unos i pregled'!$I$7:$I$788,'Plan unos i pregled'!$B$7:$B$788,'PLAN Rekapitulacija'!$N$7,'Plan unos i pregled'!$M$7:$M$788,'PLAN Rekapitulacija'!$N$6, 'Plan unos i pregled'!$E$7:$E$788,'PLAN Rekapitulacija'!$B48, 'Plan unos i pregled'!$C$7:$C$788,'PLAN Rekapitulacija'!H$4, 'Plan unos i pregled'!$A$7:$A$788,$D$3) -> 0 | I48: =SUMIFS('Plan unos i pregled'!$I$7:$I$788,'Plan unos i pregled'!$B$7:$B$788,'PLAN Rekapitulacija'!$N$7,'Plan unos i pregled'!$M$7:$M$788,'PLAN Rekapitulacija'!$N$6, 'Plan unos i pregled'!$E$7:$E$788,'PLAN Rekapitulacija'!$B48, 'Plan unos i pregled'!$C$7:$C$788,'PLAN Rekapitulacija'!I$4, 'Plan unos i pregled'!$A$7:$A$788,$D$3) -> 0 | J48: 0 | K48: 0
A49: не | B49: 4.17.1 | C49: Набавка саднице | D49: по рачуну | E49: 1 | F49: =SUMIFS('Plan unos i pregled'!$I$7:$I$788,'Plan unos i pregled'!$B$7:$B$788,'PLAN Rekapitulacija'!$N$7,'Plan unos i pregled'!$M$7:$M$788,'PLAN Rekapitulacija'!$N$6, 'Plan unos i pregled'!$E$7:$E$788,'PLAN Rekapitulacija'!$B49, 'Plan unos i pregled'!$C$7:$C$788,'PLAN Rekapitulacija'!F$4, 'Plan unos i pregled'!$A$7:$A$788,$D$3) -> 0 | G49: =SUMIFS('Plan unos i pregled'!$I$7:$I$788,'Plan unos i pregled'!$B$7:$B$788,'PLAN Rekapitulacija'!$N$7,'Plan unos i pregled'!$M$7:$M$788,'PLAN Rekapitulacija'!$N$6, 'Plan unos i pregled'!$E$7:$E$788,'PLAN Rekapitulacija'!$B49, 'Plan unos i pregled'!$C$7:$C$788,'PLAN Rekapitulacija'!G$4, 'Plan unos i pregled'!$A$7:$A$788,$D$3) -> 0 | H49: =SUMIFS('Plan unos i pregled'!$I$7:$I$788,'Plan unos i pregled'!$B$7:$B$788,'PLAN Rekapitulacija'!$N$7,'Plan unos i pregled'!$M$7:$M$788,'PLAN Rekapitulacija'!$N$6, 'Plan unos i pregled'!$E$7:$E$788,'PLAN Rekapitulacija'!$B49, 'Plan unos i pregled'!$C$7:$C$788,'PLAN Rekapitulacija'!H$4, 'Plan unos i pregled'!$A$7:$A$788,$D$3) -> 0 | I49: =SUMIFS('Plan unos i pregled'!$I$7:$I$788,'Plan unos i pregled'!$B$7:$B$788,'PLAN Rekapitulacija'!$N$7,'Plan unos i pregled'!$M$7:$M$788,'PLAN Rekapitulacija'!$N$6, 'Plan unos i pregled'!$E$7:$E$788,'PLAN Rekapitulacija'!$B49, 'Plan unos i pregled'!$C$7:$C$788,'PLAN Rekapitulacija'!I$4, 'Plan unos i pregled'!$A$7:$A$788,$D$3) -> 0 | J49: 0 | K49: 0
A50: не | B50: 4.17.2 | C50: Заливанње | D50: ком | E50: 31 | F50: =SUMIFS('Plan unos i pregled'!$I$7:$I$788,'Plan unos i pregled'!$B$7:$B$788,'PLAN Rekapitulacija'!$N$7,'Plan unos i pregled'!$M$7:$M$788,'PLAN Rekapitulacija'!$N$6, 'Plan unos i pregled'!$E$7:$E$788,'PLAN Rekapitulacija'!$B50, 'Plan unos i pregled'!$C$7:$C$788,'PLAN Rekapitulacija'!F$4, 'Plan unos i pregled'!$A$7:$A$788,$D$3) -> 0 | G50: =SUMIFS('Plan unos i pregled'!$I$7:$I$788,'Plan unos i pregled'!$B$7:$B$788,'PLAN Rekapitulacija'!$N$7,'Plan unos i pregled'!$M$7:$M$788,'PLAN Rekapitulacija'!$N$6, 'Plan unos i pregled'!$E$7:$E$788,'PLAN Rekapitulacija'!$B50, 'Plan unos i pregled'!$C$7:$C$788,'PLAN Rekapitulacija'!G$4, 'Plan unos i pregled'!$A$7:$A$788,$D$3) -> 0 | H50: =SUMIFS('Plan unos i pregled'!$I$7:$I$788,'Plan unos i pregled'!$B$7:$B$788,'PLAN Rekapitulacija'!$N$7,'Plan unos i pregled'!$M$7:$M$788,'PLAN Rekapitulacija'!$N$6, 'Plan unos i pregled'!$E$7:$E$788,'PLAN Rekapitulacija'!$B50, 'Plan unos i pregled'!$C$7:$C$788,'PLAN Rekapitulacija'!H$4, 'Plan unos i pregled'!$A$7:$A$788,$D$3) -> 0 | I50: =SUMIFS('Plan unos i pregled'!$I$7:$I$788,'Plan unos i pregled'!$B$7:$B$788,'PLAN Rekapitulacija'!$N$7,'Plan unos i pregled'!$M$7:$M$788,'PLAN Rekapitulacija'!$N$6, 'Plan unos i pregled'!$E$7:$E$788,'PLAN Rekapitulacija'!$B50, 'Plan unos i pregled'!$C$7:$C$788,'PLAN Rekapitulacija'!I$4, 'Plan unos i pregled'!$A$7:$A$788,$D$3) -> 0 | J50: 0 | K50: 0
A51: =IF(OR(J51:K54),"штампа","не") -> не | B51: 4.18 | C51: Ручно сечење дрвећа. Цена обухвата: сечење стабла изнад корена, кресање грана, резање стабла и дебљих грана на погодну дужину и остављање на страну.
A52: не | B52: 4.18.1 | C52: Пречник стабла од 10-20 cm | D52: ком | E52: 518.54 | F52: =SUMIFS('Plan unos i pregled'!$I$7:$I$788,'Plan unos i pregled'!$B$7:$B$788,'PLAN Rekapitulacija'!$N$7,'Plan unos i pregled'!$M$7:$M$788,'PLAN Rekapitulacija'!$N$6, 'Plan unos i pregled'!$E$7:$E$788,'PLAN Rekapitulacija'!$B52, 'Plan unos i pregled'!$C$7:$C$788,'PLAN Rekapitulacija'!F$4, 'Plan unos i pregled'!$A$7:$A$788,$D$3) -> 0 | G52: =SUMIFS('Plan unos i pregled'!$I$7:$I$788,'Plan unos i pregled'!$B$7:$B$788,'PLAN Rekapitulacija'!$N$7,'Plan unos i pregled'!$M$7:$M$788,'PLAN Rekapitulacija'!$N$6, 'Plan unos i pregled'!$E$7:$E$788,'PLAN Rekapitulacija'!$B52, 'Plan unos i pregled'!$C$7:$C$788,'PLAN Rekapitulacija'!G$4, 'Plan unos i pregled'!$A$7:$A$788,$D$3) -> 0 | H52: =SUMIFS('Plan unos i pregled'!$I$7:$I$788,'Plan unos i pregled'!$B$7:$B$788,'PLAN Rekapitulacija'!$N$7,'Plan unos i pregled'!$M$7:$M$788,'PLAN Rekapitulacija'!$N$6, 'Plan unos i pregled'!$E$7:$E$788,'PLAN Rekapitulacija'!$B52, 'Plan unos i pregled'!$C$7:$C$788,'PLAN Rekapitulacija'!H$4, 'Plan unos i pregled'!$A$7:$A$788,$D$3) -> 0 | I52: =SUMIFS('Plan unos i pregled'!$I$7:$I$788,'Plan unos i pregled'!$B$7:$B$788,'PLAN Rekapitulacija'!$N$7,'Plan unos i pregled'!$M$7:$M$788,'PLAN Rekapitulacija'!$N$6, 'Plan unos i pregled'!$E$7:$E$788,'PLAN Rekapitulacija'!$B52, 'Plan unos i pregled'!$C$7:$C$788,'PLAN Rekapitulacija'!I$4, 'Plan unos i pregled'!$A$7:$A$788,$D$3) -> 0 | J52: =SUM(F52:I52) -> 0 | K52: =ROUND(E52*J52,2) -> 0
A53: не | B53: 4.18.2 | C53: Пречник стабла од 20-30 cm | D53: ком | E53: 1337.28 | F53: =SUMIFS('Plan unos i pregled'!$I$7:$I$788,'Plan unos i pregled'!$B$7:$B$788,'PLAN Rekapitulacija'!$N$7,'Plan unos i pregled'!$M$7:$M$788,'PLAN Rekapitulacija'!$N$6, 'Plan unos i pregled'!$E$7:$E$788,'PLAN Rekapitulacija'!$B53, 'Plan unos i pregled'!$C$7:$C$788,'PLAN Rekapitulacija'!F$4, 'Plan unos i pregled'!$A$7:$A$788,$D$3) -> 0 | G53: =SUMIFS('Plan unos i pregled'!$I$7:$I$788,'Plan unos i pregled'!$B$7:$B$788,'PLAN Rekapitulacija'!$N$7,'Plan unos i pregled'!$M$7:$M$788,'PLAN Rekapitulacija'!$N$6, 'Plan unos i pregled'!$E$7:$E$788,'PLAN Rekapitulacija'!$B53, 'Plan unos i pregled'!$C$7:$C$788,'PLAN Rekapitulacija'!G$4, 'Plan unos i pregled'!$A$7:$A$788,$D$3) -> 0 | H53: =SUMIFS('Plan unos i pregled'!$I$7:$I$788,'Plan unos i pregled'!$B$7:$B$788,'PLAN Rekapitulacija'!$N$7,'Plan unos i pregled'!$M$7:$M$788,'PLAN Rekapitulacija'!$N$6, 'Plan unos i pregled'!$E$7:$E$788,'PLAN Rekapitulacija'!$B53, 'Plan unos i pregled'!$C$7:$C$788,'PLAN Rekapitulacija'!H$4, 'Plan unos i pregled'!$A$7:$A$788,$D$3) -> 0 | I53: =SUMIFS('Plan unos i pregled'!$I$7:$I$788,'Plan unos i pregled'!$B$7:$B$788,'PLAN Rekapitulacija'!$N$7,'Plan unos i pregled'!$M$7:$M$788,'PLAN Rekapitulacija'!$N$6, 'Plan unos i pregled'!$E$7:$E$788,'PLAN Rekapitulacija'!$B53, 'Plan unos i pregled'!$C$7:$C$788,'PLAN Rekapitulacija'!I$4, 'Plan unos i pregled'!$A$7:$A$788,$D$3) -> 0 | J53: 0 | K53: 0
A54: не | B54: 4.18.3 | C54: Пречник стабла од 30-50 cm | D54: ком | E54: 3493.31 | F54: =SUMIFS('Plan unos i pregled'!$I$7:$I$788,'Plan unos i pregled'!$B$7:$B$788,'PLAN Rekapitulacija'!$N$7,'Plan unos i pregled'!$M$7:$M$788,'PLAN Rekapitulacija'!$N$6, 'Plan unos i pregled'!$E$7:$E$788,'PLAN Rekapitulacija'!$B54, 'Plan unos i pregled'!$C$7:$C$788,'PLAN Rekapitulacija'!F$4, 'Plan unos i pregled'!$A$7:$A$788,$D$3) -> 0 | G54: =SUMIFS('Plan unos i pregled'!$I$7:$I$788,'Plan unos i pregled'!$B$7:$B$788,'PLAN Rekapitulacija'!$N$7,'Plan unos i pregled'!$M$7:$M$788,'PLAN Rekapitulacija'!$N$6, 'Plan unos i pregled'!$E$7:$E$788,'PLAN Rekapitulacija'!$B54, 'Plan unos i pregled'!$C$7:$C$788,'PLAN Rekapitulacija'!G$4, 'Plan unos i pregled'!$A$7:$A$788,$D$3) -> 0 | H54: =SUMIFS('Plan unos i pregled'!$I$7:$I$788,'Plan unos i pregled'!$B$7:$B$788,'PLAN Rekapitulacija'!$N$7,'Plan unos i pregled'!$M$7:$M$788,'PLAN Rekapitulacija'!$N$6, 'Plan unos i pregled'!$E$7:$E$788,'PLAN Rekapitulacija'!$B54, 'Plan unos i pregled'!$C$7:$C$788,'PLAN Rekapitulacija'!H$4, 'Plan unos i pregled'!$A$7:$A$788,$D$3) -> 0 | I54: =SUMIFS('Plan unos i pregled'!$I$7:$I$788,'Plan unos i pregled'!$B$7:$B$788,'PLAN Rekapitulacija'!$N$7,'Plan unos i pregled'!$M$7:$M$788,'PLAN Rekapitulacija'!$N$6, 'Plan unos i pregled'!$E$7:$E$788,'PLAN Rekapitulacija'!$B54, 'Plan unos i pregled'!$C$7:$C$788,'PLAN Rekapitulacija'!I$4, 'Plan unos i pregled'!$A$7:$A$788,$D$3) -> 0 | J54: =SUM(F54:I54) -> 0 | K54: =ROUND(E54*J54,2) -> 0
A55: =IF(OR(J55:K57),"штампа","не") -> штампа | B55: 4.19 | C55: Кресање грана са одлагањем на страну моторном тестером. Пречник грана
A56: штампа | B56: 4.19.1 | C56: Пречник грана од 0 - 10 cm | D56: ком | E56: 256.38 | F56: =SUMIFS('Plan unos i pregled'!$I$7:$I$788,'Plan unos i pregled'!$B$7:$B$788,'PLAN Rekapitulacija'!$N$7,'Plan unos i pregled'!$M$7:$M$788,'PLAN Rekapitulacija'!$N$6, 'Plan unos i pregled'!$E$7:$E$788,'PLAN Rekapitulacija'!$B56, 'Plan unos i pregled'!$C$7:$C$788,'PLAN Rekapitulacija'!F$4, 'Plan unos i pregled'!$A$7:$A$788,$D$3) -> 930 | G56: =SUMIFS('Plan unos i pregled'!$I$7:$I$788,'Plan unos i pregled'!$B$7:$B$788,'PLAN Rekapitulacija'!$N$7,'Plan unos i pregled'!$M$7:$M$788,'PLAN Rekapitulacija'!$N$6, 'Plan unos i pregled'!$E$7:$E$788,'PLAN Rekapitulacija'!$B56, 'Plan unos i pregled'!$C$7:$C$788,'PLAN Rekapitulacija'!G$4, 'Plan unos i pregled'!$A$7:$A$788,$D$3) -> 12490 | H56: =SUMIFS('Plan unos i pregled'!$I$7:$I$788,'Plan unos i pregled'!$B$7:$B$788,'PLAN Rekapitulacija'!$N$7,'Plan unos i pregled'!$M$7:$M$788,'PLAN Rekapitulacija'!$N$6, 'Plan unos i pregled'!$E$7:$E$788,'PLAN Rekapitulacija'!$B56, 'Plan unos i pregled'!$C$7:$C$788,'PLAN Rekapitulacija'!H$4, 'Plan unos i pregled'!$A$7:$A$788,$D$3) -> 0 | I56: =SUMIFS('Plan unos i pregled'!$I$7:$I$788,'Plan unos i pregled'!$B$7:$B$788,'PLAN Rekapitulacija'!$N$7,'Plan unos i pregled'!$M$7:$M$788,'PLAN Rekapitulacija'!$N$6, 'Plan unos i pregled'!$E$7:$E$788,'PLAN Rekapitulacija'!$B56, 'Plan unos i pregled'!$C$7:$C$788,'PLAN Rekapitulacija'!I$4, 'Plan unos i pregled'!$A$7:$A$788,$D$3) -> 0 | J56: =SUM(F56:I56) -> 13420 | K56: =ROUND(E56*J56,2) -> 3440619.6
A57: не | B57: 4.19.2 | C57: Пречник грана од 0 - 20 cm | D57: ком | E57: 640.96 | F57: =SUMIFS('Plan unos i pregled'!$I$7:$I$788,'Plan unos i pregled'!$B$7:$B$788,'PLAN Rekapitulacija'!$N$7,'Plan unos i pregled'!$M$7:$M$788,'PLAN Rekapitulacija'!$N$6, 'Plan unos i pregled'!$E$7:$E$788,'PLAN Rekapitulacija'!$B57, 'Plan unos i pregled'!$C$7:$C$788,'PLAN Rekapitulacija'!F$4, 'Plan unos i pregled'!$A$7:$A$788,$D$3) -> 0 | G57: =SUMIFS('Plan unos i pregled'!$I$7:$I$788,'Plan unos i pregled'!$B$7:$B$788,'PLAN Rekapitulacija'!$N$7,'Plan unos i pregled'!$M$7:$M$788,'PLAN Rekapitulacija'!$N$6, 'Plan unos i pregled'!$E$7:$E$788,'PLAN Rekapitulacija'!$B57, 'Plan unos i pregled'!$C$7:$C$788,'PLAN Rekapitulacija'!G$4, 'Plan unos i pregled'!$A$7:$A$788,$D$3) -> 0 | H57: =SUMIFS('Plan unos i pregled'!$I$7:$I$788,'Plan unos i pregled'!$B$7:$B$788,'PLAN Rekapitulacija'!$N$7,'Plan unos i pregled'!$M$7:$M$788,'PLAN Rekapitulacija'!$N$6, 'Plan unos i pregled'!$E$7:$E$788,'PLAN Rekapitulacija'!$B57, 'Plan unos i pregled'!$C$7:$C$788,'PLAN Rekapitulacija'!H$4, 'Plan unos i pregled'!$A$7:$A$788,$D$3) -> 0 | I57: =SUMIFS('Plan unos i pregled'!$I$7:$I$788,'Plan unos i pregled'!$B$7:$B$788,'PLAN Rekapitulacija'!$N$7,'Plan unos i pregled'!$M$7:$M$788,'PLAN Rekapitulacija'!$N$6, 'Plan unos i pregled'!$E$7:$E$788,'PLAN Rekapitulacija'!$B57, 'Plan unos i pregled'!$C$7:$C$788,'PLAN Rekapitulacija'!I$4, 'Plan unos i pregled'!$A$7:$A$788,$D$3) -> 0 | J57: 0 | K57: 0
A58: =IF(OR(J58:K62),"штампа","не") -> не | B58: 4.20 | C58: Кресање грана дрвореда које сметају саобраћају и другим објектима са слагањем на страну
A59: не | B59: 4.20.1 | C59: Пречника до 10 cm | D59: ком | E59: 62.22 | F59: =SUMIFS('Plan unos i pregled'!$I$7:$I$788,'Plan unos i pregled'!$B$7:$B$788,'PLAN Rekapitulacija'!$N$7,'Plan unos i pregled'!$M$7:$M$788,'PLAN Rekapitulacija'!$N$6, 'Plan unos i pregled'!$E$7:$E$788,'PLAN Rekapitulacija'!$B59, 'Plan unos i pregled'!$C$7:$C$788,'PLAN Rekapitulacija'!F$4, 'Plan unos i pregled'!$A$7:$A$788,$D$3) -> 0 | G59: =SUMIFS('Plan unos i pregled'!$I$7:$I$788,'Plan unos i pregled'!$B$7:$B$788,'PLAN Rekapitulacija'!$N$7,'Plan unos i pregled'!$M$7:$M$788,'PLAN Rekapitulacija'!$N$6, 'Plan unos i pregled'!$E$7:$E$788,'PLAN Rekapitulacija'!$B59, 'Plan unos i pregled'!$C$7:$C$788,'PLAN Rekapitulacija'!G$4, 'Plan unos i pregled'!$A$7:$A$788,$D$3) -> 0 | H59: =SUMIFS('Plan unos i pregled'!$I$7:$I$788,'Plan unos i pregled'!$B$7:$B$788,'PLAN Rekapitulacija'!$N$7,'Plan unos i pregled'!$M$7:$M$788,'PLAN Rekapitulacija'!$N$6, 'Plan unos i pregled'!$E$7:$E$788,'PLAN Rekapitulacija'!$B59, 'Plan unos i pregled'!$C$7:$C$788,'PLAN Rekapitulacija'!H$4, 'Plan unos i pregled'!$A$7:$A$788,$D$3) -> 0 | I59: =SUMIFS('Plan unos i pregled'!$I$7:$I$788,'Plan unos i pregled'!$B$7:$B$788,'PLAN Rekapitulacija'!$N$7,'Plan unos i pregled'!$M$7:$M$788,'PLAN Rekapitulacija'!$N$6, 'Plan unos i pregled'!$E$7:$E$788,'PLAN Rekapitulacija'!$B59, 'Plan unos i pregled'!$C$7:$C$788,'PLAN Rekapitulacija'!I$4, 'Plan unos i pregled'!$A$7:$A$788,$D$3) -> 0 | J59: =SUM(F59:I59) -> 0 | K59: =ROUND(E59*J59,2) -> 0
A60: не | B60: 4.20.2 | C60: Пречника 10-20 cm | D60: ком | E60: 87.23 | F60: =SUMIFS('Plan unos i pregled'!$I$7:$I$788,'Plan unos i pregled'!$B$7:$B$788,'PLAN Rekapitulacija'!$N$7,'Plan unos i pregled'!$M$7:$M$788,'PLAN Rekapitulacija'!$N$6, 'Plan unos i pregled'!$E$7:$E$788,'PLAN Rekapitulacija'!$B60, 'Plan unos i pregled'!$C$7:$C$788,'PLAN Rekapitulacija'!F$4, 'Plan unos i pregled'!$A$7:$A$788,$D$3) -> 0 | G60: =SUMIFS('Plan unos i pregled'!$I$7:$I$788,'Plan unos i pregled'!$B$7:$B$788,'PLAN Rekapitulacija'!$N$7,'Plan unos i pregled'!$M$7:$M$788,'PLAN Rekapitulacija'!$N$6, 'Plan unos i pregled'!$E$7:$E$788,'PLAN Rekapitulacija'!$B60, 'Plan unos i pregled'!$C$7:$C$788,'PLAN Rekapitulacija'!G$4, 'Plan unos i pregled'!$A$7:$A$788,$D$3) -> 0 | H60: =SUMIFS('Plan unos i pregled'!$I$7:$I$788,'Plan unos i pregled'!$B$7:$B$788,'PLAN Rekapitulacija'!$N$7,'Plan unos i pregled'!$M$7:$M$788,'PLAN Rekapitulacija'!$N$6, 'Plan unos i pregled'!$E$7:$E$788,'PLAN Rekapitulacija'!$B60, 'Plan unos i pregled'!$C$7:$C$788,'PLAN Rekapitulacija'!H$4, 'Plan unos i pregled'!$A$7:$A$788,$D$3) -> 0 | I60: =SUMIFS('Plan unos i pregled'!$I$7:$I$788,'Plan unos i pregled'!$B$7:$B$788,'PLAN Rekapitulacija'!$N$7,'Plan unos i pregled'!$M$7:$M$788,'PLAN Rekapitulacija'!$N$6, 'Plan unos i pregled'!$E$7:$E$788,'PLAN Rekapitulacija'!$B60, 'Plan unos i pregled'!$C$7:$C$788,'PLAN Rekapitulacija'!I$4, 'Plan unos i pregled'!$A$7:$A$788,$D$3) -> 0 | J60: 0 | K60: 0
A61: не | B61: 4.20.3 | C61: Пречника 20-30 cm | D61: ком | E61: 141.91 | F61: =SUMIFS('Plan unos i pregled'!$I$7:$I$788,'Plan unos i pregled'!$B$7:$B$788,'PLAN Rekapitulacija'!$N$7,'Plan unos i pregled'!$M$7:$M$788,'PLAN Rekapitulacija'!$N$6, 'Plan unos i pregled'!$E$7:$E$788,'PLAN Rekapitulacija'!$B61, 'Plan unos i pregled'!$C$7:$C$788,'PLAN Rekapitulacija'!F$4, 'Plan unos i pregled'!$A$7:$A$788,$D$3) -> 0 | G61: =SUMIFS('Plan unos i pregled'!$I$7:$I$788,'Plan unos i pregled'!$B$7:$B$788,'PLAN Rekapitulacija'!$N$7,'Plan unos i pregled'!$M$7:$M$788,'PLAN Rekapitulacija'!$N$6, 'Plan unos i pregled'!$E$7:$E$788,'PLAN Rekapitulacija'!$B61, 'Plan unos i pregled'!$C$7:$C$788,'PLAN Rekapitulacija'!G$4, 'Plan unos i pregled'!$A$7:$A$788,$D$3) -> 0 | H61: =SUMIFS('Plan unos i pregled'!$I$7:$I$788,'Plan unos i pregled'!$B$7:$B$788,'PLAN Rekapitulacija'!$N$7,'Plan unos i pregled'!$M$7:$M$788,'PLAN Rekapitulacija'!$N$6, 'Plan unos i pregled'!$E$7:$E$788,'PLAN Rekapitulacija'!$B61, 'Plan unos i pregled'!$C$7:$C$788,'PLAN Rekapitulacija'!H$4, 'Plan unos i pregled'!$A$7:$A$788,$D$3) -> 0 | I61: =SUMIFS('Plan unos i pregled'!$I$7:$I$788,'Plan unos i pregled'!$B$7:$B$788,'PLAN Rekapitulacija'!$N$7,'Plan unos i pregled'!$M$7:$M$788,'PLAN Rekapitulacija'!$N$6, 'Plan unos i pregled'!$E$7:$E$788,'PLAN Rekapitulacija'!$B61, 'Plan unos i pregled'!$C$7:$C$788,'PLAN Rekapitulacija'!I$4, 'Plan unos i pregled'!$A$7:$A$788,$D$3) -> 0 | J61: 0 | K61: 0
A62: не | B62: 4.20.4 | C62: Пречника преко 30 cm | D62: ком | E62: 283.83 | F62: =SUMIFS('Plan unos i pregled'!$I$7:$I$788,'Plan unos i pregled'!$B$7:$B$788,'PLAN Rekapitulacija'!$N$7,'Plan unos i pregled'!$M$7:$M$788,'PLAN Rekapitulacija'!$N$6, 'Plan unos i pregled'!$E$7:$E$788,'PLAN Rekapitulacija'!$B62, 'Plan unos i pregled'!$C$7:$C$788,'PLAN Rekapitulacija'!F$4, 'Plan unos i pregled'!$A$7:$A$788,$D$3) -> 0 | G62: =SUMIFS('Plan unos i pregled'!$I$7:$I$788,'Plan unos i pregled'!$B$7:$B$788,'PLAN Rekapitulacija'!$N$7,'Plan unos i pregled'!$M$7:$M$788,'PLAN Rekapitulacija'!$N$6, 'Plan unos i pregled'!$E$7:$E$788,'PLAN Rekapitulacija'!$B62, 'Plan unos i pregled'!$C$7:$C$788,'PLAN Rekapitulacija'!G$4, 'Plan unos i pregled'!$A$7:$A$788,$D$3) -> 0 | H62: =SUMIFS('Plan unos i pregled'!$I$7:$I$788,'Plan unos i pregled'!$B$7:$B$788,'PLAN Rekapitulacija'!$N$7,'Plan unos i pregled'!$M$7:$M$788,'PLAN Rekapitulacija'!$N$6, 'Plan unos i pregled'!$E$7:$E$788,'PLAN Rekapitulacija'!$B62, 'Plan unos i pregled'!$C$7:$C$788,'PLAN Rekapitulacija'!H$4, 'Plan unos i pregled'!$A$7:$A$788,$D$3) -> 0 | I62: =SUMIFS('Plan unos i pregled'!$I$7:$I$788,'Plan unos i pregled'!$B$7:$B$788,'PLAN Rekapitulacija'!$N$7,'Plan unos i pregled'!$M$7:$M$788,'PLAN Rekapitulacija'!$N$6, 'Plan unos i pregled'!$E$7:$E$788,'PLAN Rekapitulacija'!$B62, 'Plan unos i pregled'!$C$7:$C$788,'PLAN Rekapitulacija'!I$4, 'Plan unos i pregled'!$A$7:$A$788,$D$3) -> 0 | J62: 0 | K62: 0
A63: =IF(OR(J63:K66),"штампа","не") -> не | B63: 4.21 | C63: Машинско сечење дрвећа са вађењем пањева ровокопачем. Цена обухвата рад радника са моторном тестером на сечењу стабала са кресањеем грана и вађење пањева ровокопачем са остављањем на страну
A64: не | B64: 4.21.1 | C64: Пречник стабла од 10 -20 cm | D64: ком | E64: 590 | F64: =SUMIFS('Plan unos i pregled'!$I$7:$I$788,'Plan unos i pregled'!$B$7:$B$788,'PLAN Rekapitulacija'!$N$7,'Plan unos i pregled'!$M$7:$M$788,'PLAN Rekapitulacija'!$N$6, 'Plan unos i pregled'!$E$7:$E$788,'PLAN Rekapitulacija'!$B64, 'Plan unos i pregled'!$C$7:$C$788,'PLAN Rekapitulacija'!F$4, 'Plan unos i pregled'!$A$7:$A$788,$D$3) -> 0 | G64: =SUMIFS('Plan unos i pregled'!$I$7:$I$788,'Plan unos i pregled'!$B$7:$B$788,'PLAN Rekapitulacija'!$N$7,'Plan unos i pregled'!$M$7:$M$788,'PLAN Rekapitulacija'!$N$6, 'Plan unos i pregled'!$E$7:$E$788,'PLAN Rekapitulacija'!$B64, 'Plan unos i pregled'!$C$7:$C$788,'PLAN Rekapitulacija'!G$4, 'Plan unos i pregled'!$A$7:$A$788,$D$3) -> 0 | H64: =SUMIFS('Plan unos i pregled'!$I$7:$I$788,'Plan unos i pregled'!$B$7:$B$788,'PLAN Rekapitulacija'!$N$7,'Plan unos i pregled'!$M$7:$M$788,'PLAN Rekapitulacija'!$N$6, 'Plan unos i pregled'!$E$7:$E$788,'PLAN Rekapitulacija'!$B64, 'Plan unos i pregled'!$C$7:$C$788,'PLAN Rekapitulacija'!H$4, 'Plan unos i pregled'!$A$7:$A$788,$D$3) -> 0 | I64: =SUMIFS('Plan unos i pregled'!$I$7:$I$788,'Plan unos i pregled'!$B$7:$B$788,'PLAN Rekapitulacija'!$N$7,'Plan unos i pregled'!$M$7:$M$788,'PLAN Rekapitulacija'!$N$6, 'Plan unos i pregled'!$E$7:$E$788,'PLAN Rekapitulacija'!$B64, 'Plan unos i pregled'!$C$7:$C$788,'PLAN Rekapitulacija'!I$4, 'Plan unos i pregled'!$A$7:$A$788,$D$3) -> 0 | J64: =SUM(F64:I64) -> 0 | K64: =ROUND(E64*J64,2) -> 0
A65: не | B65: 4.21.2 | C65: Пречник стабла од 20 -30 cm | D65: ком | E65: 1500 | F65: =SUMIFS('Plan unos i pregled'!$I$7:$I$788,'Plan unos i pregled'!$B$7:$B$788,'PLAN Rekapitulacija'!$N$7,'Plan unos i pregled'!$M$7:$M$788,'PLAN Rekapitulacija'!$N$6, 'Plan unos i pregled'!$E$7:$E$788,'PLAN Rekapitulacija'!$B65, 'Plan unos i pregled'!$C$7:$C$788,'PLAN Rekapitulacija'!F$4, 'Plan unos i pregled'!$A$7:$A$788,$D$3) -> 0 | G65: =SUMIFS('Plan unos i pregled'!$I$7:$I$788,'Plan unos i pregled'!$B$7:$B$788,'PLAN Rekapitulacija'!$N$7,'Plan unos i pregled'!$M$7:$M$788,'PLAN Rekapitulacija'!$N$6, 'Plan unos i pregled'!$E$7:$E$788,'PLAN Rekapitulacija'!$B65, 'Plan unos i pregled'!$C$7:$C$788,'PLAN Rekapitulacija'!G$4, 'Plan unos i pregled'!$A$7:$A$788,$D$3) -> 0 | H65: =SUMIFS('Plan unos i pregled'!$I$7:$I$788,'Plan unos i pregled'!$B$7:$B$788,'PLAN Rekapitulacija'!$N$7,'Plan unos i pregled'!$M$7:$M$788,'PLAN Rekapitulacija'!$N$6, 'Plan unos i pregled'!$E$7:$E$788,'PLAN Rekapitulacija'!$B65, 'Plan unos i pregled'!$C$7:$C$788,'PLAN Rekapitulacija'!H$4, 'Plan unos i pregled'!$A$7:$A$788,$D$3) -> 0 | I65: =SUMIFS('Plan unos i pregled'!$I$7:$I$788,'Plan unos i pregled'!$B$7:$B$788,'PLAN Rekapitulacija'!$N$7,'Plan unos i pregled'!$M$7:$M$788,'PLAN Rekapitulacija'!$N$6, 'Plan unos i pregled'!$E$7:$E$788,'PLAN Rekapitulacija'!$B65, 'Plan unos i pregled'!$C$7:$C$788,'PLAN Rekapitulacija'!I$4, 'Plan unos i pregled'!$A$7:$A$788,$D$3) -> 0 | J65: 0 | K65: 0
A66: не | B66: 4.21.3 | C66: Пречник стабла од 30 -50 cm | D66: ком | E66: 3500 | F66: =SUMIFS('Plan unos i pregled'!$I$7:$I$788,'Plan unos i pregled'!$B$7:$B$788,'PLAN Rekapitulacija'!$N$7,'Plan unos i pregled'!$M$7:$M$788,'PLAN Rekapitulacija'!$N$6, 'Plan unos i pregled'!$E$7:$E$788,'PLAN Rekapitulacija'!$B66, 'Plan unos i pregled'!$C$7:$C$788,'PLAN Rekapitulacija'!F$4, 'Plan unos i pregled'!$A$7:$A$788,$D$3) -> 0 | G66: =SUMIFS('Plan unos i pregled'!$I$7:$I$788,'Plan unos i pregled'!$B$7:$B$788,'PLAN Rekapitulacija'!$N$7,'Plan unos i pregled'!$M$7:$M$788,'PLAN Rekapitulacija'!$N$6, 'Plan unos i pregled'!$E$7:$E$788,'PLAN Rekapitulacija'!$B66, 'Plan unos i pregled'!$C$7:$C$788,'PLAN Rekapitulacija'!G$4, 'Plan unos i pregled'!$A$7:$A$788,$D$3) -> 0 | H66: =SUMIFS('Plan unos i pregled'!$I$7:$I$788,'Plan unos i pregled'!$B$7:$B$788,'PLAN Rekapitulacija'!$N$7,'Plan unos i pregled'!$M$7:$M$788,'PLAN Rekapitulacija'!$N$6, 'Plan unos i pregled'!$E$7:$E$788,'PLAN Rekapitulacija'!$B66, 'Plan unos i pregled'!$C$7:$C$788,'PLAN Rekapitulacija'!H$4, 'Plan unos i pregled'!$A$7:$A$788,$D$3) -> 0 | I66: =SUMIFS('Plan unos i pregled'!$I$7:$I$788,'Plan unos i pregled'!$B$7:$B$788,'PLAN Rekapitulacija'!$N$7,'Plan unos i pregled'!$M$7:$M$788,'PLAN Rekapitulacija'!$N$6, 'Plan unos i pregled'!$E$7:$E$788,'PLAN Rekapitulacija'!$B66, 'Plan unos i pregled'!$C$7:$C$788,'PLAN Rekapitulacija'!I$4, 'Plan unos i pregled'!$A$7:$A$788,$D$3) -> 0 | J66: 0 | K66: 0
A67: штампа | B67: 4.22 | C67: Сечење густог шибља преко 50 ком на m² | D67: m2 | E67: 60 | F67: =SUMIFS('Plan unos i pregled'!$I$7:$I$788,'Plan unos i pregled'!$B$7:$B$788,'PLAN Rekapitulacija'!$N$7,'Plan unos i pregled'!$M$7:$M$788,'PLAN Rekapitulacija'!$N$6, 'Plan unos i pregled'!$E$7:$E$788,'PLAN Rekapitulacija'!$B67, 'Plan unos i pregled'!$C$7:$C$788,'PLAN Rekapitulacija'!F$4, 'Plan unos i pregled'!$A$7:$A$788,$D$3) -> 3960 | G67: =SUMIFS('Plan unos i pregled'!$I$7:$I$788,'Plan unos i pregled'!$B$7:$B$788,'PLAN Rekapitulacija'!$N$7,'Plan unos i pregled'!$M$7:$M$788,'PLAN Rekapitulacija'!$N$6, 'Plan unos i pregled'!$E$7:$E$788,'PLAN Rekapitulacija'!$B67, 'Plan unos i pregled'!$C$7:$C$788,'PLAN Rekapitulacija'!G$4, 'Plan unos i pregled'!$A$7:$A$788,$D$3) -> 2314 | H67: =SUMIFS('Plan unos i pregled'!$I$7:$I$788,'Plan unos i pregled'!$B$7:$B$788,'PLAN Rekapitulacija'!$N$7,'Plan unos i pregled'!$M$7:$M$788,'PLAN Rekapitulacija'!$N$6, 'Plan unos i pregled'!$E$7:$E$788,'PLAN Rekapitulacija'!$B67, 'Plan unos i pregled'!$C$7:$C$788,'PLAN Rekapitulacija'!H$4, 'Plan unos i pregled'!$A$7:$A$788,$D$3) -> 0 | I67: =SUMIFS('Plan unos i pregled'!$I$7:$I$788,'Plan unos i pregled'!$B$7:$B$788,'PLAN Rekapitulacija'!$N$7,'Plan unos i pregled'!$M$7:$M$788,'PLAN Rekapitulacija'!$N$6, 'Plan unos i pregled'!$E$7:$E$788,'PLAN Rekapitulacija'!$B67, 'Plan unos i pregled'!$C$7:$C$788,'PLAN Rekapitulacija'!I$4, 'Plan unos i pregled'!$A$7:$A$788,$D$3) -> 0 | J67: 6274 | K67: 376440
A68: не | B68: 4.23 | C68: Утовар и одвоз шибља на 1 km | D68: m2 | E68: 32 | F68: =SUMIFS('Plan unos i pregled'!$I$7:$I$788,'Plan unos i pregled'!$B$7:$B$788,'PLAN Rekapitulacija'!$N$7,'Plan unos i pregled'!$M$7:$M$788,'PLAN Rekapitulacija'!$N$6, 'Plan unos i pregled'!$E$7:$E$788,'PLAN Rekapitulacija'!$B68, 'Plan unos i pregled'!$C$7:$C$788,'PLAN Rekapitulacija'!F$4, 'Plan unos i pregled'!$A$7:$A$788,$D$3) -> 0 | G68: =SUMIFS('Plan unos i pregled'!$I$7:$I$788,'Plan unos i pregled'!$B$7:$B$788,'PLAN Rekapitulacija'!$N$7,'Plan unos i pregled'!$M$7:$M$788,'PLAN Rekapitulacija'!$N$6, 'Plan unos i pregled'!$E$7:$E$788,'PLAN Rekapitulacija'!$B68, 'Plan unos i pregled'!$C$7:$C$788,'PLAN Rekapitulacija'!G$4, 'Plan unos i pregled'!$A$7:$A$788,$D$3) -> 0 | H68: =SUMIFS('Plan unos i pregled'!$I$7:$I$788,'Plan unos i pregled'!$B$7:$B$788,'PLAN Rekapitulacija'!$N$7,'Plan unos i pregled'!$M$7:$M$788,'PLAN Rekapitulacija'!$N$6, 'Plan unos i pregled'!$E$7:$E$788,'PLAN Rekapitulacija'!$B68, 'Plan unos i pregled'!$C$7:$C$788,'PLAN Rekapitulacija'!H$4, 'Plan unos i pregled'!$A$7:$A$788,$D$3) -> 0 | I68: =SUMIFS('Plan unos i pregled'!$I$7:$I$788,'Plan unos i pregled'!$B$7:$B$788,'PLAN Rekapitulacija'!$N$7,'Plan unos i pregled'!$M$7:$M$788,'PLAN Rekapitulacija'!$N$6, 'Plan unos i pregled'!$E$7:$E$788,'PLAN Rekapitulacija'!$B68, 'Plan unos i pregled'!$C$7:$C$788,'PLAN Rekapitulacija'!I$4, 'Plan unos i pregled'!$A$7:$A$788,$D$3) -> 0 | J68: 0 | K68: 0
A69: не | B69: 4.24 | C69: Ручно чишћење дивљих депонија (без одвоза) | D69: m3 | E69: 1800 | F69: =SUMIFS('Plan unos i pregled'!$I$7:$I$788,'Plan unos i pregled'!$B$7:$B$788,'PLAN Rekapitulacija'!$N$7,'Plan unos i pregled'!$M$7:$M$788,'PLAN Rekapitulacija'!$N$6, 'Plan unos i pregled'!$E$7:$E$788,'PLAN Rekapitulacija'!$B69, 'Plan unos i pregled'!$C$7:$C$788,'PLAN Rekapitulacija'!F$4, 'Plan unos i pregled'!$A$7:$A$788,$D$3) -> 0 | G69: =SUMIFS('Plan unos i pregled'!$I$7:$I$788,'Plan unos i pregled'!$B$7:$B$788,'PLAN Rekapitulacija'!$N$7,'Plan unos i pregled'!$M$7:$M$788,'PLAN Rekapitulacija'!$N$6, 'Plan unos i pregled'!$E$7:$E$788,'PLAN Rekapitulacija'!$B69, 'Plan unos i pregled'!$C$7:$C$788,'PLAN Rekapitulacija'!G$4, 'Plan unos i pregled'!$A$7:$A$788,$D$3) -> 0 | H69: =SUMIFS('Plan unos i pregled'!$I$7:$I$788,'Plan unos i pregled'!$B$7:$B$788,'PLAN Rekapitulacija'!$N$7,'Plan unos i pregled'!$M$7:$M$788,'PLAN Rekapitulacija'!$N$6, 'Plan unos i pregled'!$E$7:$E$788,'PLAN Rekapitulacija'!$B69, 'Plan unos i pregled'!$C$7:$C$788,'PLAN Rekapitulacija'!H$4, 'Plan unos i pregled'!$A$7:$A$788,$D$3) -> 0 | I69: =SUMIFS('Plan unos i pregled'!$I$7:$I$788,'Plan unos i pregled'!$B$7:$B$788,'PLAN Rekapitulacija'!$N$7,'Plan unos i pregled'!$M$7:$M$788,'PLAN Rekapitulacija'!$N$6, 'Plan unos i pregled'!$E$7:$E$788,'PLAN Rekapitulacija'!$B69, 'Plan unos i pregled'!$C$7:$C$788,'PLAN Rekapitulacija'!I$4, 'Plan unos i pregled'!$A$7:$A$788,$D$3) -> 0 | J69: 0 | K69: 0
A70: =IF(OR(J70:K72),"штампа","не") -> не | B70: 4.25 | C70: Ручно чишћење наноса из цевастих пропуста. Цена обухвата превоз радника, одстрањивање свих наноса и отпадака из пропуста са утоваром у колица, превоз уз косину на 10 m, ручни утовар у камион и превоз на депонију | E70: 0
A71: =IF(OR(J71:K71),"штампа","не") -> не | B71: 4.25.1 | C71: одлагањем на страну | D71: m3 | E71: 1870 | F71: =SUMIFS('Plan unos i pregled'!$I$7:$I$788,'Plan unos i pregled'!$B$7:$B$788,'PLAN Rekapitulacija'!$N$7,'Plan unos i pregled'!$M$7:$M$788,'PLAN Rekapitulacija'!$N$6, 'Plan unos i pregled'!$E$7:$E$788,'PLAN Rekapitulacija'!$B71, 'Plan unos i pregled'!$C$7:$C$788,'PLAN Rekapitulacija'!F$4, 'Plan unos i pregled'!$A$7:$A$788,$D$3) -> 0 | G71: =SUMIFS('Plan unos i pregled'!$I$7:$I$788,'Plan unos i pregled'!$B$7:$B$788,'PLAN Rekapitulacija'!$N$7,'Plan unos i pregled'!$M$7:$M$788,'PLAN Rekapitulacija'!$N$6, 'Plan unos i pregled'!$E$7:$E$788,'PLAN Rekapitulacija'!$B71, 'Plan unos i pregled'!$C$7:$C$788,'PLAN Rekapitulacija'!G$4, 'Plan unos i pregled'!$A$7:$A$788,$D$3) -> 0 | H71: =SUMIFS('Plan unos i pregled'!$I$7:$I$788,'Plan unos i pregled'!$B$7:$B$788,'PLAN Rekapitulacija'!$N$7,'Plan unos i pregled'!$M$7:$M$788,'PLAN Rekapitulacija'!$N$6, 'Plan unos i pregled'!$E$7:$E$788,'PLAN Rekapitulacija'!$B71, 'Plan unos i pregled'!$C$7:$C$788,'PLAN Rekapitulacija'!H$4, 'Plan unos i pregled'!$A$7:$A$788,$D$3) -> 0 | I71: =SUMIFS('Plan unos i pregled'!$I$7:$I$788,'Plan unos i pregled'!$B$7:$B$788,'PLAN Rekapitulacija'!$N$7,'Plan unos i pregled'!$M$7:$M$788,'PLAN Rekapitulacija'!$N$6, 'Plan unos i pregled'!$E$7:$E$788,'PLAN Rekapitulacija'!$B71, 'Plan unos i pregled'!$C$7:$C$788,'PLAN Rekapitulacija'!I$4, 'Plan unos i pregled'!$A$7:$A$788,$D$3) -> 0 | J71: =SUM(F71:I71) -> 0 | K71: =ROUND(E71*J71,2) -> 0
A72: не | B72: 4.25.2 | C72: са превозом на 2 km | D72: m3 | E72: 2130 | F72: =SUMIFS('Plan unos i pregled'!$I$7:$I$788,'Plan unos i pregled'!$B$7:$B$788,'PLAN Rekapitulacija'!$N$7,'Plan unos i pregled'!$M$7:$M$788,'PLAN Rekapitulacija'!$N$6, 'Plan unos i pregled'!$E$7:$E$788,'PLAN Rekapitulacija'!$B72, 'Plan unos i pregled'!$C$7:$C$788,'PLAN Rekapitulacija'!F$4, 'Plan unos i pregled'!$A$7:$A$788,$D$3) -> 0 | G72: =SUMIFS('Plan unos i pregled'!$I$7:$I$788,'Plan unos i pregled'!$B$7:$B$788,'PLAN Rekapitulacija'!$N$7,'Plan unos i pregled'!$M$7:$M$788,'PLAN Rekapitulacija'!$N$6, 'Plan unos i pregled'!$E$7:$E$788,'PLAN Rekapitulacija'!$B72, 'Plan unos i pregled'!$C$7:$C$788,'PLAN Rekapitulacija'!G$4, 'Plan unos i pregled'!$A$7:$A$788,$D$3) -> 0 | H72: =SUMIFS('Plan unos i pregled'!$I$7:$I$788,'Plan unos i pregled'!$B$7:$B$788,'PLAN Rekapitulacija'!$N$7,'Plan unos i pregled'!$M$7:$M$788,'PLAN Rekapitulacija'!$N$6, 'Plan unos i pregled'!$E$7:$E$788,'PLAN Rekapitulacija'!$B72, 'Plan unos i pregled'!$C$7:$C$788,'PLAN Rekapitulacija'!H$4, 'Plan unos i pregled'!$A$7:$A$788,$D$3) -> 0 | I72: =SUMIFS('Plan unos i pregled'!$I$7:$I$788,'Plan unos i pregled'!$B$7:$B$788,'PLAN Rekapitulacija'!$N$7,'Plan unos i pregled'!$M$7:$M$788,'PLAN Rekapitulacija'!$N$6, 'Plan unos i pregled'!$E$7:$E$788,'PLAN Rekapitulacija'!$B72, 'Plan unos i pregled'!$C$7:$C$788,'PLAN Rekapitulacija'!I$4, 'Plan unos i pregled'!$A$7:$A$788,$D$3) -> 0 | J72: 0 | K72: 0
A73: штампа | B73: 4.26 | C73: Кошење траве на слободним површинама косачицом прикљученом на трактор | D73: m2 | E73: 4.35 | F73: =SUMIFS('Plan unos i pregled'!$I$7:$I$788,'Plan unos i pregled'!$B$7:$B$788,'PLAN Rekapitulacija'!$N$7,'Plan unos i pregled'!$M$7:$M$788,'PLAN Rekapitulacija'!$N$6, 'Plan unos i pregled'!$E$7:$E$788,'PLAN Rekapitulacija'!$B73, 'Plan unos i pregled'!$C$7:$C$788,'PLAN Rekapitulacija'!F$4, 'Plan unos i pregled'!$A$7:$A$788,$D$3) -> 0 | G73: =SUMIFS('Plan unos i pregled'!$I$7:$I$788,'Plan unos i pregled'!$B$7:$B$788,'PLAN Rekapitulacija'!$N$7,'Plan unos i pregled'!$M$7:$M$788,'PLAN Rekapitulacija'!$N$6, 'Plan unos i pregled'!$E$7:$E$788,'PLAN Rekapitulacija'!$B73, 'Plan unos i pregled'!$C$7:$C$788,'PLAN Rekapitulacija'!G$4, 'Plan unos i pregled'!$A$7:$A$788,$D$3) -> 0 | H73: =SUMIFS('Plan unos i pregled'!$I$7:$I$788,'Plan unos i pregled'!$B$7:$B$788,'PLAN Rekapitulacija'!$N$7,'Plan unos i pregled'!$M$7:$M$788,'PLAN Rekapitulacija'!$N$6, 'Plan unos i pregled'!$E$7:$E$788,'PLAN Rekapitulacija'!$B73, 'Plan unos i pregled'!$C$7:$C$788,'PLAN Rekapitulacija'!H$4, 'Plan unos i pregled'!$A$7:$A$788,$D$3) -> 14036 | I73: =SUMIFS('Plan unos i pregled'!$I$7:$I$788,'Plan unos i pregled'!$B$7:$B$788,'PLAN Rekapitulacija'!$N$7,'Plan unos i pregled'!$M$7:$M$788,'PLAN Rekapitulacija'!$N$6, 'Plan unos i pregled'!$E$7:$E$788,'PLAN Rekapitulacija'!$B73, 'Plan unos i pregled'!$C$7:$C$788,'PLAN Rekapitulacija'!I$4, 'Plan unos i pregled'!$A$7:$A$788,$D$3) -> 0 | J73: 14036 | K73: 61056.6
A74: =IF(OR(J74:K74),"штампа","не") -> штампа | C74: УКУПНО: | F74: =SUMPRODUCT($E$33:$E$73,F33:F73) -> 821886.6 | G74: =SUMPRODUCT($E$33:$E$73,G33:G73) -> 3389105.7 | H74: =SUMPRODUCT($E$33:$E$73,H33:H73) -> 307907.1 | I74: =SUMPRODUCT($E$33:$E$73,I33:I73) -> 1071026 | K74: =SUM(K31:K73) -> 5589925.4
A75: =IF(OR(J98:K98),"штампа","не") -> не | B75: 5 | C75: Одржавање трупа пута
A76: =IF(OR(J76:K76),"штампа","не") -> не | B76: 5.1 | C76: Ручно кресање денивелисане банкине Цена обухвата: кресање банкине у слоју од 10 cm са планирањем и разастирањем материјала низ косину насипа. | D76: m2 | E76: 109.16 | F76: =SUMIFS('Plan unos i pregled'!$I$7:$I$788,'Plan unos i pregled'!$B$7:$B$788,'PLAN Rekapitulacija'!$N$7,'Plan unos i pregled'!$M$7:$M$788,'PLAN Rekapitulacija'!$N$6, 'Plan unos i pregled'!$E$7:$E$788,'PLAN Rekapitulacija'!$B76, 'Plan unos i pregled'!$C$7:$C$788,'PLAN Rekapitulacija'!F$4, 'Plan unos i pregled'!$A$7:$A$788,$D$3) -> 0 | G76: =SUMIFS('Plan unos i pregled'!$I$7:$I$788,'Plan unos i pregled'!$B$7:$B$788,'PLAN Rekapitulacija'!$N$7,'Plan unos i pregled'!$M$7:$M$788,'PLAN Rekapitulacija'!$N$6, 'Plan unos i pregled'!$E$7:$E$788,'PLAN Rekapitulacija'!$B76, 'Plan unos i pregled'!$C$7:$C$788,'PLAN Rekapitulacija'!G$4, 'Plan unos i pregled'!$A$7:$A$788,$D$3) -> 0 | H76: =SUMIFS('Plan unos i pregled'!$I$7:$I$788,'Plan unos i pregled'!$B$7:$B$788,'PLAN Rekapitulacija'!$N$7,'Plan unos i pregled'!$M$7:$M$788,'PLAN Rekapitulacija'!$N$6, 'Plan unos i pregled'!$E$7:$E$788,'PLAN Rekapitulacija'!$B76, 'Plan unos i pregled'!$C$7:$C$788,'PLAN Rekapitulacija'!H$4, 'Plan unos i pregled'!$A$7:$A$788,$D$3) -> 0 | I76: =SUMIFS('Plan unos i pregled'!$I$7:$I$788,'Plan unos i pregled'!$B$7:$B$788,'PLAN Rekapitulacija'!$N$7,'Plan unos i pregled'!$M$7:$M$788,'PLAN Rekapitulacija'!$N$6, 'Plan unos i pregled'!$E$7:$E$788,'PLAN Rekapitulacija'!$B76, 'Plan unos i pregled'!$C$7:$C$788,'PLAN Rekapitulacija'!I$4, 'Plan unos i pregled'!$A$7:$A$788,$D$3) -> 0 | J76: =SUM(F76:I76) -> 0 | K76: =ROUND(E76*J76,2) -> 0
A77: не | B77: 5.2 | C77: Ручно кресање денивелисане банкине испод одбојне ограде. Цена обухвата: кресање банкине у слоју од 10 cm са планирањем и разастирањем материјала низ косину насипа. | D77: m2 | E77: 152.83 | F77: =SUMIFS('Plan unos i pregled'!$I$7:$I$788,'Plan unos i pregled'!$B$7:$B$788,'PLAN Rekapitulacija'!$N$7,'Plan unos i pregled'!$M$7:$M$788,'PLAN Rekapitulacija'!$N$6, 'Plan unos i pregled'!$E$7:$E$788,'PLAN Rekapitulacija'!$B77, 'Plan unos i pregled'!$C$7:$C$788,'PLAN Rekapitulacija'!F$4, 'Plan unos i pregled'!$A$7:$A$788,$D$3) -> 0 | G77: =SUMIFS('Plan unos i pregled'!$I$7:$I$788,'Plan unos i pregled'!$B$7:$B$788,'PLAN Rekapitulacija'!$N$7,'Plan unos i pregled'!$M$7:$M$788,'PLAN Rekapitulacija'!$N$6, 'Plan unos i pregled'!$E$7:$E$788,'PLAN Rekapitulacija'!$B77, 'Plan unos i pregled'!$C$7:$C$788,'PLAN Rekapitulacija'!G$4, 'Plan unos i pregled'!$A$7:$A$788,$D$3) -> 0 | H77: =SUMIFS('Plan unos i pregled'!$I$7:$I$788,'Plan unos i pregled'!$B$7:$B$788,'PLAN Rekapitulacija'!$N$7,'Plan unos i pregled'!$M$7:$M$788,'PLAN Rekapitulacija'!$N$6, 'Plan unos i pregled'!$E$7:$E$788,'PLAN Rekapitulacija'!$B77, 'Plan unos i pregled'!$C$7:$C$788,'PLAN Rekapitulacija'!H$4, 'Plan unos i pregled'!$A$7:$A$788,$D$3) -> 0 | I77: =SUMIFS('Plan unos i pregled'!$I$7:$I$788,'Plan unos i pregled'!$B$7:$B$788,'PLAN Rekapitulacija'!$N$7,'Plan unos i pregled'!$M$7:$M$788,'PLAN Rekapitulacija'!$N$6, 'Plan unos i pregled'!$E$7:$E$788,'PLAN Rekapitulacija'!$B77, 'Plan unos i pregled'!$C$7:$C$788,'PLAN Rekapitulacija'!I$4, 'Plan unos i pregled'!$A$7:$A$788,$D$3) -> 0 | J77: 0 | K77: 0
A78: не | B78: 5.3 | C78: Машинско кресање денивелисане банкине. Цена обухвата: кресање банкине у слоју до 10 cm машински 90% и ручним дотеривањем 10% са разастирањем материјала низ косину насипа. | D78: m2 | E78: 26.57 | F78: =SUMIFS('Plan unos i pregled'!$I$7:$I$788,'Plan unos i pregled'!$B$7:$B$788,'PLAN Rekapitulacija'!$N$7,'Plan unos i pregled'!$M$7:$M$788,'PLAN Rekapitulacija'!$N$6, 'Plan unos i pregled'!$E$7:$E$788,'PLAN Rekapitulacija'!$B78, 'Plan unos i pregled'!$C$7:$C$788,'PLAN Rekapitulacija'!F$4, 'Plan unos i pregled'!$A$7:$A$788,$D$3) -> 0 | G78: =SUMIFS('Plan unos i pregled'!$I$7:$I$788,'Plan unos i pregled'!$B$7:$B$788,'PLAN Rekapitulacija'!$N$7,'Plan unos i pregled'!$M$7:$M$788,'PLAN Rekapitulacija'!$N$6, 'Plan unos i pregled'!$E$7:$E$788,'PLAN Rekapitulacija'!$B78, 'Plan unos i pregled'!$C$7:$C$788,'PLAN Rekapitulacija'!G$4, 'Plan unos i pregled'!$A$7:$A$788,$D$3) -> 0 | H78: =SUMIFS('Plan unos i pregled'!$I$7:$I$788,'Plan unos i pregled'!$B$7:$B$788,'PLAN Rekapitulacija'!$N$7,'Plan unos i pregled'!$M$7:$M$788,'PLAN Rekapitulacija'!$N$6, 'Plan unos i pregled'!$E$7:$E$788,'PLAN Rekapitulacija'!$B78, 'Plan unos i pregled'!$C$7:$C$788,'PLAN Rekapitulacija'!H$4, 'Plan unos i pregled'!$A$7:$A$788,$D$3) -> 0 | I78: =SUMIFS('Plan unos i pregled'!$I$7:$I$788,'Plan unos i pregled'!$B$7:$B$788,'PLAN Rekapitulacija'!$N$7,'Plan unos i pregled'!$M$7:$M$788,'PLAN Rekapitulacija'!$N$6, 'Plan unos i pregled'!$E$7:$E$788,'PLAN Rekapitulacija'!$B78, 'Plan unos i pregled'!$C$7:$C$788,'PLAN Rekapitulacija'!I$4, 'Plan unos i pregled'!$A$7:$A$788,$D$3) -> 0 | J78: 0 | K78: 0
A79: =IF(OR(J79:K81),"штампа","не") -> не | B79: 5.4 | C79: Ручно разастирање шљунка или каменог агрегата на банкинама у слоју d = 10 cm са ваљањем. Цена обухвата: набавку шљунка природне мешавине или дробљеног каменог агрегата, са превозом на 30 km, ручно разастирање материјала и ваљање виброваљком.
A80: =IF(OR(J80:K80),"штампа","не") -> не | B80: 5.4.1 | C80: Шљунак природне мешавине | D80: m2 | E80: 249.99 | F80: =SUMIFS('Plan unos i pregled'!$I$7:$I$788,'Plan unos i pregled'!$B$7:$B$788,'PLAN Rekapitulacija'!$N$7,'Plan unos i pregled'!$M$7:$M$788,'PLAN Rekapitulacija'!$N$6, 'Plan unos i pregled'!$E$7:$E$788,'PLAN Rekapitulacija'!$B80, 'Plan unos i pregled'!$C$7:$C$788,'PLAN Rekapitulacija'!F$4, 'Plan unos i pregled'!$A$7:$A$788,$D$3) -> 0 | G80: =SUMIFS('Plan unos i pregled'!$I$7:$I$788,'Plan unos i pregled'!$B$7:$B$788,'PLAN Rekapitulacija'!$N$7,'Plan unos i pregled'!$M$7:$M$788,'PLAN Rekapitulacija'!$N$6, 'Plan unos i pregled'!$E$7:$E$788,'PLAN Rekapitulacija'!$B80, 'Plan unos i pregled'!$C$7:$C$788,'PLAN Rekapitulacija'!G$4, 'Plan unos i pregled'!$A$7:$A$788,$D$3) -> 0 | H80: =SUMIFS('Plan unos i pregled'!$I$7:$I$788,'Plan unos i pregled'!$B$7:$B$788,'PLAN Rekapitulacija'!$N$7,'Plan unos i pregled'!$M$7:$M$788,'PLAN Rekapitulacija'!$N$6, 'Plan unos i pregled'!$E$7:$E$788,'PLAN Rekapitulacija'!$B80, 'Plan unos i pregled'!$C$7:$C$788,'PLAN Rekapitulacija'!H$4, 'Plan unos i pregled'!$A$7:$A$788,$D$3) -> 0 | I80: =SUMIFS('Plan unos i pregled'!$I$7:$I$788,'Plan unos i pregled'!$B$7:$B$788,'PLAN Rekapitulacija'!$N$7,'Plan unos i pregled'!$M$7:$M$788,'PLAN Rekapitulacija'!$N$6, 'Plan unos i pregled'!$E$7:$E$788,'PLAN Rekapitulacija'!$B80, 'Plan unos i pregled'!$C$7:$C$788,'PLAN Rekapitulacija'!I$4, 'Plan unos i pregled'!$A$7:$A$788,$D$3) -> 0 | J80: =SUM(F80:I80) -> 0 | K80: =ROUND(E80*J80,2) -> 0
A81: не | B81: 5.4.2 | C81: Дробљени камени агрегат | D81: m2 | E81: 280.24 | F81: =SUMIFS('Plan unos i pregled'!$I$7:$I$788,'Plan unos i pregled'!$B$7:$B$788,'PLAN Rekapitulacija'!$N$7,'Plan unos i pregled'!$M$7:$M$788,'PLAN Rekapitulacija'!$N$6, 'Plan unos i pregled'!$E$7:$E$788,'PLAN Rekapitulacija'!$B81, 'Plan unos i pregled'!$C$7:$C$788,'PLAN Rekapitulacija'!F$4, 'Plan unos i pregled'!$A$7:$A$788,$D$3) -> 0 | G81: =SUMIFS('Plan unos i pregled'!$I$7:$I$788,'Plan unos i pregled'!$B$7:$B$788,'PLAN Rekapitulacija'!$N$7,'Plan unos i pregled'!$M$7:$M$788,'PLAN Rekapitulacija'!$N$6, 'Plan unos i pregled'!$E$7:$E$788,'PLAN Rekapitulacija'!$B81, 'Plan unos i pregled'!$C$7:$C$788,'PLAN Rekapitulacija'!G$4, 'Plan unos i pregled'!$A$7:$A$788,$D$3) -> 0 | H81: =SUMIFS('Plan unos i pregled'!$I$7:$I$788,'Plan unos i pregled'!$B$7:$B$788,'PLAN Rekapitulacija'!$N$7,'Plan unos i pregled'!$M$7:$M$788,'PLAN Rekapitulacija'!$N$6, 'Plan unos i pregled'!$E$7:$E$788,'PLAN Rekapitulacija'!$B81, 'Plan unos i pregled'!$C$7:$C$788,'PLAN Rekapitulacija'!H$4, 'Plan unos i pregled'!$A$7:$A$788,$D$3) -> 0 | I81: =SUMIFS('Plan unos i pregled'!$I$7:$I$788,'Plan unos i pregled'!$B$7:$B$788,'PLAN Rekapitulacija'!$N$7,'Plan unos i pregled'!$M$7:$M$788,'PLAN Rekapitulacija'!$N$6, 'Plan unos i pregled'!$E$7:$E$788,'PLAN Rekapitulacija'!$B81, 'Plan unos i pregled'!$C$7:$C$788,'PLAN Rekapitulacija'!I$4, 'Plan unos i pregled'!$A$7:$A$788,$D$3) -> 0 | J81: 0 | K81: 0
A82: =IF(OR(J82:K84),"штампа","не") -> не | B82: 5.5 | C82: Машинско разастирање шљунка или каменог агрегата на банкинама у слоју d = 10 cm са ваљањем. Цена обухвата: набавку шљунка природне мешавине или дробљеног каменог агрегата, са превозом на 30 km, разастирање шљунка машински 90% уз ручну поправку 10% и ваљање виброваљком.
A83: =IF(OR(J83:K83),"штампа","не") -> не | B83: 5.5.1 | C83: Шљунак природне мешавине | D83: m2 | E83: 166.78 | F83: =SUMIFS('Plan unos i pregled'!$I$7:$I$788,'Plan unos i pregled'!$B$7:$B$788,'PLAN Rekapitulacija'!$N$7,'Plan unos i pregled'!$M$7:$M$788,'PLAN Rekapitulacija'!$N$6, 'Plan unos i pregled'!$E$7:$E$788,'PLAN Rekapitulacija'!$B83, 'Plan unos i pregled'!$C$7:$C$788,'PLAN Rekapitulacija'!F$4, 'Plan unos i pregled'!$A$7:$A$788,$D$3) -> 0 | G83: =SUMIFS('Plan unos i pregled'!$I$7:$I$788,'Plan unos i pregled'!$B$7:$B$788,'PLAN Rekapitulacija'!$N$7,'Plan unos i pregled'!$M$7:$M$788,'PLAN Rekapitulacija'!$N$6, 'Plan unos i pregled'!$E$7:$E$788,'PLAN Rekapitulacija'!$B83, 'Plan unos i pregled'!$C$7:$C$788,'PLAN Rekapitulacija'!G$4, 'Plan unos i pregled'!$A$7:$A$788,$D$3) -> 0 | H83: =SUMIFS('Plan unos i pregled'!$I$7:$I$788,'Plan unos i pregled'!$B$7:$B$788,'PLAN Rekapitulacija'!$N$7,'Plan unos i pregled'!$M$7:$M$788,'PLAN Rekapitulacija'!$N$6, 'Plan unos i pregled'!$E$7:$E$788,'PLAN Rekapitulacija'!$B83, 'Plan unos i pregled'!$C$7:$C$788,'PLAN Rekapitulacija'!H$4, 'Plan unos i pregled'!$A$7:$A$788,$D$3) -> 0 | I83: =SUMIFS('Plan unos i pregled'!$I$7:$I$788,'Plan unos i pregled'!$B$7:$B$788,'PLAN Rekapitulacija'!$N$7,'Plan unos i pregled'!$M$7:$M$788,'PLAN Rekapitulacija'!$N$6, 'Plan unos i pregled'!$E$7:$E$788,'PLAN Rekapitulacija'!$B83, 'Plan unos i pregled'!$C$7:$C$788,'PLAN Rekapitulacija'!I$4, 'Plan unos i pregled'!$A$7:$A$788,$D$3) -> 0 | J83: =SUM(F83:I83) -> 0 | K83: =ROUND(E83*J83,2) -> 0
A84: не | B84: 5.5.2 | C84: Дробљени камен агрегат | D84: m2 | E84: 197.03 | F84: =SUMIFS('Plan unos i pregled'!$I$7:$I$788,'Plan unos i pregled'!$B$7:$B$788,'PLAN Rekapitulacija'!$N$7,'Plan unos i pregled'!$M$7:$M$788,'PLAN Rekapitulacija'!$N$6, 'Plan unos i pregled'!$E$7:$E$788,'PLAN Rekapitulacija'!$B84, 'Plan unos i pregled'!$C$7:$C$788,'PLAN Rekapitulacija'!F$4, 'Plan unos i pregled'!$A$7:$A$788,$D$3) -> 0 | G84: =SUMIFS('Plan unos i pregled'!$I$7:$I$788,'Plan unos i pregled'!$B$7:$B$788,'PLAN Rekapitulacija'!$N$7,'Plan unos i pregled'!$M$7:$M$788,'PLAN Rekapitulacija'!$N$6, 'Plan unos i pregled'!$E$7:$E$788,'PLAN Rekapitulacija'!$B84, 'Plan unos i pregled'!$C$7:$C$788,'PLAN Rekapitulacija'!G$4, 'Plan unos i pregled'!$A$7:$A$788,$D$3) -> 0 | H84: =SUMIFS('Plan unos i pregled'!$I$7:$I$788,'Plan unos i pregled'!$B$7:$B$788,'PLAN Rekapitulacija'!$N$7,'Plan unos i pregled'!$M$7:$M$788,'PLAN Rekapitulacija'!$N$6, 'Plan unos i pregled'!$E$7:$E$788,'PLAN Rekapitulacija'!$B84, 'Plan unos i pregled'!$C$7:$C$788,'PLAN Rekapitulacija'!H$4, 'Plan unos i pregled'!$A$7:$A$788,$D$3) -> 0 | I84: =SUMIFS('Plan unos i pregled'!$I$7:$I$788,'Plan unos i pregled'!$B$7:$B$788,'PLAN Rekapitulacija'!$N$7,'Plan unos i pregled'!$M$7:$M$788,'PLAN Rekapitulacija'!$N$6, 'Plan unos i pregled'!$E$7:$E$788,'PLAN Rekapitulacija'!$B84, 'Plan unos i pregled'!$C$7:$C$788,'PLAN Rekapitulacija'!I$4, 'Plan unos i pregled'!$A$7:$A$788,$D$3) -> 0 | J84: 0 | K84: 0
A85: =IF(OR(J85:K90),"штампа","не") -> не | B85: 5.6 | C85: Ручно чишћење наноса и осулина са коловоза са ручним утоваром и одвозом матријала на депонију. | E85: 0
A86: =IF(OR(J86:K86),"штампа","не") -> не | B86: 5.6.1 | C86: Са превозом на 1 km | D86: m3 | E86: 1714.75 | F86: =SUMIFS('Plan unos i pregled'!$I$7:$I$788,'Plan unos i pregled'!$B$7:$B$788,'PLAN Rekapitulacija'!$N$7,'Plan unos i pregled'!$M$7:$M$788,'PLAN Rekapitulacija'!$N$6, 'Plan unos i pregled'!$E$7:$E$788,'PLAN Rekapitulacija'!$B86, 'Plan unos i pregled'!$C$7:$C$788,'PLAN Rekapitulacija'!F$4, 'Plan unos i pregled'!$A$7:$A$788,$D$3) -> 0 | G86: =SUMIFS('Plan unos i pregled'!$I$7:$I$788,'Plan unos i pregled'!$B$7:$B$788,'PLAN Rekapitulacija'!$N$7,'Plan unos i pregled'!$M$7:$M$788,'PLAN Rekapitulacija'!$N$6, 'Plan unos i pregled'!$E$7:$E$788,'PLAN Rekapitulacija'!$B86, 'Plan unos i pregled'!$C$7:$C$788,'PLAN Rekapitulacija'!G$4, 'Plan unos i pregled'!$A$7:$A$788,$D$3) -> 0 | H86: =SUMIFS('Plan unos i pregled'!$I$7:$I$788,'Plan unos i pregled'!$B$7:$B$788,'PLAN Rekapitulacija'!$N$7,'Plan unos i pregled'!$M$7:$M$788,'PLAN Rekapitulacija'!$N$6, 'Plan unos i pregled'!$E$7:$E$788,'PLAN Rekapitulacija'!$B86, 'Plan unos i pregled'!$C$7:$C$788,'PLAN Rekapitulacija'!H$4, 'Plan unos i pregled'!$A$7:$A$788,$D$3) -> 0 | I86: =SUMIFS('Plan unos i pregled'!$I$7:$I$788,'Plan unos i pregled'!$B$7:$B$788,'PLAN Rekapitulacija'!$N$7,'Plan unos i pregled'!$M$7:$M$788,'PLAN Rekapitulacija'!$N$6, 'Plan unos i pregled'!$E$7:$E$788,'PLAN Rekapitulacija'!$B86, 'Plan unos i pregled'!$C$7:$C$788,'PLAN Rekapitulacija'!I$4, 'Plan unos i pregled'!$A$7:$A$788,$D$3) -> 0 | J86: =SUM(F86:I86) -> 0 | K86: =ROUND(E86*J86,2) -> 0
A87: не | B87: 5.6.2 | C87: Са превозом на 2 km | D87: m3 | E87: 1748.86 | F87: =SUMIFS('Plan unos i pregled'!$I$7:$I$788,'Plan unos i pregled'!$B$7:$B$788,'PLAN Rekapitulacija'!$N$7,'Plan unos i pregled'!$M$7:$M$788,'PLAN Rekapitulacija'!$N$6, 'Plan unos i pregled'!$E$7:$E$788,'PLAN Rekapitulacija'!$B87, 'Plan unos i pregled'!$C$7:$C$788,'PLAN Rekapitulacija'!F$4, 'Plan unos i pregled'!$A$7:$A$788,$D$3) -> 0 | G87: =SUMIFS('Plan unos i pregled'!$I$7:$I$788,'Plan unos i pregled'!$B$7:$B$788,'PLAN Rekapitulacija'!$N$7,'Plan unos i pregled'!$M$7:$M$788,'PLAN Rekapitulacija'!$N$6, 'Plan unos i pregled'!$E$7:$E$788,'PLAN Rekapitulacija'!$B87, 'Plan unos i pregled'!$C$7:$C$788,'PLAN Rekapitulacija'!G$4, 'Plan unos i pregled'!$A$7:$A$788,$D$3) -> 0 | H87: =SUMIFS('Plan unos i pregled'!$I$7:$I$788,'Plan unos i pregled'!$B$7:$B$788,'PLAN Rekapitulacija'!$N$7,'Plan unos i pregled'!$M$7:$M$788,'PLAN Rekapitulacija'!$N$6, 'Plan unos i pregled'!$E$7:$E$788,'PLAN Rekapitulacija'!$B87, 'Plan unos i pregled'!$C$7:$C$788,'PLAN Rekapitulacija'!H$4, 'Plan unos i pregled'!$A$7:$A$788,$D$3) -> 0 | I87: =SUMIFS('Plan unos i pregled'!$I$7:$I$788,'Plan unos i pregled'!$B$7:$B$788,'PLAN Rekapitulacija'!$N$7,'Plan unos i pregled'!$M$7:$M$788,'PLAN Rekapitulacija'!$N$6, 'Plan unos i pregled'!$E$7:$E$788,'PLAN Rekapitulacija'!$B87, 'Plan unos i pregled'!$C$7:$C$788,'PLAN Rekapitulacija'!I$4, 'Plan unos i pregled'!$A$7:$A$788,$D$3) -> 0 | J87: 0 | K87: 0
A88: не | B88: 5.6.3 | C88: Са превозом на 3 km | D88: m3 | E88: 1779.39 | F88: =SUMIFS('Plan unos i pregled'!$I$7:$I$788,'Plan unos i pregled'!$B$7:$B$788,'PLAN Rekapitulacija'!$N$7,'Plan unos i pregled'!$M$7:$M$788,'PLAN Rekapitulacija'!$N$6, 'Plan unos i pregled'!$E$7:$E$788,'PLAN Rekapitulacija'!$B88, 'Plan unos i pregled'!$C$7:$C$788,'PLAN Rekapitulacija'!F$4, 'Plan unos i pregled'!$A$7:$A$788,$D$3) -> 0 | G88: =SUMIFS('Plan unos i pregled'!$I$7:$I$788,'Plan unos i pregled'!$B$7:$B$788,'PLAN Rekapitulacija'!$N$7,'Plan unos i pregled'!$M$7:$M$788,'PLAN Rekapitulacija'!$N$6, 'Plan unos i pregled'!$E$7:$E$788,'PLAN Rekapitulacija'!$B88, 'Plan unos i pregled'!$C$7:$C$788,'PLAN Rekapitulacija'!G$4, 'Plan unos i pregled'!$A$7:$A$788,$D$3) -> 0 | H88: =SUMIFS('Plan unos i pregled'!$I$7:$I$788,'Plan unos i pregled'!$B$7:$B$788,'PLAN Rekapitulacija'!$N$7,'Plan unos i pregled'!$M$7:$M$788,'PLAN Rekapitulacija'!$N$6, 'Plan unos i pregled'!$E$7:$E$788,'PLAN Rekapitulacija'!$B88, 'Plan unos i pregled'!$C$7:$C$788,'PLAN Rekapitulacija'!H$4, 'Plan unos i pregled'!$A$7:$A$788,$D$3) -> 0 | I88: =SUMIFS('Plan unos i pregled'!$I$7:$I$788,'Plan unos i pregled'!$B$7:$B$788,'PLAN Rekapitulacija'!$N$7,'Plan unos i pregled'!$M$7:$M$788,'PLAN Rekapitulacija'!$N$6, 'Plan unos i pregled'!$E$7:$E$788,'PLAN Rekapitulacija'!$B88, 'Plan unos i pregled'!$C$7:$C$788,'PLAN Rekapitulacija'!I$4, 'Plan unos i pregled'!$A$7:$A$788,$D$3) -> 0 | J88: 0 | K88: 0
A89: не | B89: 5.6.4 | C89: Са превозом на 5 km | D89: m3 | E89: 1831.85 | F89: =SUMIFS('Plan unos i pregled'!$I$7:$I$788,'Plan unos i pregled'!$B$7:$B$788,'PLAN Rekapitulacija'!$N$7,'Plan unos i pregled'!$M$7:$M$788,'PLAN Rekapitulacija'!$N$6, 'Plan unos i pregled'!$E$7:$E$788,'PLAN Rekapitulacija'!$B89, 'Plan unos i pregled'!$C$7:$C$788,'PLAN Rekapitulacija'!F$4, 'Plan unos i pregled'!$A$7:$A$788,$D$3) -> 0 | G89: =SUMIFS('Plan unos i pregled'!$I$7:$I$788,'Plan unos i pregled'!$B$7:$B$788,'PLAN Rekapitulacija'!$N$7,'Plan unos i pregled'!$M$7:$M$788,'PLAN Rekapitulacija'!$N$6, 'Plan unos i pregled'!$E$7:$E$788,'PLAN Rekapitulacija'!$B89, 'Plan unos i pregled'!$C$7:$C$788,'PLAN Rekapitulacija'!G$4, 'Plan unos i pregled'!$A$7:$A$788,$D$3) -> 0 | H89: =SUMIFS('Plan unos i pregled'!$I$7:$I$788,'Plan unos i pregled'!$B$7:$B$788,'PLAN Rekapitulacija'!$N$7,'Plan unos i pregled'!$M$7:$M$788,'PLAN Rekapitulacija'!$N$6, 'Plan unos i pregled'!$E$7:$E$788,'PLAN Rekapitulacija'!$B89, 'Plan unos i pregled'!$C$7:$C$788,'PLAN Rekapitulacija'!H$4, 'Plan unos i pregled'!$A$7:$A$788,$D$3) -> 0 | I89: =SUMIFS('Plan unos i pregled'!$I$7:$I$788,'Plan unos i pregled'!$B$7:$B$788,'PLAN Rekapitulacija'!$N$7,'Plan unos i pregled'!$M$7:$M$788,'PLAN Rekapitulacija'!$N$6, 'Plan unos i pregled'!$E$7:$E$788,'PLAN Rekapitulacija'!$B89, 'Plan unos i pregled'!$C$7:$C$788,'PLAN Rekapitulacija'!I$4, 'Plan unos i pregled'!$A$7:$A$788,$D$3) -> 0 | J89: 0 | K89: 0
A90: не | B90: 5.6.5 | C90: Са превозом на 10 km | D90: m3 | E90: 1928.31 | F90: =SUMIFS('Plan unos i pregled'!$I$7:$I$788,'Plan unos i pregled'!$B$7:$B$788,'PLAN Rekapitulacija'!$N$7,'Plan unos i pregled'!$M$7:$M$788,'PLAN Rekapitulacija'!$N$6, 'Plan unos i pregled'!$E$7:$E$788,'PLAN Rekapitulacija'!$B90, 'Plan unos i pregled'!$C$7:$C$788,'PLAN Rekapitulacija'!F$4, 'Plan unos i pregled'!$A$7:$A$788,$D$3) -> 0 | G90: =SUMIFS('Plan unos i pregled'!$I$7:$I$788,'Plan unos i pregled'!$B$7:$B$788,'PLAN Rekapitulacija'!$N$7,'Plan unos i pregled'!$M$7:$M$788,'PLAN Rekapitulacija'!$N$6, 'Plan unos i pregled'!$E$7:$E$788,'PLAN Rekapitulacija'!$B90, 'Plan unos i pregled'!$C$7:$C$788,'PLAN Rekapitulacija'!G$4, 'Plan unos i pregled'!$A$7:$A$788,$D$3) -> 0 | H90: =SUMIFS('Plan unos i pregled'!$I$7:$I$788,'Plan unos i pregled'!$B$7:$B$788,'PLAN Rekapitulacija'!$N$7,'Plan unos i pregled'!$M$7:$M$788,'PLAN Rekapitulacija'!$N$6, 'Plan unos i pregled'!$E$7:$E$788,'PLAN Rekapitulacija'!$B90, 'Plan unos i pregled'!$C$7:$C$788,'PLAN Rekapitulacija'!H$4, 'Plan unos i pregled'!$A$7:$A$788,$D$3) -> 0 | I90: =SUMIFS('Plan unos i pregled'!$I$7:$I$788,'Plan unos i pregled'!$B$7:$B$788,'PLAN Rekapitulacija'!$N$7,'Plan unos i pregled'!$M$7:$M$788,'PLAN Rekapitulacija'!$N$6, 'Plan unos i pregled'!$E$7:$E$788,'PLAN Rekapitulacija'!$B90, 'Plan unos i pregled'!$C$7:$C$788,'PLAN Rekapitulacija'!I$4, 'Plan unos i pregled'!$A$7:$A$788,$D$3) -> 0 | J90: 0 | K90: 0
A91: =IF(OR(J91:K96),"штампа","не") -> не | B91: 5.7 | C91: Машинско чишћење наноса и осулина са коловоза Цена обухвата: машинско прикупљање наноса и осулина са одбацивањем на страну или утоваром и превозом материјала на депонију. | E91: 0
A92: =IF(OR(J92:K92),"штампа","не") -> не | B92: 5.7.1 | C92: Са одбацивањем материјала на страну | D92: m3 | E92: 235.91 | F92: =SUMIFS('Plan unos i pregled'!$I$7:$I$788,'Plan unos i pregled'!$B$7:$B$788,'PLAN Rekapitulacija'!$N$7,'Plan unos i pregled'!$M$7:$M$788,'PLAN Rekapitulacija'!$N$6, 'Plan unos i pregled'!$E$7:$E$788,'PLAN Rekapitulacija'!$B92, 'Plan unos i pregled'!$C$7:$C$788,'PLAN Rekapitulacija'!F$4, 'Plan unos i pregled'!$A$7:$A$788,$D$3) -> 0 | G92: =SUMIFS('Plan unos i pregled'!$I$7:$I$788,'Plan unos i pregled'!$B$7:$B$788,'PLAN Rekapitulacija'!$N$7,'Plan unos i pregled'!$M$7:$M$788,'PLAN Rekapitulacija'!$N$6, 'Plan unos i pregled'!$E$7:$E$788,'PLAN Rekapitulacija'!$B92, 'Plan unos i pregled'!$C$7:$C$788,'PLAN Rekapitulacija'!G$4, 'Plan unos i pregled'!$A$7:$A$788,$D$3) -> 0 | H92: =SUMIFS('Plan unos i pregled'!$I$7:$I$788,'Plan unos i pregled'!$B$7:$B$788,'PLAN Rekapitulacija'!$N$7,'Plan unos i pregled'!$M$7:$M$788,'PLAN Rekapitulacija'!$N$6, 'Plan unos i pregled'!$E$7:$E$788,'PLAN Rekapitulacija'!$B92, 'Plan unos i pregled'!$C$7:$C$788,'PLAN Rekapitulacija'!H$4, 'Plan unos i pregled'!$A$7:$A$788,$D$3) -> 0 | I92: =SUMIFS('Plan unos i pregled'!$I$7:$I$788,'Plan unos i pregled'!$B$7:$B$788,'PLAN Rekapitulacija'!$N$7,'Plan unos i pregled'!$M$7:$M$788,'PLAN Rekapitulacija'!$N$6, 'Plan unos i pregled'!$E$7:$E$788,'PLAN Rekapitulacija'!$B92, 'Plan unos i pregled'!$C$7:$C$788,'PLAN Rekapitulacija'!I$4, 'Plan unos i pregled'!$A$7:$A$788,$D$3) -> 0 | J92: =SUM(F92:I92) -> 0 | K92: =ROUND(E92*J92,2) -> 0
A93: не | B93: 5.7.2 | C93: Са превозом материјала на 1 km | D93: m3 | E93: 375.22 | F93: =SUMIFS('Plan unos i pregled'!$I$7:$I$788,'Plan unos i pregled'!$B$7:$B$788,'PLAN Rekapitulacija'!$N$7,'Plan unos i pregled'!$M$7:$M$788,'PLAN Rekapitulacija'!$N$6, 'Plan unos i pregled'!$E$7:$E$788,'PLAN Rekapitulacija'!$B93, 'Plan unos i pregled'!$C$7:$C$788,'PLAN Rekapitulacija'!F$4, 'Plan unos i pregled'!$A$7:$A$788,$D$3) -> 0 | G93: =SUMIFS('Plan unos i pregled'!$I$7:$I$788,'Plan unos i pregled'!$B$7:$B$788,'PLAN Rekapitulacija'!$N$7,'Plan unos i pregled'!$M$7:$M$788,'PLAN Rekapitulacija'!$N$6, 'Plan unos i pregled'!$E$7:$E$788,'PLAN Rekapitulacija'!$B93, 'Plan unos i pregled'!$C$7:$C$788,'PLAN Rekapitulacija'!G$4, 'Plan unos i pregled'!$A$7:$A$788,$D$3) -> 0 | H93: =SUMIFS('Plan unos i pregled'!$I$7:$I$788,'Plan unos i pregled'!$B$7:$B$788,'PLAN Rekapitulacija'!$N$7,'Plan unos i pregled'!$M$7:$M$788,'PLAN Rekapitulacija'!$N$6, 'Plan unos i pregled'!$E$7:$E$788,'PLAN Rekapitulacija'!$B93, 'Plan unos i pregled'!$C$7:$C$788,'PLAN Rekapitulacija'!H$4, 'Plan unos i pregled'!$A$7:$A$788,$D$3) -> 0 | I93: =SUMIFS('Plan unos i pregled'!$I$7:$I$788,'Plan unos i pregled'!$B$7:$B$788,'PLAN Rekapitulacija'!$N$7,'Plan unos i pregled'!$M$7:$M$788,'PLAN Rekapitulacija'!$N$6, 'Plan unos i pregled'!$E$7:$E$788,'PLAN Rekapitulacija'!$B93, 'Plan unos i pregled'!$C$7:$C$788,'PLAN Rekapitulacija'!I$4, 'Plan unos i pregled'!$A$7:$A$788,$D$3) -> 0 | J93: 0 | K93: 0
A94: не | B94: 5.7.3 | C94: Са превозом материјала на 2 km | D94: m3 | E94: 409.34 | F94: =SUMIFS('Plan unos i pregled'!$I$7:$I$788,'Plan unos i pregled'!$B$7:$B$788,'PLAN Rekapitulacija'!$N$7,'Plan unos i pregled'!$M$7:$M$788,'PLAN Rekapitulacija'!$N$6, 'Plan unos i pregled'!$E$7:$E$788,'PLAN Rekapitulacija'!$B94, 'Plan unos i pregled'!$C$7:$C$788,'PLAN Rekapitulacija'!F$4, 'Plan unos i pregled'!$A$7:$A$788,$D$3) -> 0 | G94: =SUMIFS('Plan unos i pregled'!$I$7:$I$788,'Plan unos i pregled'!$B$7:$B$788,'PLAN Rekapitulacija'!$N$7,'Plan unos i pregled'!$M$7:$M$788,'PLAN Rekapitulacija'!$N$6, 'Plan unos i pregled'!$E$7:$E$788,'PLAN Rekapitulacija'!$B94, 'Plan unos i pregled'!$C$7:$C$788,'PLAN Rekapitulacija'!G$4, 'Plan unos i pregled'!$A$7:$A$788,$D$3) -> 0 | H94: =SUMIFS('Plan unos i pregled'!$I$7:$I$788,'Plan unos i pregled'!$B$7:$B$788,'PLAN Rekapitulacija'!$N$7,'Plan unos i pregled'!$M$7:$M$788,'PLAN Rekapitulacija'!$N$6, 'Plan unos i pregled'!$E$7:$E$788,'PLAN Rekapitulacija'!$B94, 'Plan unos i pregled'!$C$7:$C$788,'PLAN Rekapitulacija'!H$4, 'Plan unos i pregled'!$A$7:$A$788,$D$3) -> 0 | I94: =SUMIFS('Plan unos i pregled'!$I$7:$I$788,'Plan unos i pregled'!$B$7:$B$788,'PLAN Rekapitulacija'!$N$7,'Plan unos i pregled'!$M$7:$M$788,'PLAN Rekapitulacija'!$N$6, 'Plan unos i pregled'!$E$7:$E$788,'PLAN Rekapitulacija'!$B94, 'Plan unos i pregled'!$C$7:$C$788,'PLAN Rekapitulacija'!I$4, 'Plan unos i pregled'!$A$7:$A$788,$D$3) -> 0 | J94: 0 | K94: 0
A95: не | B95: 5.7.4 | C95: Са превозом материјала на 3 km | D95: m3 | E95: 439.88 | F95: =SUMIFS('Plan unos i pregled'!$I$7:$I$788,'Plan unos i pregled'!$B$7:$B$788,'PLAN Rekapitulacija'!$N$7,'Plan unos i pregled'!$M$7:$M$788,'PLAN Rekapitulacija'!$N$6, 'Plan unos i pregled'!$E$7:$E$788,'PLAN Rekapitulacija'!$B95, 'Plan unos i pregled'!$C$7:$C$788,'PLAN Rekapitulacija'!F$4, 'Plan unos i pregled'!$A$7:$A$788,$D$3) -> 0 | G95: =SUMIFS('Plan unos i pregled'!$I$7:$I$788,'Plan unos i pregled'!$B$7:$B$788,'PLAN Rekapitulacija'!$N$7,'Plan unos i pregled'!$M$7:$M$788,'PLAN Rekapitulacija'!$N$6, 'Plan unos i pregled'!$E$7:$E$788,'PLAN Rekapitulacija'!$B95, 'Plan unos i pregled'!$C$7:$C$788,'PLAN Rekapitulacija'!G$4, 'Plan unos i pregled'!$A$7:$A$788,$D$3) -> 0 | H95: =SUMIFS('Plan unos i pregled'!$I$7:$I$788,'Plan unos i pregled'!$B$7:$B$788,'PLAN Rekapitulacija'!$N$7,'Plan unos i pregled'!$M$7:$M$788,'PLAN Rekapitulacija'!$N$6, 'Plan unos i pregled'!$E$7:$E$788,'PLAN Rekapitulacija'!$B95, 'Plan unos i pregled'!$C$7:$C$788,'PLAN Rekapitulacija'!H$4, 'Plan unos i pregled'!$A$7:$A$788,$D$3) -> 0 | I95: =SUMIFS('Plan unos i pregled'!$I$7:$I$788,'Plan unos i pregled'!$B$7:$B$788,'PLAN Rekapitulacija'!$N$7,'Plan unos i pregled'!$M$7:$M$788,'PLAN Rekapitulacija'!$N$6, 'Plan unos i pregled'!$E$7:$E$788,'PLAN Rekapitulacija'!$B95, 'Plan unos i pregled'!$C$7:$C$788,'PLAN Rekapitulacija'!I$4, 'Plan unos i pregled'!$A$7:$A$788,$D$3) -> 0 | J95: 0 | K95: 0
A96: не | B96: 5.7.5 | C96: Са превозом материјала на 10 km | D96: m3 | E96: 588.79 | F96: =SUMIFS('Plan unos i pregled'!$I$7:$I$788,'Plan unos i pregled'!$B$7:$B$788,'PLAN Rekapitulacija'!$N$7,'Plan unos i pregled'!$M$7:$M$788,'PLAN Rekapitulacija'!$N$6, 'Plan unos i pregled'!$E$7:$E$788,'PLAN Rekapitulacija'!$B96, 'Plan unos i pregled'!$C$7:$C$788,'PLAN Rekapitulacija'!F$4, 'Plan unos i pregled'!$A$7:$A$788,$D$3) -> 0 | G96: =SUMIFS('Plan unos i pregled'!$I$7:$I$788,'Plan unos i pregled'!$B$7:$B$788,'PLAN Rekapitulacija'!$N$7,'Plan unos i pregled'!$M$7:$M$788,'PLAN Rekapitulacija'!$N$6, 'Plan unos i pregled'!$E$7:$E$788,'PLAN Rekapitulacija'!$B96, 'Plan unos i pregled'!$C$7:$C$788,'PLAN Rekapitulacija'!G$4, 'Plan unos i pregled'!$A$7:$A$788,$D$3) -> 0 | H96: =SUMIFS('Plan unos i pregled'!$I$7:$I$788,'Plan unos i pregled'!$B$7:$B$788,'PLAN Rekapitulacija'!$N$7,'Plan unos i pregled'!$M$7:$M$788,'PLAN Rekapitulacija'!$N$6, 'Plan unos i pregled'!$E$7:$E$788,'PLAN Rekapitulacija'!$B96, 'Plan unos i pregled'!$C$7:$C$788,'PLAN Rekapitulacija'!H$4, 'Plan unos i pregled'!$A$7:$A$788,$D$3) -> 0 | I96: =SUMIFS('Plan unos i pregled'!$I$7:$I$788,'Plan unos i pregled'!$B$7:$B$788,'PLAN Rekapitulacija'!$N$7,'Plan unos i pregled'!$M$7:$M$788,'PLAN Rekapitulacija'!$N$6, 'Plan unos i pregled'!$E$7:$E$788,'PLAN Rekapitulacija'!$B96, 'Plan unos i pregled'!$C$7:$C$788,'PLAN Rekapitulacija'!I$4, 'Plan unos i pregled'!$A$7:$A$788,$D$3) -> 0 | J96: 0 | K96: 0
A97: не | B97: 5.8 | C97: Машинско планирање косина усека и насипа Цена обухвата: фино планирање косина Машински 90% са ручним дотеривањем 10% | D97: m2 | E97: 40.32 | F97: =SUMIFS('Plan unos i pregled'!$I$7:$I$788,'Plan unos i pregled'!$B$7:$B$788,'PLAN Rekapitulacija'!$N$7,'Plan unos i pregled'!$M$7:$M$788,'PLAN Rekapitulacija'!$N$6, 'Plan unos i pregled'!$E$7:$E$788,'PLAN Rekapitulacija'!$B97, 'Plan unos i pregled'!$C$7:$C$788,'PLAN Rekapitulacija'!F$4, 'Plan unos i pregled'!$A$7:$A$788,$D$3) -> 0 | G97: =SUMIFS('Plan unos i pregled'!$I$7:$I$788,'Plan unos i pregled'!$B$7:$B$788,'PLAN Rekapitulacija'!$N$7,'Plan unos i pregled'!$M$7:$M$788,'PLAN Rekapitulacija'!$N$6, 'Plan unos i pregled'!$E$7:$E$788,'PLAN Rekapitulacija'!$B97, 'Plan unos i pregled'!$C$7:$C$788,'PLAN Rekapitulacija'!G$4, 'Plan unos i pregled'!$A$7:$A$788,$D$3) -> 0 | H97: =SUMIFS('Plan unos i pregled'!$I$7:$I$788,'Plan unos i pregled'!$B$7:$B$788,'PLAN Rekapitulacija'!$N$7,'Plan unos i pregled'!$M$7:$M$788,'PLAN Rekapitulacija'!$N$6, 'Plan unos i pregled'!$E$7:$E$788,'PLAN Rekapitulacija'!$B97, 'Plan unos i pregled'!$C$7:$C$788,'PLAN Rekapitulacija'!H$4, 'Plan unos i pregled'!$A$7:$A$788,$D$3) -> 0 | I97: =SUMIFS('Plan unos i pregled'!$I$7:$I$788,'Plan unos i pregled'!$B$7:$B$788,'PLAN Rekapitulacija'!$N$7,'Plan unos i pregled'!$M$7:$M$788,'PLAN Rekapitulacija'!$N$6, 'Plan unos i pregled'!$E$7:$E$788,'PLAN Rekapitulacija'!$B97, 'Plan unos i pregled'!$C$7:$C$788,'PLAN Rekapitulacija'!I$4, 'Plan unos i pregled'!$A$7:$A$788,$D$3) -> 0 | J97: 0 | K97: 0
A98: не | C98: УКУПНО: | F98: =SUMPRODUCT($E$76:$E$97,F76:F97) -> 0 | G98: =SUMPRODUCT($E$76:$E$97,G76:G97) -> 0 | H98: =SUMPRODUCT($E$76:$E$97,H76:H97) -> 0 | I98: =SUMPRODUCT($E$76:$E$97,I76:I97) -> 0 | K98: =SUM(K75:K97) -> 0
A99: =IF(OR(J168:K168),"штампа","не") -> штампа | B99: 6 | C99: Одржавање система за одводњавање површине коловоза и трупа пута
A100: =IF(OR(J100:K102),"штампа","не") -> не | B100: 6.1 | C100: Ручно чишћење путних јаркова у слоју до d = 10 cm са планирањем дна јарка. Цена обухвата: чишћење јарка, планирање дна јарка и одстрањивање сувишног материјала одбацивањем на страну или утоваром у колица и одвозом до 20 м | E100: 0
A101: не | B101: 6.1.1 | C101: Са одбацивањем на страну | D101: m | E101: 109.16 | F101: =SUMIFS('Plan unos i pregled'!$I$7:$I$788,'Plan unos i pregled'!$B$7:$B$788,'PLAN Rekapitulacija'!$N$7,'Plan unos i pregled'!$M$7:$M$788,'PLAN Rekapitulacija'!$N$6, 'Plan unos i pregled'!$E$7:$E$788,'PLAN Rekapitulacija'!$B101, 'Plan unos i pregled'!$C$7:$C$788,'PLAN Rekapitulacija'!F$4, 'Plan unos i pregled'!$A$7:$A$788,$D$3) -> 0 | G101: =SUMIFS('Plan unos i pregled'!$I$7:$I$788,'Plan unos i pregled'!$B$7:$B$788,'PLAN Rekapitulacija'!$N$7,'Plan unos i pregled'!$M$7:$M$788,'PLAN Rekapitulacija'!$N$6, 'Plan unos i pregled'!$E$7:$E$788,'PLAN Rekapitulacija'!$B101, 'Plan unos i pregled'!$C$7:$C$788,'PLAN Rekapitulacija'!G$4, 'Plan unos i pregled'!$A$7:$A$788,$D$3) -> 0 | H101: =SUMIFS('Plan unos i pregled'!$I$7:$I$788,'Plan unos i pregled'!$B$7:$B$788,'PLAN Rekapitulacija'!$N$7,'Plan unos i pregled'!$M$7:$M$788,'PLAN Rekapitulacija'!$N$6, 'Plan unos i pregled'!$E$7:$E$788,'PLAN Rekapitulacija'!$B101, 'Plan unos i pregled'!$C$7:$C$788,'PLAN Rekapitulacija'!H$4, 'Plan unos i pregled'!$A$7:$A$788,$D$3) -> 0 | I101: =SUMIFS('Plan unos i pregled'!$I$7:$I$788,'Plan unos i pregled'!$B$7:$B$788,'PLAN Rekapitulacija'!$N$7,'Plan unos i pregled'!$M$7:$M$788,'PLAN Rekapitulacija'!$N$6, 'Plan unos i pregled'!$E$7:$E$788,'PLAN Rekapitulacija'!$B101, 'Plan unos i pregled'!$C$7:$C$788,'PLAN Rekapitulacija'!I$4, 'Plan unos i pregled'!$A$7:$A$788,$D$3) -> 0 | J101: =SUM(F101:I101) -> 0 | K101: =ROUND(E101*J101,2) -> 0
A102: не | B102: 6.1.2 | C102: Са одвозом материјала до 20 м | D102: m | E102: 160.48 | F102: =SUMIFS('Plan unos i pregled'!$I$7:$I$788,'Plan unos i pregled'!$B$7:$B$788,'PLAN Rekapitulacija'!$N$7,'Plan unos i pregled'!$M$7:$M$788,'PLAN Rekapitulacija'!$N$6, 'Plan unos i pregled'!$E$7:$E$788,'PLAN Rekapitulacija'!$B102, 'Plan unos i pregled'!$C$7:$C$788,'PLAN Rekapitulacija'!F$4, 'Plan unos i pregled'!$A$7:$A$788,$D$3) -> 0 | G102: =SUMIFS('Plan unos i pregled'!$I$7:$I$788,'Plan unos i pregled'!$B$7:$B$788,'PLAN Rekapitulacija'!$N$7,'Plan unos i pregled'!$M$7:$M$788,'PLAN Rekapitulacija'!$N$6, 'Plan unos i pregled'!$E$7:$E$788,'PLAN Rekapitulacija'!$B102, 'Plan unos i pregled'!$C$7:$C$788,'PLAN Rekapitulacija'!G$4, 'Plan unos i pregled'!$A$7:$A$788,$D$3) -> 0 | H102: =SUMIFS('Plan unos i pregled'!$I$7:$I$788,'Plan unos i pregled'!$B$7:$B$788,'PLAN Rekapitulacija'!$N$7,'Plan unos i pregled'!$M$7:$M$788,'PLAN Rekapitulacija'!$N$6, 'Plan unos i pregled'!$E$7:$E$788,'PLAN Rekapitulacija'!$B102, 'Plan unos i pregled'!$C$7:$C$788,'PLAN Rekapitulacija'!H$4, 'Plan unos i pregled'!$A$7:$A$788,$D$3) -> 0 | I102: =SUMIFS('Plan unos i pregled'!$I$7:$I$788,'Plan unos i pregled'!$B$7:$B$788,'PLAN Rekapitulacija'!$N$7,'Plan unos i pregled'!$M$7:$M$788,'PLAN Rekapitulacija'!$N$6, 'Plan unos i pregled'!$E$7:$E$788,'PLAN Rekapitulacija'!$B102, 'Plan unos i pregled'!$C$7:$C$788,'PLAN Rekapitulacija'!I$4, 'Plan unos i pregled'!$A$7:$A$788,$D$3) -> 0 | J102: 0 | K102: 0
A103: =IF(OR(J103:K105),"штампа","не") -> не | B103: 6.2 | C103: Ручно чишћење ригола и берми од наноса у слоју до d = 10 cm. Цена обухвата: чишћење риголе или берме са уклањањем материјала одбацивањем на страну или утоваром у колица и одвозом до 20 м. | E103: 0
A104: не | B104: 6.2.1 | C104: Са одбацивањем на страну | D104: m | E104: 87.32 | F104: =SUMIFS('Plan unos i pregled'!$I$7:$I$788,'Plan unos i pregled'!$B$7:$B$788,'PLAN Rekapitulacija'!$N$7,'Plan unos i pregled'!$M$7:$M$788,'PLAN Rekapitulacija'!$N$6, 'Plan unos i pregled'!$E$7:$E$788,'PLAN Rekapitulacija'!$B104, 'Plan unos i pregled'!$C$7:$C$788,'PLAN Rekapitulacija'!F$4, 'Plan unos i pregled'!$A$7:$A$788,$D$3) -> 0 | G104: =SUMIFS('Plan unos i pregled'!$I$7:$I$788,'Plan unos i pregled'!$B$7:$B$788,'PLAN Rekapitulacija'!$N$7,'Plan unos i pregled'!$M$7:$M$788,'PLAN Rekapitulacija'!$N$6, 'Plan unos i pregled'!$E$7:$E$788,'PLAN Rekapitulacija'!$B104, 'Plan unos i pregled'!$C$7:$C$788,'PLAN Rekapitulacija'!G$4, 'Plan unos i pregled'!$A$7:$A$788,$D$3) -> 0 | H104: =SUMIFS('Plan unos i pregled'!$I$7:$I$788,'Plan unos i pregled'!$B$7:$B$788,'PLAN Rekapitulacija'!$N$7,'Plan unos i pregled'!$M$7:$M$788,'PLAN Rekapitulacija'!$N$6, 'Plan unos i pregled'!$E$7:$E$788,'PLAN Rekapitulacija'!$B104, 'Plan unos i pregled'!$C$7:$C$788,'PLAN Rekapitulacija'!H$4, 'Plan unos i pregled'!$A$7:$A$788,$D$3) -> 0 | I104: =SUMIFS('Plan unos i pregled'!$I$7:$I$788,'Plan unos i pregled'!$B$7:$B$788,'PLAN Rekapitulacija'!$N$7,'Plan unos i pregled'!$M$7:$M$788,'PLAN Rekapitulacija'!$N$6, 'Plan unos i pregled'!$E$7:$E$788,'PLAN Rekapitulacija'!$B104, 'Plan unos i pregled'!$C$7:$C$788,'PLAN Rekapitulacija'!I$4, 'Plan unos i pregled'!$A$7:$A$788,$D$3) -> 0 | J104: =SUM(F104:I104) -> 0 | K104: =ROUND(E104*J104,2) -> 0
A105: не | B105: 6.2.2 | C105: Са одвозом материјала до 20 м | D105: m | E105: 138.64 | F105: =SUMIFS('Plan unos i pregled'!$I$7:$I$788,'Plan unos i pregled'!$B$7:$B$788,'PLAN Rekapitulacija'!$N$7,'Plan unos i pregled'!$M$7:$M$788,'PLAN Rekapitulacija'!$N$6, 'Plan unos i pregled'!$E$7:$E$788,'PLAN Rekapitulacija'!$B105, 'Plan unos i pregled'!$C$7:$C$788,'PLAN Rekapitulacija'!F$4, 'Plan unos i pregled'!$A$7:$A$788,$D$3) -> 0 | G105: =SUMIFS('Plan unos i pregled'!$I$7:$I$788,'Plan unos i pregled'!$B$7:$B$788,'PLAN Rekapitulacija'!$N$7,'Plan unos i pregled'!$M$7:$M$788,'PLAN Rekapitulacija'!$N$6, 'Plan unos i pregled'!$E$7:$E$788,'PLAN Rekapitulacija'!$B105, 'Plan unos i pregled'!$C$7:$C$788,'PLAN Rekapitulacija'!G$4, 'Plan unos i pregled'!$A$7:$A$788,$D$3) -> 0 | H105: =SUMIFS('Plan unos i pregled'!$I$7:$I$788,'Plan unos i pregled'!$B$7:$B$788,'PLAN Rekapitulacija'!$N$7,'Plan unos i pregled'!$M$7:$M$788,'PLAN Rekapitulacija'!$N$6, 'Plan unos i pregled'!$E$7:$E$788,'PLAN Rekapitulacija'!$B105, 'Plan unos i pregled'!$C$7:$C$788,'PLAN Rekapitulacija'!H$4, 'Plan unos i pregled'!$A$7:$A$788,$D$3) -> 0 | I105: =SUMIFS('Plan unos i pregled'!$I$7:$I$788,'Plan unos i pregled'!$B$7:$B$788,'PLAN Rekapitulacija'!$N$7,'Plan unos i pregled'!$M$7:$M$788,'PLAN Rekapitulacija'!$N$6, 'Plan unos i pregled'!$E$7:$E$788,'PLAN Rekapitulacija'!$B105, 'Plan unos i pregled'!$C$7:$C$788,'PLAN Rekapitulacija'!I$4, 'Plan unos i pregled'!$A$7:$A$788,$D$3) -> 0 | J105: 0 | K105: 0
A106: =IF(OR(J106:K111),"штампа","не") -> не | B106: 6.3 | C106: Машинско чишћење берми од наноса у слоју до 10 cm са пребацивањем материјала на страну или утоваром и превозом на депонију. | E106: 0
A107: не | B107: 6.3.1 | C107: Са одбацивањем материјала на страну. | D107: m | E107: 24.68 | F107: =SUMIFS('Plan unos i pregled'!$I$7:$I$788,'Plan unos i pregled'!$B$7:$B$788,'PLAN Rekapitulacija'!$N$7,'Plan unos i pregled'!$M$7:$M$788,'PLAN Rekapitulacija'!$N$6, 'Plan unos i pregled'!$E$7:$E$788,'PLAN Rekapitulacija'!$B107, 'Plan unos i pregled'!$C$7:$C$788,'PLAN Rekapitulacija'!F$4, 'Plan unos i pregled'!$A$7:$A$788,$D$3) -> 0 | G107: =SUMIFS('Plan unos i pregled'!$I$7:$I$788,'Plan unos i pregled'!$B$7:$B$788,'PLAN Rekapitulacija'!$N$7,'Plan unos i pregled'!$M$7:$M$788,'PLAN Rekapitulacija'!$N$6, 'Plan unos i pregled'!$E$7:$E$788,'PLAN Rekapitulacija'!$B107, 'Plan unos i pregled'!$C$7:$C$788,'PLAN Rekapitulacija'!G$4, 'Plan unos i pregled'!$A$7:$A$788,$D$3) -> 0 | H107: =SUMIFS('Plan unos i pregled'!$I$7:$I$788,'Plan unos i pregled'!$B$7:$B$788,'PLAN Rekapitulacija'!$N$7,'Plan unos i pregled'!$M$7:$M$788,'PLAN Rekapitulacija'!$N$6, 'Plan unos i pregled'!$E$7:$E$788,'PLAN Rekapitulacija'!$B107, 'Plan unos i pregled'!$C$7:$C$788,'PLAN Rekapitulacija'!H$4, 'Plan unos i pregled'!$A$7:$A$788,$D$3) -> 0 | I107: =SUMIFS('Plan unos i pregled'!$I$7:$I$788,'Plan unos i pregled'!$B$7:$B$788,'PLAN Rekapitulacija'!$N$7,'Plan unos i pregled'!$M$7:$M$788,'PLAN Rekapitulacija'!$N$6, 'Plan unos i pregled'!$E$7:$E$788,'PLAN Rekapitulacija'!$B107, 'Plan unos i pregled'!$C$7:$C$788,'PLAN Rekapitulacija'!I$4, 'Plan unos i pregled'!$A$7:$A$788,$D$3) -> 0 | J107: =SUM(F107:I107) -> 0 | K107: =ROUND(E107*J107,2) -> 0
A108: не | B108: 6.3.2 | C108: Са превозом на 1 km | D108: m | E108: 52.43 | F108: =SUMIFS('Plan unos i pregled'!$I$7:$I$788,'Plan unos i pregled'!$B$7:$B$788,'PLAN Rekapitulacija'!$N$7,'Plan unos i pregled'!$M$7:$M$788,'PLAN Rekapitulacija'!$N$6, 'Plan unos i pregled'!$E$7:$E$788,'PLAN Rekapitulacija'!$B108, 'Plan unos i pregled'!$C$7:$C$788,'PLAN Rekapitulacija'!F$4, 'Plan unos i pregled'!$A$7:$A$788,$D$3) -> 0 | G108: =SUMIFS('Plan unos i pregled'!$I$7:$I$788,'Plan unos i pregled'!$B$7:$B$788,'PLAN Rekapitulacija'!$N$7,'Plan unos i pregled'!$M$7:$M$788,'PLAN Rekapitulacija'!$N$6, 'Plan unos i pregled'!$E$7:$E$788,'PLAN Rekapitulacija'!$B108, 'Plan unos i pregled'!$C$7:$C$788,'PLAN Rekapitulacija'!G$4, 'Plan unos i pregled'!$A$7:$A$788,$D$3) -> 0 | H108: =SUMIFS('Plan unos i pregled'!$I$7:$I$788,'Plan unos i pregled'!$B$7:$B$788,'PLAN Rekapitulacija'!$N$7,'Plan unos i pregled'!$M$7:$M$788,'PLAN Rekapitulacija'!$N$6, 'Plan unos i pregled'!$E$7:$E$788,'PLAN Rekapitulacija'!$B108, 'Plan unos i pregled'!$C$7:$C$788,'PLAN Rekapitulacija'!H$4, 'Plan unos i pregled'!$A$7:$A$788,$D$3) -> 0 | I108: =SUMIFS('Plan unos i pregled'!$I$7:$I$788,'Plan unos i pregled'!$B$7:$B$788,'PLAN Rekapitulacija'!$N$7,'Plan unos i pregled'!$M$7:$M$788,'PLAN Rekapitulacija'!$N$6, 'Plan unos i pregled'!$E$7:$E$788,'PLAN Rekapitulacija'!$B108, 'Plan unos i pregled'!$C$7:$C$788,'PLAN Rekapitulacija'!I$4, 'Plan unos i pregled'!$A$7:$A$788,$D$3) -> 0 | J108: 0 | K108: 0
A109: не | B109: 6.3.3 | C109: Са превозом на 2 km | D109: m | E109: 55.84 | F109: =SUMIFS('Plan unos i pregled'!$I$7:$I$788,'Plan unos i pregled'!$B$7:$B$788,'PLAN Rekapitulacija'!$N$7,'Plan unos i pregled'!$M$7:$M$788,'PLAN Rekapitulacija'!$N$6, 'Plan unos i pregled'!$E$7:$E$788,'PLAN Rekapitulacija'!$B109, 'Plan unos i pregled'!$C$7:$C$788,'PLAN Rekapitulacija'!F$4, 'Plan unos i pregled'!$A$7:$A$788,$D$3) -> 0 | G109: =SUMIFS('Plan unos i pregled'!$I$7:$I$788,'Plan unos i pregled'!$B$7:$B$788,'PLAN Rekapitulacija'!$N$7,'Plan unos i pregled'!$M$7:$M$788,'PLAN Rekapitulacija'!$N$6, 'Plan unos i pregled'!$E$7:$E$788,'PLAN Rekapitulacija'!$B109, 'Plan unos i pregled'!$C$7:$C$788,'PLAN Rekapitulacija'!G$4, 'Plan unos i pregled'!$A$7:$A$788,$D$3) -> 0 | H109: =SUMIFS('Plan unos i pregled'!$I$7:$I$788,'Plan unos i pregled'!$B$7:$B$788,'PLAN Rekapitulacija'!$N$7,'Plan unos i pregled'!$M$7:$M$788,'PLAN Rekapitulacija'!$N$6, 'Plan unos i pregled'!$E$7:$E$788,'PLAN Rekapitulacija'!$B109, 'Plan unos i pregled'!$C$7:$C$788,'PLAN Rekapitulacija'!H$4, 'Plan unos i pregled'!$A$7:$A$788,$D$3) -> 0 | I109: =SUMIFS('Plan unos i pregled'!$I$7:$I$788,'Plan unos i pregled'!$B$7:$B$788,'PLAN Rekapitulacija'!$N$7,'Plan unos i pregled'!$M$7:$M$788,'PLAN Rekapitulacija'!$N$6, 'Plan unos i pregled'!$E$7:$E$788,'PLAN Rekapitulacija'!$B109, 'Plan unos i pregled'!$C$7:$C$788,'PLAN Rekapitulacija'!I$4, 'Plan unos i pregled'!$A$7:$A$788,$D$3) -> 0 | J109: 0 | K109: 0
A110: не | B110: 6.3.4 | C110: Са превозом на 3 km | D110: m | E110: 58.91 | F110: =SUMIFS('Plan unos i pregled'!$I$7:$I$788,'Plan unos i pregled'!$B$7:$B$788,'PLAN Rekapitulacija'!$N$7,'Plan unos i pregled'!$M$7:$M$788,'PLAN Rekapitulacija'!$N$6, 'Plan unos i pregled'!$E$7:$E$788,'PLAN Rekapitulacija'!$B110, 'Plan unos i pregled'!$C$7:$C$788,'PLAN Rekapitulacija'!F$4, 'Plan unos i pregled'!$A$7:$A$788,$D$3) -> 0 | G110: =SUMIFS('Plan unos i pregled'!$I$7:$I$788,'Plan unos i pregled'!$B$7:$B$788,'PLAN Rekapitulacija'!$N$7,'Plan unos i pregled'!$M$7:$M$788,'PLAN Rekapitulacija'!$N$6, 'Plan unos i pregled'!$E$7:$E$788,'PLAN Rekapitulacija'!$B110, 'Plan unos i pregled'!$C$7:$C$788,'PLAN Rekapitulacija'!G$4, 'Plan unos i pregled'!$A$7:$A$788,$D$3) -> 0 | H110: =SUMIFS('Plan unos i pregled'!$I$7:$I$788,'Plan unos i pregled'!$B$7:$B$788,'PLAN Rekapitulacija'!$N$7,'Plan unos i pregled'!$M$7:$M$788,'PLAN Rekapitulacija'!$N$6, 'Plan unos i pregled'!$E$7:$E$788,'PLAN Rekapitulacija'!$B110, 'Plan unos i pregled'!$C$7:$C$788,'PLAN Rekapitulacija'!H$4, 'Plan unos i pregled'!$A$7:$A$788,$D$3) -> 0 | I110: =SUMIFS('Plan unos i pregled'!$I$7:$I$788,'Plan unos i pregled'!$B$7:$B$788,'PLAN Rekapitulacija'!$N$7,'Plan unos i pregled'!$M$7:$M$788,'PLAN Rekapitulacija'!$N$6, 'Plan unos i pregled'!$E$7:$E$788,'PLAN Rekapitulacija'!$B110, 'Plan unos i pregled'!$C$7:$C$788,'PLAN Rekapitulacija'!I$4, 'Plan unos i pregled'!$A$7:$A$788,$D$3) -> 0 | J110: 0 | K110: 0
A111: не | B111: 6.3.5 | C111: Са превозом на 5 km | D111: m | E111: 64.15 | F111: =SUMIFS('Plan unos i pregled'!$I$7:$I$788,'Plan unos i pregled'!$B$7:$B$788,'PLAN Rekapitulacija'!$N$7,'Plan unos i pregled'!$M$7:$M$788,'PLAN Rekapitulacija'!$N$6, 'Plan unos i pregled'!$E$7:$E$788,'PLAN Rekapitulacija'!$B111, 'Plan unos i pregled'!$C$7:$C$788,'PLAN Rekapitulacija'!F$4, 'Plan unos i pregled'!$A$7:$A$788,$D$3) -> 0 | G111: =SUMIFS('Plan unos i pregled'!$I$7:$I$788,'Plan unos i pregled'!$B$7:$B$788,'PLAN Rekapitulacija'!$N$7,'Plan unos i pregled'!$M$7:$M$788,'PLAN Rekapitulacija'!$N$6, 'Plan unos i pregled'!$E$7:$E$788,'PLAN Rekapitulacija'!$B111, 'Plan unos i pregled'!$C$7:$C$788,'PLAN Rekapitulacija'!G$4, 'Plan unos i pregled'!$A$7:$A$788,$D$3) -> 0 | H111: =SUMIFS('Plan unos i pregled'!$I$7:$I$788,'Plan unos i pregled'!$B$7:$B$788,'PLAN Rekapitulacija'!$N$7,'Plan unos i pregled'!$M$7:$M$788,'PLAN Rekapitulacija'!$N$6, 'Plan unos i pregled'!$E$7:$E$788,'PLAN Rekapitulacija'!$B111, 'Plan unos i pregled'!$C$7:$C$788,'PLAN Rekapitulacija'!H$4, 'Plan unos i pregled'!$A$7:$A$788,$D$3) -> 0 | I111: =SUMIFS('Plan unos i pregled'!$I$7:$I$788,'Plan unos i pregled'!$B$7:$B$788,'PLAN Rekapitulacija'!$N$7,'Plan unos i pregled'!$M$7:$M$788,'PLAN Rekapitulacija'!$N$6, 'Plan unos i pregled'!$E$7:$E$788,'PLAN Rekapitulacija'!$B111, 'Plan unos i pregled'!$C$7:$C$788,'PLAN Rekapitulacija'!I$4, 'Plan unos i pregled'!$A$7:$A$788,$D$3) -> 0 | J111: 0 | K111: 0
A112: =IF(OR(J112:K115),"штампа","не") -> не | B112: 6.4 | C112: Ручни ископ одводних јаркова и корекција. Цена обухвата: ископ земље према типу јарка, пребацивање на банкину или утовар у колица и одвоз на депонију. | E112: 0
A113: не | B113: 6.4.1 | C113: Са пребацивањем земље до 3 м | D113: m | E113: 1981.36 | F113: =SUMIFS('Plan unos i pregled'!$I$7:$I$788,'Plan unos i pregled'!$B$7:$B$788,'PLAN Rekapitulacija'!$N$7,'Plan unos i pregled'!$M$7:$M$788,'PLAN Rekapitulacija'!$N$6, 'Plan unos i pregled'!$E$7:$E$788,'PLAN Rekapitulacija'!$B113, 'Plan unos i pregled'!$C$7:$C$788,'PLAN Rekapitulacija'!F$4, 'Plan unos i pregled'!$A$7:$A$788,$D$3) -> 0 | G113: =SUMIFS('Plan unos i pregled'!$I$7:$I$788,'Plan unos i pregled'!$B$7:$B$788,'PLAN Rekapitulacija'!$N$7,'Plan unos i pregled'!$M$7:$M$788,'PLAN Rekapitulacija'!$N$6, 'Plan unos i pregled'!$E$7:$E$788,'PLAN Rekapitulacija'!$B113, 'Plan unos i pregled'!$C$7:$C$788,'PLAN Rekapitulacija'!G$4, 'Plan unos i pregled'!$A$7:$A$788,$D$3) -> 0 | H113: =SUMIFS('Plan unos i pregled'!$I$7:$I$788,'Plan unos i pregled'!$B$7:$B$788,'PLAN Rekapitulacija'!$N$7,'Plan unos i pregled'!$M$7:$M$788,'PLAN Rekapitulacija'!$N$6, 'Plan unos i pregled'!$E$7:$E$788,'PLAN Rekapitulacija'!$B113, 'Plan unos i pregled'!$C$7:$C$788,'PLAN Rekapitulacija'!H$4, 'Plan unos i pregled'!$A$7:$A$788,$D$3) -> 0 | I113: =SUMIFS('Plan unos i pregled'!$I$7:$I$788,'Plan unos i pregled'!$B$7:$B$788,'PLAN Rekapitulacija'!$N$7,'Plan unos i pregled'!$M$7:$M$788,'PLAN Rekapitulacija'!$N$6, 'Plan unos i pregled'!$E$7:$E$788,'PLAN Rekapitulacija'!$B113, 'Plan unos i pregled'!$C$7:$C$788,'PLAN Rekapitulacija'!I$4, 'Plan unos i pregled'!$A$7:$A$788,$D$3) -> 0 | J113: =SUM(F113:I113) -> 0 | K113: =ROUND(E113*J113,2) -> 0
A114: не | B114: 6.4.2 | C114: Са одвозом земље на 10 м | D114: m | E114: 2308.87 | F114: =SUMIFS('Plan unos i pregled'!$I$7:$I$788,'Plan unos i pregled'!$B$7:$B$788,'PLAN Rekapitulacija'!$N$7,'Plan unos i pregled'!$M$7:$M$788,'PLAN Rekapitulacija'!$N$6, 'Plan unos i pregled'!$E$7:$E$788,'PLAN Rekapitulacija'!$B114, 'Plan unos i pregled'!$C$7:$C$788,'PLAN Rekapitulacija'!F$4, 'Plan unos i pregled'!$A$7:$A$788,$D$3) -> 0 | G114: =SUMIFS('Plan unos i pregled'!$I$7:$I$788,'Plan unos i pregled'!$B$7:$B$788,'PLAN Rekapitulacija'!$N$7,'Plan unos i pregled'!$M$7:$M$788,'PLAN Rekapitulacija'!$N$6, 'Plan unos i pregled'!$E$7:$E$788,'PLAN Rekapitulacija'!$B114, 'Plan unos i pregled'!$C$7:$C$788,'PLAN Rekapitulacija'!G$4, 'Plan unos i pregled'!$A$7:$A$788,$D$3) -> 0 | H114: =SUMIFS('Plan unos i pregled'!$I$7:$I$788,'Plan unos i pregled'!$B$7:$B$788,'PLAN Rekapitulacija'!$N$7,'Plan unos i pregled'!$M$7:$M$788,'PLAN Rekapitulacija'!$N$6, 'Plan unos i pregled'!$E$7:$E$788,'PLAN Rekapitulacija'!$B114, 'Plan unos i pregled'!$C$7:$C$788,'PLAN Rekapitulacija'!H$4, 'Plan unos i pregled'!$A$7:$A$788,$D$3) -> 0 | I114: =SUMIFS('Plan unos i pregled'!$I$7:$I$788,'Plan unos i pregled'!$B$7:$B$788,'PLAN Rekapitulacija'!$N$7,'Plan unos i pregled'!$M$7:$M$788,'PLAN Rekapitulacija'!$N$6, 'Plan unos i pregled'!$E$7:$E$788,'PLAN Rekapitulacija'!$B114, 'Plan unos i pregled'!$C$7:$C$788,'PLAN Rekapitulacija'!I$4, 'Plan unos i pregled'!$A$7:$A$788,$D$3) -> 0 | J114: 0 | K114: 0
A115: не | B115: 6.4.3 | C115: Са одвозом земље на 20 м | D115: m | E115: 2461.7 | F115: =SUMIFS('Plan unos i pregled'!$I$7:$I$788,'Plan unos i pregled'!$B$7:$B$788,'PLAN Rekapitulacija'!$N$7,'Plan unos i pregled'!$M$7:$M$788,'PLAN Rekapitulacija'!$N$6, 'Plan unos i pregled'!$E$7:$E$788,'PLAN Rekapitulacija'!$B115, 'Plan unos i pregled'!$C$7:$C$788,'PLAN Rekapitulacija'!F$4, 'Plan unos i pregled'!$A$7:$A$788,$D$3) -> 0 | G115: =SUMIFS('Plan unos i pregled'!$I$7:$I$788,'Plan unos i pregled'!$B$7:$B$788,'PLAN Rekapitulacija'!$N$7,'Plan unos i pregled'!$M$7:$M$788,'PLAN Rekapitulacija'!$N$6, 'Plan unos i pregled'!$E$7:$E$788,'PLAN Rekapitulacija'!$B115, 'Plan unos i pregled'!$C$7:$C$788,'PLAN Rekapitulacija'!G$4, 'Plan unos i pregled'!$A$7:$A$788,$D$3) -> 0 | H115: =SUMIFS('Plan unos i pregled'!$I$7:$I$788,'Plan unos i pregled'!$B$7:$B$788,'PLAN Rekapitulacija'!$N$7,'Plan unos i pregled'!$M$7:$M$788,'PLAN Rekapitulacija'!$N$6, 'Plan unos i pregled'!$E$7:$E$788,'PLAN Rekapitulacija'!$B115, 'Plan unos i pregled'!$C$7:$C$788,'PLAN Rekapitulacija'!H$4, 'Plan unos i pregled'!$A$7:$A$788,$D$3) -> 0 | I115: =SUMIFS('Plan unos i pregled'!$I$7:$I$788,'Plan unos i pregled'!$B$7:$B$788,'PLAN Rekapitulacija'!$N$7,'Plan unos i pregled'!$M$7:$M$788,'PLAN Rekapitulacija'!$N$6, 'Plan unos i pregled'!$E$7:$E$788,'PLAN Rekapitulacija'!$B115, 'Plan unos i pregled'!$C$7:$C$788,'PLAN Rekapitulacija'!I$4, 'Plan unos i pregled'!$A$7:$A$788,$D$3) -> 0 | J115: 0 | K115: 0
A116: =IF(OR(J116:K118),"штампа","не") -> штампа | B116: 6.5 | C116: Машински ископ одводних јаркова и корекција. Цена обухвата: чишћење јарка, планирање, утовар у камион и превоз на депонију. | E116: 0
A117: штампа | B117: 6.5.1 | C117: Са одлагањем на страну | D117: m | E117: 100 | F117: =SUMIFS('Plan unos i pregled'!$I$7:$I$788,'Plan unos i pregled'!$B$7:$B$788,'PLAN Rekapitulacija'!$N$7,'Plan unos i pregled'!$M$7:$M$788,'PLAN Rekapitulacija'!$N$6, 'Plan unos i pregled'!$E$7:$E$788,'PLAN Rekapitulacija'!$B117, 'Plan unos i pregled'!$C$7:$C$788,'PLAN Rekapitulacija'!F$4, 'Plan unos i pregled'!$A$7:$A$788,$D$3) -> 3700 | G117: =SUMIFS('Plan unos i pregled'!$I$7:$I$788,'Plan unos i pregled'!$B$7:$B$788,'PLAN Rekapitulacija'!$N$7,'Plan unos i pregled'!$M$7:$M$788,'PLAN Rekapitulacija'!$N$6, 'Plan unos i pregled'!$E$7:$E$788,'PLAN Rekapitulacija'!$B117, 'Plan unos i pregled'!$C$7:$C$788,'PLAN Rekapitulacija'!G$4, 'Plan unos i pregled'!$A$7:$A$788,$D$3) -> 0 | H117: =SUMIFS('Plan unos i pregled'!$I$7:$I$788,'Plan unos i pregled'!$B$7:$B$788,'PLAN Rekapitulacija'!$N$7,'Plan unos i pregled'!$M$7:$M$788,'PLAN Rekapitulacija'!$N$6, 'Plan unos i pregled'!$E$7:$E$788,'PLAN Rekapitulacija'!$B117, 'Plan unos i pregled'!$C$7:$C$788,'PLAN Rekapitulacija'!H$4, 'Plan unos i pregled'!$A$7:$A$788,$D$3) -> 0 | I117: =SUMIFS('Plan unos i pregled'!$I$7:$I$788,'Plan unos i pregled'!$B$7:$B$788,'PLAN Rekapitulacija'!$N$7,'Plan unos i pregled'!$M$7:$M$788,'PLAN Rekapitulacija'!$N$6, 'Plan unos i pregled'!$E$7:$E$788,'PLAN Rekapitulacija'!$B117, 'Plan unos i pregled'!$C$7:$C$788,'PLAN Rekapitulacija'!I$4, 'Plan unos i pregled'!$A$7:$A$788,$D$3) -> 0 | J117: =SUM(F117:I117) -> 3700 | K117: =ROUND(E117*J117,2) -> 370000
A118: не | B118: 6.5.2. | C118: Са превозом на 3 km | D118: m3 | E118: 420 | F118: =SUMIFS('Plan unos i pregled'!$I$7:$I$788,'Plan unos i pregled'!$B$7:$B$788,'PLAN Rekapitulacija'!$N$7,'Plan unos i pregled'!$M$7:$M$788,'PLAN Rekapitulacija'!$N$6, 'Plan unos i pregled'!$E$7:$E$788,'PLAN Rekapitulacija'!$B118, 'Plan unos i pregled'!$C$7:$C$788,'PLAN Rekapitulacija'!F$4, 'Plan unos i pregled'!$A$7:$A$788,$D$3) -> 0 | G118: =SUMIFS('Plan unos i pregled'!$I$7:$I$788,'Plan unos i pregled'!$B$7:$B$788,'PLAN Rekapitulacija'!$N$7,'Plan unos i pregled'!$M$7:$M$788,'PLAN Rekapitulacija'!$N$6, 'Plan unos i pregled'!$E$7:$E$788,'PLAN Rekapitulacija'!$B118, 'Plan unos i pregled'!$C$7:$C$788,'PLAN Rekapitulacija'!G$4, 'Plan unos i pregled'!$A$7:$A$788,$D$3) -> 0 | H118: =SUMIFS('Plan unos i pregled'!$I$7:$I$788,'Plan unos i pregled'!$B$7:$B$788,'PLAN Rekapitulacija'!$N$7,'Plan unos i pregled'!$M$7:$M$788,'PLAN Rekapitulacija'!$N$6, 'Plan unos i pregled'!$E$7:$E$788,'PLAN Rekapitulacija'!$B118, 'Plan unos i pregled'!$C$7:$C$788,'PLAN Rekapitulacija'!H$4, 'Plan unos i pregled'!$A$7:$A$788,$D$3) -> 0 | I118: =SUMIFS('Plan unos i pregled'!$I$7:$I$788,'Plan unos i pregled'!$B$7:$B$788,'PLAN Rekapitulacija'!$N$7,'Plan unos i pregled'!$M$7:$M$788,'PLAN Rekapitulacija'!$N$6, 'Plan unos i pregled'!$E$7:$E$788,'PLAN Rekapitulacija'!$B118, 'Plan unos i pregled'!$C$7:$C$788,'PLAN Rekapitulacija'!I$4, 'Plan unos i pregled'!$A$7:$A$788,$D$3) -> 0 | J118: 0 | K118: 0
A119: =IF(OR(J119:K124),"штампа","не") -> не | B119: 6.6 | C119: Машински ископ одводних јаркова и корекција. Цена обухвата: ископ земље ровокопачем 80% са ручним дотеривањем 20%, пребацивање земље на банкину или утовар у возило и превоз на депонију. | E119: 0
A120: не | B120: 6.6.1 | C120: Са одлагањем на страну | D120: m3 | E120: 549.6 | F120: =SUMIFS('Plan unos i pregled'!$I$7:$I$788,'Plan unos i pregled'!$B$7:$B$788,'PLAN Rekapitulacija'!$N$7,'Plan unos i pregled'!$M$7:$M$788,'PLAN Rekapitulacija'!$N$6, 'Plan unos i pregled'!$E$7:$E$788,'PLAN Rekapitulacija'!$B120, 'Plan unos i pregled'!$C$7:$C$788,'PLAN Rekapitulacija'!F$4, 'Plan unos i pregled'!$A$7:$A$788,$D$3) -> 0 | G120: =SUMIFS('Plan unos i pregled'!$I$7:$I$788,'Plan unos i pregled'!$B$7:$B$788,'PLAN Rekapitulacija'!$N$7,'Plan unos i pregled'!$M$7:$M$788,'PLAN Rekapitulacija'!$N$6, 'Plan unos i pregled'!$E$7:$E$788,'PLAN Rekapitulacija'!$B120, 'Plan unos i pregled'!$C$7:$C$788,'PLAN Rekapitulacija'!G$4, 'Plan unos i pregled'!$A$7:$A$788,$D$3) -> 0 | H120: =SUMIFS('Plan unos i pregled'!$I$7:$I$788,'Plan unos i pregled'!$B$7:$B$788,'PLAN Rekapitulacija'!$N$7,'Plan unos i pregled'!$M$7:$M$788,'PLAN Rekapitulacija'!$N$6, 'Plan unos i pregled'!$E$7:$E$788,'PLAN Rekapitulacija'!$B120, 'Plan unos i pregled'!$C$7:$C$788,'PLAN Rekapitulacija'!H$4, 'Plan unos i pregled'!$A$7:$A$788,$D$3) -> 0 | I120: =SUMIFS('Plan unos i pregled'!$I$7:$I$788,'Plan unos i pregled'!$B$7:$B$788,'PLAN Rekapitulacija'!$N$7,'Plan unos i pregled'!$M$7:$M$788,'PLAN Rekapitulacija'!$N$6, 'Plan unos i pregled'!$E$7:$E$788,'PLAN Rekapitulacija'!$B120, 'Plan unos i pregled'!$C$7:$C$788,'PLAN Rekapitulacija'!I$4, 'Plan unos i pregled'!$A$7:$A$788,$D$3) -> 0 | J120: =SUM(F120:I120) -> 0 | K120: =ROUND(E120*J120,2) -> 0
A121: не | B121: 6.6.2 | C121: Са превозом земље до 1 km | D121: m3 | E121: 721 | F121: =SUMIFS('Plan unos i pregled'!$I$7:$I$788,'Plan unos i pregled'!$B$7:$B$788,'PLAN Rekapitulacija'!$N$7,'Plan unos i pregled'!$M$7:$M$788,'PLAN Rekapitulacija'!$N$6, 'Plan unos i pregled'!$E$7:$E$788,'PLAN Rekapitulacija'!$B121, 'Plan unos i pregled'!$C$7:$C$788,'PLAN Rekapitulacija'!F$4, 'Plan unos i pregled'!$A$7:$A$788,$D$3) -> 0 | G121: =SUMIFS('Plan unos i pregled'!$I$7:$I$788,'Plan unos i pregled'!$B$7:$B$788,'PLAN Rekapitulacija'!$N$7,'Plan unos i pregled'!$M$7:$M$788,'PLAN Rekapitulacija'!$N$6, 'Plan unos i pregled'!$E$7:$E$788,'PLAN Rekapitulacija'!$B121, 'Plan unos i pregled'!$C$7:$C$788,'PLAN Rekapitulacija'!G$4, 'Plan unos i pregled'!$A$7:$A$788,$D$3) -> 0 | H121: =SUMIFS('Plan unos i pregled'!$I$7:$I$788,'Plan unos i pregled'!$B$7:$B$788,'PLAN Rekapitulacija'!$N$7,'Plan unos i pregled'!$M$7:$M$788,'PLAN Rekapitulacija'!$N$6, 'Plan unos i pregled'!$E$7:$E$788,'PLAN Rekapitulacija'!$B121, 'Plan unos i pregled'!$C$7:$C$788,'PLAN Rekapitulacija'!H$4, 'Plan unos i pregled'!$A$7:$A$788,$D$3) -> 0 | I121: =SUMIFS('Plan unos i pregled'!$I$7:$I$788,'Plan unos i pregled'!$B$7:$B$788,'PLAN Rekapitulacija'!$N$7,'Plan unos i pregled'!$M$7:$M$788,'PLAN Rekapitulacija'!$N$6, 'Plan unos i pregled'!$E$7:$E$788,'PLAN Rekapitulacija'!$B121, 'Plan unos i pregled'!$C$7:$C$788,'PLAN Rekapitulacija'!I$4, 'Plan unos i pregled'!$A$7:$A$788,$D$3) -> 0 | J121: 0 | K121: 0
A122: не | B122: 6.6.3 | C122: Са превозом земље до 2 km | D122: m3 | E122: 768 | F122: =SUMIFS('Plan unos i pregled'!$I$7:$I$788,'Plan unos i pregled'!$B$7:$B$788,'PLAN Rekapitulacija'!$N$7,'Plan unos i pregled'!$M$7:$M$788,'PLAN Rekapitulacija'!$N$6, 'Plan unos i pregled'!$E$7:$E$788,'PLAN Rekapitulacija'!$B122, 'Plan unos i pregled'!$C$7:$C$788,'PLAN Rekapitulacija'!F$4, 'Plan unos i pregled'!$A$7:$A$788,$D$3) -> 0 | G122: =SUMIFS('Plan unos i pregled'!$I$7:$I$788,'Plan unos i pregled'!$B$7:$B$788,'PLAN Rekapitulacija'!$N$7,'Plan unos i pregled'!$M$7:$M$788,'PLAN Rekapitulacija'!$N$6, 'Plan unos i pregled'!$E$7:$E$788,'PLAN Rekapitulacija'!$B122, 'Plan unos i pregled'!$C$7:$C$788,'PLAN Rekapitulacija'!G$4, 'Plan unos i pregled'!$A$7:$A$788,$D$3) -> 0 | H122: =SUMIFS('Plan unos i pregled'!$I$7:$I$788,'Plan unos i pregled'!$B$7:$B$788,'PLAN Rekapitulacija'!$N$7,'Plan unos i pregled'!$M$7:$M$788,'PLAN Rekapitulacija'!$N$6, 'Plan unos i pregled'!$E$7:$E$788,'PLAN Rekapitulacija'!$B122, 'Plan unos i pregled'!$C$7:$C$788,'PLAN Rekapitulacija'!H$4, 'Plan unos i pregled'!$A$7:$A$788,$D$3) -> 0 | I122: =SUMIFS('Plan unos i pregled'!$I$7:$I$788,'Plan unos i pregled'!$B$7:$B$788,'PLAN Rekapitulacija'!$N$7,'Plan unos i pregled'!$M$7:$M$788,'PLAN Rekapitulacija'!$N$6, 'Plan unos i pregled'!$E$7:$E$788,'PLAN Rekapitulacija'!$B122, 'Plan unos i pregled'!$C$7:$C$788,'PLAN Rekapitulacija'!I$4, 'Plan unos i pregled'!$A$7:$A$788,$D$3) -> 0 | J122: 0 | K122: 0
A123: не | B123: 6.6.4 | C123: Са превозом земље до 3 km | D123: m3 | E123: 810 | F123: =SUMIFS('Plan unos i pregled'!$I$7:$I$788,'Plan unos i pregled'!$B$7:$B$788,'PLAN Rekapitulacija'!$N$7,'Plan unos i pregled'!$M$7:$M$788,'PLAN Rekapitulacija'!$N$6, 'Plan unos i pregled'!$E$7:$E$788,'PLAN Rekapitulacija'!$B123, 'Plan unos i pregled'!$C$7:$C$788,'PLAN Rekapitulacija'!F$4, 'Plan unos i pregled'!$A$7:$A$788,$D$3) -> 0 | G123: =SUMIFS('Plan unos i pregled'!$I$7:$I$788,'Plan unos i pregled'!$B$7:$B$788,'PLAN Rekapitulacija'!$N$7,'Plan unos i pregled'!$M$7:$M$788,'PLAN Rekapitulacija'!$N$6, 'Plan unos i pregled'!$E$7:$E$788,'PLAN Rekapitulacija'!$B123, 'Plan unos i pregled'!$C$7:$C$788,'PLAN Rekapitulacija'!G$4, 'Plan unos i pregled'!$A$7:$A$788,$D$3) -> 0 | H123: =SUMIFS('Plan unos i pregled'!$I$7:$I$788,'Plan unos i pregled'!$B$7:$B$788,'PLAN Rekapitulacija'!$N$7,'Plan unos i pregled'!$M$7:$M$788,'PLAN Rekapitulacija'!$N$6, 'Plan unos i pregled'!$E$7:$E$788,'PLAN Rekapitulacija'!$B123, 'Plan unos i pregled'!$C$7:$C$788,'PLAN Rekapitulacija'!H$4, 'Plan unos i pregled'!$A$7:$A$788,$D$3) -> 0 | I123: =SUMIFS('Plan unos i pregled'!$I$7:$I$788,'Plan unos i pregled'!$B$7:$B$788,'PLAN Rekapitulacija'!$N$7,'Plan unos i pregled'!$M$7:$M$788,'PLAN Rekapitulacija'!$N$6, 'Plan unos i pregled'!$E$7:$E$788,'PLAN Rekapitulacija'!$B123, 'Plan unos i pregled'!$C$7:$C$788,'PLAN Rekapitulacija'!I$4, 'Plan unos i pregled'!$A$7:$A$788,$D$3) -> 0 | J123: 0 | K123: 0
A124: не | B124: 6.6.5 | C124: Са превозом земље до 5 km | D124: m3 | E124: 882 | F124: =SUMIFS('Plan unos i pregled'!$I$7:$I$788,'Plan unos i pregled'!$B$7:$B$788,'PLAN Rekapitulacija'!$N$7,'Plan unos i pregled'!$M$7:$M$788,'PLAN Rekapitulacija'!$N$6, 'Plan unos i pregled'!$E$7:$E$788,'PLAN Rekapitulacija'!$B124, 'Plan unos i pregled'!$C$7:$C$788,'PLAN Rekapitulacija'!F$4, 'Plan unos i pregled'!$A$7:$A$788,$D$3) -> 0 | G124: =SUMIFS('Plan unos i pregled'!$I$7:$I$788,'Plan unos i pregled'!$B$7:$B$788,'PLAN Rekapitulacija'!$N$7,'Plan unos i pregled'!$M$7:$M$788,'PLAN Rekapitulacija'!$N$6, 'Plan unos i pregled'!$E$7:$E$788,'PLAN Rekapitulacija'!$B124, 'Plan unos i pregled'!$C$7:$C$788,'PLAN Rekapitulacija'!G$4, 'Plan unos i pregled'!$A$7:$A$788,$D$3) -> 0 | H124: =SUMIFS('Plan unos i pregled'!$I$7:$I$788,'Plan unos i pregled'!$B$7:$B$788,'PLAN Rekapitulacija'!$N$7,'Plan unos i pregled'!$M$7:$M$788,'PLAN Rekapitulacija'!$N$6, 'Plan unos i pregled'!$E$7:$E$788,'PLAN Rekapitulacija'!$B124, 'Plan unos i pregled'!$C$7:$C$788,'PLAN Rekapitulacija'!H$4, 'Plan unos i pregled'!$A$7:$A$788,$D$3) -> 0 | I124: =SUMIFS('Plan unos i pregled'!$I$7:$I$788,'Plan unos i pregled'!$B$7:$B$788,'PLAN Rekapitulacija'!$N$7,'Plan unos i pregled'!$M$7:$M$788,'PLAN Rekapitulacija'!$N$6, 'Plan unos i pregled'!$E$7:$E$788,'PLAN Rekapitulacija'!$B124, 'Plan unos i pregled'!$C$7:$C$788,'PLAN Rekapitulacija'!I$4, 'Plan unos i pregled'!$A$7:$A$788,$D$3) -> 0 | J124: 0 | K124: 0
A125: не | B125: 6.7 | C125: Облагање одводних јаркова бетоном МБ-20 на слоју шљунка d = 15 cm. Цена обухвата: набавку и превоз шљунка на 30 km, справљање бетона МБ-20, превоз бетона аутомешалицом на 30 km, уграђивање шљунка у подлогу и бетона первибратором у оплату. | D125: m2 | E125: 2153.99 | F125: =SUMIFS('Plan unos i pregled'!$I$7:$I$788,'Plan unos i pregled'!$B$7:$B$788,'PLAN Rekapitulacija'!$N$7,'Plan unos i pregled'!$M$7:$M$788,'PLAN Rekapitulacija'!$N$6, 'Plan unos i pregled'!$E$7:$E$788,'PLAN Rekapitulacija'!$B125, 'Plan unos i pregled'!$C$7:$C$788,'PLAN Rekapitulacija'!F$4, 'Plan unos i pregled'!$A$7:$A$788,$D$3) -> 0 | G125: =SUMIFS('Plan unos i pregled'!$I$7:$I$788,'Plan unos i pregled'!$B$7:$B$788,'PLAN Rekapitulacija'!$N$7,'Plan unos i pregled'!$M$7:$M$788,'PLAN Rekapitulacija'!$N$6, 'Plan unos i pregled'!$E$7:$E$788,'PLAN Rekapitulacija'!$B125, 'Plan unos i pregled'!$C$7:$C$788,'PLAN Rekapitulacija'!G$4, 'Plan unos i pregled'!$A$7:$A$788,$D$3) -> 0 | H125: =SUMIFS('Plan unos i pregled'!$I$7:$I$788,'Plan unos i pregled'!$B$7:$B$788,'PLAN Rekapitulacija'!$N$7,'Plan unos i pregled'!$M$7:$M$788,'PLAN Rekapitulacija'!$N$6, 'Plan unos i pregled'!$E$7:$E$788,'PLAN Rekapitulacija'!$B125, 'Plan unos i pregled'!$C$7:$C$788,'PLAN Rekapitulacija'!H$4, 'Plan unos i pregled'!$A$7:$A$788,$D$3) -> 0 | I125: =SUMIFS('Plan unos i pregled'!$I$7:$I$788,'Plan unos i pregled'!$B$7:$B$788,'PLAN Rekapitulacija'!$N$7,'Plan unos i pregled'!$M$7:$M$788,'PLAN Rekapitulacija'!$N$6, 'Plan unos i pregled'!$E$7:$E$788,'PLAN Rekapitulacija'!$B125, 'Plan unos i pregled'!$C$7:$C$788,'PLAN Rekapitulacija'!I$4, 'Plan unos i pregled'!$A$7:$A$788,$D$3) -> 0 | J125: 0 | K125: 0
A126: не | B126: 6.8 | C126: Облагање одводних јаркова монтажним бетонским каналетама на слоју песка d = 10 cm са фуговањем цементним малтером 1:2. Цена обухвата: набавку песка и цементног малтера 1:2 са превозом на 30 km и полагање каналета на подлогу од песка са фуговањем. Набавка и превоз каналета нису обухваћени ценом. | D126: m | E126: 738.49 | F126: =SUMIFS('Plan unos i pregled'!$I$7:$I$788,'Plan unos i pregled'!$B$7:$B$788,'PLAN Rekapitulacija'!$N$7,'Plan unos i pregled'!$M$7:$M$788,'PLAN Rekapitulacija'!$N$6, 'Plan unos i pregled'!$E$7:$E$788,'PLAN Rekapitulacija'!$B126, 'Plan unos i pregled'!$C$7:$C$788,'PLAN Rekapitulacija'!F$4, 'Plan unos i pregled'!$A$7:$A$788,$D$3) -> 0 | G126: =SUMIFS('Plan unos i pregled'!$I$7:$I$788,'Plan unos i pregled'!$B$7:$B$788,'PLAN Rekapitulacija'!$N$7,'Plan unos i pregled'!$M$7:$M$788,'PLAN Rekapitulacija'!$N$6, 'Plan unos i pregled'!$E$7:$E$788,'PLAN Rekapitulacija'!$B126, 'Plan unos i pregled'!$C$7:$C$788,'PLAN Rekapitulacija'!G$4, 'Plan unos i pregled'!$A$7:$A$788,$D$3) -> 0 | H126: =SUMIFS('Plan unos i pregled'!$I$7:$I$788,'Plan unos i pregled'!$B$7:$B$788,'PLAN Rekapitulacija'!$N$7,'Plan unos i pregled'!$M$7:$M$788,'PLAN Rekapitulacija'!$N$6, 'Plan unos i pregled'!$E$7:$E$788,'PLAN Rekapitulacija'!$B126, 'Plan unos i pregled'!$C$7:$C$788,'PLAN Rekapitulacija'!H$4, 'Plan unos i pregled'!$A$7:$A$788,$D$3) -> 0 | I126: =SUMIFS('Plan unos i pregled'!$I$7:$I$788,'Plan unos i pregled'!$B$7:$B$788,'PLAN Rekapitulacija'!$N$7,'Plan unos i pregled'!$M$7:$M$788,'PLAN Rekapitulacija'!$N$6, 'Plan unos i pregled'!$E$7:$E$788,'PLAN Rekapitulacija'!$B126, 'Plan unos i pregled'!$C$7:$C$788,'PLAN Rekapitulacija'!I$4, 'Plan unos i pregled'!$A$7:$A$788,$D$3) -> 0 | J126: 0 | K126: 0
A127: не | B127: 6.9 | C127: Ручно и машинско чишћење постојећих цевастих пропуста | D127: ком | E127: 2000 | F127: =SUMIFS('Plan unos i pregled'!$I$7:$I$788,'Plan unos i pregled'!$B$7:$B$788,'PLAN Rekapitulacija'!$N$7,'Plan unos i pregled'!$M$7:$M$788,'PLAN Rekapitulacija'!$N$6, 'Plan unos i pregled'!$E$7:$E$788,'PLAN Rekapitulacija'!$B127, 'Plan unos i pregled'!$C$7:$C$788,'PLAN Rekapitulacija'!F$4, 'Plan unos i pregled'!$A$7:$A$788,$D$3) -> 0 | G127: =SUMIFS('Plan unos i pregled'!$I$7:$I$788,'Plan unos i pregled'!$B$7:$B$788,'PLAN Rekapitulacija'!$N$7,'Plan unos i pregled'!$M$7:$M$788,'PLAN Rekapitulacija'!$N$6, 'Plan unos i pregled'!$E$7:$E$788,'PLAN Rekapitulacija'!$B127, 'Plan unos i pregled'!$C$7:$C$788,'PLAN Rekapitulacija'!G$4, 'Plan unos i pregled'!$A$7:$A$788,$D$3) -> 0 | H127: =SUMIFS('Plan unos i pregled'!$I$7:$I$788,'Plan unos i pregled'!$B$7:$B$788,'PLAN Rekapitulacija'!$N$7,'Plan unos i pregled'!$M$7:$M$788,'PLAN Rekapitulacija'!$N$6, 'Plan unos i pregled'!$E$7:$E$788,'PLAN Rekapitulacija'!$B127, 'Plan unos i pregled'!$C$7:$C$788,'PLAN Rekapitulacija'!H$4, 'Plan unos i pregled'!$A$7:$A$788,$D$3) -> 0 | I127: =SUMIFS('Plan unos i pregled'!$I$7:$I$788,'Plan unos i pregled'!$B$7:$B$788,'PLAN Rekapitulacija'!$N$7,'Plan unos i pregled'!$M$7:$M$788,'PLAN Rekapitulacija'!$N$6, 'Plan unos i pregled'!$E$7:$E$788,'PLAN Rekapitulacija'!$B127, 'Plan unos i pregled'!$C$7:$C$788,'PLAN Rekapitulacija'!I$4, 'Plan unos i pregled'!$A$7:$A$788,$D$3) -> 0 | J127: 0 | K127: 0
A128: не | B128: 6.10 | C128: Рушење старог пропуста са одвозом шута на депонију | D128: ком | E128: 9460 | F128: =SUMIFS('Plan unos i pregled'!$I$7:$I$788,'Plan unos i pregled'!$B$7:$B$788,'PLAN Rekapitulacija'!$N$7,'Plan unos i pregled'!$M$7:$M$788,'PLAN Rekapitulacija'!$N$6, 'Plan unos i pregled'!$E$7:$E$788,'PLAN Rekapitulacija'!$B128, 'Plan unos i pregled'!$C$7:$C$788,'PLAN Rekapitulacija'!F$4, 'Plan unos i pregled'!$A$7:$A$788,$D$3) -> 0 | G128: =SUMIFS('Plan unos i pregled'!$I$7:$I$788,'Plan unos i pregled'!$B$7:$B$788,'PLAN Rekapitulacija'!$N$7,'Plan unos i pregled'!$M$7:$M$788,'PLAN Rekapitulacija'!$N$6, 'Plan unos i pregled'!$E$7:$E$788,'PLAN Rekapitulacija'!$B128, 'Plan unos i pregled'!$C$7:$C$788,'PLAN Rekapitulacija'!G$4, 'Plan unos i pregled'!$A$7:$A$788,$D$3) -> 0 | H128: =SUMIFS('Plan unos i pregled'!$I$7:$I$788,'Plan unos i pregled'!$B$7:$B$788,'PLAN Rekapitulacija'!$N$7,'Plan unos i pregled'!$M$7:$M$788,'PLAN Rekapitulacija'!$N$6, 'Plan unos i pregled'!$E$7:$E$788,'PLAN Rekapitulacija'!$B128, 'Plan unos i pregled'!$C$7:$C$788,'PLAN Rekapitulacija'!H$4, 'Plan unos i pregled'!$A$7:$A$788,$D$3) -> 0 | I128: =SUMIFS('Plan unos i pregled'!$I$7:$I$788,'Plan unos i pregled'!$B$7:$B$788,'PLAN Rekapitulacija'!$N$7,'Plan unos i pregled'!$M$7:$M$788,'PLAN Rekapitulacija'!$N$6, 'Plan unos i pregled'!$E$7:$E$788,'PLAN Rekapitulacija'!$B128, 'Plan unos i pregled'!$C$7:$C$788,'PLAN Rekapitulacija'!I$4, 'Plan unos i pregled'!$A$7:$A$788,$D$3) -> 0 | J128: 0 | K128: 0
A129: не | B129: 6.11 | C129: Израда обостраног проширења засведеног пропуста по 2 м у дужини око 3,5 м МБ 30 РА 400/500 | D129: m2 | E129: 5000 | F129: =SUMIFS('Plan unos i pregled'!$I$7:$I$788,'Plan unos i pregled'!$B$7:$B$788,'PLAN Rekapitulacija'!$N$7,'Plan unos i pregled'!$M$7:$M$788,'PLAN Rekapitulacija'!$N$6, 'Plan unos i pregled'!$E$7:$E$788,'PLAN Rekapitulacija'!$B129, 'Plan unos i pregled'!$C$7:$C$788,'PLAN Rekapitulacija'!F$4, 'Plan unos i pregled'!$A$7:$A$788,$D$3) -> 0 | G129: =SUMIFS('Plan unos i pregled'!$I$7:$I$788,'Plan unos i pregled'!$B$7:$B$788,'PLAN Rekapitulacija'!$N$7,'Plan unos i pregled'!$M$7:$M$788,'PLAN Rekapitulacija'!$N$6, 'Plan unos i pregled'!$E$7:$E$788,'PLAN Rekapitulacija'!$B129, 'Plan unos i pregled'!$C$7:$C$788,'PLAN Rekapitulacija'!G$4, 'Plan unos i pregled'!$A$7:$A$788,$D$3) -> 0 | H129: =SUMIFS('Plan unos i pregled'!$I$7:$I$788,'Plan unos i pregled'!$B$7:$B$788,'PLAN Rekapitulacija'!$N$7,'Plan unos i pregled'!$M$7:$M$788,'PLAN Rekapitulacija'!$N$6, 'Plan unos i pregled'!$E$7:$E$788,'PLAN Rekapitulacija'!$B129, 'Plan unos i pregled'!$C$7:$C$788,'PLAN Rekapitulacija'!H$4, 'Plan unos i pregled'!$A$7:$A$788,$D$3) -> 0 | I129: =SUMIFS('Plan unos i pregled'!$I$7:$I$788,'Plan unos i pregled'!$B$7:$B$788,'PLAN Rekapitulacija'!$N$7,'Plan unos i pregled'!$M$7:$M$788,'PLAN Rekapitulacija'!$N$6, 'Plan unos i pregled'!$E$7:$E$788,'PLAN Rekapitulacija'!$B129, 'Plan unos i pregled'!$C$7:$C$788,'PLAN Rekapitulacija'!I$4, 'Plan unos i pregled'!$A$7:$A$788,$D$3) -> 0 | J129: 0 | K129: 0
A130: не | B130: 6.12 | C130: Фино планирање рова и косине | D130: m2 | E130: 148 | F130: =SUMIFS('Plan unos i pregled'!$I$7:$I$788,'Plan unos i pregled'!$B$7:$B$788,'PLAN Rekapitulacija'!$N$7,'Plan unos i pregled'!$M$7:$M$788,'PLAN Rekapitulacija'!$N$6, 'Plan unos i pregled'!$E$7:$E$788,'PLAN Rekapitulacija'!$B130, 'Plan unos i pregled'!$C$7:$C$788,'PLAN Rekapitulacija'!F$4, 'Plan unos i pregled'!$A$7:$A$788,$D$3) -> 0 | G130: =SUMIFS('Plan unos i pregled'!$I$7:$I$788,'Plan unos i pregled'!$B$7:$B$788,'PLAN Rekapitulacija'!$N$7,'Plan unos i pregled'!$M$7:$M$788,'PLAN Rekapitulacija'!$N$6, 'Plan unos i pregled'!$E$7:$E$788,'PLAN Rekapitulacija'!$B130, 'Plan unos i pregled'!$C$7:$C$788,'PLAN Rekapitulacija'!G$4, 'Plan unos i pregled'!$A$7:$A$788,$D$3) -> 0 | H130: =SUMIFS('Plan unos i pregled'!$I$7:$I$788,'Plan unos i pregled'!$B$7:$B$788,'PLAN Rekapitulacija'!$N$7,'Plan unos i pregled'!$M$7:$M$788,'PLAN Rekapitulacija'!$N$6, 'Plan unos i pregled'!$E$7:$E$788,'PLAN Rekapitulacija'!$B130, 'Plan unos i pregled'!$C$7:$C$788,'PLAN Rekapitulacija'!H$4, 'Plan unos i pregled'!$A$7:$A$788,$D$3) -> 0 | I130: =SUMIFS('Plan unos i pregled'!$I$7:$I$788,'Plan unos i pregled'!$B$7:$B$788,'PLAN Rekapitulacija'!$N$7,'Plan unos i pregled'!$M$7:$M$788,'PLAN Rekapitulacija'!$N$6, 'Plan unos i pregled'!$E$7:$E$788,'PLAN Rekapitulacija'!$B130, 'Plan unos i pregled'!$C$7:$C$788,'PLAN Rekapitulacija'!I$4, 'Plan unos i pregled'!$A$7:$A$788,$D$3) -> 0 | J130: 0 | K130: 0
A131: =IF(OR(J131:K137),"штампа","не") -> не | B131: 6.13 | C131: Израда улазне шахте и излазне главе МБ 25 армирана Q188. Утрошак бетона: | D131: m3 | E131: 16350 | F131: =SUMIFS('Plan unos i pregled'!$I$7:$I$788,'Plan unos i pregled'!$B$7:$B$788,'PLAN Rekapitulacija'!$N$7,'Plan unos i pregled'!$M$7:$M$788,'PLAN Rekapitulacija'!$N$6, 'Plan unos i pregled'!$E$7:$E$788,'PLAN Rekapitulacija'!$B131, 'Plan unos i pregled'!$C$7:$C$788,'PLAN Rekapitulacija'!F$4, 'Plan unos i pregled'!$A$7:$A$788,$D$3) -> 0 | G131: =SUMIFS('Plan unos i pregled'!$I$7:$I$788,'Plan unos i pregled'!$B$7:$B$788,'PLAN Rekapitulacija'!$N$7,'Plan unos i pregled'!$M$7:$M$788,'PLAN Rekapitulacija'!$N$6, 'Plan unos i pregled'!$E$7:$E$788,'PLAN Rekapitulacija'!$B131, 'Plan unos i pregled'!$C$7:$C$788,'PLAN Rekapitulacija'!G$4, 'Plan unos i pregled'!$A$7:$A$788,$D$3) -> 0 | H131: =SUMIFS('Plan unos i pregled'!$I$7:$I$788,'Plan unos i pregled'!$B$7:$B$788,'PLAN Rekapitulacija'!$N$7,'Plan unos i pregled'!$M$7:$M$788,'PLAN Rekapitulacija'!$N$6, 'Plan unos i pregled'!$E$7:$E$788,'PLAN Rekapitulacija'!$B131, 'Plan unos i pregled'!$C$7:$C$788,'PLAN Rekapitulacija'!H$4, 'Plan unos i pregled'!$A$7:$A$788,$D$3) -> 0 | I131: =SUMIFS('Plan unos i pregled'!$I$7:$I$788,'Plan unos i pregled'!$B$7:$B$788,'PLAN Rekapitulacija'!$N$7,'Plan unos i pregled'!$M$7:$M$788,'PLAN Rekapitulacija'!$N$6, 'Plan unos i pregled'!$E$7:$E$788,'PLAN Rekapitulacija'!$B131, 'Plan unos i pregled'!$C$7:$C$788,'PLAN Rekapitulacija'!I$4, 'Plan unos i pregled'!$A$7:$A$788,$D$3) -> 0 | J131: 0 | K131: 0
A132: не | B132: 6.13.1 | C132: Утрошак бетона:Ø 300 mm - 0.70 m³ | D132: m | E132: 0 | F132: =SUMIFS('Plan unos i pregled'!$I$7:$I$788,'Plan unos i pregled'!$B$7:$B$788,'PLAN Rekapitulacija'!$N$7,'Plan unos i pregled'!$M$7:$M$788,'PLAN Rekapitulacija'!$N$6, 'Plan unos i pregled'!$E$7:$E$788,'PLAN Rekapitulacija'!$B132, 'Plan unos i pregled'!$C$7:$C$788,'PLAN Rekapitulacija'!F$4, 'Plan unos i pregled'!$A$7:$A$788,$D$3) -> 0 | G132: =SUMIFS('Plan unos i pregled'!$I$7:$I$788,'Plan unos i pregled'!$B$7:$B$788,'PLAN Rekapitulacija'!$N$7,'Plan unos i pregled'!$M$7:$M$788,'PLAN Rekapitulacija'!$N$6, 'Plan unos i pregled'!$E$7:$E$788,'PLAN Rekapitulacija'!$B132, 'Plan unos i pregled'!$C$7:$C$788,'PLAN Rekapitulacija'!G$4, 'Plan unos i pregled'!$A$7:$A$788,$D$3) -> 0 | H132: =SUMIFS('Plan unos i pregled'!$I$7:$I$788,'Plan unos i pregled'!$B$7:$B$788,'PLAN Rekapitulacija'!$N$7,'Plan unos i pregled'!$M$7:$M$788,'PLAN Rekapitulacija'!$N$6, 'Plan unos i pregled'!$E$7:$E$788,'PLAN Rekapitulacija'!$B132, 'Plan unos i pregled'!$C$7:$C$788,'PLAN Rekapitulacija'!H$4, 'Plan unos i pregled'!$A$7:$A$788,$D$3) -> 0 | I132: =SUMIFS('Plan unos i pregled'!$I$7:$I$788,'Plan unos i pregled'!$B$7:$B$788,'PLAN Rekapitulacija'!$N$7,'Plan unos i pregled'!$M$7:$M$788,'PLAN Rekapitulacija'!$N$6, 'Plan unos i pregled'!$E$7:$E$788,'PLAN Rekapitulacija'!$B132, 'Plan unos i pregled'!$C$7:$C$788,'PLAN Rekapitulacija'!I$4, 'Plan unos i pregled'!$A$7:$A$788,$D$3) -> 0 | J132: =SUM(F132:I132) -> 0 | K132: =ROUND(E132*J132,2) -> 0
A133: не | B133: 6.13.2 | C133: Утрошак бетона:Ø 400 mm - 0.80 m³ | D133: m | E133: 0 | F133: =SUMIFS('Plan unos i pregled'!$I$7:$I$788,'Plan unos i pregled'!$B$7:$B$788,'PLAN Rekapitulacija'!$N$7,'Plan unos i pregled'!$M$7:$M$788,'PLAN Rekapitulacija'!$N$6, 'Plan unos i pregled'!$E$7:$E$788,'PLAN Rekapitulacija'!$B133, 'Plan unos i pregled'!$C$7:$C$788,'PLAN Rekapitulacija'!F$4, 'Plan unos i pregled'!$A$7:$A$788,$D$3) -> 0 | G133: =SUMIFS('Plan unos i pregled'!$I$7:$I$788,'Plan unos i pregled'!$B$7:$B$788,'PLAN Rekapitulacija'!$N$7,'Plan unos i pregled'!$M$7:$M$788,'PLAN Rekapitulacija'!$N$6, 'Plan unos i pregled'!$E$7:$E$788,'PLAN Rekapitulacija'!$B133, 'Plan unos i pregled'!$C$7:$C$788,'PLAN Rekapitulacija'!G$4, 'Plan unos i pregled'!$A$7:$A$788,$D$3) -> 0 | H133: =SUMIFS('Plan unos i pregled'!$I$7:$I$788,'Plan unos i pregled'!$B$7:$B$788,'PLAN Rekapitulacija'!$N$7,'Plan unos i pregled'!$M$7:$M$788,'PLAN Rekapitulacija'!$N$6, 'Plan unos i pregled'!$E$7:$E$788,'PLAN Rekapitulacija'!$B133, 'Plan unos i pregled'!$C$7:$C$788,'PLAN Rekapitulacija'!H$4, 'Plan unos i pregled'!$A$7:$A$788,$D$3) -> 0 | I133: =SUMIFS('Plan unos i pregled'!$I$7:$I$788,'Plan unos i pregled'!$B$7:$B$788,'PLAN Rekapitulacija'!$N$7,'Plan unos i pregled'!$M$7:$M$788,'PLAN Rekapitulacija'!$N$6, 'Plan unos i pregled'!$E$7:$E$788,'PLAN Rekapitulacija'!$B133, 'Plan unos i pregled'!$C$7:$C$788,'PLAN Rekapitulacija'!I$4, 'Plan unos i pregled'!$A$7:$A$788,$D$3) -> 0 | J133: 0 | K133: 0
A134: не | B134: 6.13.3 | C134: Утрошак бетона:Ø 500 mm - 0.90 m³ | D134: m | E134: 0 | F134: =SUMIFS('Plan unos i pregled'!$I$7:$I$788,'Plan unos i pregled'!$B$7:$B$788,'PLAN Rekapitulacija'!$N$7,'Plan unos i pregled'!$M$7:$M$788,'PLAN Rekapitulacija'!$N$6, 'Plan unos i pregled'!$E$7:$E$788,'PLAN Rekapitulacija'!$B134, 'Plan unos i pregled'!$C$7:$C$788,'PLAN Rekapitulacija'!F$4, 'Plan unos i pregled'!$A$7:$A$788,$D$3) -> 0 | G134: =SUMIFS('Plan unos i pregled'!$I$7:$I$788,'Plan unos i pregled'!$B$7:$B$788,'PLAN Rekapitulacija'!$N$7,'Plan unos i pregled'!$M$7:$M$788,'PLAN Rekapitulacija'!$N$6, 'Plan unos i pregled'!$E$7:$E$788,'PLAN Rekapitulacija'!$B134, 'Plan unos i pregled'!$C$7:$C$788,'PLAN Rekapitulacija'!G$4, 'Plan unos i pregled'!$A$7:$A$788,$D$3) -> 0 | H134: =SUMIFS('Plan unos i pregled'!$I$7:$I$788,'Plan unos i pregled'!$B$7:$B$788,'PLAN Rekapitulacija'!$N$7,'Plan unos i pregled'!$M$7:$M$788,'PLAN Rekapitulacija'!$N$6, 'Plan unos i pregled'!$E$7:$E$788,'PLAN Rekapitulacija'!$B134, 'Plan unos i pregled'!$C$7:$C$788,'PLAN Rekapitulacija'!H$4, 'Plan unos i pregled'!$A$7:$A$788,$D$3) -> 0 | I134: =SUMIFS('Plan unos i pregled'!$I$7:$I$788,'Plan unos i pregled'!$B$7:$B$788,'PLAN Rekapitulacija'!$N$7,'Plan unos i pregled'!$M$7:$M$788,'PLAN Rekapitulacija'!$N$6, 'Plan unos i pregled'!$E$7:$E$788,'PLAN Rekapitulacija'!$B134, 'Plan unos i pregled'!$C$7:$C$788,'PLAN Rekapitulacija'!I$4, 'Plan unos i pregled'!$A$7:$A$788,$D$3) -> 0 | J134: 0 | K134: 0
A135: не | B135: 6.13.4 | C135: Утрошак бетона:Ø 600 mm - 1.0 m³ | D135: m | E135: 0 | F135: =SUMIFS('Plan unos i pregled'!$I$7:$I$788,'Plan unos i pregled'!$B$7:$B$788,'PLAN Rekapitulacija'!$N$7,'Plan unos i pregled'!$M$7:$M$788,'PLAN Rekapitulacija'!$N$6, 'Plan unos i pregled'!$E$7:$E$788,'PLAN Rekapitulacija'!$B135, 'Plan unos i pregled'!$C$7:$C$788,'PLAN Rekapitulacija'!F$4, 'Plan unos i pregled'!$A$7:$A$788,$D$3) -> 0 | G135: =SUMIFS('Plan unos i pregled'!$I$7:$I$788,'Plan unos i pregled'!$B$7:$B$788,'PLAN Rekapitulacija'!$N$7,'Plan unos i pregled'!$M$7:$M$788,'PLAN Rekapitulacija'!$N$6, 'Plan unos i pregled'!$E$7:$E$788,'PLAN Rekapitulacija'!$B135, 'Plan unos i pregled'!$C$7:$C$788,'PLAN Rekapitulacija'!G$4, 'Plan unos i pregled'!$A$7:$A$788,$D$3) -> 0 | H135: =SUMIFS('Plan unos i pregled'!$I$7:$I$788,'Plan unos i pregled'!$B$7:$B$788,'PLAN Rekapitulacija'!$N$7,'Plan unos i pregled'!$M$7:$M$788,'PLAN Rekapitulacija'!$N$6, 'Plan unos i pregled'!$E$7:$E$788,'PLAN Rekapitulacija'!$B135, 'Plan unos i pregled'!$C$7:$C$788,'PLAN Rekapitulacija'!H$4, 'Plan unos i pregled'!$A$7:$A$788,$D$3) -> 0 | I135: =SUMIFS('Plan unos i pregled'!$I$7:$I$788,'Plan unos i pregled'!$B$7:$B$788,'PLAN Rekapitulacija'!$N$7,'Plan unos i pregled'!$M$7:$M$788,'PLAN Rekapitulacija'!$N$6, 'Plan unos i pregled'!$E$7:$E$788,'PLAN Rekapitulacija'!$B135, 'Plan unos i pregled'!$C$7:$C$788,'PLAN Rekapitulacija'!I$4, 'Plan unos i pregled'!$A$7:$A$788,$D$3) -> 0 | J135: 0 | K135: 0
A136: не | B136: 6.13.5 | C136: Утрошак бетона:Ø 1000 mm - 1.40 m³ | D136: m | E136: 0 | F136: =SUMIFS('Plan unos i pregled'!$I$7:$I$788,'Plan unos i pregled'!$B$7:$B$788,'PLAN Rekapitulacija'!$N$7,'Plan unos i pregled'!$M$7:$M$788,'PLAN Rekapitulacija'!$N$6, 'Plan unos i pregled'!$E$7:$E$788,'PLAN Rekapitulacija'!$B136, 'Plan unos i pregled'!$C$7:$C$788,'PLAN Rekapitulacija'!F$4, 'Plan unos i pregled'!$A$7:$A$788,$D$3) -> 0 | G136: =SUMIFS('Plan unos i pregled'!$I$7:$I$788,'Plan unos i pregled'!$B$7:$B$788,'PLAN Rekapitulacija'!$N$7,'Plan unos i pregled'!$M$7:$M$788,'PLAN Rekapitulacija'!$N$6, 'Plan unos i pregled'!$E$7:$E$788,'PLAN Rekapitulacija'!$B136, 'Plan unos i pregled'!$C$7:$C$788,'PLAN Rekapitulacija'!G$4, 'Plan unos i pregled'!$A$7:$A$788,$D$3) -> 0 | H136: =SUMIFS('Plan unos i pregled'!$I$7:$I$788,'Plan unos i pregled'!$B$7:$B$788,'PLAN Rekapitulacija'!$N$7,'Plan unos i pregled'!$M$7:$M$788,'PLAN Rekapitulacija'!$N$6, 'Plan unos i pregled'!$E$7:$E$788,'PLAN Rekapitulacija'!$B136, 'Plan unos i pregled'!$C$7:$C$788,'PLAN Rekapitulacija'!H$4, 'Plan unos i pregled'!$A$7:$A$788,$D$3) -> 0 | I136: =SUMIFS('Plan unos i pregled'!$I$7:$I$788,'Plan unos i pregled'!$B$7:$B$788,'PLAN Rekapitulacija'!$N$7,'Plan unos i pregled'!$M$7:$M$788,'PLAN Rekapitulacija'!$N$6, 'Plan unos i pregled'!$E$7:$E$788,'PLAN Rekapitulacija'!$B136, 'Plan unos i pregled'!$C$7:$C$788,'PLAN Rekapitulacija'!I$4, 'Plan unos i pregled'!$A$7:$A$788,$D$3) -> 0 | J136: 0 | K136: 0
A137: не | B137: 6.14 | C137: Набавка бетона МБ 20 | D137: m3 | E137: 12500 | F137: =SUMIFS('Plan unos i pregled'!$I$7:$I$788,'Plan unos i pregled'!$B$7:$B$788,'PLAN Rekapitulacija'!$N$7,'Plan unos i pregled'!$M$7:$M$788,'PLAN Rekapitulacija'!$N$6, 'Plan unos i pregled'!$E$7:$E$788,'PLAN Rekapitulacija'!$B137, 'Plan unos i pregled'!$C$7:$C$788,'PLAN Rekapitulacija'!F$4, 'Plan unos i pregled'!$A$7:$A$788,$D$3) -> 0 | G137: =SUMIFS('Plan unos i pregled'!$I$7:$I$788,'Plan unos i pregled'!$B$7:$B$788,'PLAN Rekapitulacija'!$N$7,'Plan unos i pregled'!$M$7:$M$788,'PLAN Rekapitulacija'!$N$6, 'Plan unos i pregled'!$E$7:$E$788,'PLAN Rekapitulacija'!$B137, 'Plan unos i pregled'!$C$7:$C$788,'PLAN Rekapitulacija'!G$4, 'Plan unos i pregled'!$A$7:$A$788,$D$3) -> 0 | H137: =SUMIFS('Plan unos i pregled'!$I$7:$I$788,'Plan unos i pregled'!$B$7:$B$788,'PLAN Rekapitulacija'!$N$7,'Plan unos i pregled'!$M$7:$M$788,'PLAN Rekapitulacija'!$N$6, 'Plan unos i pregled'!$E$7:$E$788,'PLAN Rekapitulacija'!$B137, 'Plan unos i pregled'!$C$7:$C$788,'PLAN Rekapitulacija'!H$4, 'Plan unos i pregled'!$A$7:$A$788,$D$3) -> 0 | I137: =SUMIFS('Plan unos i pregled'!$I$7:$I$788,'Plan unos i pregled'!$B$7:$B$788,'PLAN Rekapitulacija'!$N$7,'Plan unos i pregled'!$M$7:$M$788,'PLAN Rekapitulacija'!$N$6, 'Plan unos i pregled'!$E$7:$E$788,'PLAN Rekapitulacija'!$B137, 'Plan unos i pregled'!$C$7:$C$788,'PLAN Rekapitulacija'!I$4, 'Plan unos i pregled'!$A$7:$A$788,$D$3) -> 0 | J137: 0 | K137: 0
A138: =IF(OR(J138:K144),"штампа","не") -> не | B138: 6.15 | C138: Уградње цеви на подлози од бетона d = 10 cm МБ 20 | E138: 0
A139: не | B139: 6.15.1 | C139: Ø 300 mm | D139: m | E139: 1188.32 | F139: =SUMIFS('Plan unos i pregled'!$I$7:$I$788,'Plan unos i pregled'!$B$7:$B$788,'PLAN Rekapitulacija'!$N$7,'Plan unos i pregled'!$M$7:$M$788,'PLAN Rekapitulacija'!$N$6, 'Plan unos i pregled'!$E$7:$E$788,'PLAN Rekapitulacija'!$B139, 'Plan unos i pregled'!$C$7:$C$788,'PLAN Rekapitulacija'!F$4, 'Plan unos i pregled'!$A$7:$A$788,$D$3) -> 0 | G139: =SUMIFS('Plan unos i pregled'!$I$7:$I$788,'Plan unos i pregled'!$B$7:$B$788,'PLAN Rekapitulacija'!$N$7,'Plan unos i pregled'!$M$7:$M$788,'PLAN Rekapitulacija'!$N$6, 'Plan unos i pregled'!$E$7:$E$788,'PLAN Rekapitulacija'!$B139, 'Plan unos i pregled'!$C$7:$C$788,'PLAN Rekapitulacija'!G$4, 'Plan unos i pregled'!$A$7:$A$788,$D$3) -> 0 | H139: =SUMIFS('Plan unos i pregled'!$I$7:$I$788,'Plan unos i pregled'!$B$7:$B$788,'PLAN Rekapitulacija'!$N$7,'Plan unos i pregled'!$M$7:$M$788,'PLAN Rekapitulacija'!$N$6, 'Plan unos i pregled'!$E$7:$E$788,'PLAN Rekapitulacija'!$B139, 'Plan unos i pregled'!$C$7:$C$788,'PLAN Rekapitulacija'!H$4, 'Plan unos i pregled'!$A$7:$A$788,$D$3) -> 0 | I139: =SUMIFS('Plan unos i pregled'!$I$7:$I$788,'Plan unos i pregled'!$B$7:$B$788,'PLAN Rekapitulacija'!$N$7,'Plan unos i pregled'!$M$7:$M$788,'PLAN Rekapitulacija'!$N$6, 'Plan unos i pregled'!$E$7:$E$788,'PLAN Rekapitulacija'!$B139, 'Plan unos i pregled'!$C$7:$C$788,'PLAN Rekapitulacija'!I$4, 'Plan unos i pregled'!$A$7:$A$788,$D$3) -> 0 | J139: =SUM(F139:I139) -> 0 | K139: =ROUND(E139*J139,2) -> 0
A140: не | B140: 6.15.2 | C140: Ø 400 mm | D140: m | E140: 1188.32 | F140: =SUMIFS('Plan unos i pregled'!$I$7:$I$788,'Plan unos i pregled'!$B$7:$B$788,'PLAN Rekapitulacija'!$N$7,'Plan unos i pregled'!$M$7:$M$788,'PLAN Rekapitulacija'!$N$6, 'Plan unos i pregled'!$E$7:$E$788,'PLAN Rekapitulacija'!$B140, 'Plan unos i pregled'!$C$7:$C$788,'PLAN Rekapitulacija'!F$4, 'Plan unos i pregled'!$A$7:$A$788,$D$3) -> 0 | G140: =SUMIFS('Plan unos i pregled'!$I$7:$I$788,'Plan unos i pregled'!$B$7:$B$788,'PLAN Rekapitulacija'!$N$7,'Plan unos i pregled'!$M$7:$M$788,'PLAN Rekapitulacija'!$N$6, 'Plan unos i pregled'!$E$7:$E$788,'PLAN Rekapitulacija'!$B140, 'Plan unos i pregled'!$C$7:$C$788,'PLAN Rekapitulacija'!G$4, 'Plan unos i pregled'!$A$7:$A$788,$D$3) -> 0 | H140: =SUMIFS('Plan unos i pregled'!$I$7:$I$788,'Plan unos i pregled'!$B$7:$B$788,'PLAN Rekapitulacija'!$N$7,'Plan unos i pregled'!$M$7:$M$788,'PLAN Rekapitulacija'!$N$6, 'Plan unos i pregled'!$E$7:$E$788,'PLAN Rekapitulacija'!$B140, 'Plan unos i pregled'!$C$7:$C$788,'PLAN Rekapitulacija'!H$4, 'Plan unos i pregled'!$A$7:$A$788,$D$3) -> 0 | I140: =SUMIFS('Plan unos i pregled'!$I$7:$I$788,'Plan unos i pregled'!$B$7:$B$788,'PLAN Rekapitulacija'!$N$7,'Plan unos i pregled'!$M$7:$M$788,'PLAN Rekapitulacija'!$N$6, 'Plan unos i pregled'!$E$7:$E$788,'PLAN Rekapitulacija'!$B140, 'Plan unos i pregled'!$C$7:$C$788,'PLAN Rekapitulacija'!I$4, 'Plan unos i pregled'!$A$7:$A$788,$D$3) -> 0 | J140: 0 | K140: 0
A141: не | B141: 6.15.3 | C141: Ø 500 mm | D141: m | E141: 1446.68 | F141: =SUMIFS('Plan unos i pregled'!$I$7:$I$788,'Plan unos i pregled'!$B$7:$B$788,'PLAN Rekapitulacija'!$N$7,'Plan unos i pregled'!$M$7:$M$788,'PLAN Rekapitulacija'!$N$6, 'Plan unos i pregled'!$E$7:$E$788,'PLAN Rekapitulacija'!$B141, 'Plan unos i pregled'!$C$7:$C$788,'PLAN Rekapitulacija'!F$4, 'Plan unos i pregled'!$A$7:$A$788,$D$3) -> 0 | G141: =SUMIFS('Plan unos i pregled'!$I$7:$I$788,'Plan unos i pregled'!$B$7:$B$788,'PLAN Rekapitulacija'!$N$7,'Plan unos i pregled'!$M$7:$M$788,'PLAN Rekapitulacija'!$N$6, 'Plan unos i pregled'!$E$7:$E$788,'PLAN Rekapitulacija'!$B141, 'Plan unos i pregled'!$C$7:$C$788,'PLAN Rekapitulacija'!G$4, 'Plan unos i pregled'!$A$7:$A$788,$D$3) -> 0 | H141: =SUMIFS('Plan unos i pregled'!$I$7:$I$788,'Plan unos i pregled'!$B$7:$B$788,'PLAN Rekapitulacija'!$N$7,'Plan unos i pregled'!$M$7:$M$788,'PLAN Rekapitulacija'!$N$6, 'Plan unos i pregled'!$E$7:$E$788,'PLAN Rekapitulacija'!$B141, 'Plan unos i pregled'!$C$7:$C$788,'PLAN Rekapitulacija'!H$4, 'Plan unos i pregled'!$A$7:$A$788,$D$3) -> 0 | I141: =SUMIFS('Plan unos i pregled'!$I$7:$I$788,'Plan unos i pregled'!$B$7:$B$788,'PLAN Rekapitulacija'!$N$7,'Plan unos i pregled'!$M$7:$M$788,'PLAN Rekapitulacija'!$N$6, 'Plan unos i pregled'!$E$7:$E$788,'PLAN Rekapitulacija'!$B141, 'Plan unos i pregled'!$C$7:$C$788,'PLAN Rekapitulacija'!I$4, 'Plan unos i pregled'!$A$7:$A$788,$D$3) -> 0 | J141: 0 | K141: 0
A142: не | B142: 6.15.4 | C142: Ø 600 mm | D142: m | E142: 1765.4 | F142: =SUMIFS('Plan unos i pregled'!$I$7:$I$788,'Plan unos i pregled'!$B$7:$B$788,'PLAN Rekapitulacija'!$N$7,'Plan unos i pregled'!$M$7:$M$788,'PLAN Rekapitulacija'!$N$6, 'Plan unos i pregled'!$E$7:$E$788,'PLAN Rekapitulacija'!$B142, 'Plan unos i pregled'!$C$7:$C$788,'PLAN Rekapitulacija'!F$4, 'Plan unos i pregled'!$A$7:$A$788,$D$3) -> 0 | G142: =SUMIFS('Plan unos i pregled'!$I$7:$I$788,'Plan unos i pregled'!$B$7:$B$788,'PLAN Rekapitulacija'!$N$7,'Plan unos i pregled'!$M$7:$M$788,'PLAN Rekapitulacija'!$N$6, 'Plan unos i pregled'!$E$7:$E$788,'PLAN Rekapitulacija'!$B142, 'Plan unos i pregled'!$C$7:$C$788,'PLAN Rekapitulacija'!G$4, 'Plan unos i pregled'!$A$7:$A$788,$D$3) -> 0 | H142: =SUMIFS('Plan unos i pregled'!$I$7:$I$788,'Plan unos i pregled'!$B$7:$B$788,'PLAN Rekapitulacija'!$N$7,'Plan unos i pregled'!$M$7:$M$788,'PLAN Rekapitulacija'!$N$6, 'Plan unos i pregled'!$E$7:$E$788,'PLAN Rekapitulacija'!$B142, 'Plan unos i pregled'!$C$7:$C$788,'PLAN Rekapitulacija'!H$4, 'Plan unos i pregled'!$A$7:$A$788,$D$3) -> 0 | I142: =SUMIFS('Plan unos i pregled'!$I$7:$I$788,'Plan unos i pregled'!$B$7:$B$788,'PLAN Rekapitulacija'!$N$7,'Plan unos i pregled'!$M$7:$M$788,'PLAN Rekapitulacija'!$N$6, 'Plan unos i pregled'!$E$7:$E$788,'PLAN Rekapitulacija'!$B142, 'Plan unos i pregled'!$C$7:$C$788,'PLAN Rekapitulacija'!I$4, 'Plan unos i pregled'!$A$7:$A$788,$D$3) -> 0 | J142: 0 | K142: 0
A143: не | B143: 6.15.5 | C143: Ø 800 mm | D143: m | E143: 2586 | F143: =SUMIFS('Plan unos i pregled'!$I$7:$I$788,'Plan unos i pregled'!$B$7:$B$788,'PLAN Rekapitulacija'!$N$7,'Plan unos i pregled'!$M$7:$M$788,'PLAN Rekapitulacija'!$N$6, 'Plan unos i pregled'!$E$7:$E$788,'PLAN Rekapitulacija'!$B143, 'Plan unos i pregled'!$C$7:$C$788,'PLAN Rekapitulacija'!F$4, 'Plan unos i pregled'!$A$7:$A$788,$D$3) -> 0 | G143: =SUMIFS('Plan unos i pregled'!$I$7:$I$788,'Plan unos i pregled'!$B$7:$B$788,'PLAN Rekapitulacija'!$N$7,'Plan unos i pregled'!$M$7:$M$788,'PLAN Rekapitulacija'!$N$6, 'Plan unos i pregled'!$E$7:$E$788,'PLAN Rekapitulacija'!$B143, 'Plan unos i pregled'!$C$7:$C$788,'PLAN Rekapitulacija'!G$4, 'Plan unos i pregled'!$A$7:$A$788,$D$3) -> 0 | H143: =SUMIFS('Plan unos i pregled'!$I$7:$I$788,'Plan unos i pregled'!$B$7:$B$788,'PLAN Rekapitulacija'!$N$7,'Plan unos i pregled'!$M$7:$M$788,'PLAN Rekapitulacija'!$N$6, 'Plan unos i pregled'!$E$7:$E$788,'PLAN Rekapitulacija'!$B143, 'Plan unos i pregled'!$C$7:$C$788,'PLAN Rekapitulacija'!H$4, 'Plan unos i pregled'!$A$7:$A$788,$D$3) -> 0 | I143: =SUMIFS('Plan unos i pregled'!$I$7:$I$788,'Plan unos i pregled'!$B$7:$B$788,'PLAN Rekapitulacija'!$N$7,'Plan unos i pregled'!$M$7:$M$788,'PLAN Rekapitulacija'!$N$6, 'Plan unos i pregled'!$E$7:$E$788,'PLAN Rekapitulacija'!$B143, 'Plan unos i pregled'!$C$7:$C$788,'PLAN Rekapitulacija'!I$4, 'Plan unos i pregled'!$A$7:$A$788,$D$3) -> 0 | J143: 0 | K143: 0
A144: не | B144: 6.15.6 | C144: Ø 1000 mm | D144: m | E144: 2800 | F144: =SUMIFS('Plan unos i pregled'!$I$7:$I$788,'Plan unos i pregled'!$B$7:$B$788,'PLAN Rekapitulacija'!$N$7,'Plan unos i pregled'!$M$7:$M$788,'PLAN Rekapitulacija'!$N$6, 'Plan unos i pregled'!$E$7:$E$788,'PLAN Rekapitulacija'!$B144, 'Plan unos i pregled'!$C$7:$C$788,'PLAN Rekapitulacija'!F$4, 'Plan unos i pregled'!$A$7:$A$788,$D$3) -> 0 | G144: =SUMIFS('Plan unos i pregled'!$I$7:$I$788,'Plan unos i pregled'!$B$7:$B$788,'PLAN Rekapitulacija'!$N$7,'Plan unos i pregled'!$M$7:$M$788,'PLAN Rekapitulacija'!$N$6, 'Plan unos i pregled'!$E$7:$E$788,'PLAN Rekapitulacija'!$B144, 'Plan unos i pregled'!$C$7:$C$788,'PLAN Rekapitulacija'!G$4, 'Plan unos i pregled'!$A$7:$A$788,$D$3) -> 0 | H144: =SUMIFS('Plan unos i pregled'!$I$7:$I$788,'Plan unos i pregled'!$B$7:$B$788,'PLAN Rekapitulacija'!$N$7,'Plan unos i pregled'!$M$7:$M$788,'PLAN Rekapitulacija'!$N$6, 'Plan unos i pregled'!$E$7:$E$788,'PLAN Rekapitulacija'!$B144, 'Plan unos i pregled'!$C$7:$C$788,'PLAN Rekapitulacija'!H$4, 'Plan unos i pregled'!$A$7:$A$788,$D$3) -> 0 | I144: =SUMIFS('Plan unos i pregled'!$I$7:$I$788,'Plan unos i pregled'!$B$7:$B$788,'PLAN Rekapitulacija'!$N$7,'Plan unos i pregled'!$M$7:$M$788,'PLAN Rekapitulacija'!$N$6, 'Plan unos i pregled'!$E$7:$E$788,'PLAN Rekapitulacija'!$B144, 'Plan unos i pregled'!$C$7:$C$788,'PLAN Rekapitulacija'!I$4, 'Plan unos i pregled'!$A$7:$A$788,$D$3) -> 0 | J144: 0 | K144: 0
A145: =IF(OR(J145:K151),"штампа","не") -> не | B145: 6.16 | C145: Транспорт цеви на 30 km | E145: 0
A146: не | B146: 6.16.1 | C146: Ø 300 mm | D146: m | E146: 342 | F146: =SUMIFS('Plan unos i pregled'!$I$7:$I$788,'Plan unos i pregled'!$B$7:$B$788,'PLAN Rekapitulacija'!$N$7,'Plan unos i pregled'!$M$7:$M$788,'PLAN Rekapitulacija'!$N$6, 'Plan unos i pregled'!$E$7:$E$788,'PLAN Rekapitulacija'!$B146, 'Plan unos i pregled'!$C$7:$C$788,'PLAN Rekapitulacija'!F$4, 'Plan unos i pregled'!$A$7:$A$788,$D$3) -> 0 | G146: =SUMIFS('Plan unos i pregled'!$I$7:$I$788,'Plan unos i pregled'!$B$7:$B$788,'PLAN Rekapitulacija'!$N$7,'Plan unos i pregled'!$M$7:$M$788,'PLAN Rekapitulacija'!$N$6, 'Plan unos i pregled'!$E$7:$E$788,'PLAN Rekapitulacija'!$B146, 'Plan unos i pregled'!$C$7:$C$788,'PLAN Rekapitulacija'!G$4, 'Plan unos i pregled'!$A$7:$A$788,$D$3) -> 0 | H146: =SUMIFS('Plan unos i pregled'!$I$7:$I$788,'Plan unos i pregled'!$B$7:$B$788,'PLAN Rekapitulacija'!$N$7,'Plan unos i pregled'!$M$7:$M$788,'PLAN Rekapitulacija'!$N$6, 'Plan unos i pregled'!$E$7:$E$788,'PLAN Rekapitulacija'!$B146, 'Plan unos i pregled'!$C$7:$C$788,'PLAN Rekapitulacija'!H$4, 'Plan unos i pregled'!$A$7:$A$788,$D$3) -> 0 | I146: =SUMIFS('Plan unos i pregled'!$I$7:$I$788,'Plan unos i pregled'!$B$7:$B$788,'PLAN Rekapitulacija'!$N$7,'Plan unos i pregled'!$M$7:$M$788,'PLAN Rekapitulacija'!$N$6, 'Plan unos i pregled'!$E$7:$E$788,'PLAN Rekapitulacija'!$B146, 'Plan unos i pregled'!$C$7:$C$788,'PLAN Rekapitulacija'!I$4, 'Plan unos i pregled'!$A$7:$A$788,$D$3) -> 0 | J146: =SUM(F146:I146) -> 0 | K146: =ROUND(E146*J146,2) -> 0
A147: не | B147: 6.16.2 | C147: Ø 400 mm | D147: m | E147: 342 | F147: =SUMIFS('Plan unos i pregled'!$I$7:$I$788,'Plan unos i pregled'!$B$7:$B$788,'PLAN Rekapitulacija'!$N$7,'Plan unos i pregled'!$M$7:$M$788,'PLAN Rekapitulacija'!$N$6, 'Plan unos i pregled'!$E$7:$E$788,'PLAN Rekapitulacija'!$B147, 'Plan unos i pregled'!$C$7:$C$788,'PLAN Rekapitulacija'!F$4, 'Plan unos i pregled'!$A$7:$A$788,$D$3) -> 0 | G147: =SUMIFS('Plan unos i pregled'!$I$7:$I$788,'Plan unos i pregled'!$B$7:$B$788,'PLAN Rekapitulacija'!$N$7,'Plan unos i pregled'!$M$7:$M$788,'PLAN Rekapitulacija'!$N$6, 'Plan unos i pregled'!$E$7:$E$788,'PLAN Rekapitulacija'!$B147, 'Plan unos i pregled'!$C$7:$C$788,'PLAN Rekapitulacija'!G$4, 'Plan unos i pregled'!$A$7:$A$788,$D$3) -> 0 | H147: =SUMIFS('Plan unos i pregled'!$I$7:$I$788,'Plan unos i pregled'!$B$7:$B$788,'PLAN Rekapitulacija'!$N$7,'Plan unos i pregled'!$M$7:$M$788,'PLAN Rekapitulacija'!$N$6, 'Plan unos i pregled'!$E$7:$E$788,'PLAN Rekapitulacija'!$B147, 'Plan unos i pregled'!$C$7:$C$788,'PLAN Rekapitulacija'!H$4, 'Plan unos i pregled'!$A$7:$A$788,$D$3) -> 0 | I147: =SUMIFS('Plan unos i pregled'!$I$7:$I$788,'Plan unos i pregled'!$B$7:$B$788,'PLAN Rekapitulacija'!$N$7,'Plan unos i pregled'!$M$7:$M$788,'PLAN Rekapitulacija'!$N$6, 'Plan unos i pregled'!$E$7:$E$788,'PLAN Rekapitulacija'!$B147, 'Plan unos i pregled'!$C$7:$C$788,'PLAN Rekapitulacija'!I$4, 'Plan unos i pregled'!$A$7:$A$788,$D$3) -> 0 | J147: 0 | K147: 0
A148: не | B148: 6.16.3 | C148: Ø 500 mm | D148: m | E148: 432 | F148: =SUMIFS('Plan unos i pregled'!$I$7:$I$788,'Plan unos i pregled'!$B$7:$B$788,'PLAN Rekapitulacija'!$N$7,'Plan unos i pregled'!$M$7:$M$788,'PLAN Rekapitulacija'!$N$6, 'Plan unos i pregled'!$E$7:$E$788,'PLAN Rekapitulacija'!$B148, 'Plan unos i pregled'!$C$7:$C$788,'PLAN Rekapitulacija'!F$4, 'Plan unos i pregled'!$A$7:$A$788,$D$3) -> 0 | G148: =SUMIFS('Plan unos i pregled'!$I$7:$I$788,'Plan unos i pregled'!$B$7:$B$788,'PLAN Rekapitulacija'!$N$7,'Plan unos i pregled'!$M$7:$M$788,'PLAN Rekapitulacija'!$N$6, 'Plan unos i pregled'!$E$7:$E$788,'PLAN Rekapitulacija'!$B148, 'Plan unos i pregled'!$C$7:$C$788,'PLAN Rekapitulacija'!G$4, 'Plan unos i pregled'!$A$7:$A$788,$D$3) -> 0 | H148: =SUMIFS('Plan unos i pregled'!$I$7:$I$788,'Plan unos i pregled'!$B$7:$B$788,'PLAN Rekapitulacija'!$N$7,'Plan unos i pregled'!$M$7:$M$788,'PLAN Rekapitulacija'!$N$6, 'Plan unos i pregled'!$E$7:$E$788,'PLAN Rekapitulacija'!$B148, 'Plan unos i pregled'!$C$7:$C$788,'PLAN Rekapitulacija'!H$4, 'Plan unos i pregled'!$A$7:$A$788,$D$3) -> 0 | I148: =SUMIFS('Plan unos i pregled'!$I$7:$I$788,'Plan unos i pregled'!$B$7:$B$788,'PLAN Rekapitulacija'!$N$7,'Plan unos i pregled'!$M$7:$M$788,'PLAN Rekapitulacija'!$N$6, 'Plan unos i pregled'!$E$7:$E$788,'PLAN Rekapitulacija'!$B148, 'Plan unos i pregled'!$C$7:$C$788,'PLAN Rekapitulacija'!I$4, 'Plan unos i pregled'!$A$7:$A$788,$D$3) -> 0 | J148: 0 | K148: 0
A149: не | B149: 6.16.4 | C149: Ø 600 mm | D149: m | E149: 522 | F149: =SUMIFS('Plan unos i pregled'!$I$7:$I$788,'Plan unos i pregled'!$B$7:$B$788,'PLAN Rekapitulacija'!$N$7,'Plan unos i pregled'!$M$7:$M$788,'PLAN Rekapitulacija'!$N$6, 'Plan unos i pregled'!$E$7:$E$788,'PLAN Rekapitulacija'!$B149, 'Plan unos i pregled'!$C$7:$C$788,'PLAN Rekapitulacija'!F$4, 'Plan unos i pregled'!$A$7:$A$788,$D$3) -> 0 | G149: =SUMIFS('Plan unos i pregled'!$I$7:$I$788,'Plan unos i pregled'!$B$7:$B$788,'PLAN Rekapitulacija'!$N$7,'Plan unos i pregled'!$M$7:$M$788,'PLAN Rekapitulacija'!$N$6, 'Plan unos i pregled'!$E$7:$E$788,'PLAN Rekapitulacija'!$B149, 'Plan unos i pregled'!$C$7:$C$788,'PLAN Rekapitulacija'!G$4, 'Plan unos i pregled'!$A$7:$A$788,$D$3) -> 0 | H149: =SUMIFS('Plan unos i pregled'!$I$7:$I$788,'Plan unos i pregled'!$B$7:$B$788,'PLAN Rekapitulacija'!$N$7,'Plan unos i pregled'!$M$7:$M$788,'PLAN Rekapitulacija'!$N$6, 'Plan unos i pregled'!$E$7:$E$788,'PLAN Rekapitulacija'!$B149, 'Plan unos i pregled'!$C$7:$C$788,'PLAN Rekapitulacija'!H$4, 'Plan unos i pregled'!$A$7:$A$788,$D$3) -> 0 | I149: =SUMIFS('Plan unos i pregled'!$I$7:$I$788,'Plan unos i pregled'!$B$7:$B$788,'PLAN Rekapitulacija'!$N$7,'Plan unos i pregled'!$M$7:$M$788,'PLAN Rekapitulacija'!$N$6, 'Plan unos i pregled'!$E$7:$E$788,'PLAN Rekapitulacija'!$B149, 'Plan unos i pregled'!$C$7:$C$788,'PLAN Rekapitulacija'!I$4, 'Plan unos i pregled'!$A$7:$A$788,$D$3) -> 0 | J149: 0 | K149: 0
A150: не | B150: 6.16.5 | C150: Ø 800 mm | D150: m | E150: 648 | F150: =SUMIFS('Plan unos i pregled'!$I$7:$I$788,'Plan unos i pregled'!$B$7:$B$788,'PLAN Rekapitulacija'!$N$7,'Plan unos i pregled'!$M$7:$M$788,'PLAN Rekapitulacija'!$N$6, 'Plan unos i pregled'!$E$7:$E$788,'PLAN Rekapitulacija'!$B150, 'Plan unos i pregled'!$C$7:$C$788,'PLAN Rekapitulacija'!F$4, 'Plan unos i pregled'!$A$7:$A$788,$D$3) -> 0 | G150: =SUMIFS('Plan unos i pregled'!$I$7:$I$788,'Plan unos i pregled'!$B$7:$B$788,'PLAN Rekapitulacija'!$N$7,'Plan unos i pregled'!$M$7:$M$788,'PLAN Rekapitulacija'!$N$6, 'Plan unos i pregled'!$E$7:$E$788,'PLAN Rekapitulacija'!$B150, 'Plan unos i pregled'!$C$7:$C$788,'PLAN Rekapitulacija'!G$4, 'Plan unos i pregled'!$A$7:$A$788,$D$3) -> 0 | H150: =SUMIFS('Plan unos i pregled'!$I$7:$I$788,'Plan unos i pregled'!$B$7:$B$788,'PLAN Rekapitulacija'!$N$7,'Plan unos i pregled'!$M$7:$M$788,'PLAN Rekapitulacija'!$N$6, 'Plan unos i pregled'!$E$7:$E$788,'PLAN Rekapitulacija'!$B150, 'Plan unos i pregled'!$C$7:$C$788,'PLAN Rekapitulacija'!H$4, 'Plan unos i pregled'!$A$7:$A$788,$D$3) -> 0 | I150: =SUMIFS('Plan unos i pregled'!$I$7:$I$788,'Plan unos i pregled'!$B$7:$B$788,'PLAN Rekapitulacija'!$N$7,'Plan unos i pregled'!$M$7:$M$788,'PLAN Rekapitulacija'!$N$6, 'Plan unos i pregled'!$E$7:$E$788,'PLAN Rekapitulacija'!$B150, 'Plan unos i pregled'!$C$7:$C$788,'PLAN Rekapitulacija'!I$4, 'Plan unos i pregled'!$A$7:$A$788,$D$3) -> 0 | J150: 0 | K150: 0
A151: не | B151: 6.16.6 | C151: Ø 1000 mm | D151: m | E151: 918 | F151: =SUMIFS('Plan unos i pregled'!$I$7:$I$788,'Plan unos i pregled'!$B$7:$B$788,'PLAN Rekapitulacija'!$N$7,'Plan unos i pregled'!$M$7:$M$788,'PLAN Rekapitulacija'!$N$6, 'Plan unos i pregled'!$E$7:$E$788,'PLAN Rekapitulacija'!$B151, 'Plan unos i pregled'!$C$7:$C$788,'PLAN Rekapitulacija'!F$4, 'Plan unos i pregled'!$A$7:$A$788,$D$3) -> 0 | G151: =SUMIFS('Plan unos i pregled'!$I$7:$I$788,'Plan unos i pregled'!$B$7:$B$788,'PLAN Rekapitulacija'!$N$7,'Plan unos i pregled'!$M$7:$M$788,'PLAN Rekapitulacija'!$N$6, 'Plan unos i pregled'!$E$7:$E$788,'PLAN Rekapitulacija'!$B151, 'Plan unos i pregled'!$C$7:$C$788,'PLAN Rekapitulacija'!G$4, 'Plan unos i pregled'!$A$7:$A$788,$D$3) -> 0 | H151: =SUMIFS('Plan unos i pregled'!$I$7:$I$788,'Plan unos i pregled'!$B$7:$B$788,'PLAN Rekapitulacija'!$N$7,'Plan unos i pregled'!$M$7:$M$788,'PLAN Rekapitulacija'!$N$6, 'Plan unos i pregled'!$E$7:$E$788,'PLAN Rekapitulacija'!$B151, 'Plan unos i pregled'!$C$7:$C$788,'PLAN Rekapitulacija'!H$4, 'Plan unos i pregled'!$A$7:$A$788,$D$3) -> 0 | I151: =SUMIFS('Plan unos i pregled'!$I$7:$I$788,'Plan unos i pregled'!$B$7:$B$788,'PLAN Rekapitulacija'!$N$7,'Plan unos i pregled'!$M$7:$M$788,'PLAN Rekapitulacija'!$N$6, 'Plan unos i pregled'!$E$7:$E$788,'PLAN Rekapitulacija'!$B151, 'Plan unos i pregled'!$C$7:$C$788,'PLAN Rekapitulacija'!I$4, 'Plan unos i pregled'!$A$7:$A$788,$D$3) -> 0 | J151: 0 | K151: 0
A152: =IF(OR(J152:K167),"штампа","не") -> не | B152: 6.17 | C152: Набавка цеви | E152: 0
A153: =IF(OR(J153:K160),"штампа","не") -> не | B153: 6.17.1 | C153: Неармиране цеви | E153: 0
A154: =IF(OR(J154:K154),"штампа","не") -> не | B154: 6.17.1.1 | C154: Ø 300 mm | D154: по рачуну | E154: 3600 | F154: =SUMIFS('Plan unos i pregled'!$I$7:$I$788,'Plan unos i pregled'!$B$7:$B$788,'PLAN Rekapitulacija'!$N$7,'Plan unos i pregled'!$M$7:$M$788,'PLAN Rekapitulacija'!$N$6, 'Plan unos i pregled'!$E$7:$E$788,'PLAN Rekapitulacija'!$B154, 'Plan unos i pregled'!$C$7:$C$788,'PLAN Rekapitulacija'!F$4, 'Plan unos i pregled'!$A$7:$A$788,$D$3) -> 0 | G154: =SUMIFS('Plan unos i pregled'!$I$7:$I$788,'Plan unos i pregled'!$B$7:$B$788,'PLAN Rekapitulacija'!$N$7,'Plan unos i pregled'!$M$7:$M$788,'PLAN Rekapitulacija'!$N$6, 'Plan unos i pregled'!$E$7:$E$788,'PLAN Rekapitulacija'!$B154, 'Plan unos i pregled'!$C$7:$C$788,'PLAN Rekapitulacija'!G$4, 'Plan unos i pregled'!$A$7:$A$788,$D$3) -> 0 | H154: =SUMIFS('Plan unos i pregled'!$I$7:$I$788,'Plan unos i pregled'!$B$7:$B$788,'PLAN Rekapitulacija'!$N$7,'Plan unos i pregled'!$M$7:$M$788,'PLAN Rekapitulacija'!$N$6, 'Plan unos i pregled'!$E$7:$E$788,'PLAN Rekapitulacija'!$B154, 'Plan unos i pregled'!$C$7:$C$788,'PLAN Rekapitulacija'!H$4, 'Plan unos i pregled'!$A$7:$A$788,$D$3) -> 0 | I154: =SUMIFS('Plan unos i pregled'!$I$7:$I$788,'Plan unos i pregled'!$B$7:$B$788,'PLAN Rekapitulacija'!$N$7,'Plan unos i pregled'!$M$7:$M$788,'PLAN Rekapitulacija'!$N$6, 'Plan unos i pregled'!$E$7:$E$788,'PLAN Rekapitulacija'!$B154, 'Plan unos i pregled'!$C$7:$C$788,'PLAN Rekapitulacija'!I$4, 'Plan unos i pregled'!$A$7:$A$788,$D$3) -> 0 | J154: =SUM(F154:I154) -> 0 | K154: =ROUND(E154*J154,2) -> 0
A155: не | B155: 6.17.1.2 | C155: Ø 400 mm | D155: по рачуну | E155: 4080 | F155: =SUMIFS('Plan unos i pregled'!$I$7:$I$788,'Plan unos i pregled'!$B$7:$B$788,'PLAN Rekapitulacija'!$N$7,'Plan unos i pregled'!$M$7:$M$788,'PLAN Rekapitulacija'!$N$6, 'Plan unos i pregled'!$E$7:$E$788,'PLAN Rekapitulacija'!$B155, 'Plan unos i pregled'!$C$7:$C$788,'PLAN Rekapitulacija'!F$4, 'Plan unos i pregled'!$A$7:$A$788,$D$3) -> 0 | G155: =SUMIFS('Plan unos i pregled'!$I$7:$I$788,'Plan unos i pregled'!$B$7:$B$788,'PLAN Rekapitulacija'!$N$7,'Plan unos i pregled'!$M$7:$M$788,'PLAN Rekapitulacija'!$N$6, 'Plan unos i pregled'!$E$7:$E$788,'PLAN Rekapitulacija'!$B155, 'Plan unos i pregled'!$C$7:$C$788,'PLAN Rekapitulacija'!G$4, 'Plan unos i pregled'!$A$7:$A$788,$D$3) -> 0 | H155: =SUMIFS('Plan unos i pregled'!$I$7:$I$788,'Plan unos i pregled'!$B$7:$B$788,'PLAN Rekapitulacija'!$N$7,'Plan unos i pregled'!$M$7:$M$788,'PLAN Rekapitulacija'!$N$6, 'Plan unos i pregled'!$E$7:$E$788,'PLAN Rekapitulacija'!$B155, 'Plan unos i pregled'!$C$7:$C$788,'PLAN Rekapitulacija'!H$4, 'Plan unos i pregled'!$A$7:$A$788,$D$3) -> 0 | I155: =SUMIFS('Plan unos i pregled'!$I$7:$I$788,'Plan unos i pregled'!$B$7:$B$788,'PLAN Rekapitulacija'!$N$7,'Plan unos i pregled'!$M$7:$M$788,'PLAN Rekapitulacija'!$N$6, 'Plan unos i pregled'!$E$7:$E$788,'PLAN Rekapitulacija'!$B155, 'Plan unos i pregled'!$C$7:$C$788,'PLAN Rekapitulacija'!I$4, 'Plan unos i pregled'!$A$7:$A$788,$D$3) -> 0 | J155: 0 | K155: 0
A156: не | B156: 6.17.1.3 | C156: Ø 500 mm | D156: по рачуну | E156: 0 | F156: =SUMIFS('Plan unos i pregled'!$I$7:$I$788,'Plan unos i pregled'!$B$7:$B$788,'PLAN Rekapitulacija'!$N$7,'Plan unos i pregled'!$M$7:$M$788,'PLAN Rekapitulacija'!$N$6, 'Plan unos i pregled'!$E$7:$E$788,'PLAN Rekapitulacija'!$B156, 'Plan unos i pregled'!$C$7:$C$788,'PLAN Rekapitulacija'!F$4, 'Plan unos i pregled'!$A$7:$A$788,$D$3) -> 0 | G156: =SUMIFS('Plan unos i pregled'!$I$7:$I$788,'Plan unos i pregled'!$B$7:$B$788,'PLAN Rekapitulacija'!$N$7,'Plan unos i pregled'!$M$7:$M$788,'PLAN Rekapitulacija'!$N$6, 'Plan unos i pregled'!$E$7:$E$788,'PLAN Rekapitulacija'!$B156, 'Plan unos i pregled'!$C$7:$C$788,'PLAN Rekapitulacija'!G$4, 'Plan unos i pregled'!$A$7:$A$788,$D$3) -> 0 | H156: =SUMIFS('Plan unos i pregled'!$I$7:$I$788,'Plan unos i pregled'!$B$7:$B$788,'PLAN Rekapitulacija'!$N$7,'Plan unos i pregled'!$M$7:$M$788,'PLAN Rekapitulacija'!$N$6, 'Plan unos i pregled'!$E$7:$E$788,'PLAN Rekapitulacija'!$B156, 'Plan unos i pregled'!$C$7:$C$788,'PLAN Rekapitulacija'!H$4, 'Plan unos i pregled'!$A$7:$A$788,$D$3) -> 0 | I156: =SUMIFS('Plan unos i pregled'!$I$7:$I$788,'Plan unos i pregled'!$B$7:$B$788,'PLAN Rekapitulacija'!$N$7,'Plan unos i pregled'!$M$7:$M$788,'PLAN Rekapitulacija'!$N$6, 'Plan unos i pregled'!$E$7:$E$788,'PLAN Rekapitulacija'!$B156, 'Plan unos i pregled'!$C$7:$C$788,'PLAN Rekapitulacija'!I$4, 'Plan unos i pregled'!$A$7:$A$788,$D$3) -> 0 | J156: 0 | K156: 0
A157: не | B157: 6.17.1.4 | C157: Ø 600 mm | D157: по рачуну | E157: 8400 | F157: =SUMIFS('Plan unos i pregled'!$I$7:$I$788,'Plan unos i pregled'!$B$7:$B$788,'PLAN Rekapitulacija'!$N$7,'Plan unos i pregled'!$M$7:$M$788,'PLAN Rekapitulacija'!$N$6, 'Plan unos i pregled'!$E$7:$E$788,'PLAN Rekapitulacija'!$B157, 'Plan unos i pregled'!$C$7:$C$788,'PLAN Rekapitulacija'!F$4, 'Plan unos i pregled'!$A$7:$A$788,$D$3) -> 0 | G157: =SUMIFS('Plan unos i pregled'!$I$7:$I$788,'Plan unos i pregled'!$B$7:$B$788,'PLAN Rekapitulacija'!$N$7,'Plan unos i pregled'!$M$7:$M$788,'PLAN Rekapitulacija'!$N$6, 'Plan unos i pregled'!$E$7:$E$788,'PLAN Rekapitulacija'!$B157, 'Plan unos i pregled'!$C$7:$C$788,'PLAN Rekapitulacija'!G$4, 'Plan unos i pregled'!$A$7:$A$788,$D$3) -> 0 | H157: =SUMIFS('Plan unos i pregled'!$I$7:$I$788,'Plan unos i pregled'!$B$7:$B$788,'PLAN Rekapitulacija'!$N$7,'Plan unos i pregled'!$M$7:$M$788,'PLAN Rekapitulacija'!$N$6, 'Plan unos i pregled'!$E$7:$E$788,'PLAN Rekapitulacija'!$B157, 'Plan unos i pregled'!$C$7:$C$788,'PLAN Rekapitulacija'!H$4, 'Plan unos i pregled'!$A$7:$A$788,$D$3) -> 0 | I157: =SUMIFS('Plan unos i pregled'!$I$7:$I$788,'Plan unos i pregled'!$B$7:$B$788,'PLAN Rekapitulacija'!$N$7,'Plan unos i pregled'!$M$7:$M$788,'PLAN Rekapitulacija'!$N$6, 'Plan unos i pregled'!$E$7:$E$788,'PLAN Rekapitulacija'!$B157, 'Plan unos i pregled'!$C$7:$C$788,'PLAN Rekapitulacija'!I$4, 'Plan unos i pregled'!$A$7:$A$788,$D$3) -> 0 | J157: 0 | K157: 0
A158: не | B158: 6.17.1.5 | C158: Ø 800 mm | D158: по рачуну | E158: 9600 | F158: =SUMIFS('Plan unos i pregled'!$I$7:$I$788,'Plan unos i pregled'!$B$7:$B$788,'PLAN Rekapitulacija'!$N$7,'Plan unos i pregled'!$M$7:$M$788,'PLAN Rekapitulacija'!$N$6, 'Plan unos i pregled'!$E$7:$E$788,'PLAN Rekapitulacija'!$B158, 'Plan unos i pregled'!$C$7:$C$788,'PLAN Rekapitulacija'!F$4, 'Plan unos i pregled'!$A$7:$A$788,$D$3) -> 0 | G158: =SUMIFS('Plan unos i pregled'!$I$7:$I$788,'Plan unos i pregled'!$B$7:$B$788,'PLAN Rekapitulacija'!$N$7,'Plan unos i pregled'!$M$7:$M$788,'PLAN Rekapitulacija'!$N$6, 'Plan unos i pregled'!$E$7:$E$788,'PLAN Rekapitulacija'!$B158, 'Plan unos i pregled'!$C$7:$C$788,'PLAN Rekapitulacija'!G$4, 'Plan unos i pregled'!$A$7:$A$788,$D$3) -> 0 | H158: =SUMIFS('Plan unos i pregled'!$I$7:$I$788,'Plan unos i pregled'!$B$7:$B$788,'PLAN Rekapitulacija'!$N$7,'Plan unos i pregled'!$M$7:$M$788,'PLAN Rekapitulacija'!$N$6, 'Plan unos i pregled'!$E$7:$E$788,'PLAN Rekapitulacija'!$B158, 'Plan unos i pregled'!$C$7:$C$788,'PLAN Rekapitulacija'!H$4, 'Plan unos i pregled'!$A$7:$A$788,$D$3) -> 0 | I158: =SUMIFS('Plan unos i pregled'!$I$7:$I$788,'Plan unos i pregled'!$B$7:$B$788,'PLAN Rekapitulacija'!$N$7,'Plan unos i pregled'!$M$7:$M$788,'PLAN Rekapitulacija'!$N$6, 'Plan unos i pregled'!$E$7:$E$788,'PLAN Rekapitulacija'!$B158, 'Plan unos i pregled'!$C$7:$C$788,'PLAN Rekapitulacija'!I$4, 'Plan unos i pregled'!$A$7:$A$788,$D$3) -> 0 | J158: 0 | K158: 0
A159: не | B159: 6.17.1.6 | C159: Ø 1000 mm | D159: по рачуну | E159: 14400 | F159: =SUMIFS('Plan unos i pregled'!$I$7:$I$788,'Plan unos i pregled'!$B$7:$B$788,'PLAN Rekapitulacija'!$N$7,'Plan unos i pregled'!$M$7:$M$788,'PLAN Rekapitulacija'!$N$6, 'Plan unos i pregled'!$E$7:$E$788,'PLAN Rekapitulacija'!$B159, 'Plan unos i pregled'!$C$7:$C$788,'PLAN Rekapitulacija'!F$4, 'Plan unos i pregled'!$A$7:$A$788,$D$3) -> 0 | G159: =SUMIFS('Plan unos i pregled'!$I$7:$I$788,'Plan unos i pregled'!$B$7:$B$788,'PLAN Rekapitulacija'!$N$7,'Plan unos i pregled'!$M$7:$M$788,'PLAN Rekapitulacija'!$N$6, 'Plan unos i pregled'!$E$7:$E$788,'PLAN Rekapitulacija'!$B159, 'Plan unos i pregled'!$C$7:$C$788,'PLAN Rekapitulacija'!G$4, 'Plan unos i pregled'!$A$7:$A$788,$D$3) -> 0 | H159: =SUMIFS('Plan unos i pregled'!$I$7:$I$788,'Plan unos i pregled'!$B$7:$B$788,'PLAN Rekapitulacija'!$N$7,'Plan unos i pregled'!$M$7:$M$788,'PLAN Rekapitulacija'!$N$6, 'Plan unos i pregled'!$E$7:$E$788,'PLAN Rekapitulacija'!$B159, 'Plan unos i pregled'!$C$7:$C$788,'PLAN Rekapitulacija'!H$4, 'Plan unos i pregled'!$A$7:$A$788,$D$3) -> 0 | I159: =SUMIFS('Plan unos i pregled'!$I$7:$I$788,'Plan unos i pregled'!$B$7:$B$788,'PLAN Rekapitulacija'!$N$7,'Plan unos i pregled'!$M$7:$M$788,'PLAN Rekapitulacija'!$N$6, 'Plan unos i pregled'!$E$7:$E$788,'PLAN Rekapitulacija'!$B159, 'Plan unos i pregled'!$C$7:$C$788,'PLAN Rekapitulacija'!I$4, 'Plan unos i pregled'!$A$7:$A$788,$D$3) -> 0 | J159: 0 | K159: 0
A160: не | B160: 6.17.1.7 | C160: Бетонски гајгер сливник Ø 400 mm | D160: ком | E160: 8400 | F160: =SUMIFS('Plan unos i pregled'!$I$7:$I$788,'Plan unos i pregled'!$B$7:$B$788,'PLAN Rekapitulacija'!$N$7,'Plan unos i pregled'!$M$7:$M$788,'PLAN Rekapitulacija'!$N$6, 'Plan unos i pregled'!$E$7:$E$788,'PLAN Rekapitulacija'!$B160, 'Plan unos i pregled'!$C$7:$C$788,'PLAN Rekapitulacija'!F$4, 'Plan unos i pregled'!$A$7:$A$788,$D$3) -> 0 | G160: =SUMIFS('Plan unos i pregled'!$I$7:$I$788,'Plan unos i pregled'!$B$7:$B$788,'PLAN Rekapitulacija'!$N$7,'Plan unos i pregled'!$M$7:$M$788,'PLAN Rekapitulacija'!$N$6, 'Plan unos i pregled'!$E$7:$E$788,'PLAN Rekapitulacija'!$B160, 'Plan unos i pregled'!$C$7:$C$788,'PLAN Rekapitulacija'!G$4, 'Plan unos i pregled'!$A$7:$A$788,$D$3) -> 0 | H160: =SUMIFS('Plan unos i pregled'!$I$7:$I$788,'Plan unos i pregled'!$B$7:$B$788,'PLAN Rekapitulacija'!$N$7,'Plan unos i pregled'!$M$7:$M$788,'PLAN Rekapitulacija'!$N$6, 'Plan unos i pregled'!$E$7:$E$788,'PLAN Rekapitulacija'!$B160, 'Plan unos i pregled'!$C$7:$C$788,'PLAN Rekapitulacija'!H$4, 'Plan unos i pregled'!$A$7:$A$788,$D$3) -> 0 | I160: =SUMIFS('Plan unos i pregled'!$I$7:$I$788,'Plan unos i pregled'!$B$7:$B$788,'PLAN Rekapitulacija'!$N$7,'Plan unos i pregled'!$M$7:$M$788,'PLAN Rekapitulacija'!$N$6, 'Plan unos i pregled'!$E$7:$E$788,'PLAN Rekapitulacija'!$B160, 'Plan unos i pregled'!$C$7:$C$788,'PLAN Rekapitulacija'!I$4, 'Plan unos i pregled'!$A$7:$A$788,$D$3) -> 0 | J160: 0 | K160: 0
A161: =IF(OR(J161:K167),"штампа","не") -> не | B161: 6.17.2 | C161: Армиране цеви | E161: 0
A162: =IF(OR(J162:K162),"штампа","не") -> не | B162: 6.17.2.1 | C162: Ø 300 mm | D162: по рачуну | E162: 0 | F162: =SUMIFS('Plan unos i pregled'!$I$7:$I$788,'Plan unos i pregled'!$B$7:$B$788,'PLAN Rekapitulacija'!$N$7,'Plan unos i pregled'!$M$7:$M$788,'PLAN Rekapitulacija'!$N$6, 'Plan unos i pregled'!$E$7:$E$788,'PLAN Rekapitulacija'!$B162, 'Plan unos i pregled'!$C$7:$C$788,'PLAN Rekapitulacija'!F$4, 'Plan unos i pregled'!$A$7:$A$788,$D$3) -> 0 | G162: =SUMIFS('Plan unos i pregled'!$I$7:$I$788,'Plan unos i pregled'!$B$7:$B$788,'PLAN Rekapitulacija'!$N$7,'Plan unos i pregled'!$M$7:$M$788,'PLAN Rekapitulacija'!$N$6, 'Plan unos i pregled'!$E$7:$E$788,'PLAN Rekapitulacija'!$B162, 'Plan unos i pregled'!$C$7:$C$788,'PLAN Rekapitulacija'!G$4, 'Plan unos i pregled'!$A$7:$A$788,$D$3) -> 0 | H162: =SUMIFS('Plan unos i pregled'!$I$7:$I$788,'Plan unos i pregled'!$B$7:$B$788,'PLAN Rekapitulacija'!$N$7,'Plan unos i pregled'!$M$7:$M$788,'PLAN Rekapitulacija'!$N$6, 'Plan unos i pregled'!$E$7:$E$788,'PLAN Rekapitulacija'!$B162, 'Plan unos i pregled'!$C$7:$C$788,'PLAN Rekapitulacija'!H$4, 'Plan unos i pregled'!$A$7:$A$788,$D$3) -> 0 | I162: =SUMIFS('Plan unos i pregled'!$I$7:$I$788,'Plan unos i pregled'!$B$7:$B$788,'PLAN Rekapitulacija'!$N$7,'Plan unos i pregled'!$M$7:$M$788,'PLAN Rekapitulacija'!$N$6, 'Plan unos i pregled'!$E$7:$E$788,'PLAN Rekapitulacija'!$B162, 'Plan unos i pregled'!$C$7:$C$788,'PLAN Rekapitulacija'!I$4, 'Plan unos i pregled'!$A$7:$A$788,$D$3) -> 0 | J162: =SUM(F162:I162) -> 0 | K162: =ROUND(E162*J162,2) -> 0
A163: не | B163: 6.17.2.2 | C163: Ø 400 mm | D163: по рачуну | E163: 0 | F163: =SUMIFS('Plan unos i pregled'!$I$7:$I$788,'Plan unos i pregled'!$B$7:$B$788,'PLAN Rekapitulacija'!$N$7,'Plan unos i pregled'!$M$7:$M$788,'PLAN Rekapitulacija'!$N$6, 'Plan unos i pregled'!$E$7:$E$788,'PLAN Rekapitulacija'!$B163, 'Plan unos i pregled'!$C$7:$C$788,'PLAN Rekapitulacija'!F$4, 'Plan unos i pregled'!$A$7:$A$788,$D$3) -> 0 | G163: =SUMIFS('Plan unos i pregled'!$I$7:$I$788,'Plan unos i pregled'!$B$7:$B$788,'PLAN Rekapitulacija'!$N$7,'Plan unos i pregled'!$M$7:$M$788,'PLAN Rekapitulacija'!$N$6, 'Plan unos i pregled'!$E$7:$E$788,'PLAN Rekapitulacija'!$B163, 'Plan unos i pregled'!$C$7:$C$788,'PLAN Rekapitulacija'!G$4, 'Plan unos i pregled'!$A$7:$A$788,$D$3) -> 0 | H163: =SUMIFS('Plan unos i pregled'!$I$7:$I$788,'Plan unos i pregled'!$B$7:$B$788,'PLAN Rekapitulacija'!$N$7,'Plan unos i pregled'!$M$7:$M$788,'PLAN Rekapitulacija'!$N$6, 'Plan unos i pregled'!$E$7:$E$788,'PLAN Rekapitulacija'!$B163, 'Plan unos i pregled'!$C$7:$C$788,'PLAN Rekapitulacija'!H$4, 'Plan unos i pregled'!$A$7:$A$788,$D$3) -> 0 | I163: =SUMIFS('Plan unos i pregled'!$I$7:$I$788,'Plan unos i pregled'!$B$7:$B$788,'PLAN Rekapitulacija'!$N$7,'Plan unos i pregled'!$M$7:$M$788,'PLAN Rekapitulacija'!$N$6, 'Plan unos i pregled'!$E$7:$E$788,'PLAN Rekapitulacija'!$B163, 'Plan unos i pregled'!$C$7:$C$788,'PLAN Rekapitulacija'!I$4, 'Plan unos i pregled'!$A$7:$A$788,$D$3) -> 0 | J163: 0 | K163: 0
A164: не | B164: 6.17.2.3 | C164: Ø 500 mm | D164: по рачуну | E164: 0 | F164: =SUMIFS('Plan unos i pregled'!$I$7:$I$788,'Plan unos i pregled'!$B$7:$B$788,'PLAN Rekapitulacija'!$N$7,'Plan unos i pregled'!$M$7:$M$788,'PLAN Rekapitulacija'!$N$6, 'Plan unos i pregled'!$E$7:$E$788,'PLAN Rekapitulacija'!$B164, 'Plan unos i pregled'!$C$7:$C$788,'PLAN Rekapitulacija'!F$4, 'Plan unos i pregled'!$A$7:$A$788,$D$3) -> 0 | G164: =SUMIFS('Plan unos i pregled'!$I$7:$I$788,'Plan unos i pregled'!$B$7:$B$788,'PLAN Rekapitulacija'!$N$7,'Plan unos i pregled'!$M$7:$M$788,'PLAN Rekapitulacija'!$N$6, 'Plan unos i pregled'!$E$7:$E$788,'PLAN Rekapitulacija'!$B164, 'Plan unos i pregled'!$C$7:$C$788,'PLAN Rekapitulacija'!G$4, 'Plan unos i pregled'!$A$7:$A$788,$D$3) -> 0 | H164: =SUMIFS('Plan unos i pregled'!$I$7:$I$788,'Plan unos i pregled'!$B$7:$B$788,'PLAN Rekapitulacija'!$N$7,'Plan unos i pregled'!$M$7:$M$788,'PLAN Rekapitulacija'!$N$6, 'Plan unos i pregled'!$E$7:$E$788,'PLAN Rekapitulacija'!$B164, 'Plan unos i pregled'!$C$7:$C$788,'PLAN Rekapitulacija'!H$4, 'Plan unos i pregled'!$A$7:$A$788,$D$3) -> 0 | I164: =SUMIFS('Plan unos i pregled'!$I$7:$I$788,'Plan unos i pregled'!$B$7:$B$788,'PLAN Rekapitulacija'!$N$7,'Plan unos i pregled'!$M$7:$M$788,'PLAN Rekapitulacija'!$N$6, 'Plan unos i pregled'!$E$7:$E$788,'PLAN Rekapitulacija'!$B164, 'Plan unos i pregled'!$C$7:$C$788,'PLAN Rekapitulacija'!I$4, 'Plan unos i pregled'!$A$7:$A$788,$D$3) -> 0 | J164: 0 | K164: 0
A165: не | B165: 6.17.2.4 | C165: Ø 600 mm | D165: по рачуну | E165: 0 | F165: =SUMIFS('Plan unos i pregled'!$I$7:$I$788,'Plan unos i pregled'!$B$7:$B$788,'PLAN Rekapitulacija'!$N$7,'Plan unos i pregled'!$M$7:$M$788,'PLAN Rekapitulacija'!$N$6, 'Plan unos i pregled'!$E$7:$E$788,'PLAN Rekapitulacija'!$B165, 'Plan unos i pregled'!$C$7:$C$788,'PLAN Rekapitulacija'!F$4, 'Plan unos i pregled'!$A$7:$A$788,$D$3) -> 0 | G165: =SUMIFS('Plan unos i pregled'!$I$7:$I$788,'Plan unos i pregled'!$B$7:$B$788,'PLAN Rekapitulacija'!$N$7,'Plan unos i pregled'!$M$7:$M$788,'PLAN Rekapitulacija'!$N$6, 'Plan unos i pregled'!$E$7:$E$788,'PLAN Rekapitulacija'!$B165, 'Plan unos i pregled'!$C$7:$C$788,'PLAN Rekapitulacija'!G$4, 'Plan unos i pregled'!$A$7:$A$788,$D$3) -> 0 | H165: =SUMIFS('Plan unos i pregled'!$I$7:$I$788,'Plan unos i pregled'!$B$7:$B$788,'PLAN Rekapitulacija'!$N$7,'Plan unos i pregled'!$M$7:$M$788,'PLAN Rekapitulacija'!$N$6, 'Plan unos i pregled'!$E$7:$E$788,'PLAN Rekapitulacija'!$B165, 'Plan unos i pregled'!$C$7:$C$788,'PLAN Rekapitulacija'!H$4, 'Plan unos i pregled'!$A$7:$A$788,$D$3) -> 0 | I165: =SUMIFS('Plan unos i pregled'!$I$7:$I$788,'Plan unos i pregled'!$B$7:$B$788,'PLAN Rekapitulacija'!$N$7,'Plan unos i pregled'!$M$7:$M$788,'PLAN Rekapitulacija'!$N$6, 'Plan unos i pregled'!$E$7:$E$788,'PLAN Rekapitulacija'!$B165, 'Plan unos i pregled'!$C$7:$C$788,'PLAN Rekapitulacija'!I$4, 'Plan unos i pregled'!$A$7:$A$788,$D$3) -> 0 | J165: 0 | K165: 0
A166: не | B166: 6.17.2.5 | C166: Ø 800 mm | D166: по рачуну | E166: 0 | F166: =SUMIFS('Plan unos i pregled'!$I$7:$I$788,'Plan unos i pregled'!$B$7:$B$788,'PLAN Rekapitulacija'!$N$7,'Plan unos i pregled'!$M$7:$M$788,'PLAN Rekapitulacija'!$N$6, 'Plan unos i pregled'!$E$7:$E$788,'PLAN Rekapitulacija'!$B166, 'Plan unos i pregled'!$C$7:$C$788,'PLAN Rekapitulacija'!F$4, 'Plan unos i pregled'!$A$7:$A$788,$D$3) -> 0 | G166: =SUMIFS('Plan unos i pregled'!$I$7:$I$788,'Plan unos i pregled'!$B$7:$B$788,'PLAN Rekapitulacija'!$N$7,'Plan unos i pregled'!$M$7:$M$788,'PLAN Rekapitulacija'!$N$6, 'Plan unos i pregled'!$E$7:$E$788,'PLAN Rekapitulacija'!$B166, 'Plan unos i pregled'!$C$7:$C$788,'PLAN Rekapitulacija'!G$4, 'Plan unos i pregled'!$A$7:$A$788,$D$3) -> 0 | H166: =SUMIFS('Plan unos i pregled'!$I$7:$I$788,'Plan unos i pregled'!$B$7:$B$788,'PLAN Rekapitulacija'!$N$7,'Plan unos i pregled'!$M$7:$M$788,'PLAN Rekapitulacija'!$N$6, 'Plan unos i pregled'!$E$7:$E$788,'PLAN Rekapitulacija'!$B166, 'Plan unos i pregled'!$C$7:$C$788,'PLAN Rekapitulacija'!H$4, 'Plan unos i pregled'!$A$7:$A$788,$D$3) -> 0 | I166: =SUMIFS('Plan unos i pregled'!$I$7:$I$788,'Plan unos i pregled'!$B$7:$B$788,'PLAN Rekapitulacija'!$N$7,'Plan unos i pregled'!$M$7:$M$788,'PLAN Rekapitulacija'!$N$6, 'Plan unos i pregled'!$E$7:$E$788,'PLAN Rekapitulacija'!$B166, 'Plan unos i pregled'!$C$7:$C$788,'PLAN Rekapitulacija'!I$4, 'Plan unos i pregled'!$A$7:$A$788,$D$3) -> 0 | J166: 0 | K166: 0
A167: не | B167: 6.17.2.6 | C167: Ø 1000 mm | D167: по рачуну | E167: 0 | F167: =SUMIFS('Plan unos i pregled'!$I$7:$I$788,'Plan unos i pregled'!$B$7:$B$788,'PLAN Rekapitulacija'!$N$7,'Plan unos i pregled'!$M$7:$M$788,'PLAN Rekapitulacija'!$N$6, 'Plan unos i pregled'!$E$7:$E$788,'PLAN Rekapitulacija'!$B167, 'Plan unos i pregled'!$C$7:$C$788,'PLAN Rekapitulacija'!F$4, 'Plan unos i pregled'!$A$7:$A$788,$D$3) -> 0 | G167: =SUMIFS('Plan unos i pregled'!$I$7:$I$788,'Plan unos i pregled'!$B$7:$B$788,'PLAN Rekapitulacija'!$N$7,'Plan unos i pregled'!$M$7:$M$788,'PLAN Rekapitulacija'!$N$6, 'Plan unos i pregled'!$E$7:$E$788,'PLAN Rekapitulacija'!$B167, 'Plan unos i pregled'!$C$7:$C$788,'PLAN Rekapitulacija'!G$4, 'Plan unos i pregled'!$A$7:$A$788,$D$3) -> 0 | H167: =SUMIFS('Plan unos i pregled'!$I$7:$I$788,'Plan unos i pregled'!$B$7:$B$788,'PLAN Rekapitulacija'!$N$7,'Plan unos i pregled'!$M$7:$M$788,'PLAN Rekapitulacija'!$N$6, 'Plan unos i pregled'!$E$7:$E$788,'PLAN Rekapitulacija'!$B167, 'Plan unos i pregled'!$C$7:$C$788,'PLAN Rekapitulacija'!H$4, 'Plan unos i pregled'!$A$7:$A$788,$D$3) -> 0 | I167: =SUMIFS('Plan unos i pregled'!$I$7:$I$788,'Plan unos i pregled'!$B$7:$B$788,'PLAN Rekapitulacija'!$N$7,'Plan unos i pregled'!$M$7:$M$788,'PLAN Rekapitulacija'!$N$6, 'Plan unos i pregled'!$E$7:$E$788,'PLAN Rekapitulacija'!$B167, 'Plan unos i pregled'!$C$7:$C$788,'PLAN Rekapitulacija'!I$4, 'Plan unos i pregled'!$A$7:$A$788,$D$3) -> 0 | J167: 0 | K167: 0
A168: штампа | C168: УКУПНО: | F168: =SUMPRODUCT($E$99:$E$167,F99:F167) -> 370000 | G168: =SUMPRODUCT($E$99:$E$167,G99:G167) -> 0 | H168: 0 | I168: 0 | K168: =SUM(K99:K167) -> 370000
A169: =IF(OR(J181:K181),"штампа","не") -> не | B169: 7 | C169: Ископ земље
A170: не | B170: 7.1 | C170: Машински ископ земље III и IV категорије са утоваром у камион или одбацивањем са стране | D170: m3 | E170: 380 | F170: =SUMIFS('Plan unos i pregled'!$I$7:$I$788,'Plan unos i pregled'!$B$7:$B$788,'PLAN Rekapitulacija'!$N$7,'Plan unos i pregled'!$M$7:$M$788,'PLAN Rekapitulacija'!$N$6, 'Plan unos i pregled'!$E$7:$E$788,'PLAN Rekapitulacija'!$B170, 'Plan unos i pregled'!$C$7:$C$788,'PLAN Rekapitulacija'!F$4, 'Plan unos i pregled'!$A$7:$A$788,$D$3) -> 0 | G170: =SUMIFS('Plan unos i pregled'!$I$7:$I$788,'Plan unos i pregled'!$B$7:$B$788,'PLAN Rekapitulacija'!$N$7,'Plan unos i pregled'!$M$7:$M$788,'PLAN Rekapitulacija'!$N$6, 'Plan unos i pregled'!$E$7:$E$788,'PLAN Rekapitulacija'!$B170, 'Plan unos i pregled'!$C$7:$C$788,'PLAN Rekapitulacija'!G$4, 'Plan unos i pregled'!$A$7:$A$788,$D$3) -> 0 | H170: =SUMIFS('Plan unos i pregled'!$I$7:$I$788,'Plan unos i pregled'!$B$7:$B$788,'PLAN Rekapitulacija'!$N$7,'Plan unos i pregled'!$M$7:$M$788,'PLAN Rekapitulacija'!$N$6, 'Plan unos i pregled'!$E$7:$E$788,'PLAN Rekapitulacija'!$B170, 'Plan unos i pregled'!$C$7:$C$788,'PLAN Rekapitulacija'!H$4, 'Plan unos i pregled'!$A$7:$A$788,$D$3) -> 0 | I170: =SUMIFS('Plan unos i pregled'!$I$7:$I$788,'Plan unos i pregled'!$B$7:$B$788,'PLAN Rekapitulacija'!$N$7,'Plan unos i pregled'!$M$7:$M$788,'PLAN Rekapitulacija'!$N$6, 'Plan unos i pregled'!$E$7:$E$788,'PLAN Rekapitulacija'!$B170, 'Plan unos i pregled'!$C$7:$C$788,'PLAN Rekapitulacija'!I$4, 'Plan unos i pregled'!$A$7:$A$788,$D$3) -> 0 | J170: =SUM(F170:I170) -> 0 | K170: =ROUND(E170*J170,2) -> 0
A171: не | B171: 7.2 | C171: Машински ископ земље V категорије са утоваром у камион или одбацивањем са стране | D171: m3 | E171: 400 | F171: =SUMIFS('Plan unos i pregled'!$I$7:$I$788,'Plan unos i pregled'!$B$7:$B$788,'PLAN Rekapitulacija'!$N$7,'Plan unos i pregled'!$M$7:$M$788,'PLAN Rekapitulacija'!$N$6, 'Plan unos i pregled'!$E$7:$E$788,'PLAN Rekapitulacija'!$B171, 'Plan unos i pregled'!$C$7:$C$788,'PLAN Rekapitulacija'!F$4, 'Plan unos i pregled'!$A$7:$A$788,$D$3) -> 0 | G171: =SUMIFS('Plan unos i pregled'!$I$7:$I$788,'Plan unos i pregled'!$B$7:$B$788,'PLAN Rekapitulacija'!$N$7,'Plan unos i pregled'!$M$7:$M$788,'PLAN Rekapitulacija'!$N$6, 'Plan unos i pregled'!$E$7:$E$788,'PLAN Rekapitulacija'!$B171, 'Plan unos i pregled'!$C$7:$C$788,'PLAN Rekapitulacija'!G$4, 'Plan unos i pregled'!$A$7:$A$788,$D$3) -> 0 | H171: =SUMIFS('Plan unos i pregled'!$I$7:$I$788,'Plan unos i pregled'!$B$7:$B$788,'PLAN Rekapitulacija'!$N$7,'Plan unos i pregled'!$M$7:$M$788,'PLAN Rekapitulacija'!$N$6, 'Plan unos i pregled'!$E$7:$E$788,'PLAN Rekapitulacija'!$B171, 'Plan unos i pregled'!$C$7:$C$788,'PLAN Rekapitulacija'!H$4, 'Plan unos i pregled'!$A$7:$A$788,$D$3) -> 0 | I171: =SUMIFS('Plan unos i pregled'!$I$7:$I$788,'Plan unos i pregled'!$B$7:$B$788,'PLAN Rekapitulacija'!$N$7,'Plan unos i pregled'!$M$7:$M$788,'PLAN Rekapitulacija'!$N$6, 'Plan unos i pregled'!$E$7:$E$788,'PLAN Rekapitulacija'!$B171, 'Plan unos i pregled'!$C$7:$C$788,'PLAN Rekapitulacija'!I$4, 'Plan unos i pregled'!$A$7:$A$788,$D$3) -> 0 | J171: 0 | K171: 0
A172: не | B172: 7.3 | C172: Машински ископ природно влажне земље ровокопачем са утоваром у камион | D172: m3 | E172: 297 | F172: =SUMIFS('Plan unos i pregled'!$I$7:$I$788,'Plan unos i pregled'!$B$7:$B$788,'PLAN Rekapitulacija'!$N$7,'Plan unos i pregled'!$M$7:$M$788,'PLAN Rekapitulacija'!$N$6, 'Plan unos i pregled'!$E$7:$E$788,'PLAN Rekapitulacija'!$B172, 'Plan unos i pregled'!$C$7:$C$788,'PLAN Rekapitulacija'!F$4, 'Plan unos i pregled'!$A$7:$A$788,$D$3) -> 0 | G172: =SUMIFS('Plan unos i pregled'!$I$7:$I$788,'Plan unos i pregled'!$B$7:$B$788,'PLAN Rekapitulacija'!$N$7,'Plan unos i pregled'!$M$7:$M$788,'PLAN Rekapitulacija'!$N$6, 'Plan unos i pregled'!$E$7:$E$788,'PLAN Rekapitulacija'!$B172, 'Plan unos i pregled'!$C$7:$C$788,'PLAN Rekapitulacija'!G$4, 'Plan unos i pregled'!$A$7:$A$788,$D$3) -> 0 | H172: =SUMIFS('Plan unos i pregled'!$I$7:$I$788,'Plan unos i pregled'!$B$7:$B$788,'PLAN Rekapitulacija'!$N$7,'Plan unos i pregled'!$M$7:$M$788,'PLAN Rekapitulacija'!$N$6, 'Plan unos i pregled'!$E$7:$E$788,'PLAN Rekapitulacija'!$B172, 'Plan unos i pregled'!$C$7:$C$788,'PLAN Rekapitulacija'!H$4, 'Plan unos i pregled'!$A$7:$A$788,$D$3) -> 0 | I172: =SUMIFS('Plan unos i pregled'!$I$7:$I$788,'Plan unos i pregled'!$B$7:$B$788,'PLAN Rekapitulacija'!$N$7,'Plan unos i pregled'!$M$7:$M$788,'PLAN Rekapitulacija'!$N$6, 'Plan unos i pregled'!$E$7:$E$788,'PLAN Rekapitulacija'!$B172, 'Plan unos i pregled'!$C$7:$C$788,'PLAN Rekapitulacija'!I$4, 'Plan unos i pregled'!$A$7:$A$788,$D$3) -> 0 | J172: 0 | K172: 0
A173: не | B173: 7.4 | C173: Ручни ископ земље III категорије за темеље потпорних зидова са одбацивањем | D173: m3 | E173: 1500 | F173: =SUMIFS('Plan unos i pregled'!$I$7:$I$788,'Plan unos i pregled'!$B$7:$B$788,'PLAN Rekapitulacija'!$N$7,'Plan unos i pregled'!$M$7:$M$788,'PLAN Rekapitulacija'!$N$6, 'Plan unos i pregled'!$E$7:$E$788,'PLAN Rekapitulacija'!$B173, 'Plan unos i pregled'!$C$7:$C$788,'PLAN Rekapitulacija'!F$4, 'Plan unos i pregled'!$A$7:$A$788,$D$3) -> 0 | G173: =SUMIFS('Plan unos i pregled'!$I$7:$I$788,'Plan unos i pregled'!$B$7:$B$788,'PLAN Rekapitulacija'!$N$7,'Plan unos i pregled'!$M$7:$M$788,'PLAN Rekapitulacija'!$N$6, 'Plan unos i pregled'!$E$7:$E$788,'PLAN Rekapitulacija'!$B173, 'Plan unos i pregled'!$C$7:$C$788,'PLAN Rekapitulacija'!G$4, 'Plan unos i pregled'!$A$7:$A$788,$D$3) -> 0 | H173: =SUMIFS('Plan unos i pregled'!$I$7:$I$788,'Plan unos i pregled'!$B$7:$B$788,'PLAN Rekapitulacija'!$N$7,'Plan unos i pregled'!$M$7:$M$788,'PLAN Rekapitulacija'!$N$6, 'Plan unos i pregled'!$E$7:$E$788,'PLAN Rekapitulacija'!$B173, 'Plan unos i pregled'!$C$7:$C$788,'PLAN Rekapitulacija'!H$4, 'Plan unos i pregled'!$A$7:$A$788,$D$3) -> 0 | I173: =SUMIFS('Plan unos i pregled'!$I$7:$I$788,'Plan unos i pregled'!$B$7:$B$788,'PLAN Rekapitulacija'!$N$7,'Plan unos i pregled'!$M$7:$M$788,'PLAN Rekapitulacija'!$N$6, 'Plan unos i pregled'!$E$7:$E$788,'PLAN Rekapitulacija'!$B173, 'Plan unos i pregled'!$C$7:$C$788,'PLAN Rekapitulacija'!I$4, 'Plan unos i pregled'!$A$7:$A$788,$D$3) -> 0 | J173: 0 | K173: 0
A174: не | B174: 7.5 | C174: Машински утовар материјала (земље, шљунка, гребаног асфалта, туцаника и слицно) | D174: m3 | E174: 100 | F174: =SUMIFS('Plan unos i pregled'!$I$7:$I$788,'Plan unos i pregled'!$B$7:$B$788,'PLAN Rekapitulacija'!$N$7,'Plan unos i pregled'!$M$7:$M$788,'PLAN Rekapitulacija'!$N$6, 'Plan unos i pregled'!$E$7:$E$788,'PLAN Rekapitulacija'!$B174, 'Plan unos i pregled'!$C$7:$C$788,'PLAN Rekapitulacija'!F$4, 'Plan unos i pregled'!$A$7:$A$788,$D$3) -> 0 | G174: =SUMIFS('Plan unos i pregled'!$I$7:$I$788,'Plan unos i pregled'!$B$7:$B$788,'PLAN Rekapitulacija'!$N$7,'Plan unos i pregled'!$M$7:$M$788,'PLAN Rekapitulacija'!$N$6, 'Plan unos i pregled'!$E$7:$E$788,'PLAN Rekapitulacija'!$B174, 'Plan unos i pregled'!$C$7:$C$788,'PLAN Rekapitulacija'!G$4, 'Plan unos i pregled'!$A$7:$A$788,$D$3) -> 0 | H174: =SUMIFS('Plan unos i pregled'!$I$7:$I$788,'Plan unos i pregled'!$B$7:$B$788,'PLAN Rekapitulacija'!$N$7,'Plan unos i pregled'!$M$7:$M$788,'PLAN Rekapitulacija'!$N$6, 'Plan unos i pregled'!$E$7:$E$788,'PLAN Rekapitulacija'!$B174, 'Plan unos i pregled'!$C$7:$C$788,'PLAN Rekapitulacija'!H$4, 'Plan unos i pregled'!$A$7:$A$788,$D$3) -> 0 | I174: =SUMIFS('Plan unos i pregled'!$I$7:$I$788,'Plan unos i pregled'!$B$7:$B$788,'PLAN Rekapitulacija'!$N$7,'Plan unos i pregled'!$M$7:$M$788,'PLAN Rekapitulacija'!$N$6, 'Plan unos i pregled'!$E$7:$E$788,'PLAN Rekapitulacija'!$B174, 'Plan unos i pregled'!$C$7:$C$788,'PLAN Rekapitulacija'!I$4, 'Plan unos i pregled'!$A$7:$A$788,$D$3) -> 0 | J174: 0 | K174: 0
A175: =IF(OR(J175:K180),"штампа","не") -> не | B175: 7.6 | C175: Ручни утовар у камион: | E175: 0 | F175: =SUMIFS('Plan unos i pregled'!$I$7:$I$788,'Plan unos i pregled'!$B$7:$B$788,'PLAN Rekapitulacija'!$N$7,'Plan unos i pregled'!$M$7:$M$788,'PLAN Rekapitulacija'!$N$6, 'Plan unos i pregled'!$E$7:$E$788,'PLAN Rekapitulacija'!$B175, 'Plan unos i pregled'!$C$7:$C$788,'PLAN Rekapitulacija'!F$4, 'Plan unos i pregled'!$A$7:$A$788,$D$3) -> 0 | G175: =SUMIFS('Plan unos i pregled'!$I$7:$I$788,'Plan unos i pregled'!$B$7:$B$788,'PLAN Rekapitulacija'!$N$7,'Plan unos i pregled'!$M$7:$M$788,'PLAN Rekapitulacija'!$N$6, 'Plan unos i pregled'!$E$7:$E$788,'PLAN Rekapitulacija'!$B175, 'Plan unos i pregled'!$C$7:$C$788,'PLAN Rekapitulacija'!G$4, 'Plan unos i pregled'!$A$7:$A$788,$D$3) -> 0 | H175: =SUMIFS('Plan unos i pregled'!$I$7:$I$788,'Plan unos i pregled'!$B$7:$B$788,'PLAN Rekapitulacija'!$N$7,'Plan unos i pregled'!$M$7:$M$788,'PLAN Rekapitulacija'!$N$6, 'Plan unos i pregled'!$E$7:$E$788,'PLAN Rekapitulacija'!$B175, 'Plan unos i pregled'!$C$7:$C$788,'PLAN Rekapitulacija'!H$4, 'Plan unos i pregled'!$A$7:$A$788,$D$3) -> 0 | I175: =SUMIFS('Plan unos i pregled'!$I$7:$I$788,'Plan unos i pregled'!$B$7:$B$788,'PLAN Rekapitulacija'!$N$7,'Plan unos i pregled'!$M$7:$M$788,'PLAN Rekapitulacija'!$N$6, 'Plan unos i pregled'!$E$7:$E$788,'PLAN Rekapitulacija'!$B175, 'Plan unos i pregled'!$C$7:$C$788,'PLAN Rekapitulacija'!I$4, 'Plan unos i pregled'!$A$7:$A$788,$D$3) -> 0 | J175: 0 | K175: 0
A176: не | B176: 7.6.1 | C176: Шљунка, песка, ризле и туцаника | D176: m3 | E176: 191 | F176: =SUMIFS('Plan unos i pregled'!$I$7:$I$788,'Plan unos i pregled'!$B$7:$B$788,'PLAN Rekapitulacija'!$N$7,'Plan unos i pregled'!$M$7:$M$788,'PLAN Rekapitulacija'!$N$6, 'Plan unos i pregled'!$E$7:$E$788,'PLAN Rekapitulacija'!$B176, 'Plan unos i pregled'!$C$7:$C$788,'PLAN Rekapitulacija'!F$4, 'Plan unos i pregled'!$A$7:$A$788,$D$3) -> 0 | G176: =SUMIFS('Plan unos i pregled'!$I$7:$I$788,'Plan unos i pregled'!$B$7:$B$788,'PLAN Rekapitulacija'!$N$7,'Plan unos i pregled'!$M$7:$M$788,'PLAN Rekapitulacija'!$N$6, 'Plan unos i pregled'!$E$7:$E$788,'PLAN Rekapitulacija'!$B176, 'Plan unos i pregled'!$C$7:$C$788,'PLAN Rekapitulacija'!G$4, 'Plan unos i pregled'!$A$7:$A$788,$D$3) -> 0 | H176: =SUMIFS('Plan unos i pregled'!$I$7:$I$788,'Plan unos i pregled'!$B$7:$B$788,'PLAN Rekapitulacija'!$N$7,'Plan unos i pregled'!$M$7:$M$788,'PLAN Rekapitulacija'!$N$6, 'Plan unos i pregled'!$E$7:$E$788,'PLAN Rekapitulacija'!$B176, 'Plan unos i pregled'!$C$7:$C$788,'PLAN Rekapitulacija'!H$4, 'Plan unos i pregled'!$A$7:$A$788,$D$3) -> 0 | I176: =SUMIFS('Plan unos i pregled'!$I$7:$I$788,'Plan unos i pregled'!$B$7:$B$788,'PLAN Rekapitulacija'!$N$7,'Plan unos i pregled'!$M$7:$M$788,'PLAN Rekapitulacija'!$N$6, 'Plan unos i pregled'!$E$7:$E$788,'PLAN Rekapitulacija'!$B176, 'Plan unos i pregled'!$C$7:$C$788,'PLAN Rekapitulacija'!I$4, 'Plan unos i pregled'!$A$7:$A$788,$D$3) -> 0 | J176: 0 | K176: 0
A177: не | B177: 7.6.2 | C177: Земље | D177: m3 | E177: 193 | F177: =SUMIFS('Plan unos i pregled'!$I$7:$I$788,'Plan unos i pregled'!$B$7:$B$788,'PLAN Rekapitulacija'!$N$7,'Plan unos i pregled'!$M$7:$M$788,'PLAN Rekapitulacija'!$N$6, 'Plan unos i pregled'!$E$7:$E$788,'PLAN Rekapitulacija'!$B177, 'Plan unos i pregled'!$C$7:$C$788,'PLAN Rekapitulacija'!F$4, 'Plan unos i pregled'!$A$7:$A$788,$D$3) -> 0 | G177: =SUMIFS('Plan unos i pregled'!$I$7:$I$788,'Plan unos i pregled'!$B$7:$B$788,'PLAN Rekapitulacija'!$N$7,'Plan unos i pregled'!$M$7:$M$788,'PLAN Rekapitulacija'!$N$6, 'Plan unos i pregled'!$E$7:$E$788,'PLAN Rekapitulacija'!$B177, 'Plan unos i pregled'!$C$7:$C$788,'PLAN Rekapitulacija'!G$4, 'Plan unos i pregled'!$A$7:$A$788,$D$3) -> 0 | H177: =SUMIFS('Plan unos i pregled'!$I$7:$I$788,'Plan unos i pregled'!$B$7:$B$788,'PLAN Rekapitulacija'!$N$7,'Plan unos i pregled'!$M$7:$M$788,'PLAN Rekapitulacija'!$N$6, 'Plan unos i pregled'!$E$7:$E$788,'PLAN Rekapitulacija'!$B177, 'Plan unos i pregled'!$C$7:$C$788,'PLAN Rekapitulacija'!H$4, 'Plan unos i pregled'!$A$7:$A$788,$D$3) -> 0 | I177: =SUMIFS('Plan unos i pregled'!$I$7:$I$788,'Plan unos i pregled'!$B$7:$B$788,'PLAN Rekapitulacija'!$N$7,'Plan unos i pregled'!$M$7:$M$788,'PLAN Rekapitulacija'!$N$6, 'Plan unos i pregled'!$E$7:$E$788,'PLAN Rekapitulacija'!$B177, 'Plan unos i pregled'!$C$7:$C$788,'PLAN Rekapitulacija'!I$4, 'Plan unos i pregled'!$A$7:$A$788,$D$3) -> 0 | J177: 0 | K177: 0
A178: не | B178: 7.6.3 | C178: Асфалта | D178: t | E178: 191 | F178: =SUMIFS('Plan unos i pregled'!$I$7:$I$788,'Plan unos i pregled'!$B$7:$B$788,'PLAN Rekapitulacija'!$N$7,'Plan unos i pregled'!$M$7:$M$788,'PLAN Rekapitulacija'!$N$6, 'Plan unos i pregled'!$E$7:$E$788,'PLAN Rekapitulacija'!$B178, 'Plan unos i pregled'!$C$7:$C$788,'PLAN Rekapitulacija'!F$4, 'Plan unos i pregled'!$A$7:$A$788,$D$3) -> 0 | G178: =SUMIFS('Plan unos i pregled'!$I$7:$I$788,'Plan unos i pregled'!$B$7:$B$788,'PLAN Rekapitulacija'!$N$7,'Plan unos i pregled'!$M$7:$M$788,'PLAN Rekapitulacija'!$N$6, 'Plan unos i pregled'!$E$7:$E$788,'PLAN Rekapitulacija'!$B178, 'Plan unos i pregled'!$C$7:$C$788,'PLAN Rekapitulacija'!G$4, 'Plan unos i pregled'!$A$7:$A$788,$D$3) -> 0 | H178: =SUMIFS('Plan unos i pregled'!$I$7:$I$788,'Plan unos i pregled'!$B$7:$B$788,'PLAN Rekapitulacija'!$N$7,'Plan unos i pregled'!$M$7:$M$788,'PLAN Rekapitulacija'!$N$6, 'Plan unos i pregled'!$E$7:$E$788,'PLAN Rekapitulacija'!$B178, 'Plan unos i pregled'!$C$7:$C$788,'PLAN Rekapitulacija'!H$4, 'Plan unos i pregled'!$A$7:$A$788,$D$3) -> 0 | I178: =SUMIFS('Plan unos i pregled'!$I$7:$I$788,'Plan unos i pregled'!$B$7:$B$788,'PLAN Rekapitulacija'!$N$7,'Plan unos i pregled'!$M$7:$M$788,'PLAN Rekapitulacija'!$N$6, 'Plan unos i pregled'!$E$7:$E$788,'PLAN Rekapitulacija'!$B178, 'Plan unos i pregled'!$C$7:$C$788,'PLAN Rekapitulacija'!I$4, 'Plan unos i pregled'!$A$7:$A$788,$D$3) -> 0 | J178: 0 | K178: 0
A179: не | B179: 7.6.4 | C179: Шута | D179: m3 | E179: 253 | F179: =SUMIFS('Plan unos i pregled'!$I$7:$I$788,'Plan unos i pregled'!$B$7:$B$788,'PLAN Rekapitulacija'!$N$7,'Plan unos i pregled'!$M$7:$M$788,'PLAN Rekapitulacija'!$N$6, 'Plan unos i pregled'!$E$7:$E$788,'PLAN Rekapitulacija'!$B179, 'Plan unos i pregled'!$C$7:$C$788,'PLAN Rekapitulacija'!F$4, 'Plan unos i pregled'!$A$7:$A$788,$D$3) -> 0 | G179: =SUMIFS('Plan unos i pregled'!$I$7:$I$788,'Plan unos i pregled'!$B$7:$B$788,'PLAN Rekapitulacija'!$N$7,'Plan unos i pregled'!$M$7:$M$788,'PLAN Rekapitulacija'!$N$6, 'Plan unos i pregled'!$E$7:$E$788,'PLAN Rekapitulacija'!$B179, 'Plan unos i pregled'!$C$7:$C$788,'PLAN Rekapitulacija'!G$4, 'Plan unos i pregled'!$A$7:$A$788,$D$3) -> 0 | H179: =SUMIFS('Plan unos i pregled'!$I$7:$I$788,'Plan unos i pregled'!$B$7:$B$788,'PLAN Rekapitulacija'!$N$7,'Plan unos i pregled'!$M$7:$M$788,'PLAN Rekapitulacija'!$N$6, 'Plan unos i pregled'!$E$7:$E$788,'PLAN Rekapitulacija'!$B179, 'Plan unos i pregled'!$C$7:$C$788,'PLAN Rekapitulacija'!H$4, 'Plan unos i pregled'!$A$7:$A$788,$D$3) -> 0 | I179: =SUMIFS('Plan unos i pregled'!$I$7:$I$788,'Plan unos i pregled'!$B$7:$B$788,'PLAN Rekapitulacija'!$N$7,'Plan unos i pregled'!$M$7:$M$788,'PLAN Rekapitulacija'!$N$6, 'Plan unos i pregled'!$E$7:$E$788,'PLAN Rekapitulacija'!$B179, 'Plan unos i pregled'!$C$7:$C$788,'PLAN Rekapitulacija'!I$4, 'Plan unos i pregled'!$A$7:$A$788,$D$3) -> 0 | J179: 0 | K179: 0
A180: не | B180: 7.6.5 | C180: Ивичњака | D180: t | E180: 208 | F180: =SUMIFS('Plan unos i pregled'!$I$7:$I$788,'Plan unos i pregled'!$B$7:$B$788,'PLAN Rekapitulacija'!$N$7,'Plan unos i pregled'!$M$7:$M$788,'PLAN Rekapitulacija'!$N$6, 'Plan unos i pregled'!$E$7:$E$788,'PLAN Rekapitulacija'!$B180, 'Plan unos i pregled'!$C$7:$C$788,'PLAN Rekapitulacija'!F$4, 'Plan unos i pregled'!$A$7:$A$788,$D$3) -> 0 | G180: =SUMIFS('Plan unos i pregled'!$I$7:$I$788,'Plan unos i pregled'!$B$7:$B$788,'PLAN Rekapitulacija'!$N$7,'Plan unos i pregled'!$M$7:$M$788,'PLAN Rekapitulacija'!$N$6, 'Plan unos i pregled'!$E$7:$E$788,'PLAN Rekapitulacija'!$B180, 'Plan unos i pregled'!$C$7:$C$788,'PLAN Rekapitulacija'!G$4, 'Plan unos i pregled'!$A$7:$A$788,$D$3) -> 0 | H180: =SUMIFS('Plan unos i pregled'!$I$7:$I$788,'Plan unos i pregled'!$B$7:$B$788,'PLAN Rekapitulacija'!$N$7,'Plan unos i pregled'!$M$7:$M$788,'PLAN Rekapitulacija'!$N$6, 'Plan unos i pregled'!$E$7:$E$788,'PLAN Rekapitulacija'!$B180, 'Plan unos i pregled'!$C$7:$C$788,'PLAN Rekapitulacija'!H$4, 'Plan unos i pregled'!$A$7:$A$788,$D$3) -> 0 | I180: =SUMIFS('Plan unos i pregled'!$I$7:$I$788,'Plan unos i pregled'!$B$7:$B$788,'PLAN Rekapitulacija'!$N$7,'Plan unos i pregled'!$M$7:$M$788,'PLAN Rekapitulacija'!$N$6, 'Plan unos i pregled'!$E$7:$E$788,'PLAN Rekapitulacija'!$B180, 'Plan unos i pregled'!$C$7:$C$788,'PLAN Rekapitulacija'!I$4, 'Plan unos i pregled'!$A$7:$A$788,$D$3) -> 0 | J180: 0 | K180: 0
A181: не | C181: УКУПНО: | F181: =SUMPRODUCT($E$170:$E$180,F170:F180) -> 0 | G181: =SUMPRODUCT($E$170:$E$180,G170:G180) -> 0 | H181: =SUMPRODUCT($E$170:$E$180,H170:H180) -> 0 | I181: =SUMPRODUCT($E$170:$E$180,I170:I180) -> 0 | K181: =SUM(K169:K180) -> 0
A182: =IF(OR(J234:K234),"штампа","не") -> штампа | B182: 8 | C182: Редовно одржавање асфалтних коловоза
A183: не | B183: 8.1 | C183: Израда постељице. Цена обухвата: планирање постељице машински уз ручну поправку и ваљање вибоваљком. | D183: m2 | E183: 73.42 | F183: =SUMIFS('Plan unos i pregled'!$I$7:$I$788,'Plan unos i pregled'!$B$7:$B$788,'PLAN Rekapitulacija'!$N$7,'Plan unos i pregled'!$M$7:$M$788,'PLAN Rekapitulacija'!$N$6, 'Plan unos i pregled'!$E$7:$E$788,'PLAN Rekapitulacija'!$B183, 'Plan unos i pregled'!$C$7:$C$788,'PLAN Rekapitulacija'!F$4, 'Plan unos i pregled'!$A$7:$A$788,$D$3) -> 0 | G183: =SUMIFS('Plan unos i pregled'!$I$7:$I$788,'Plan unos i pregled'!$B$7:$B$788,'PLAN Rekapitulacija'!$N$7,'Plan unos i pregled'!$M$7:$M$788,'PLAN Rekapitulacija'!$N$6, 'Plan unos i pregled'!$E$7:$E$788,'PLAN Rekapitulacija'!$B183, 'Plan unos i pregled'!$C$7:$C$788,'PLAN Rekapitulacija'!G$4, 'Plan unos i pregled'!$A$7:$A$788,$D$3) -> 0 | H183: =SUMIFS('Plan unos i pregled'!$I$7:$I$788,'Plan unos i pregled'!$B$7:$B$788,'PLAN Rekapitulacija'!$N$7,'Plan unos i pregled'!$M$7:$M$788,'PLAN Rekapitulacija'!$N$6, 'Plan unos i pregled'!$E$7:$E$788,'PLAN Rekapitulacija'!$B183, 'Plan unos i pregled'!$C$7:$C$788,'PLAN Rekapitulacija'!H$4, 'Plan unos i pregled'!$A$7:$A$788,$D$3) -> 0 | I183: =SUMIFS('Plan unos i pregled'!$I$7:$I$788,'Plan unos i pregled'!$B$7:$B$788,'PLAN Rekapitulacija'!$N$7,'Plan unos i pregled'!$M$7:$M$788,'PLAN Rekapitulacija'!$N$6, 'Plan unos i pregled'!$E$7:$E$788,'PLAN Rekapitulacija'!$B183, 'Plan unos i pregled'!$C$7:$C$788,'PLAN Rekapitulacija'!I$4, 'Plan unos i pregled'!$A$7:$A$788,$D$3) -> 0 | J183: =SUM(F183:I183) -> 0 | K183: =ROUND(E183*J183,2) -> 0
A184: не | B184: 8.2 | C184: Поправка неасвалтираног каменог застора брдском дробином из сипара или шљунком са спрудишта. Цена обухвата: машинско прикупљање материјала, риљање старог застора, разастирање, планирање дробљеног каменог агрегата и сабијање ваљком уз потребно квашење. Превоз материјала и менаизације се обрачунава посебно. | D184: m3 | E184: 2547.7 | F184: =SUMIFS('Plan unos i pregled'!$I$7:$I$788,'Plan unos i pregled'!$B$7:$B$788,'PLAN Rekapitulacija'!$N$7,'Plan unos i pregled'!$M$7:$M$788,'PLAN Rekapitulacija'!$N$6, 'Plan unos i pregled'!$E$7:$E$788,'PLAN Rekapitulacija'!$B184, 'Plan unos i pregled'!$C$7:$C$788,'PLAN Rekapitulacija'!F$4, 'Plan unos i pregled'!$A$7:$A$788,$D$3) -> 0 | G184: =SUMIFS('Plan unos i pregled'!$I$7:$I$788,'Plan unos i pregled'!$B$7:$B$788,'PLAN Rekapitulacija'!$N$7,'Plan unos i pregled'!$M$7:$M$788,'PLAN Rekapitulacija'!$N$6, 'Plan unos i pregled'!$E$7:$E$788,'PLAN Rekapitulacija'!$B184, 'Plan unos i pregled'!$C$7:$C$788,'PLAN Rekapitulacija'!G$4, 'Plan unos i pregled'!$A$7:$A$788,$D$3) -> 0 | H184: =SUMIFS('Plan unos i pregled'!$I$7:$I$788,'Plan unos i pregled'!$B$7:$B$788,'PLAN Rekapitulacija'!$N$7,'Plan unos i pregled'!$M$7:$M$788,'PLAN Rekapitulacija'!$N$6, 'Plan unos i pregled'!$E$7:$E$788,'PLAN Rekapitulacija'!$B184, 'Plan unos i pregled'!$C$7:$C$788,'PLAN Rekapitulacija'!H$4, 'Plan unos i pregled'!$A$7:$A$788,$D$3) -> 0 | I184: =SUMIFS('Plan unos i pregled'!$I$7:$I$788,'Plan unos i pregled'!$B$7:$B$788,'PLAN Rekapitulacija'!$N$7,'Plan unos i pregled'!$M$7:$M$788,'PLAN Rekapitulacija'!$N$6, 'Plan unos i pregled'!$E$7:$E$788,'PLAN Rekapitulacija'!$B184, 'Plan unos i pregled'!$C$7:$C$788,'PLAN Rekapitulacija'!I$4, 'Plan unos i pregled'!$A$7:$A$788,$D$3) -> 0 | J184: 0 | K184: 0
A185: =IF(OR(J185:K187),"штампа","не") -> не | B185: 8.3 | C185: Ручно крпљење ударних рупа брдском дробином из сипара или шљунком са спрудишта. Цена обухвата: машинско прикупљање материјала и утовар у камион, исецања ивице рупе, раскопавање застора, чишћење и попуњавање рупе, раскопавање застора, чишћење и попуњавање рупе као и ваљање виброваљком. Превоз материјала и механизације се обрачунава посебно. | E185: 0
A186: не | B186: 8.3.1 | C186: са ваљањем | D186: m3 | E186: 2747.19 | F186: =SUMIFS('Plan unos i pregled'!$I$7:$I$788,'Plan unos i pregled'!$B$7:$B$788,'PLAN Rekapitulacija'!$N$7,'Plan unos i pregled'!$M$7:$M$788,'PLAN Rekapitulacija'!$N$6, 'Plan unos i pregled'!$E$7:$E$788,'PLAN Rekapitulacija'!$B186, 'Plan unos i pregled'!$C$7:$C$788,'PLAN Rekapitulacija'!F$4, 'Plan unos i pregled'!$A$7:$A$788,$D$3) -> 0 | G186: =SUMIFS('Plan unos i pregled'!$I$7:$I$788,'Plan unos i pregled'!$B$7:$B$788,'PLAN Rekapitulacija'!$N$7,'Plan unos i pregled'!$M$7:$M$788,'PLAN Rekapitulacija'!$N$6, 'Plan unos i pregled'!$E$7:$E$788,'PLAN Rekapitulacija'!$B186, 'Plan unos i pregled'!$C$7:$C$788,'PLAN Rekapitulacija'!G$4, 'Plan unos i pregled'!$A$7:$A$788,$D$3) -> 0 | H186: =SUMIFS('Plan unos i pregled'!$I$7:$I$788,'Plan unos i pregled'!$B$7:$B$788,'PLAN Rekapitulacija'!$N$7,'Plan unos i pregled'!$M$7:$M$788,'PLAN Rekapitulacija'!$N$6, 'Plan unos i pregled'!$E$7:$E$788,'PLAN Rekapitulacija'!$B186, 'Plan unos i pregled'!$C$7:$C$788,'PLAN Rekapitulacija'!H$4, 'Plan unos i pregled'!$A$7:$A$788,$D$3) -> 0 | I186: =SUMIFS('Plan unos i pregled'!$I$7:$I$788,'Plan unos i pregled'!$B$7:$B$788,'PLAN Rekapitulacija'!$N$7,'Plan unos i pregled'!$M$7:$M$788,'PLAN Rekapitulacija'!$N$6, 'Plan unos i pregled'!$E$7:$E$788,'PLAN Rekapitulacija'!$B186, 'Plan unos i pregled'!$C$7:$C$788,'PLAN Rekapitulacija'!I$4, 'Plan unos i pregled'!$A$7:$A$788,$D$3) -> 0 | J186: =SUM(F186:I186) -> 0 | K186: =ROUND(E186*J186,2) -> 0
A187: не | B187: 8.3.2 | C187: без ваљања | D187: m3 | E187: 2695 | F187: =SUMIFS('Plan unos i pregled'!$I$7:$I$788,'Plan unos i pregled'!$B$7:$B$788,'PLAN Rekapitulacija'!$N$7,'Plan unos i pregled'!$M$7:$M$788,'PLAN Rekapitulacija'!$N$6, 'Plan unos i pregled'!$E$7:$E$788,'PLAN Rekapitulacija'!$B187, 'Plan unos i pregled'!$C$7:$C$788,'PLAN Rekapitulacija'!F$4, 'Plan unos i pregled'!$A$7:$A$788,$D$3) -> 0 | G187: =SUMIFS('Plan unos i pregled'!$I$7:$I$788,'Plan unos i pregled'!$B$7:$B$788,'PLAN Rekapitulacija'!$N$7,'Plan unos i pregled'!$M$7:$M$788,'PLAN Rekapitulacija'!$N$6, 'Plan unos i pregled'!$E$7:$E$788,'PLAN Rekapitulacija'!$B187, 'Plan unos i pregled'!$C$7:$C$788,'PLAN Rekapitulacija'!G$4, 'Plan unos i pregled'!$A$7:$A$788,$D$3) -> 0 | H187: =SUMIFS('Plan unos i pregled'!$I$7:$I$788,'Plan unos i pregled'!$B$7:$B$788,'PLAN Rekapitulacija'!$N$7,'Plan unos i pregled'!$M$7:$M$788,'PLAN Rekapitulacija'!$N$6, 'Plan unos i pregled'!$E$7:$E$788,'PLAN Rekapitulacija'!$B187, 'Plan unos i pregled'!$C$7:$C$788,'PLAN Rekapitulacija'!H$4, 'Plan unos i pregled'!$A$7:$A$788,$D$3) -> 0 | I187: =SUMIFS('Plan unos i pregled'!$I$7:$I$788,'Plan unos i pregled'!$B$7:$B$788,'PLAN Rekapitulacija'!$N$7,'Plan unos i pregled'!$M$7:$M$788,'PLAN Rekapitulacija'!$N$6, 'Plan unos i pregled'!$E$7:$E$788,'PLAN Rekapitulacija'!$B187, 'Plan unos i pregled'!$C$7:$C$788,'PLAN Rekapitulacija'!I$4, 'Plan unos i pregled'!$A$7:$A$788,$D$3) -> 0 | J187: 0 | K187: 0
A188: =IF(OR(J188:K190),"штампа","не") -> не | B188: 8.4 | C188: Опсецање ивица ударних рупа и улегнућа коловозу са пребацивањем раскопаног материјала на банкину и чишћење рупе. | E188: 0
A189: не | B189: 8.4.1 | C189: Ручно | D189: m | E189: 83.62 | F189: =SUMIFS('Plan unos i pregled'!$I$7:$I$788,'Plan unos i pregled'!$B$7:$B$788,'PLAN Rekapitulacija'!$N$7,'Plan unos i pregled'!$M$7:$M$788,'PLAN Rekapitulacija'!$N$6, 'Plan unos i pregled'!$E$7:$E$788,'PLAN Rekapitulacija'!$B189, 'Plan unos i pregled'!$C$7:$C$788,'PLAN Rekapitulacija'!F$4, 'Plan unos i pregled'!$A$7:$A$788,$D$3) -> 0 | G189: =SUMIFS('Plan unos i pregled'!$I$7:$I$788,'Plan unos i pregled'!$B$7:$B$788,'PLAN Rekapitulacija'!$N$7,'Plan unos i pregled'!$M$7:$M$788,'PLAN Rekapitulacija'!$N$6, 'Plan unos i pregled'!$E$7:$E$788,'PLAN Rekapitulacija'!$B189, 'Plan unos i pregled'!$C$7:$C$788,'PLAN Rekapitulacija'!G$4, 'Plan unos i pregled'!$A$7:$A$788,$D$3) -> 0 | H189: =SUMIFS('Plan unos i pregled'!$I$7:$I$788,'Plan unos i pregled'!$B$7:$B$788,'PLAN Rekapitulacija'!$N$7,'Plan unos i pregled'!$M$7:$M$788,'PLAN Rekapitulacija'!$N$6, 'Plan unos i pregled'!$E$7:$E$788,'PLAN Rekapitulacija'!$B189, 'Plan unos i pregled'!$C$7:$C$788,'PLAN Rekapitulacija'!H$4, 'Plan unos i pregled'!$A$7:$A$788,$D$3) -> 0 | I189: =SUMIFS('Plan unos i pregled'!$I$7:$I$788,'Plan unos i pregled'!$B$7:$B$788,'PLAN Rekapitulacija'!$N$7,'Plan unos i pregled'!$M$7:$M$788,'PLAN Rekapitulacija'!$N$6, 'Plan unos i pregled'!$E$7:$E$788,'PLAN Rekapitulacija'!$B189, 'Plan unos i pregled'!$C$7:$C$788,'PLAN Rekapitulacija'!I$4, 'Plan unos i pregled'!$A$7:$A$788,$D$3) -> 0 | J189: =SUM(F189:I189) -> 0 | K189: =ROUND(E189*J189,2) -> 0
A190: не | B190: 8.4.2 | C190: Машински | D190: m | E190: 58.51 | F190: =SUMIFS('Plan unos i pregled'!$I$7:$I$788,'Plan unos i pregled'!$B$7:$B$788,'PLAN Rekapitulacija'!$N$7,'Plan unos i pregled'!$M$7:$M$788,'PLAN Rekapitulacija'!$N$6, 'Plan unos i pregled'!$E$7:$E$788,'PLAN Rekapitulacija'!$B190, 'Plan unos i pregled'!$C$7:$C$788,'PLAN Rekapitulacija'!F$4, 'Plan unos i pregled'!$A$7:$A$788,$D$3) -> 0 | G190: =SUMIFS('Plan unos i pregled'!$I$7:$I$788,'Plan unos i pregled'!$B$7:$B$788,'PLAN Rekapitulacija'!$N$7,'Plan unos i pregled'!$M$7:$M$788,'PLAN Rekapitulacija'!$N$6, 'Plan unos i pregled'!$E$7:$E$788,'PLAN Rekapitulacija'!$B190, 'Plan unos i pregled'!$C$7:$C$788,'PLAN Rekapitulacija'!G$4, 'Plan unos i pregled'!$A$7:$A$788,$D$3) -> 0 | H190: =SUMIFS('Plan unos i pregled'!$I$7:$I$788,'Plan unos i pregled'!$B$7:$B$788,'PLAN Rekapitulacija'!$N$7,'Plan unos i pregled'!$M$7:$M$788,'PLAN Rekapitulacija'!$N$6, 'Plan unos i pregled'!$E$7:$E$788,'PLAN Rekapitulacija'!$B190, 'Plan unos i pregled'!$C$7:$C$788,'PLAN Rekapitulacija'!H$4, 'Plan unos i pregled'!$A$7:$A$788,$D$3) -> 0 | I190: =SUMIFS('Plan unos i pregled'!$I$7:$I$788,'Plan unos i pregled'!$B$7:$B$788,'PLAN Rekapitulacija'!$N$7,'Plan unos i pregled'!$M$7:$M$788,'PLAN Rekapitulacija'!$N$6, 'Plan unos i pregled'!$E$7:$E$788,'PLAN Rekapitulacija'!$B190, 'Plan unos i pregled'!$C$7:$C$788,'PLAN Rekapitulacija'!I$4, 'Plan unos i pregled'!$A$7:$A$788,$D$3) -> 0 | J190: 0 | K190: 0
A191: =IF(OR(J191:K193),"штампа","не") -> не | B191: 8.5 | C191: Рушење испуцалог асфалтног коловоза дебљине d = 6-8 cm, са пребацивањем ископаног материјала на банкину и чишћењем рупе. За дебљину већу или мању од 6 cm кориговати на одговарајућу дебљину од средње. | E191: 0
A192: не | B192: 8.5.1 | C192: Машински | D192: m2 | E192: 304.82 | F192: =SUMIFS('Plan unos i pregled'!$I$7:$I$788,'Plan unos i pregled'!$B$7:$B$788,'PLAN Rekapitulacija'!$N$7,'Plan unos i pregled'!$M$7:$M$788,'PLAN Rekapitulacija'!$N$6, 'Plan unos i pregled'!$E$7:$E$788,'PLAN Rekapitulacija'!$B192, 'Plan unos i pregled'!$C$7:$C$788,'PLAN Rekapitulacija'!F$4, 'Plan unos i pregled'!$A$7:$A$788,$D$3) -> 0 | G192: =SUMIFS('Plan unos i pregled'!$I$7:$I$788,'Plan unos i pregled'!$B$7:$B$788,'PLAN Rekapitulacija'!$N$7,'Plan unos i pregled'!$M$7:$M$788,'PLAN Rekapitulacija'!$N$6, 'Plan unos i pregled'!$E$7:$E$788,'PLAN Rekapitulacija'!$B192, 'Plan unos i pregled'!$C$7:$C$788,'PLAN Rekapitulacija'!G$4, 'Plan unos i pregled'!$A$7:$A$788,$D$3) -> 0 | H192: =SUMIFS('Plan unos i pregled'!$I$7:$I$788,'Plan unos i pregled'!$B$7:$B$788,'PLAN Rekapitulacija'!$N$7,'Plan unos i pregled'!$M$7:$M$788,'PLAN Rekapitulacija'!$N$6, 'Plan unos i pregled'!$E$7:$E$788,'PLAN Rekapitulacija'!$B192, 'Plan unos i pregled'!$C$7:$C$788,'PLAN Rekapitulacija'!H$4, 'Plan unos i pregled'!$A$7:$A$788,$D$3) -> 0 | I192: =SUMIFS('Plan unos i pregled'!$I$7:$I$788,'Plan unos i pregled'!$B$7:$B$788,'PLAN Rekapitulacija'!$N$7,'Plan unos i pregled'!$M$7:$M$788,'PLAN Rekapitulacija'!$N$6, 'Plan unos i pregled'!$E$7:$E$788,'PLAN Rekapitulacija'!$B192, 'Plan unos i pregled'!$C$7:$C$788,'PLAN Rekapitulacija'!I$4, 'Plan unos i pregled'!$A$7:$A$788,$D$3) -> 0 | J192: =SUM(F192:I192) -> 0 | K192: =ROUND(E192*J192,2) -> 0
A193: не | B193: 8.5.2 | C193: Ручно | D193: m2 | E193: 398.75 | F193: =SUMIFS('Plan unos i pregled'!$I$7:$I$788,'Plan unos i pregled'!$B$7:$B$788,'PLAN Rekapitulacija'!$N$7,'Plan unos i pregled'!$M$7:$M$788,'PLAN Rekapitulacija'!$N$6, 'Plan unos i pregled'!$E$7:$E$788,'PLAN Rekapitulacija'!$B193, 'Plan unos i pregled'!$C$7:$C$788,'PLAN Rekapitulacija'!F$4, 'Plan unos i pregled'!$A$7:$A$788,$D$3) -> 0 | G193: =SUMIFS('Plan unos i pregled'!$I$7:$I$788,'Plan unos i pregled'!$B$7:$B$788,'PLAN Rekapitulacija'!$N$7,'Plan unos i pregled'!$M$7:$M$788,'PLAN Rekapitulacija'!$N$6, 'Plan unos i pregled'!$E$7:$E$788,'PLAN Rekapitulacija'!$B193, 'Plan unos i pregled'!$C$7:$C$788,'PLAN Rekapitulacija'!G$4, 'Plan unos i pregled'!$A$7:$A$788,$D$3) -> 0 | H193: =SUMIFS('Plan unos i pregled'!$I$7:$I$788,'Plan unos i pregled'!$B$7:$B$788,'PLAN Rekapitulacija'!$N$7,'Plan unos i pregled'!$M$7:$M$788,'PLAN Rekapitulacija'!$N$6, 'Plan unos i pregled'!$E$7:$E$788,'PLAN Rekapitulacija'!$B193, 'Plan unos i pregled'!$C$7:$C$788,'PLAN Rekapitulacija'!H$4, 'Plan unos i pregled'!$A$7:$A$788,$D$3) -> 0 | I193: =SUMIFS('Plan unos i pregled'!$I$7:$I$788,'Plan unos i pregled'!$B$7:$B$788,'PLAN Rekapitulacija'!$N$7,'Plan unos i pregled'!$M$7:$M$788,'PLAN Rekapitulacija'!$N$6, 'Plan unos i pregled'!$E$7:$E$788,'PLAN Rekapitulacija'!$B193, 'Plan unos i pregled'!$C$7:$C$788,'PLAN Rekapitulacija'!I$4, 'Plan unos i pregled'!$A$7:$A$788,$D$3) -> 0 | J193: 0 | K193: 0
A194: =IF(OR(J194:K196),"штампа","не") -> не | B194: 8.6 | C194: Ручно крпљење ударних рупа природним шљунком. Цена обухвата: раскопавање застора, чишцење и попуњавање рупе и ваљање виброваљком. Превоз материјала и механизације се обрачунава посебно. | E194: 0
A195: не | B195: 8.6.1 | C195: Са ваљањем | D195: t | E195: 3281.21 | F195: =SUMIFS('Plan unos i pregled'!$I$7:$I$788,'Plan unos i pregled'!$B$7:$B$788,'PLAN Rekapitulacija'!$N$7,'Plan unos i pregled'!$M$7:$M$788,'PLAN Rekapitulacija'!$N$6, 'Plan unos i pregled'!$E$7:$E$788,'PLAN Rekapitulacija'!$B195, 'Plan unos i pregled'!$C$7:$C$788,'PLAN Rekapitulacija'!F$4, 'Plan unos i pregled'!$A$7:$A$788,$D$3) -> 0 | G195: =SUMIFS('Plan unos i pregled'!$I$7:$I$788,'Plan unos i pregled'!$B$7:$B$788,'PLAN Rekapitulacija'!$N$7,'Plan unos i pregled'!$M$7:$M$788,'PLAN Rekapitulacija'!$N$6, 'Plan unos i pregled'!$E$7:$E$788,'PLAN Rekapitulacija'!$B195, 'Plan unos i pregled'!$C$7:$C$788,'PLAN Rekapitulacija'!G$4, 'Plan unos i pregled'!$A$7:$A$788,$D$3) -> 0 | H195: =SUMIFS('Plan unos i pregled'!$I$7:$I$788,'Plan unos i pregled'!$B$7:$B$788,'PLAN Rekapitulacija'!$N$7,'Plan unos i pregled'!$M$7:$M$788,'PLAN Rekapitulacija'!$N$6, 'Plan unos i pregled'!$E$7:$E$788,'PLAN Rekapitulacija'!$B195, 'Plan unos i pregled'!$C$7:$C$788,'PLAN Rekapitulacija'!H$4, 'Plan unos i pregled'!$A$7:$A$788,$D$3) -> 0 | I195: =SUMIFS('Plan unos i pregled'!$I$7:$I$788,'Plan unos i pregled'!$B$7:$B$788,'PLAN Rekapitulacija'!$N$7,'Plan unos i pregled'!$M$7:$M$788,'PLAN Rekapitulacija'!$N$6, 'Plan unos i pregled'!$E$7:$E$788,'PLAN Rekapitulacija'!$B195, 'Plan unos i pregled'!$C$7:$C$788,'PLAN Rekapitulacija'!I$4, 'Plan unos i pregled'!$A$7:$A$788,$D$3) -> 0 | J195: =SUM(F195:I195) -> 0 | K195: =ROUND(E195*J195,2) -> 0
A196: не | B196: 8.6.2 | C196: Без ваљања | D196: t | E196: 3229.03 | F196: =SUMIFS('Plan unos i pregled'!$I$7:$I$788,'Plan unos i pregled'!$B$7:$B$788,'PLAN Rekapitulacija'!$N$7,'Plan unos i pregled'!$M$7:$M$788,'PLAN Rekapitulacija'!$N$6, 'Plan unos i pregled'!$E$7:$E$788,'PLAN Rekapitulacija'!$B196, 'Plan unos i pregled'!$C$7:$C$788,'PLAN Rekapitulacija'!F$4, 'Plan unos i pregled'!$A$7:$A$788,$D$3) -> 0 | G196: =SUMIFS('Plan unos i pregled'!$I$7:$I$788,'Plan unos i pregled'!$B$7:$B$788,'PLAN Rekapitulacija'!$N$7,'Plan unos i pregled'!$M$7:$M$788,'PLAN Rekapitulacija'!$N$6, 'Plan unos i pregled'!$E$7:$E$788,'PLAN Rekapitulacija'!$B196, 'Plan unos i pregled'!$C$7:$C$788,'PLAN Rekapitulacija'!G$4, 'Plan unos i pregled'!$A$7:$A$788,$D$3) -> 0 | H196: =SUMIFS('Plan unos i pregled'!$I$7:$I$788,'Plan unos i pregled'!$B$7:$B$788,'PLAN Rekapitulacija'!$N$7,'Plan unos i pregled'!$M$7:$M$788,'PLAN Rekapitulacija'!$N$6, 'Plan unos i pregled'!$E$7:$E$788,'PLAN Rekapitulacija'!$B196, 'Plan unos i pregled'!$C$7:$C$788,'PLAN Rekapitulacija'!H$4, 'Plan unos i pregled'!$A$7:$A$788,$D$3) -> 0 | I196: =SUMIFS('Plan unos i pregled'!$I$7:$I$788,'Plan unos i pregled'!$B$7:$B$788,'PLAN Rekapitulacija'!$N$7,'Plan unos i pregled'!$M$7:$M$788,'PLAN Rekapitulacija'!$N$6, 'Plan unos i pregled'!$E$7:$E$788,'PLAN Rekapitulacija'!$B196, 'Plan unos i pregled'!$C$7:$C$788,'PLAN Rekapitulacija'!I$4, 'Plan unos i pregled'!$A$7:$A$788,$D$3) -> 0 | J196: 0 | K196: 0
A197: не | B197: 8.7 | C197: Ручно пресвлачење асфалтом мањих деоница коловоза до 300 м2. Цена обухвата: набавку и прскање емулзијом у предходно очишћену површину, превоз механизације до места уграђивања асфалта и ваљање виброваљком. Посебно се обрачунава: припрема подлоге по ценовнику и превоз асфалта и асфалтне масе. | D197: t | E197: 4200 | F197: =SUMIFS('Plan unos i pregled'!$I$7:$I$788,'Plan unos i pregled'!$B$7:$B$788,'PLAN Rekapitulacija'!$N$7,'Plan unos i pregled'!$M$7:$M$788,'PLAN Rekapitulacija'!$N$6, 'Plan unos i pregled'!$E$7:$E$788,'PLAN Rekapitulacija'!$B197, 'Plan unos i pregled'!$C$7:$C$788,'PLAN Rekapitulacija'!F$4, 'Plan unos i pregled'!$A$7:$A$788,$D$3) -> 0 | G197: =SUMIFS('Plan unos i pregled'!$I$7:$I$788,'Plan unos i pregled'!$B$7:$B$788,'PLAN Rekapitulacija'!$N$7,'Plan unos i pregled'!$M$7:$M$788,'PLAN Rekapitulacija'!$N$6, 'Plan unos i pregled'!$E$7:$E$788,'PLAN Rekapitulacija'!$B197, 'Plan unos i pregled'!$C$7:$C$788,'PLAN Rekapitulacija'!G$4, 'Plan unos i pregled'!$A$7:$A$788,$D$3) -> 0 | H197: =SUMIFS('Plan unos i pregled'!$I$7:$I$788,'Plan unos i pregled'!$B$7:$B$788,'PLAN Rekapitulacija'!$N$7,'Plan unos i pregled'!$M$7:$M$788,'PLAN Rekapitulacija'!$N$6, 'Plan unos i pregled'!$E$7:$E$788,'PLAN Rekapitulacija'!$B197, 'Plan unos i pregled'!$C$7:$C$788,'PLAN Rekapitulacija'!H$4, 'Plan unos i pregled'!$A$7:$A$788,$D$3) -> 0 | I197: =SUMIFS('Plan unos i pregled'!$I$7:$I$788,'Plan unos i pregled'!$B$7:$B$788,'PLAN Rekapitulacija'!$N$7,'Plan unos i pregled'!$M$7:$M$788,'PLAN Rekapitulacija'!$N$6, 'Plan unos i pregled'!$E$7:$E$788,'PLAN Rekapitulacija'!$B197, 'Plan unos i pregled'!$C$7:$C$788,'PLAN Rekapitulacija'!I$4, 'Plan unos i pregled'!$A$7:$A$788,$D$3) -> 0 | J197: 0 | K197: 0
A198: не | B198: 8.8 | C198: Ручно крпљење ударних рупа асфалтном масом на коловозу, у предходно очишценом емулзијом препрскану ударну рупу и ивица. Ударну рупу попунити асфалтном масом са надвишењем и ваљати до потребне збијености. Набавку асфалтне масе и транспорт асфалтне масе од произвиђача до места уграђивања посебно урачунати. | D198: t | E198: 4600 | F198: =SUMIFS('Plan unos i pregled'!$I$7:$I$788,'Plan unos i pregled'!$B$7:$B$788,'PLAN Rekapitulacija'!$N$7,'Plan unos i pregled'!$M$7:$M$788,'PLAN Rekapitulacija'!$N$6, 'Plan unos i pregled'!$E$7:$E$788,'PLAN Rekapitulacija'!$B198, 'Plan unos i pregled'!$C$7:$C$788,'PLAN Rekapitulacija'!F$4, 'Plan unos i pregled'!$A$7:$A$788,$D$3) -> 0 | G198: =SUMIFS('Plan unos i pregled'!$I$7:$I$788,'Plan unos i pregled'!$B$7:$B$788,'PLAN Rekapitulacija'!$N$7,'Plan unos i pregled'!$M$7:$M$788,'PLAN Rekapitulacija'!$N$6, 'Plan unos i pregled'!$E$7:$E$788,'PLAN Rekapitulacija'!$B198, 'Plan unos i pregled'!$C$7:$C$788,'PLAN Rekapitulacija'!G$4, 'Plan unos i pregled'!$A$7:$A$788,$D$3) -> 0 | H198: =SUMIFS('Plan unos i pregled'!$I$7:$I$788,'Plan unos i pregled'!$B$7:$B$788,'PLAN Rekapitulacija'!$N$7,'Plan unos i pregled'!$M$7:$M$788,'PLAN Rekapitulacija'!$N$6, 'Plan unos i pregled'!$E$7:$E$788,'PLAN Rekapitulacija'!$B198, 'Plan unos i pregled'!$C$7:$C$788,'PLAN Rekapitulacija'!H$4, 'Plan unos i pregled'!$A$7:$A$788,$D$3) -> 0 | I198: =SUMIFS('Plan unos i pregled'!$I$7:$I$788,'Plan unos i pregled'!$B$7:$B$788,'PLAN Rekapitulacija'!$N$7,'Plan unos i pregled'!$M$7:$M$788,'PLAN Rekapitulacija'!$N$6, 'Plan unos i pregled'!$E$7:$E$788,'PLAN Rekapitulacija'!$B198, 'Plan unos i pregled'!$C$7:$C$788,'PLAN Rekapitulacija'!I$4, 'Plan unos i pregled'!$A$7:$A$788,$D$3) -> 0 | J198: 0 | K198: 0
A199: =IF(OR(J199:K200),"штампа","не") -> не | B199: 8.9 | C199: Пресвлачење мањих деоница коловоза финишером (дузине 250 м у целој ширини коловоза или 500 м у 1/2 коловоза) Цена обухвата: производњу асфалтне масе, превоз механизације и радника од асфалтне базе до места уграђивања, уграђивање финишером и ваљање гарнитуром ваљка. Пре пресвлачења обавезно се врши ручно крпљење коловоза и то се посебно наплаћује. Транспорт агрегата од произвођача до асфалтне базе, као и транспорт асфалтне масе од базе до места уграђивања посебно наплаћује. | E199: 0
A200: не | B200: 8.9.1 | C200: Асфалт бетоном или БНХС | D200: t | E200: 12000 | F200: =SUMIFS('Plan unos i pregled'!$I$7:$I$788,'Plan unos i pregled'!$B$7:$B$788,'PLAN Rekapitulacija'!$N$7,'Plan unos i pregled'!$M$7:$M$788,'PLAN Rekapitulacija'!$N$6, 'Plan unos i pregled'!$E$7:$E$788,'PLAN Rekapitulacija'!$B200, 'Plan unos i pregled'!$C$7:$C$788,'PLAN Rekapitulacija'!F$4, 'Plan unos i pregled'!$A$7:$A$788,$D$3) -> 0 | G200: =SUMIFS('Plan unos i pregled'!$I$7:$I$788,'Plan unos i pregled'!$B$7:$B$788,'PLAN Rekapitulacija'!$N$7,'Plan unos i pregled'!$M$7:$M$788,'PLAN Rekapitulacija'!$N$6, 'Plan unos i pregled'!$E$7:$E$788,'PLAN Rekapitulacija'!$B200, 'Plan unos i pregled'!$C$7:$C$788,'PLAN Rekapitulacija'!G$4, 'Plan unos i pregled'!$A$7:$A$788,$D$3) -> 0 | H200: =SUMIFS('Plan unos i pregled'!$I$7:$I$788,'Plan unos i pregled'!$B$7:$B$788,'PLAN Rekapitulacija'!$N$7,'Plan unos i pregled'!$M$7:$M$788,'PLAN Rekapitulacija'!$N$6, 'Plan unos i pregled'!$E$7:$E$788,'PLAN Rekapitulacija'!$B200, 'Plan unos i pregled'!$C$7:$C$788,'PLAN Rekapitulacija'!H$4, 'Plan unos i pregled'!$A$7:$A$788,$D$3) -> 0 | I200: =SUMIFS('Plan unos i pregled'!$I$7:$I$788,'Plan unos i pregled'!$B$7:$B$788,'PLAN Rekapitulacija'!$N$7,'Plan unos i pregled'!$M$7:$M$788,'PLAN Rekapitulacija'!$N$6, 'Plan unos i pregled'!$E$7:$E$788,'PLAN Rekapitulacija'!$B200, 'Plan unos i pregled'!$C$7:$C$788,'PLAN Rekapitulacija'!I$4, 'Plan unos i pregled'!$A$7:$A$788,$D$3) -> 0 | J200: =SUM(F200:I200) -> 0 | K200: =ROUND(E200*J200,2) -> 0
... 204 more rows

Sheet Plan unos i pregled
J1: ОДОБРИО НАДЗОРНИ ОГРАН: | M1: ДА
F2: =IF($E2=0, " ", VLOOKUP($E2, 'Cenovnik 2'!$A$2:$D$411, 2, FALSE)) ->  | G2: =IF($E2=0, " ", VLOOKUP($E2, 'Cenovnik 2'!$A$2:$D$411, 3, FALSE)) ->  | H2: =IF($E2=0, " ", VLOOKUP($E2, 'Cenovnik 2'!$A$2:$D$411, 4, FALSE)) ->  | J2: =IF(ISNUMBER($H2), $H2*$I2, "-") -> - | K2: =IFERROR(INDEX(LokacijeRadovaLat,MATCH(C2,LokacijaRadova,0)),"") ->  | L2: =TEXT(LEFT($E2,FIND(".",$E2&".")-1), "00") ->  | M2: ДА | R2: =IF($C2=0, " ", VLOOKUP($C2, DrzavniPuteviRed, 2, FALSE)) ->  | S2: =IF($E2=0, " ", VLOOKUP($E2, SifrePozicijaBezTacke, 2, FALSE)) ->  | T2: =LEFT($S2, 3) ->  | U2: =IF(VLOOKUP($E2,[0]!ProveraPDV,2,FALSE)=TRUE,$J2,) ->  | V2: =IF(VLOOKUP($E2,liste!$A$31:$B$818,2,FALSE)=TRUE,#REF!,) ->  | W2: =R2&"-"&C2 -> - | X2: =INDEX('Cenovnik 2'!$G$2:$G$411,MATCH('Plan unos i pregled'!$E2,Pozicije,0)) -> 
F4: МЕСЕЧНИ ПЛАН | H4: УКУПНО: | I4: =IF( SUBTOTAL(101, S7:S788)=(INDEX(S7:S788,MIN(IF(SUBTOTAL(3,OFFSET(I7,ROW(S7:S788)-ROW(I7),0)),ROW(I7:I788)-ROW(I7)+1)))), SUBTOTAL(109, I7:I788), "-") -> - | J4: =SUMPRODUCT(SUBTOTAL(9, OFFSET($J$7:$J$788, ROW($J$7:$J$788)-MIN(ROW($J$7:$J$788)),,1)), --( $M$7:$M$788=$M$1)) -> 6375541.5 | S4: pomoćne kolone
A5: Година | B5: План за месец | C5: Објекти | D5: Локација Радова | E5: Број позиције | F5: Опис позиције | G5: Јед. мере | H5: Цена | I5: Количина | J5: Вредност без ПДВ-а | K5: Група локације радова ЛАТ | L5: Група радова из ценовника | M5: Одобрење радова | N5: Коменатар | O5: nije popunjeno | R5: Ред државног пута | S5: numerički podatak broja pozicije | T5: prve tri cifre numeričkog podataka broja pozicije zbog računa | U5: Provera PDV-a | V5: Provera PDV-a za realizaciju | W5: Državni Put | X5: Prevoz i nabavka materijala da li je uračunat
A7: 2025. | B7: АПРИЛ | C7: Општински путеви | D7: ОП 136-24 - Горњи Барбеш - Дукат | E7: 4.7 | F7: =IF($E7=0, " ", VLOOKUP($E7, 'Cenovnik 2'!$A$2:$D$411, 2, FALSE)) -> Кошење траве са банкина самоходном моторном косачицом | G7: =IF($E7=0, " ", VLOOKUP($E7, 'Cenovnik 2'!$A$2:$D$411, 3, FALSE)) -> m2 | H7: =IF($E7=0, " ", VLOOKUP($E7, 'Cenovnik 2'!$A$2:$D$411, 4, FALSE)) -> 3.99 | I7: 8500 | J7: =IF(ISNUMBER($H7), $H7*$I7, "-") -> 33915 | K7: =IFERROR(INDEX(LokacijeRadovaLat,MATCH(C7,LokacijaRadova,0)),"") -> OP | L7: =TEXT(LEFT($E7,FIND(".",$E7&".")-1), "00") -> 04 | M7: ДА | R7: =IF($C7=0, " ", VLOOKUP($C7, DrzavniPuteviRed, 2, FALSE)) ->  | S7: =IF($E7=0, " ", VLOOKUP($E7, SifrePozicijaBezTacke, 2, FALSE)) -> 47 | T7: =LEFT($S7, 3) -> 47 | U7: =IF(VLOOKUP($E7,[0]!ProveraPDV,2,FALSE)=TRUE,$J7,) ->  | V7: =IF(VLOOKUP($E7,liste!$A$31:$B$818,2,FALSE)=TRUE,#REF!,) ->  | W7: =R7&"-"&C7 ->  | X7: =INDEX('Cenovnik 2'!$G$2:$G$411,MATCH('Plan unos i pregled'!$E7,Pozicije,0)) -> nebitno | Z7: plaćeno
A8: 2025. | B8: АПРИЛ | C8: Општински путеви | D8: ОП 136-23 - Топоница - Ново Село | E8: 4.7 | F8: =IF($E8=0, " ", VLOOKUP($E8, 'Cenovnik 2'!$A$2:$D$411, 2, FALSE)) -> Кошење траве са банкина самоходном моторном косачицом | G8: =IF($E8=0, " ", VLOOKUP($E8, 'Cenovnik 2'!$A$2:$D$411, 3, FALSE)) -> m2 | H8: =IF($E8=0, " ", VLOOKUP($E8, 'Cenovnik 2'!$A$2:$D$411, 4, FALSE)) -> 3.99 | I8: 9400 | J8: 37506 | K8: OP | L8: 04 | M8: ДА | S8: 47 | T8: 47 | U8: =IF(VLOOKUP($E8,[0]!ProveraPDV,2,FALSE)=TRUE,$J8,) ->  | V8: =IF(VLOOKUP($E8,liste!$A$31:$B$818,2,FALSE)=TRUE,#REF!,) ->  | X8: =INDEX('Cenovnik 2'!$G$2:$G$411,MATCH('Plan unos i pregled'!$E8,Pozicije,0)) -> nebitno | Z8: plaćeno
A9: 2025. | B9: АПРИЛ | C9: Општински путеви | D9: ОП 136-21 - Држ.пут II А бр. 225 - Виландрица | E9: 4.7 | F9: =IF($E9=0, " ", VLOOKUP($E9, 'Cenovnik 2'!$A$2:$D$411, 2, FALSE)) -> Кошење траве са банкина самоходном моторном косачицом | G9: =IF($E9=0, " ", VLOOKUP($E9, 'Cenovnik 2'!$A$2:$D$411, 3, FALSE)) -> m2 | H9: =IF($E9=0, " ", VLOOKUP($E9, 'Cenovnik 2'!$A$2:$D$411, 4, FALSE)) -> 3.99 | I9: 1550 | J9: 6184.5 | K9: OP | L9: 04 | M9: ДА | S9: 47 | T9: 47 | U9: =IF(VLOOKUP($E9,[0]!ProveraPDV,2,FALSE)=TRUE,$J9,) ->  | V9: =IF(VLOOKUP($E9,liste!$A$31:$B$818,2,FALSE)=TRUE,#REF!,) ->  | X9: =INDEX('Cenovnik 2'!$G$2:$G$411,MATCH('Plan unos i pregled'!$E9,Pozicije,0)) -> nebitno | Z9: plaćeno
A10: 2025. | B10: АПРИЛ | C10: Улице | D10: Горњи Барбеш - Добросава Стојановића | E10: 4.7 | F10: =IF($E10=0, " ", VLOOKUP($E10, 'Cenovnik 2'!$A$2:$D$411, 2, FALSE)) -> Кошење траве са банкина самоходном моторном косачицом | G10: =IF($E10=0, " ", VLOOKUP($E10, 'Cenovnik 2'!$A$2:$D$411, 3, FALSE)) -> m2 | H10: =IF($E10=0, " ", VLOOKUP($E10, 'Cenovnik 2'!$A$2:$D$411, 4, FALSE)) -> 3.99 | I10: 1570 | J10: 6264.3 | K10: Ul | L10: 04 | M10: ДА | S10: 47 | T10: 47 | U10: =IF(VLOOKUP($E10,[0]!ProveraPDV,2,FALSE)=TRUE,$J10,) ->  | V10: =IF(VLOOKUP($E10,liste!$A$31:$B$818,2,FALSE)=TRUE,#REF!,) ->  | X10: =INDEX('Cenovnik 2'!$G$2:$G$411,MATCH('Plan unos i pregled'!$E10,Pozicije,0)) -> nebitno | Z10: plaćeno
A11: 2025. | B11: АПРИЛ | C11: Улице | D11: Горњи Барбеш - Браће Живковића | E11: 4.7 | F11: =IF($E11=0, " ", VLOOKUP($E11, 'Cenovnik 2'!$A$2:$D$411, 2, FALSE)) -> Кошење траве са банкина самоходном моторном косачицом | G11: =IF($E11=0, " ", VLOOKUP($E11, 'Cenovnik 2'!$A$2:$D$411, 3, FALSE)) -> m2 | H11: =IF($E11=0, " ", VLOOKUP($E11, 'Cenovnik 2'!$A$2:$D$411, 4, FALSE)) -> 3.99 | I11: 739 | J11: 2948.61 | K11: Ul | L11: 04 | M11: ДА | S11: 47 | T11: 47 | U11: =IF(VLOOKUP($E11,[0]!ProveraPDV,2,FALSE)=TRUE,$J11,) ->  | V11: =IF(VLOOKUP($E11,liste!$A$31:$B$818,2,FALSE)=TRUE,#REF!,) ->  | X11: =INDEX('Cenovnik 2'!$G$2:$G$411,MATCH('Plan unos i pregled'!$E11,Pozicije,0)) -> nebitno | Z11: plaćeno
A12: 2025. | B12: АПРИЛ | C12: Улице | D12: Горњи Барбеш - Десете Бригаде | E12: 4.7 | F12: =IF($E12=0, " ", VLOOKUP($E12, 'Cenovnik 2'!$A$2:$D$411, 2, FALSE)) -> Кошење траве са банкина самоходном моторном косачицом | G12: =IF($E12=0, " ", VLOOKUP($E12, 'Cenovnik 2'!$A$2:$D$411, 3, FALSE)) -> m2 | H12: =IF($E12=0, " ", VLOOKUP($E12, 'Cenovnik 2'!$A$2:$D$411, 4, FALSE)) -> 3.99 | I12: 583 | J12: 2326.17 | K12: Ul | L12: 04 | M12: ДА | S12: 47 | T12: 47 | U12: =IF(VLOOKUP($E12,[0]!ProveraPDV,2,FALSE)=TRUE,$J12,) ->  | V12: =IF(VLOOKUP($E12,liste!$A$31:$B$818,2,FALSE)=TRUE,#REF!,) ->  | X12: =INDEX('Cenovnik 2'!$G$2:$G$411,MATCH('Plan unos i pregled'!$E12,Pozicije,0)) -> nebitno | Z12: plaćeno
A13: 2025. | B13: АПРИЛ | C13: Улице | D13: Горњи Барбеш - Тодора Јованчића | E13: 4.7 | F13: =IF($E13=0, " ", VLOOKUP($E13, 'Cenovnik 2'!$A$2:$D$411, 2, FALSE)) -> Кошење траве са банкина самоходном моторном косачицом | G13: =IF($E13=0, " ", VLOOKUP($E13, 'Cenovnik 2'!$A$2:$D$411, 3, FALSE)) -> m2 | H13: =IF($E13=0, " ", VLOOKUP($E13, 'Cenovnik 2'!$A$2:$D$411, 4, FALSE)) -> 3.99 | I13: 544 | J13: 2170.56 | K13: Ul | L13: 04 | M13: ДА | S13: 47 | T13: 47 | U13: =IF(VLOOKUP($E13,[0]!ProveraPDV,2,FALSE)=TRUE,$J13,) ->  | V13: =IF(VLOOKUP($E13,liste!$A$31:$B$818,2,FALSE)=TRUE,#REF!,) ->  | X13: =INDEX('Cenovnik 2'!$G$2:$G$411,MATCH('Plan unos i pregled'!$E13,Pozicije,0)) -> nebitno | Z13: plaćeno
A14: 2025. | B14: АПРИЛ | C14: Улице | D14: Горњи Барбеш - Владимира Тасића | E14: 4.7 | F14: =IF($E14=0, " ", VLOOKUP($E14, 'Cenovnik 2'!$A$2:$D$411, 2, FALSE)) -> Кошење траве са банкина самоходном моторном косачицом | G14: =IF($E14=0, " ", VLOOKUP($E14, 'Cenovnik 2'!$A$2:$D$411, 3, FALSE)) -> m2 | H14: =IF($E14=0, " ", VLOOKUP($E14, 'Cenovnik 2'!$A$2:$D$411, 4, FALSE)) -> 3.99 | I14: 679 | J14: 2709.21 | K14: Ul | L14: 04 | M14: ДА | S14: 47 | T14: 47 | U14: =IF(VLOOKUP($E14,[0]!ProveraPDV,2,FALSE)=TRUE,$J14,) ->  | V14: =IF(VLOOKUP($E14,liste!$A$31:$B$818,2,FALSE)=TRUE,#REF!,) ->  | X14: =INDEX('Cenovnik 2'!$G$2:$G$411,MATCH('Plan unos i pregled'!$E14,Pozicije,0)) -> nebitno | Z14: plaćeno
A15: 2025. | B15: АПРИЛ | C15: Улице | D15: Горњи Барбеш - Свете Петке | E15: 4.7 | F15: =IF($E15=0, " ", VLOOKUP($E15, 'Cenovnik 2'!$A$2:$D$411, 2, FALSE)) -> Кошење траве са банкина самоходном моторном косачицом | G15: =IF($E15=0, " ", VLOOKUP($E15, 'Cenovnik 2'!$A$2:$D$411, 3, FALSE)) -> m2 | H15: =IF($E15=0, " ", VLOOKUP($E15, 'Cenovnik 2'!$A$2:$D$411, 4, FALSE)) -> 3.99 | I15: 326 | J15: 1300.74 | K15: Ul | L15: 04 | M15: ДА | S15: 47 | T15: 47 | U15: =IF(VLOOKUP($E15,[0]!ProveraPDV,2,FALSE)=TRUE,$J15,) ->  | V15: =IF(VLOOKUP($E15,liste!$A$31:$B$818,2,FALSE)=TRUE,#REF!,) ->  | X15: =INDEX('Cenovnik 2'!$G$2:$G$411,MATCH('Plan unos i pregled'!$E15,Pozicije,0)) -> nebitno | Z15: plaćeno
A16: 2025. | B16: АПРИЛ | C16: Улице | D16: Горњи Барбеш - Теслина | E16: 4.7 | F16: =IF($E16=0, " ", VLOOKUP($E16, 'Cenovnik 2'!$A$2:$D$411, 2, FALSE)) -> Кошење траве са банкина самоходном моторном косачицом | G16: =IF($E16=0, " ", VLOOKUP($E16, 'Cenovnik 2'!$A$2:$D$411, 3, FALSE)) -> m2 | H16: =IF($E16=0, " ", VLOOKUP($E16, 'Cenovnik 2'!$A$2:$D$411, 4, FALSE)) -> 3.99 | I16: 456 | J16: 1819.44 | K16: Ul | L16: 04 | M16: ДА | S16: 47 | T16: 47 | U16: =IF(VLOOKUP($E16,[0]!ProveraPDV,2,FALSE)=TRUE,$J16,) ->  | V16: =IF(VLOOKUP($E16,liste!$A$31:$B$818,2,FALSE)=TRUE,#REF!,) ->  | X16: =INDEX('Cenovnik 2'!$G$2:$G$411,MATCH('Plan unos i pregled'!$E16,Pozicije,0)) -> nebitno | Z16: plaćeno
A17: 2025. | B17: АПРИЛ | C17: Општински путеви | D17: ОП 136-22 - Држ.пут II А бр. 225 - Дукат | E17: 4.7 | F17: =IF($E17=0, " ", VLOOKUP($E17, 'Cenovnik 2'!$A$2:$D$411, 2, FALSE)) -> Кошење траве са банкина самоходном моторном косачицом | G17: =IF($E17=0, " ", VLOOKUP($E17, 'Cenovnik 2'!$A$2:$D$411, 3, FALSE)) -> m2 | H17: =IF($E17=0, " ", VLOOKUP($E17, 'Cenovnik 2'!$A$2:$D$411, 4, FALSE)) -> 3.99 | I17: 5800 | J17: 23142 | K17: OP | L17: 04 | M17: ДА | S17: 47 | T17: 47 | U17: =IF(VLOOKUP($E17,[0]!ProveraPDV,2,FALSE)=TRUE,$J17,) ->  | V17: =IF(VLOOKUP($E17,liste!$A$31:$B$818,2,FALSE)=TRUE,#REF!,) ->  | X17: =INDEX('Cenovnik 2'!$G$2:$G$411,MATCH('Plan unos i pregled'!$E17,Pozicije,0)) -> nebitno | Z17: plaćeno
A18: 2025. | B18: АПРИЛ | C18: Општински путеви | D18: ОП 136-24 - Горњи Барбеш - Дукат | E18: 4.22 | F18: =IF($E18=0, " ", VLOOKUP($E18, 'Cenovnik 2'!$A$2:$D$411, 2, FALSE)) -> Сечење густог шибља преко 50 ком на m² | G18: =IF($E18=0, " ", VLOOKUP($E18, 'Cenovnik 2'!$A$2:$D$411, 3, FALSE)) -> m2 | H18: =IF($E18=0, " ", VLOOKUP($E18, 'Cenovnik 2'!$A$2:$D$411, 4, FALSE)) -> 60 | I18: 950 | J18: 57000 | K18: OP | L18: 04 | M18: ДА | R18: =IF($C18=0, " ", VLOOKUP($C18, DrzavniPuteviRed, 2, FALSE)) ->  | S18: 422 | T18: 422 | U18: =IF(VLOOKUP($E18,[0]!ProveraPDV,2,FALSE)=TRUE,$J18,) ->  | V18: =IF(VLOOKUP($E18,liste!$A$31:$B$818,2,FALSE)=TRUE,#REF!,) ->  | X18: =INDEX('Cenovnik 2'!$G$2:$G$411,MATCH('Plan unos i pregled'!$E18,Pozicije,0)) -> nebitno | Z18: plaćeno
A19: 2025. | B19: АПРИЛ | C19: Општински путеви | D19: ОП 136-23 - Топоница - Ново Село | E19: 4.22 | F19: =IF($E19=0, " ", VLOOKUP($E19, 'Cenovnik 2'!$A$2:$D$411, 2, FALSE)) -> Сечење густог шибља преко 50 ком на m² | G19: =IF($E19=0, " ", VLOOKUP($E19, 'Cenovnik 2'!$A$2:$D$411, 3, FALSE)) -> m2 | H19: =IF($E19=0, " ", VLOOKUP($E19, 'Cenovnik 2'!$A$2:$D$411, 4, FALSE)) -> 60 | I19: 1500 | J19: 90000 | K19: OP | L19: 04 | M19: ДА | S19: 422 | T19: 422 | U19: =IF(VLOOKUP($E19,[0]!ProveraPDV,2,FALSE)=TRUE,$J19,) ->  | V19: =IF(VLOOKUP($E19,liste!$A$31:$B$818,2,FALSE)=TRUE,#REF!,) ->  | X19: =INDEX('Cenovnik 2'!$G$2:$G$411,MATCH('Plan unos i pregled'!$E19,Pozicije,0)) -> nebitno | Z19: plaćeno
A20: 2025. | B20: АПРИЛ | C20: Општински путеви | D20: ОП 136-21 - Држ.пут II А бр. 225 - Виландрица | E20: 4.22 | F20: =IF($E20=0, " ", VLOOKUP($E20, 'Cenovnik 2'!$A$2:$D$411, 2, FALSE)) -> Сечење густог шибља преко 50 ком на m² | G20: =IF($E20=0, " ", VLOOKUP($E20, 'Cenovnik 2'!$A$2:$D$411, 3, FALSE)) -> m2 | H20: =IF($E20=0, " ", VLOOKUP($E20, 'Cenovnik 2'!$A$2:$D$411, 4, FALSE)) -> 60 | I20: 300 | J20: 18000 | K20: OP | L20: 04 | M20: ДА | S20: 422 | T20: 422 | U20: =IF(VLOOKUP($E20,[0]!ProveraPDV,2,FALSE)=TRUE,$J20,) ->  | V20: =IF(VLOOKUP($E20,liste!$A$31:$B$818,2,FALSE)=TRUE,#REF!,) ->  | X20: =INDEX('Cenovnik 2'!$G$2:$G$411,MATCH('Plan unos i pregled'!$E20,Pozicije,0)) -> nebitno | Z20: plaćeno
A21: 2025. | B21: АПРИЛ | C21: Улице | D21: Горњи Барбеш - Добросава Стојановића | E21: 4.22 | F21: =IF($E21=0, " ", VLOOKUP($E21, 'Cenovnik 2'!$A$2:$D$411, 2, FALSE)) -> Сечење густог шибља преко 50 ком на m² | G21: =IF($E21=0, " ", VLOOKUP($E21, 'Cenovnik 2'!$A$2:$D$411, 3, FALSE)) -> m2 | H21: =IF($E21=0, " ", VLOOKUP($E21, 'Cenovnik 2'!$A$2:$D$411, 4, FALSE)) -> 60 | I21: 150 | J21: 9000 | K21: Ul | L21: 04 | M21: ДА | S21: 422 | T21: 422 | U21: =IF(VLOOKUP($E21,[0]!ProveraPDV,2,FALSE)=TRUE,$J21,) ->  | V21: =IF(VLOOKUP($E21,liste!$A$31:$B$818,2,FALSE)=TRUE,#REF!,) ->  | X21: =INDEX('Cenovnik 2'!$G$2:$G$411,MATCH('Plan unos i pregled'!$E21,Pozicije,0)) -> nebitno | Z21: plaćeno
A22: 2025. | B22: АПРИЛ | C22: Улице | D22: Горњи Барбеш - Браће Живковића | E22: 4.22 | F22: =IF($E22=0, " ", VLOOKUP($E22, 'Cenovnik 2'!$A$2:$D$411, 2, FALSE)) -> Сечење густог шибља преко 50 ком на m² | G22: =IF($E22=0, " ", VLOOKUP($E22, 'Cenovnik 2'!$A$2:$D$411, 3, FALSE)) -> m2 | H22: =IF($E22=0, " ", VLOOKUP($E22, 'Cenovnik 2'!$A$2:$D$411, 4, FALSE)) -> 60 | I22: 150 | J22: 9000 | K22: Ul | L22: 04 | M22: ДА | S22: 422 | T22: 422 | U22: =IF(VLOOKUP($E22,[0]!ProveraPDV,2,FALSE)=TRUE,$J22,) ->  | V22: =IF(VLOOKUP($E22,liste!$A$31:$B$818,2,FALSE)=TRUE,#REF!,) ->  | X22: =INDEX('Cenovnik 2'!$G$2:$G$411,MATCH('Plan unos i pregled'!$E22,Pozicije,0)) -> nebitno | Z22: plaćeno
A23: 2025. | B23: АПРИЛ | C23: Улице | D23: Горњи Барбеш - Десете Бригаде | E23: 4.22 | F23: =IF($E23=0, " ", VLOOKUP($E23, 'Cenovnik 2'!$A$2:$D$411, 2, FALSE)) -> Сечење густог шибља преко 50 ком на m² | G23: =IF($E23=0, " ", VLOOKUP($E23, 'Cenovnik 2'!$A$2:$D$411, 3, FALSE)) -> m2 | H23: =IF($E23=0, " ", VLOOKUP($E23, 'Cenovnik 2'!$A$2:$D$411, 4, FALSE)) -> 60 | I23: 150 | J23: 9000 | K23: Ul | L23: 04 | M23: ДА | S23: 422 | T23: 422 | U23: =IF(VLOOKUP($E23,[0]!ProveraPDV,2,FALSE)=TRUE,$J23,) ->  | V23: =IF(VLOOKUP($E23,liste!$A$31:$B$818,2,FALSE)=TRUE,#REF!,) ->  | X23: =INDEX('Cenovnik 2'!$G$2:$G$411,MATCH('Plan unos i pregled'!$E23,Pozicije,0)) -> nebitno | Z23: plaćeno
A24: 2025. | B24: АПРИЛ | C24: Улице | D24: Горњи Барбеш - Тодора Јованчића | E24: 4.22 | F24: =IF($E24=0, " ", VLOOKUP($E24, 'Cenovnik 2'!$A$2:$D$411, 2, FALSE)) -> Сечење густог шибља преко 50 ком на m² | G24: =IF($E24=0, " ", VLOOKUP($E24, 'Cenovnik 2'!$A$2:$D$411, 3, FALSE)) -> m2 | H24: =IF($E24=0, " ", VLOOKUP($E24, 'Cenovnik 2'!$A$2:$D$411, 4, FALSE)) -> 60 | I24: 150 | J24: 9000 | K24: Ul | L24: 04 | M24: ДА | S24: 422 | T24: 422 | U24: =IF(VLOOKUP($E24,[0]!ProveraPDV,2,FALSE)=TRUE,$J24,) ->  | V24: =IF(VLOOKUP($E24,liste!$A$31:$B$818,2,FALSE)=TRUE,#REF!,) ->  | X24: =INDEX('Cenovnik 2'!$G$2:$G$411,MATCH('Plan unos i pregled'!$E24,Pozicije,0)) -> nebitno | Z24: plaćeno
A25: 2025. | B25: АПРИЛ | C25: Улице | D25: Горњи Барбеш - Владимира Тасића | E25: 4.22 | F25: =IF($E25=0, " ", VLOOKUP($E25, 'Cenovnik 2'!$A$2:$D$411, 2, FALSE)) -> Сечење густог шибља преко 50 ком на m² | G25: =IF($E25=0, " ", VLOOKUP($E25, 'Cenovnik 2'!$A$2:$D$411, 3, FALSE)) -> m2 | H25: =IF($E25=0, " ", VLOOKUP($E25, 'Cenovnik 2'!$A$2:$D$411, 4, FALSE)) -> 60 | I25: 150 | J25: 9000 | K25: Ul | L25: 04 | M25: ДА | S25: =IF($E25=0, " ", VLOOKUP($E25, SifrePozicijaBezTacke, 2, FALSE)) -> 422 | T25: 422 | U25: =IF(VLOOKUP($E25,[0]!ProveraPDV,2,FALSE)=TRUE,$J25,) ->  | V25: =IF(VLOOKUP($E25,liste!$A$31:$B$818,2,FALSE)=TRUE,#REF!,) ->  | X25: =INDEX('Cenovnik 2'!$G$2:$G$411,MATCH('Plan unos i pregled'!$E25,Pozicije,0)) -> nebitno | Z25: plaćeno
A26: 2025. | B26: АПРИЛ | C26: Улице | D26: Горњи Барбеш - Свете Петке | E26: 4.22 | F26: =IF($E26=0, " ", VLOOKUP($E26, 'Cenovnik 2'!$A$2:$D$411, 2, FALSE)) -> Сечење густог шибља преко 50 ком на m² | G26: =IF($E26=0, " ", VLOOKUP($E26, 'Cenovnik 2'!$A$2:$D$411, 3, FALSE)) -> m2 | H26: =IF($E26=0, " ", VLOOKUP($E26, 'Cenovnik 2'!$A$2:$D$411, 4, FALSE)) -> 60 | I26: 150 | J26: 9000 | K26: Ul | L26: 04 | M26: ДА | S26: 422 | T26: 422 | U26: =IF(VLOOKUP($E26,[0]!ProveraPDV,2,FALSE)=TRUE,$J26,) ->  | V26: =IF(VLOOKUP($E26,liste!$A$31:$B$818,2,FALSE)=TRUE,#REF!,) ->  | X26: =INDEX('Cenovnik 2'!$G$2:$G$411,MATCH('Plan unos i pregled'!$E26,Pozicije,0)) -> nebitno | Z26: plaćeno
A27: 2025. | B27: АПРИЛ | C27: Улице | D27: Горњи Барбеш - Теслина | E27: 4.22 | F27: =IF($E27=0, " ", VLOOKUP($E27, 'Cenovnik 2'!$A$2:$D$411, 2, FALSE)) -> Сечење густог шибља преко 50 ком на m² | G27: =IF($E27=0, " ", VLOOKUP($E27, 'Cenovnik 2'!$A$2:$D$411, 3, FALSE)) -> m2 | H27: =IF($E27=0, " ", VLOOKUP($E27, 'Cenovnik 2'!$A$2:$D$411, 4, FALSE)) -> 60 | I27: 150 | J27: 9000 | K27: Ul | L27: 04 | M27: ДА | S27: 422 | T27: 422 | U27: =IF(VLOOKUP($E27,[0]!ProveraPDV,2,FALSE)=TRUE,$J27,) ->  | V27: =IF(VLOOKUP($E27,liste!$A$31:$B$818,2,FALSE)=TRUE,#REF!,) ->  | X27: =INDEX('Cenovnik 2'!$G$2:$G$411,MATCH('Plan unos i pregled'!$E27,Pozicije,0)) -> nebitno | Z27: plaćeno
A28: 2025. | B28: АПРИЛ | C28: Општински путеви | D28: ОП 136-3 - Гаџин Хан - Копривница | E28: 4.22 | F28: =IF($E28=0, " ", VLOOKUP($E28, 'Cenovnik 2'!$A$2:$D$411, 2, FALSE)) -> Сечење густог шибља преко 50 ком на m² | G28: =IF($E28=0, " ", VLOOKUP($E28, 'Cenovnik 2'!$A$2:$D$411, 3, FALSE)) -> m2 | H28: =IF($E28=0, " ", VLOOKUP($E28, 'Cenovnik 2'!$A$2:$D$411, 4, FALSE)) -> 60 | I28: 981 | J28: 58860 | K28: OP | L28: 04 | M28: ДА | S28: 422 | T28: 422 | U28: =IF(VLOOKUP($E28,[0]!ProveraPDV,2,FALSE)=TRUE,$J28,) ->  | V28: =IF(VLOOKUP($E28,liste!$A$31:$B$818,2,FALSE)=TRUE,#REF!,) ->  | X28: =INDEX('Cenovnik 2'!$G$2:$G$411,MATCH('Plan unos i pregled'!$E28,Pozicije,0)) -> nebitno | Z28: plaćeno
A29: 2025. | B29: АПРИЛ | C29: Општински путеви | D29: ОП 136-29 - Гаџин Хан - Јагличје | E29: 4.22 | F29: =IF($E29=0, " ", VLOOKUP($E29, 'Cenovnik 2'!$A$2:$D$411, 2, FALSE)) -> Сечење густог шибља преко 50 ком на m² | G29: =IF($E29=0, " ", VLOOKUP($E29, 'Cenovnik 2'!$A$2:$D$411, 3, FALSE)) -> m2 | H29: =IF($E29=0, " ", VLOOKUP($E29, 'Cenovnik 2'!$A$2:$D$411, 4, FALSE)) -> 60 | I29: 1480 | J29: 88800 | K29: OP | L29: 04 | M29: ДА | S29: 422 | T29: 422 | U29: =IF(VLOOKUP($E29,[0]!ProveraPDV,2,FALSE)=TRUE,$J29,) ->  | V29: =IF(VLOOKUP($E29,liste!$A$31:$B$818,2,FALSE)=TRUE,#REF!,) ->  | X29: =INDEX('Cenovnik 2'!$G$2:$G$411,MATCH('Plan unos i pregled'!$E29,Pozicije,0)) -> nebitno | Z29: plaćeno
A30: 2025. | B30: АПРИЛ | C30: Улице | D30: Гркиња - Некатегорисан пут | E30: 4.22 | F30: =IF($E30=0, " ", VLOOKUP($E30, 'Cenovnik 2'!$A$2:$D$411, 2, FALSE)) -> Сечење густог шибља преко 50 ком на m² | G30: =IF($E30=0, " ", VLOOKUP($E30, 'Cenovnik 2'!$A$2:$D$411, 3, FALSE)) -> m2 | H30: =IF($E30=0, " ", VLOOKUP($E30, 'Cenovnik 2'!$A$2:$D$411, 4, FALSE)) -> 60 | I30: 240 | J30: 14400 | K30: Ul | L30: 04 | M30: ДА | N30: 8180/1 KO Grkinja | S30: 422 | T30: 422 | U30: =IF(VLOOKUP($E30,[0]!ProveraPDV,2,FALSE)=TRUE,$J30,) ->  | V30: =IF(VLOOKUP($E30,liste!$A$31:$B$818,2,FALSE)=TRUE,#REF!,) ->  | X30: =INDEX('Cenovnik 2'!$G$2:$G$411,MATCH('Plan unos i pregled'!$E30,Pozicije,0)) -> nebitno | Z30: plaćeno
A31: 2025. | B31: АПРИЛ | C31: Улице | D31: Горње Власе - Некатегорисан пут | E31: 4.22 | F31: =IF($E31=0, " ", VLOOKUP($E31, 'Cenovnik 2'!$A$2:$D$411, 2, FALSE)) -> Сечење густог шибља преко 50 ком на m² | G31: =IF($E31=0, " ", VLOOKUP($E31, 'Cenovnik 2'!$A$2:$D$411, 3, FALSE)) -> m2 | H31: =IF($E31=0, " ", VLOOKUP($E31, 'Cenovnik 2'!$A$2:$D$411, 4, FALSE)) -> 60 | I31: 240 | J31: 14400 | K31: Ul | L31: 04 | M31: ДА | N31: 5569 KO Gornje Vlase | S31: 422 | T31: 422 | U31: =IF(VLOOKUP($E31,[0]!ProveraPDV,2,FALSE)=TRUE,$J31,) ->  | V31: =IF(VLOOKUP($E31,liste!$A$31:$B$818,2,FALSE)=TRUE,#REF!,) ->  | X31: =INDEX('Cenovnik 2'!$G$2:$G$411,MATCH('Plan unos i pregled'!$E31,Pozicije,0)) -> nebitno | Z31: plaćeno
A32: 2025. | B32: АПРИЛ | C32: Улице | D32: Горње Власе - Некатегорисан пут | E32: 4.22 | F32: =IF($E32=0, " ", VLOOKUP($E32, 'Cenovnik 2'!$A$2:$D$411, 2, FALSE)) -> Сечење густог шибља преко 50 ком на m² | G32: =IF($E32=0, " ", VLOOKUP($E32, 'Cenovnik 2'!$A$2:$D$411, 3, FALSE)) -> m2 | H32: =IF($E32=0, " ", VLOOKUP($E32, 'Cenovnik 2'!$A$2:$D$411, 4, FALSE)) -> 60 | I32: 240 | J32: 14400 | K32: Ul | L32: 04 | M32: ДА | N32: 2463 KO Gornje Vlase | S32: 422 | T32: 422 | U32: =IF(VLOOKUP($E32,[0]!ProveraPDV,2,FALSE)=TRUE,$J32,) ->  | V32: =IF(VLOOKUP($E32,liste!$A$31:$B$818,2,FALSE)=TRUE,#REF!,) ->  | X32: =INDEX('Cenovnik 2'!$G$2:$G$411,MATCH('Plan unos i pregled'!$E32,Pozicije,0)) -> nebitno | Z32: plaćeno
A33: 2025. | B33: АПРИЛ | C33: Улице | D33: Горње Власе - Некатегорисан пут | E33: 4.22 | F33: =IF($E33=0, " ", VLOOKUP($E33, 'Cenovnik 2'!$A$2:$D$411, 2, FALSE)) -> Сечење густог шибља преко 50 ком на m² | G33: =IF($E33=0, " ", VLOOKUP($E33, 'Cenovnik 2'!$A$2:$D$411, 3, FALSE)) -> m2 | H33: =IF($E33=0, " ", VLOOKUP($E33, 'Cenovnik 2'!$A$2:$D$411, 4, FALSE)) -> 60 | I33: 240 | J33: 14400 | K33: Ul | L33: 04 | M33: ДА | N33: 2470/3 KO Gornje Vlase | S33: 422 | T33: 422 | U33: =IF(VLOOKUP($E33,[0]!ProveraPDV,2,FALSE)=TRUE,$J33,) ->  | V33: =IF(VLOOKUP($E33,liste!$A$31:$B$818,2,FALSE)=TRUE,#REF!,) ->  | X33: =INDEX('Cenovnik 2'!$G$2:$G$411,MATCH('Plan unos i pregled'!$E33,Pozicije,0)) -> nebitno | Z33: plaćeno
A34: 2025. | B34: АПРИЛ | C34: Улице | D34: Горње Власе - Милоша Обилића | E34: 4.22 | F34: =IF($E34=0, " ", VLOOKUP($E34, 'Cenovnik 2'!$A$2:$D$411, 2, FALSE)) -> Сечење густог шибља преко 50 ком на m² | G34: =IF($E34=0, " ", VLOOKUP($E34, 'Cenovnik 2'!$A$2:$D$411, 3, FALSE)) -> m2 | H34: =IF($E34=0, " ", VLOOKUP($E34, 'Cenovnik 2'!$A$2:$D$411, 4, FALSE)) -> 60 | I34: 240 | J34: 14400 | K34: Ul | L34: 04 | M34: ДА | N34: 2420 KO Gornje Vlase | S34: 422 | T34: 422 | U34: =IF(VLOOKUP($E34,[0]!ProveraPDV,2,FALSE)=TRUE,$J34,) ->  | V34: =IF(VLOOKUP($E34,liste!$A$31:$B$818,2,FALSE)=TRUE,#REF!,) ->  | X34: =INDEX('Cenovnik 2'!$G$2:$G$411,MATCH('Plan unos i pregled'!$E34,Pozicije,0)) -> nebitno | Z34: plaćeno
A35: 2025. | B35: АПРИЛ | C35: Општински путеви | D35: ОП 136-31 - Дуга Пољана - Ћелије | E35: 4.22 | F35: =IF($E35=0, " ", VLOOKUP($E35, 'Cenovnik 2'!$A$2:$D$411, 2, FALSE)) -> Сечење густог шибља преко 50 ком на m² | G35: =IF($E35=0, " ", VLOOKUP($E35, 'Cenovnik 2'!$A$2:$D$411, 3, FALSE)) -> m2 | H35: =IF($E35=0, " ", VLOOKUP($E35, 'Cenovnik 2'!$A$2:$D$411, 4, FALSE)) -> 60 | I35: 1158 | J35: 69480 | K35: OP | L35: 04 | M35: ДА | S35: 422 | T35: 422 | U35: =IF(VLOOKUP($E35,[0]!ProveraPDV,2,FALSE)=TRUE,$J35,) ->  | V35: =IF(VLOOKUP($E35,liste!$A$31:$B$818,2,FALSE)=TRUE,#REF!,) ->  | X35: =INDEX('Cenovnik 2'!$G$2:$G$411,MATCH('Plan unos i pregled'!$E35,Pozicije,0)) -> nebitno
A36: 2025. | B36: АПРИЛ | C36: Улице | D36: Гркиња - Некатегорисан пут | E36: 4.22 | F36: =IF($E36=0, " ", VLOOKUP($E36, 'Cenovnik 2'!$A$2:$D$411, 2, FALSE)) -> Сечење густог шибља преко 50 ком на m² | G36: =IF($E36=0, " ", VLOOKUP($E36, 'Cenovnik 2'!$A$2:$D$411, 3, FALSE)) -> m2 | H36: =IF($E36=0, " ", VLOOKUP($E36, 'Cenovnik 2'!$A$2:$D$411, 4, FALSE)) -> 60 | I36: 20 | J36: 1200 | K36: Ul | L36: 04 | M36: ДА | N36: 8562 KO Grkinja | S36: 422 | T36: 422 | U36: =IF(VLOOKUP($E36,[0]!ProveraPDV,2,FALSE)=TRUE,$J36,) ->  | V36: =IF(VLOOKUP($E36,liste!$A$31:$B$818,2,FALSE)=TRUE,#REF!,) ->  | X36: =INDEX('Cenovnik 2'!$G$2:$G$411,MATCH('Plan unos i pregled'!$E36,Pozicije,0)) -> nebitno | Z36: plaćeno
A37: 2025. | B37: АПРИЛ | C37: Улице | D37: Гркиња - Некатегорисан пут | E37: 4.22 | F37: =IF($E37=0, " ", VLOOKUP($E37, 'Cenovnik 2'!$A$2:$D$411, 2, FALSE)) -> Сечење густог шибља преко 50 ком на m² | G37: =IF($E37=0, " ", VLOOKUP($E37, 'Cenovnik 2'!$A$2:$D$411, 3, FALSE)) -> m2 | H37: =IF($E37=0, " ", VLOOKUP($E37, 'Cenovnik 2'!$A$2:$D$411, 4, FALSE)) -> 60 | I37: 20 | J37: 1200 | K37: Ul | L37: 04 | M37: ДА | N37: 4969 KO Grkinja | S37: 422 | T37: 422 | U37: =IF(VLOOKUP($E37,[0]!ProveraPDV,2,FALSE)=TRUE,$J37,) ->  | V37: =IF(VLOOKUP($E37,liste!$A$31:$B$818,2,FALSE)=TRUE,#REF!,) ->  | X37: =INDEX('Cenovnik 2'!$G$2:$G$411,MATCH('Plan unos i pregled'!$E37,Pozicije,0)) -> nebitno | Z37: plaćeno
A38: 2025. | B38: АПРИЛ | C38: Улице | D38: Гркиња - Некатегорисан пут | E38: 4.22 | F38: =IF($E38=0, " ", VLOOKUP($E38, 'Cenovnik 2'!$A$2:$D$411, 2, FALSE)) -> Сечење густог шибља преко 50 ком на m² | G38: =IF($E38=0, " ", VLOOKUP($E38, 'Cenovnik 2'!$A$2:$D$411, 3, FALSE)) -> m2 | H38: =IF($E38=0, " ", VLOOKUP($E38, 'Cenovnik 2'!$A$2:$D$411, 4, FALSE)) -> 60 | I38: 20 | J38: 1200 | K38: Ul | L38: 04 | M38: ДА | N38: 8507/1 KO Grkinja | S38: 422 | T38: 422 | U38: =IF(VLOOKUP($E38,[0]!ProveraPDV,2,FALSE)=TRUE,$J38,) ->  | V38: =IF(VLOOKUP($E38,liste!$A$31:$B$818,2,FALSE)=TRUE,#REF!,) ->  | X38: =INDEX('Cenovnik 2'!$G$2:$G$411,MATCH('Plan unos i pregled'!$E38,Pozicije,0)) -> nebitno | Z38: plaćeno
A39: 2025. | B39: АПРИЛ | C39: Улице | D39: Гркиња - Некатегорисан пут | E39: 4.22 | F39: =IF($E39=0, " ", VLOOKUP($E39, 'Cenovnik 2'!$A$2:$D$411, 2, FALSE)) -> Сечење густог шибља преко 50 ком на m² | G39: =IF($E39=0, " ", VLOOKUP($E39, 'Cenovnik 2'!$A$2:$D$411, 3, FALSE)) -> m2 | H39: =IF($E39=0, " ", VLOOKUP($E39, 'Cenovnik 2'!$A$2:$D$411, 4, FALSE)) -> 60 | I39: 20 | J39: 1200 | K39: =IFERROR(INDEX(LokacijeRadovaLat,MATCH(C39,LokacijaRadova,0)),"") -> Ul | L39: 04 | M39: ДА | N39: 8178 KO Grkinja | S39: 422 | T39: 422 | U39: =IF(VLOOKUP($E39,[0]!ProveraPDV,2,FALSE)=TRUE,$J39,) ->  | V39: =IF(VLOOKUP($E39,liste!$A$31:$B$818,2,FALSE)=TRUE,#REF!,) ->  | W39: =R39&"-"&C39 ->  | X39: =INDEX('Cenovnik 2'!$G$2:$G$411,MATCH('Plan unos i pregled'!$E39,Pozicije,0)) -> nebitno | Z39: plaćeno
A40: 2025. | B40: АПРИЛ | C40: Улице | D40: Гркиња - Некатегорисан пут | E40: 4.22 | F40: =IF($E40=0, " ", VLOOKUP($E40, 'Cenovnik 2'!$A$2:$D$411, 2, FALSE)) -> Сечење густог шибља преко 50 ком на m² | G40: =IF($E40=0, " ", VLOOKUP($E40, 'Cenovnik 2'!$A$2:$D$411, 3, FALSE)) -> m2 | H40: =IF($E40=0, " ", VLOOKUP($E40, 'Cenovnik 2'!$A$2:$D$411, 4, FALSE)) -> 60 | I40: 20 | J40: 1200 | K40: Ul | L40: 04 | M40: ДА | N40: 8563/1 KO Grkinja | S40: 422 | T40: 422 | U40: =IF(VLOOKUP($E40,[0]!ProveraPDV,2,FALSE)=TRUE,$J40,) ->  | V40: =IF(VLOOKUP($E40,liste!$A$31:$B$818,2,FALSE)=TRUE,#REF!,) ->  | X40: =INDEX('Cenovnik 2'!$G$2:$G$411,MATCH('Plan unos i pregled'!$E40,Pozicije,0)) -> nebitno | Z40: plaćeno
A41: 2025. | B41: АПРИЛ | C41: Улице | D41: Гркиња - Некатегорисан пут | E41: 4.22 | F41: =IF($E41=0, " ", VLOOKUP($E41, 'Cenovnik 2'!$A$2:$D$411, 2, FALSE)) -> Сечење густог шибља преко 50 ком на m² | G41: =IF($E41=0, " ", VLOOKUP($E41, 'Cenovnik 2'!$A$2:$D$411, 3, FALSE)) -> m2 | H41: =IF($E41=0, " ", VLOOKUP($E41, 'Cenovnik 2'!$A$2:$D$411, 4, FALSE)) -> 60 | I41: 20 | J41: 1200 | K41: Ul | L41: 04 | M41: ДА | N41: 8166/2 KO Grkinja | S41: 422 | T41: 422 | U41: =IF(VLOOKUP($E41,[0]!ProveraPDV,2,FALSE)=TRUE,$J41,) ->  | V41: =IF(VLOOKUP($E41,liste!$A$31:$B$818,2,FALSE)=TRUE,#REF!,) ->  | X41: =INDEX('Cenovnik 2'!$G$2:$G$411,MATCH('Plan unos i pregled'!$E41,Pozicije,0)) -> nebitno | Z41: plaćeno
A42: 2025. | B42: АПРИЛ | C42: Улице | D42: Гркиња - Некатегорисан пут | E42: 4.22 | F42: =IF($E42=0, " ", VLOOKUP($E42, 'Cenovnik 2'!$A$2:$D$411, 2, FALSE)) -> Сечење густог шибља преко 50 ком на m² | G42: =IF($E42=0, " ", VLOOKUP($E42, 'Cenovnik 2'!$A$2:$D$411, 3, FALSE)) -> m2 | H42: =IF($E42=0, " ", VLOOKUP($E42, 'Cenovnik 2'!$A$2:$D$411, 4, FALSE)) -> 60 | I42: 20 | J42: 1200 | K42: Ul | L42: 04 | M42: ДА | N42: 8315 KO Grkinja | S42: 422 | T42: 422 | U42: =IF(VLOOKUP($E42,[0]!ProveraPDV,2,FALSE)=TRUE,$J42,) ->  | V42: =IF(VLOOKUP($E42,liste!$A$31:$B$818,2,FALSE)=TRUE,#REF!,) ->  | X42: =INDEX('Cenovnik 2'!$G$2:$G$411,MATCH('Plan unos i pregled'!$E42,Pozicije,0)) -> nebitno | Z42: plaćeno
A43: 2025. | B43: АПРИЛ | C43: Улице | D43: Гркиња - Некатегорисан пут | E43: 4.22 | F43: =IF($E43=0, " ", VLOOKUP($E43, 'Cenovnik 2'!$A$2:$D$411, 2, FALSE)) -> Сечење густог шибља преко 50 ком на m² | G43: =IF($E43=0, " ", VLOOKUP($E43, 'Cenovnik 2'!$A$2:$D$411, 3, FALSE)) -> m2 | H43: =IF($E43=0, " ", VLOOKUP($E43, 'Cenovnik 2'!$A$2:$D$411, 4, FALSE)) -> 60 | I43: 20 | J43: 1200 | K43: Ul | L43: 04 | M43: ДА | N43: 6077 KO Grkinja | S43: 422 | T43: 422 | U43: =IF(VLOOKUP($E43,[0]!ProveraPDV,2,FALSE)=TRUE,$J43,) ->  | V43: =IF(VLOOKUP($E43,liste!$A$31:$B$818,2,FALSE)=TRUE,#REF!,) ->  | X43: =INDEX('Cenovnik 2'!$G$2:$G$411,MATCH('Plan unos i pregled'!$E43,Pozicije,0)) -> nebitno | Z43: plaćeno
A44: 2025. | B44: АПРИЛ | C44: Улице | D44: Гркиња - Некатегорисан пут | E44: 4.22 | F44: =IF($E44=0, " ", VLOOKUP($E44, 'Cenovnik 2'!$A$2:$D$411, 2, FALSE)) -> Сечење густог шибља преко 50 ком на m² | G44: =IF($E44=0, " ", VLOOKUP($E44, 'Cenovnik 2'!$A$2:$D$411, 3, FALSE)) -> m2 | H44: =IF($E44=0, " ", VLOOKUP($E44, 'Cenovnik 2'!$A$2:$D$411, 4, FALSE)) -> 60 | I44: 20 | J44: 1200 | K44: Ul | L44: 04 | M44: ДА | N44: 6056 KO Grkinja | S44: 422 | T44: 422 | U44: =IF(VLOOKUP($E44,[0]!ProveraPDV,2,FALSE)=TRUE,$J44,) ->  | V44: =IF(VLOOKUP($E44,liste!$A$31:$B$818,2,FALSE)=TRUE,#REF!,) ->  | X44: =INDEX('Cenovnik 2'!$G$2:$G$411,MATCH('Plan unos i pregled'!$E44,Pozicije,0)) -> nebitno | Z44: plaćeno
A45: 2025. | B45: АПРИЛ | C45: Улице | D45: Гркиња - Некатегорисан пут | E45: 4.22 | F45: =IF($E45=0, " ", VLOOKUP($E45, 'Cenovnik 2'!$A$2:$D$411, 2, FALSE)) -> Сечење густог шибља преко 50 ком на m² | G45: =IF($E45=0, " ", VLOOKUP($E45, 'Cenovnik 2'!$A$2:$D$411, 3, FALSE)) -> m2 | H45: =IF($E45=0, " ", VLOOKUP($E45, 'Cenovnik 2'!$A$2:$D$411, 4, FALSE)) -> 60 | I45: 20 | J45: 1200 | K45: Ul | L45: 04 | M45: ДА | N45: 8177 KO Grkinja | S45: 422 | T45: 422 | U45: =IF(VLOOKUP($E45,[0]!ProveraPDV,2,FALSE)=TRUE,$J45,) ->  | V45: =IF(VLOOKUP($E45,liste!$A$31:$B$818,2,FALSE)=TRUE,#REF!,) ->  | X45: =INDEX('Cenovnik 2'!$G$2:$G$411,MATCH('Plan unos i pregled'!$E45,Pozicije,0)) -> nebitno | Z45: plaćeno
A46: 2025. | B46: АПРИЛ | C46: Општински путеви | D46: ОП 136-20 - Гркиња - Горње Власе | E46: 4.22 | F46: =IF($E46=0, " ", VLOOKUP($E46, 'Cenovnik 2'!$A$2:$D$411, 2, FALSE)) -> Сечење густог шибља преко 50 ком на m² | G46: =IF($E46=0, " ", VLOOKUP($E46, 'Cenovnik 2'!$A$2:$D$411, 3, FALSE)) -> m2 | H46: =IF($E46=0, " ", VLOOKUP($E46, 'Cenovnik 2'!$A$2:$D$411, 4, FALSE)) -> 60 | I46: 1450 | J46: 87000 | K46: OP | L46: 04 | M46: ДА | S46: 422 | T46: 422 | U46: =IF(VLOOKUP($E46,[0]!ProveraPDV,2,FALSE)=TRUE,$J46,) ->  | V46: =IF(VLOOKUP($E46,liste!$A$31:$B$818,2,FALSE)=TRUE,#REF!,) ->  | X46: =INDEX('Cenovnik 2'!$G$2:$G$411,MATCH('Plan unos i pregled'!$E46,Pozicije,0)) -> nebitno | Z46: plaćeno
A47: 2025. | B47: АПРИЛ | C47: Општински путеви | D47: ОП 136-22 - Држ.пут II А бр. 225 - Дукат | E47: 4.22 | F47: =IF($E47=0, " ", VLOOKUP($E47, 'Cenovnik 2'!$A$2:$D$411, 2, FALSE)) -> Сечење густог шибља преко 50 ком на m² | G47: =IF($E47=0, " ", VLOOKUP($E47, 'Cenovnik 2'!$A$2:$D$411, 3, FALSE)) -> m2 | H47: =IF($E47=0, " ", VLOOKUP($E47, 'Cenovnik 2'!$A$2:$D$411, 4, FALSE)) -> 60 | I47: 1000 | J47: 60000 | K47: OP | L47: 04 | M47: ДА | S47: 422 | T47: 422 | U47: =IF(VLOOKUP($E47,[0]!ProveraPDV,2,FALSE)=TRUE,$J47,) ->  | V47: =IF(VLOOKUP($E47,liste!$A$31:$B$818,2,FALSE)=TRUE,#REF!,) ->  | X47: =INDEX('Cenovnik 2'!$G$2:$G$411,MATCH('Plan unos i pregled'!$E47,Pozicije,0)) -> nebitno | Z47: plaćeno
A48: 2025. | B48: АПРИЛ | C48: Улице | D48: Личје - Милоша Обилића | E48: 4.19.1 | F48: =IF($E48=0, " ", VLOOKUP($E48, 'Cenovnik 2'!$A$2:$D$411, 2, FALSE)) -> Кресање грана са одлагањем на страну моторном тестером. Пречник грана од 0 - 10 cm | G48: =IF($E48=0, " ", VLOOKUP($E48, 'Cenovnik 2'!$A$2:$D$411, 3, FALSE)) -> ком | H48: =IF($E48=0, " ", VLOOKUP($E48, 'Cenovnik 2'!$A$2:$D$411, 4, FALSE)) -> 256.38 | I48: 78 | J48: 19997.64 | K48: Ul | L48: 04 | M48: ДА | N48: 85 KO Ličje | S48: 4191 | T48: 419 | U48: =IF(VLOOKUP($E48,[0]!ProveraPDV,2,FALSE)=TRUE,$J48,) ->  | V48: =IF(VLOOKUP($E48,liste!$A$31:$B$818,2,FALSE)=TRUE,#REF!,) ->  | X48: =INDEX('Cenovnik 2'!$G$2:$G$411,MATCH('Plan unos i pregled'!$E48,Pozicije,0)) -> nebitno | Z48: plaćeno
A49: 2025. | B49: АПРИЛ | C49: Улице | D49: Личје - Некатегорисан пут | E49: 4.19.1 | F49: =IF($E49=0, " ", VLOOKUP($E49, 'Cenovnik 2'!$A$2:$D$411, 2, FALSE)) -> Кресање грана са одлагањем на страну моторном тестером. Пречник грана од 0 - 10 cm | G49: =IF($E49=0, " ", VLOOKUP($E49, 'Cenovnik 2'!$A$2:$D$411, 3, FALSE)) -> ком | H49: =IF($E49=0, " ", VLOOKUP($E49, 'Cenovnik 2'!$A$2:$D$411, 4, FALSE)) -> 256.38 | I49: 900 | J49: 230742 | K49: Ul | L49: 04 | M49: ДА | N49: 9827 KO Ličje | S49: 4191 | T49: 419 | U49: =IF(VLOOKUP($E49,[0]!ProveraPDV,2,FALSE)=TRUE,$J49,) ->  | V49: =IF(VLOOKUP($E49,liste!$A$31:$B$818,2,FALSE)=TRUE,#REF!,) ->  | X49: =INDEX('Cenovnik 2'!$G$2:$G$411,MATCH('Plan unos i pregled'!$E49,Pozicije,0)) -> nebitno | Z49: plaćeno
A50: 2025. | B50: АПРИЛ | C50: Улице | D50: Тасковићи - Вељка Влаховића | E50: 4.19.1 | F50: =IF($E50=0, " ", VLOOKUP($E50, 'Cenovnik 2'!$A$2:$D$411, 2, FALSE)) -> Кресање грана са одлагањем на страну моторном тестером. Пречник грана од 0 - 10 cm | G50: =IF($E50=0, " ", VLOOKUP($E50, 'Cenovnik 2'!$A$2:$D$411, 3, FALSE)) -> ком | H50: =IF($E50=0, " ", VLOOKUP($E50, 'Cenovnik 2'!$A$2:$D$411, 4, FALSE)) -> 256.38 | I50: 880 | J50: 225614.4 | K50: Ul | L50: 04 | M50: ДА | N50: 9668 KO Taskovići | S50: 4191 | T50: 419 | U50: =IF(VLOOKUP($E50,[0]!ProveraPDV,2,FALSE)=TRUE,$J50,) ->  | V50: =IF(VLOOKUP($E50,liste!$A$31:$B$818,2,FALSE)=TRUE,#REF!,) ->  | X50: =INDEX('Cenovnik 2'!$G$2:$G$411,MATCH('Plan unos i pregled'!$E50,Pozicije,0)) -> nebitno | Z50: plaćeno
A51: 2025. | B51: АПРИЛ | C51: Улице | D51: Марина Кутина - Јакова Станковића | E51: 4.19.1 | F51: =IF($E51=0, " ", VLOOKUP($E51, 'Cenovnik 2'!$A$2:$D$411, 2, FALSE)) -> Кресање грана са одлагањем на страну моторном тестером. Пречник грана од 0 - 10 cm | G51: =IF($E51=0, " ", VLOOKUP($E51, 'Cenovnik 2'!$A$2:$D$411, 3, FALSE)) -> ком | H51: =IF($E51=0, " ", VLOOKUP($E51, 'Cenovnik 2'!$A$2:$D$411, 4, FALSE)) -> 256.38 | I51: 1065 | J51: 273044.7 | K51: Ul | L51: 04 | M51: ДА | N51: 3038/1 KO Marina Kutina | S51: 4191 | T51: 419 | U51: =IF(VLOOKUP($E51,[0]!ProveraPDV,2,FALSE)=TRUE,$J51,) ->  | V51: =IF(VLOOKUP($E51,liste!$A$31:$B$818,2,FALSE)=TRUE,#REF!,) ->  | X51: =INDEX('Cenovnik 2'!$G$2:$G$411,MATCH('Plan unos i pregled'!$E51,Pozicije,0)) -> nebitno | Z51: plaćeno
A52: 2025. | B52: АПРИЛ | C52: Улице | D52: Марина Кутина - Некатегорисан пут | E52: 4.19.1 | F52: =IF($E52=0, " ", VLOOKUP($E52, 'Cenovnik 2'!$A$2:$D$411, 2, FALSE)) -> Кресање грана са одлагањем на страну моторном тестером. Пречник грана од 0 - 10 cm | G52: =IF($E52=0, " ", VLOOKUP($E52, 'Cenovnik 2'!$A$2:$D$411, 3, FALSE)) -> ком | H52: =IF($E52=0, " ", VLOOKUP($E52, 'Cenovnik 2'!$A$2:$D$411, 4, FALSE)) -> 256.38 | J52: 0 | K52: Ul | L52: 04 | M52: ДА | N52: 3036/1 KO Marina Kutina | S52: 4191 | T52: 419 | U52: =IF(VLOOKUP($E52,[0]!ProveraPDV,2,FALSE)=TRUE,$J52,) ->  | V52: =IF(VLOOKUP($E52,liste!$A$31:$B$818,2,FALSE)=TRUE,#REF!,) ->  | X52: =INDEX('Cenovnik 2'!$G$2:$G$411,MATCH('Plan unos i pregled'!$E52,Pozicije,0)) -> nebitno
A53: 2025. | B53: АПРИЛ | C53: Улице | D53: Доње Драговље - Некатегорисан пут | E53: 4.19.1 | F53: =IF($E53=0, " ", VLOOKUP($E53, 'Cenovnik 2'!$A$2:$D$411, 2, FALSE)) -> Кресање грана са одлагањем на страну моторном тестером. Пречник грана од 0 - 10 cm | G53: =IF($E53=0, " ", VLOOKUP($E53, 'Cenovnik 2'!$A$2:$D$411, 3, FALSE)) -> ком | H53: =IF($E53=0, " ", VLOOKUP($E53, 'Cenovnik 2'!$A$2:$D$411, 4, FALSE)) -> 256.38 | J53: 0 | K53: Ul | L53: 04 | M53: ДА | N53: 1054/1 KO Donje Dragovlje | S53: 4191 | T53: 419 | U53: =IF(VLOOKUP($E53,[0]!ProveraPDV,2,FALSE)=TRUE,$J53,) ->  | V53: =IF(VLOOKUP($E53,liste!$A$31:$B$818,2,FALSE)=TRUE,#REF!,) ->  | X53: =INDEX('Cenovnik 2'!$G$2:$G$411,MATCH('Plan unos i pregled'!$E53,Pozicije,0)) -> nebitno
A54: 2025. | B54: АПРИЛ | C54: Улице | D54: Доње Драговље - Некатегорисан пут | E54: 4.19.1 | F54: =IF($E54=0, " ", VLOOKUP($E54, 'Cenovnik 2'!$A$2:$D$411, 2, FALSE)) -> Кресање грана са одлагањем на страну моторном тестером. Пречник грана од 0 - 10 cm | G54: =IF($E54=0, " ", VLOOKUP($E54, 'Cenovnik 2'!$A$2:$D$411, 3, FALSE)) -> ком | H54: =IF($E54=0, " ", VLOOKUP($E54, 'Cenovnik 2'!$A$2:$D$411, 4, FALSE)) -> 256.38 | J54: 0 | K54: Ul | L54: 04 | M54: ДА | N54: 1102 KO Donje Dragovlje | S54: 4191 | T54: 419 | U54: =IF(VLOOKUP($E54,[0]!ProveraPDV,2,FALSE)=TRUE,$J54,) ->  | V54: =IF(VLOOKUP($E54,liste!$A$31:$B$818,2,FALSE)=TRUE,#REF!,) ->  | X54: =INDEX('Cenovnik 2'!$G$2:$G$411,MATCH('Plan unos i pregled'!$E54,Pozicije,0)) -> nebitno
A55: 2025. | B55: АПРИЛ | C55: Улице | D55: Доње Драговље - Некатегорисан пут | E55: 4.19.1 | F55: =IF($E55=0, " ", VLOOKUP($E55, 'Cenovnik 2'!$A$2:$D$411, 2, FALSE)) -> Кресање грана са одлагањем на страну моторном тестером. Пречник грана од 0 - 10 cm | G55: =IF($E55=0, " ", VLOOKUP($E55, 'Cenovnik 2'!$A$2:$D$411, 3, FALSE)) -> ком | H55: =IF($E55=0, " ", VLOOKUP($E55, 'Cenovnik 2'!$A$2:$D$411, 4, FALSE)) -> 256.38 | J55: 0 | K55: Ul | L55: 04 | M55: ДА | N55: 7492 KO Donje Dragovlje | S55: 4191 | T55: 419 | U55: =IF(VLOOKUP($E55,[0]!ProveraPDV,2,FALSE)=TRUE,$J55,) ->  | V55: =IF(VLOOKUP($E55,liste!$A$31:$B$818,2,FALSE)=TRUE,#REF!,) ->  | X55: =INDEX('Cenovnik 2'!$G$2:$G$411,MATCH('Plan unos i pregled'!$E55,Pozicije,0)) -> nebitno
A56: 2025. | B56: АПРИЛ | C56: Улице | D56: Чагровац - Некатегорисан пут | E56: 4.19.1 | F56: =IF($E56=0, " ", VLOOKUP($E56, 'Cenovnik 2'!$A$2:$D$411, 2, FALSE)) -> Кресање грана са одлагањем на страну моторном тестером. Пречник грана од 0 - 10 cm | G56: =IF($E56=0, " ", VLOOKUP($E56, 'Cenovnik 2'!$A$2:$D$411, 3, FALSE)) -> ком | H56: =IF($E56=0, " ", VLOOKUP($E56, 'Cenovnik 2'!$A$2:$D$411, 4, FALSE)) -> 256.38 | J56: 0 | K56: Ul | L56: 04 | M56: ДА | N56: 2137 KO Čagrovac | S56: 4191 | T56: 419 | U56: =IF(VLOOKUP($E56,[0]!ProveraPDV,2,FALSE)=TRUE,$J56,) ->  | V56: =IF(VLOOKUP($E56,liste!$A$31:$B$818,2,FALSE)=TRUE,#REF!,) ->  | X56: =INDEX('Cenovnik 2'!$G$2:$G$411,MATCH('Plan unos i pregled'!$E56,Pozicije,0)) -> nebitno
A57: 2025. | B57: АПРИЛ | C57: Улице | D57: Чагровац - Некатегорисан пут | E57: 4.19.1 | F57: =IF($E57=0, " ", VLOOKUP($E57, 'Cenovnik 2'!$A$2:$D$411, 2, FALSE)) -> Кресање грана са одлагањем на страну моторном тестером. Пречник грана од 0 - 10 cm | G57: =IF($E57=0, " ", VLOOKUP($E57, 'Cenovnik 2'!$A$2:$D$411, 3, FALSE)) -> ком | H57: =IF($E57=0, " ", VLOOKUP($E57, 'Cenovnik 2'!$A$2:$D$411, 4, FALSE)) -> 256.38 | J57: =IF(ISNUMBER($H57), $H57*$I57, "-") -> 0 | K57: Ul | L57: =TEXT(LEFT($E57,FIND(".",$E57&".")-1), "00") -> 04 | M57: ДА | N57: 7319 KO Čagrovac | S57: 4191 | T57: =LEFT($S57, 3) -> 419 | U57: =IF(VLOOKUP($E57,[0]!ProveraPDV,2,FALSE)=TRUE,$J57,) ->  | V57: =IF(VLOOKUP($E57,liste!$A$31:$B$818,2,FALSE)=TRUE,#REF!,) ->  | X57: =INDEX('Cenovnik 2'!$G$2:$G$411,MATCH('Plan unos i pregled'!$E57,Pozicije,0)) -> nebitno
A58: 2025. | B58: АПРИЛ | C58: Улице | D58: Доњи Душник - Некатегорисан пут | E58: 4.19.1 | F58: =IF($E58=0, " ", VLOOKUP($E58, 'Cenovnik 2'!$A$2:$D$411, 2, FALSE)) -> Кресање грана са одлагањем на страну моторном тестером. Пречник грана од 0 - 10 cm | G58: =IF($E58=0, " ", VLOOKUP($E58, 'Cenovnik 2'!$A$2:$D$411, 3, FALSE)) -> ком | H58: =IF($E58=0, " ", VLOOKUP($E58, 'Cenovnik 2'!$A$2:$D$411, 4, FALSE)) -> 256.38 | J58: 0 | K58: Ul | L58: 04 | M58: ДА | N58: Prilaz groblju | S58: 4191 | T58: 419 | U58: =IF(VLOOKUP($E58,[0]!ProveraPDV,2,FALSE)=TRUE,$J58,) ->  | V58: =IF(VLOOKUP($E58,liste!$A$31:$B$818,2,FALSE)=TRUE,#REF!,) ->  | X58: =INDEX('Cenovnik 2'!$G$2:$G$411,MATCH('Plan unos i pregled'!$E58,Pozicije,0)) -> nebitno
A59: 2025. | B59: АПРИЛ | C59: Општински путеви | D59: ОП 136-2 - Барје - Равна Дубрава | E59: 4.19.1 | F59: =IF($E59=0, " ", VLOOKUP($E59, 'Cenovnik 2'!$A$2:$D$411, 2, FALSE)) -> Кресање грана са одлагањем на страну моторном тестером. Пречник грана од 0 - 10 cm | G59: =IF($E59=0, " ", VLOOKUP($E59, 'Cenovnik 2'!$A$2:$D$411, 3, FALSE)) -> ком | H59: =IF($E59=0, " ", VLOOKUP($E59, 'Cenovnik 2'!$A$2:$D$411, 4, FALSE)) -> 256.38 | J59: 0 | K59: OP | L59: 04 | M59: ДА | S59: 4191 | T59: 419 | U59: =IF(VLOOKUP($E59,[0]!ProveraPDV,2,FALSE)=TRUE,$J59,) ->  | V59: =IF(VLOOKUP($E59,liste!$A$31:$B$818,2,FALSE)=TRUE,#REF!,) ->  | X59: =INDEX('Cenovnik 2'!$G$2:$G$411,MATCH('Plan unos i pregled'!$E59,Pozicije,0)) -> nebitno
A60: 2025. | B60: АПРИЛ | C60: Општински путеви | D60: ОП 136-5 - Доњи Душник - Горњи Душник | E60: 4.19.1 | F60: =IF($E60=0, " ", VLOOKUP($E60, 'Cenovnik 2'!$A$2:$D$411, 2, FALSE)) -> Кресање грана са одлагањем на страну моторном тестером. Пречник грана од 0 - 10 cm | G60: =IF($E60=0, " ", VLOOKUP($E60, 'Cenovnik 2'!$A$2:$D$411, 3, FALSE)) -> ком | H60: =IF($E60=0, " ", VLOOKUP($E60, 'Cenovnik 2'!$A$2:$D$411, 4, FALSE)) -> 256.38 | J60: 0 | K60: OP | L60: 04 | M60: ДА | N60: Prilaz groblju | S60: 4191 | T60: 419 | U60: =IF(VLOOKUP($E60,[0]!ProveraPDV,2,FALSE)=TRUE,$J60,) ->  | V60: =IF(VLOOKUP($E60,liste!$A$31:$B$818,2,FALSE)=TRUE,#REF!,) ->  | X60: =INDEX('Cenovnik 2'!$G$2:$G$411,MATCH('Plan unos i pregled'!$E60,Pozicije,0)) -> nebitno
A61: 2025. | B61: АПРИЛ | C61: Улице | D61: Доње Драговље - Некатегорисан пут | E61: 4.19.1 | F61: =IF($E61=0, " ", VLOOKUP($E61, 'Cenovnik 2'!$A$2:$D$411, 2, FALSE)) -> Кресање грана са одлагањем на страну моторном тестером. Пречник грана од 0 - 10 cm | G61: =IF($E61=0, " ", VLOOKUP($E61, 'Cenovnik 2'!$A$2:$D$411, 3, FALSE)) -> ком | H61: =IF($E61=0, " ", VLOOKUP($E61, 'Cenovnik 2'!$A$2:$D$411, 4, FALSE)) -> 256.38 | J61: 0 | K61: Ul | L61: 04 | M61: ДА | S61: 4191 | T61: 419 | U61: =IF(VLOOKUP($E61,[0]!ProveraPDV,2,FALSE)=TRUE,$J61,) ->  | V61: =IF(VLOOKUP($E61,liste!$A$31:$B$818,2,FALSE)=TRUE,#REF!,) ->  | X61: =INDEX('Cenovnik 2'!$G$2:$G$411,MATCH('Plan unos i pregled'!$E61,Pozicije,0)) -> nebitno
A62: 2025. | B62: АПРИЛ | C62: Фудбалски терени | D62: Гаџин Хан-Фудбалски терен: П1-9100 | E62: 11.30 | F62: =IF($E62=0, " ", VLOOKUP($E62, 'Cenovnik 2'!$A$2:$D$411, 2, FALSE)) -> Моторна косачица за траву (спортски терени) | G62: =IF($E62=0, " ", VLOOKUP($E62, 'Cenovnik 2'!$A$2:$D$411, 3, FALSE)) -> m2 | H62: =IF($E62=0, " ", VLOOKUP($E62, 'Cenovnik 2'!$A$2:$D$411, 4, FALSE)) -> 2.13 | I62: 27300 | J62: 58149 | K62: FT | L62: 11 | M62: ДА | S62: 1130 | T62: 113 | U62: =IF(VLOOKUP($E62,[0]!ProveraPDV,2,FALSE)=TRUE,$J62,) ->  | V62: =IF(VLOOKUP($E62,liste!$A$31:$B$818,2,FALSE)=TRUE,#REF!,) ->  | X62: =INDEX('Cenovnik 2'!$G$2:$G$411,MATCH('Plan unos i pregled'!$E62,Pozicije,0)) -> nebitno
A63: 2025. | B63: АПРИЛ | C63: Фудбалски терени | D63: Тасковићи-Фудбалски терен: П1-6050 | E63: 11.30 | F63: =IF($E63=0, " ", VLOOKUP($E63, 'Cenovnik 2'!$A$2:$D$411, 2, FALSE)) -> Моторна косачица за траву (спортски терени) | G63: =IF($E63=0, " ", VLOOKUP($E63, 'Cenovnik 2'!$A$2:$D$411, 3, FALSE)) -> m2 | H63: =IF($E63=0, " ", VLOOKUP($E63, 'Cenovnik 2'!$A$2:$D$411, 4, FALSE)) -> 2.13 | I63: 16980 | J63: 36167.4 | K63: FT | L63: 11 | M63: ДА | S63: 1130 | T63: 113 | U63: =IF(VLOOKUP($E63,[0]!ProveraPDV,2,FALSE)=TRUE,$J63,) ->  | V63: =IF(VLOOKUP($E63,liste!$A$31:$B$818,2,FALSE)=TRUE,#REF!,) ->  | X63: =INDEX('Cenovnik 2'!$G$2:$G$411,MATCH('Plan unos i pregled'!$E63,Pozicije,0)) -> nebitno
A64: 2025. | B64: АПРИЛ | C64: Фудбалски терени | D64: Гркиња-Фудбалски Терен: П1-5460 | E64: 11.30 | F64: =IF($E64=0, " ", VLOOKUP($E64, 'Cenovnik 2'!$A$2:$D$411, 2, FALSE)) -> Моторна косачица за траву (спортски терени) | G64: =IF($E64=0, " ", VLOOKUP($E64, 'Cenovnik 2'!$A$2:$D$411, 3, FALSE)) -> m2 | H64: =IF($E64=0, " ", VLOOKUP($E64, 'Cenovnik 2'!$A$2:$D$411, 4, FALSE)) -> 2.13 | I64: 9740 | J64: 20746.2 | K64: FT | L64: 11 | M64: ДА | S64: 1130 | T64: 113 | U64: =IF(VLOOKUP($E64,[0]!ProveraPDV,2,FALSE)=TRUE,$J64,) ->  | V64: =IF(VLOOKUP($E64,liste!$A$31:$B$818,2,FALSE)=TRUE,#REF!,) ->  | X64: =INDEX('Cenovnik 2'!$G$2:$G$411,MATCH('Plan unos i pregled'!$E64,Pozicije,0)) -> nebitno
A65: 2025. | B65: АПРИЛ | C65: Фудбалски терени | D65: Марина Кутина-Фудбалски терен: П1-5490 | E65: 11.30 | F65: =IF($E65=0, " ", VLOOKUP($E65, 'Cenovnik 2'!$A$2:$D$411, 2, FALSE)) -> Моторна косачица за траву (спортски терени) | G65: =IF($E65=0, " ", VLOOKUP($E65, 'Cenovnik 2'!$A$2:$D$411, 3, FALSE)) -> m2 | H65: =IF($E65=0, " ", VLOOKUP($E65, 'Cenovnik 2'!$A$2:$D$411, 4, FALSE)) -> 2.13 | I65: 10980 | J65: 23387.4 | K65: FT | L65: 11 | M65: ДА | S65: 1130 | T65: 113 | U65: =IF(VLOOKUP($E65,[0]!ProveraPDV,2,FALSE)=TRUE,$J65,) ->  | V65: =IF(VLOOKUP($E65,liste!$A$31:$B$818,2,FALSE)=TRUE,#REF!,) ->  | X65: =INDEX('Cenovnik 2'!$G$2:$G$411,MATCH('Plan unos i pregled'!$E65,Pozicije,0)) -> nebitno
A66: 2025. | B66: АПРИЛ | C66: Фудбалски терени | D66: Заплањска Топоница-Фудбалски Терен: П1-5600 | E66: 11.30 | F66: =IF($E66=0, " ", VLOOKUP($E66, 'Cenovnik 2'!$A$2:$D$411, 2, FALSE)) -> Моторна косачица за траву (спортски терени) | G66: =IF($E66=0, " ", VLOOKUP($E66, 'Cenovnik 2'!$A$2:$D$411, 3, FALSE)) -> m2 | H66: =IF($E66=0, " ", VLOOKUP($E66, 'Cenovnik 2'!$A$2:$D$411, 4, FALSE)) -> 2.13 | I66: 12100 | J66: 25773 | K66: FT | L66: 11 | M66: ДА | S66: 1130 | T66: 113 | U66: =IF(VLOOKUP($E66,[0]!ProveraPDV,2,FALSE)=TRUE,$J66,) ->  | V66: =IF(VLOOKUP($E66,liste!$A$31:$B$818,2,FALSE)=TRUE,#REF!,) ->  | X66: =INDEX('Cenovnik 2'!$G$2:$G$411,MATCH('Plan unos i pregled'!$E66,Pozicije,0)) -> nebitno
A67: 2025. | B67: АПРИЛ | C67: Фудбалски терени | D67: Гаџин Хан-Фудбалски терен: П1-9100 | E67: 4.11 | F67: =IF($E67=0, " ", VLOOKUP($E67, 'Cenovnik 2'!$A$2:$D$411, 2, FALSE)) -> Обележавање фудбалског терена (по фактури добављача), ценом није обухваћен превоз и рад радника | G67: =IF($E67=0, " ", VLOOKUP($E67, 'Cenovnik 2'!$A$2:$D$411, 3, FALSE)) -> m | H67: =IF($E67=0, " ", VLOOKUP($E67, 'Cenovnik 2'!$A$2:$D$411, 4, FALSE)) -> 26.8 | I67: 2520 | J67: 67536 | K67: FT | L67: 04 | M67: ДА | S67: 411 | T67: 411 | U67: =IF(VLOOKUP($E67,[0]!ProveraPDV,2,FALSE)=TRUE,$J67,) ->  | V67: =IF(VLOOKUP($E67,liste!$A$31:$B$818,2,FALSE)=TRUE,#REF!,) ->  | X67: =INDEX('Cenovnik 2'!$G$2:$G$411,MATCH('Plan unos i pregled'!$E67,Pozicije,0)) -> nebitno
A68: 2025. | B68: АПРИЛ | C68: Фудбалски терени | D68: Тасковићи-Фудбалски терен: П1-6050 | E68: 4.11 | F68: =IF($E68=0, " ", VLOOKUP($E68, 'Cenovnik 2'!$A$2:$D$411, 2, FALSE)) -> Обележавање фудбалског терена (по фактури добављача), ценом није обухваћен превоз и рад радника | G68: =IF($E68=0, " ", VLOOKUP($E68, 'Cenovnik 2'!$A$2:$D$411, 3, FALSE)) -> m | H68: =IF($E68=0, " ", VLOOKUP($E68, 'Cenovnik 2'!$A$2:$D$411, 4, FALSE)) -> 26.8 | I68: 2700 | J68: 72360 | K68: FT | L68: 04 | M68: ДА | S68: 411 | T68: 411 | U68: =IF(VLOOKUP($E68,[0]!ProveraPDV,2,FALSE)=TRUE,$J68,) ->  | V68: =IF(VLOOKUP($E68,liste!$A$31:$B$818,2,FALSE)=TRUE,#REF!,) ->  | X68: =INDEX('Cenovnik 2'!$G$2:$G$411,MATCH('Plan unos i pregled'!$E68,Pozicije,0)) -> nebitno | Z68: plaćeno
A69: 2025. | B69: АПРИЛ | C69: Фудбалски терени | D69: Гркиња-Фудбалски Терен: П1-5460 | E69: 4.11 | F69: =IF($E69=0, " ", VLOOKUP($E69, 'Cenovnik 2'!$A$2:$D$411, 2, FALSE)) -> Обележавање фудбалског терена (по фактури добављача), ценом није обухваћен превоз и рад радника | G69: =IF($E69=0, " ", VLOOKUP($E69, 'Cenovnik 2'!$A$2:$D$411, 3, FALSE)) -> m | H69: =IF($E69=0, " ", VLOOKUP($E69, 'Cenovnik 2'!$A$2:$D$411, 4, FALSE)) -> 26.8 | I69: 1100 | J69: 29480 | K69: FT | L69: 04 | M69: ДА | S69: 411 | T69: 411 | U69: =IF(VLOOKUP($E69,[0]!ProveraPDV,2,FALSE)=TRUE,$J69,) ->  | V69: =IF(VLOOKUP($E69,liste!$A$31:$B$818,2,FALSE)=TRUE,#REF!,) ->  | X69: =INDEX('Cenovnik 2'!$G$2:$G$411,MATCH('Plan unos i pregled'!$E69,Pozicije,0)) -> nebitno | Z69: plaćeno
A70: 2025. | B70: АПРИЛ | C70: Фудбалски терени | D70: Марина Кутина-Фудбалски терен: П1-5490 | E70: 4.11 | F70: =IF($E70=0, " ", VLOOKUP($E70, 'Cenovnik 2'!$A$2:$D$411, 2, FALSE)) -> Обележавање фудбалског терена (по фактури добављача), ценом није обухваћен превоз и рад радника | G70: =IF($E70=0, " ", VLOOKUP($E70, 'Cenovnik 2'!$A$2:$D$411, 3, FALSE)) -> m | H70: =IF($E70=0, " ", VLOOKUP($E70, 'Cenovnik 2'!$A$2:$D$411, 4, FALSE)) -> 26.8 | I70: 1150 | J70: 30820 | K70: FT | L70: 04 | M70: ДА | S70: 411 | T70: 411 | U70: =IF(VLOOKUP($E70,[0]!ProveraPDV,2,FALSE)=TRUE,$J70,) ->  | V70: =IF(VLOOKUP($E70,liste!$A$31:$B$818,2,FALSE)=TRUE,#REF!,) ->  | X70: =INDEX('Cenovnik 2'!$G$2:$G$411,MATCH('Plan unos i pregled'!$E70,Pozicije,0)) -> nebitno | Z70: plaćeno
A71: 2025. | B71: АПРИЛ | C71: Фудбалски терени | D71: Заплањска Топоница-Фудбалски Терен: П1-5600 | E71: 4.11 | F71: =IF($E71=0, " ", VLOOKUP($E71, 'Cenovnik 2'!$A$2:$D$411, 2, FALSE)) -> Обележавање фудбалског терена (по фактури добављача), ценом није обухваћен превоз и рад радника | G71: =IF($E71=0, " ", VLOOKUP($E71, 'Cenovnik 2'!$A$2:$D$411, 3, FALSE)) -> m | H71: =IF($E71=0, " ", VLOOKUP($E71, 'Cenovnik 2'!$A$2:$D$411, 4, FALSE)) -> 26.8 | I71: 1208 | J71: 32374.4 | K71: =IFERROR(INDEX(LokacijeRadovaLat,MATCH(C71,LokacijaRadova,0)),"") -> FT | L71: 04 | M71: ДА | S71: 411 | T71: 411 | U71: =IF(VLOOKUP($E71,[0]!ProveraPDV,2,FALSE)=TRUE,$J71,) ->  | V71: =IF(VLOOKUP($E71,liste!$A$31:$B$818,2,FALSE)=TRUE,#REF!,) ->  | W71: =R71&"-"&C71 ->  | X71: =INDEX('Cenovnik 2'!$G$2:$G$411,MATCH('Plan unos i pregled'!$E71,Pozicije,0)) -> nebitno | Z71: plaćeno
A72: 2025. | B72: АПРИЛ | C72: Фудбалски терени | D72: Гаџин Хан-Фудбалски терен: П1-9100 | E72: 11.5 | F72: =IF($E72=0, " ", VLOOKUP($E72, 'Cenovnik 2'!$A$2:$D$411, 2, FALSE)) -> Ваљак од 2 t | G72: =IF($E72=0, " ", VLOOKUP($E72, 'Cenovnik 2'!$A$2:$D$411, 3, FALSE)) -> час | H72: =IF($E72=0, " ", VLOOKUP($E72, 'Cenovnik 2'!$A$2:$D$411, 4, FALSE)) -> 2875 | I72: 6 | J72: 17250 | K72: FT | L72: 11 | M72: ДА | S72: 115 | T72: 115 | U72: =IF(VLOOKUP($E72,[0]!ProveraPDV,2,FALSE)=TRUE,$J72,) ->  | V72: =IF(VLOOKUP($E72,liste!$A$31:$B$818,2,FALSE)=TRUE,#REF!,) ->  | X72: =INDEX('Cenovnik 2'!$G$2:$G$411,MATCH('Plan unos i pregled'!$E72,Pozicije,0)) -> nebitno
A73: 2025. | B73: АПРИЛ | C73: Фудбалски терени | D73: Тасковићи-Фудбалски терен: П1-6050 | E73: 11.5 | F73: =IF($E73=0, " ", VLOOKUP($E73, 'Cenovnik 2'!$A$2:$D$411, 2, FALSE)) -> Ваљак од 2 t | G73: =IF($E73=0, " ", VLOOKUP($E73, 'Cenovnik 2'!$A$2:$D$411, 3, FALSE)) -> час | H73: =IF($E73=0, " ", VLOOKUP($E73, 'Cenovnik 2'!$A$2:$D$411, 4, FALSE)) -> 2875 | I73: 6 | J73: 17250 | K73: FT | L73: 11 | M73: ДА | S73: 115 | T73: 115 | U73: =IF(VLOOKUP($E73,[0]!ProveraPDV,2,FALSE)=TRUE,$J73,) ->  | V73: =IF(VLOOKUP($E73,liste!$A$31:$B$818,2,FALSE)=TRUE,#REF!,) ->  | X73: =INDEX('Cenovnik 2'!$G$2:$G$411,MATCH('Plan unos i pregled'!$E73,Pozicije,0)) -> nebitno
A74: 2025. | B74: АПРИЛ | C74: Фудбалски терени | D74: Гркиња-Фудбалски Терен: П1-5460 | E74: 11.5 | F74: =IF($E74=0, " ", VLOOKUP($E74, 'Cenovnik 2'!$A$2:$D$411, 2, FALSE)) -> Ваљак од 2 t | G74: =IF($E74=0, " ", VLOOKUP($E74, 'Cenovnik 2'!$A$2:$D$411, 3, FALSE)) -> час | H74: =IF($E74=0, " ", VLOOKUP($E74, 'Cenovnik 2'!$A$2:$D$411, 4, FALSE)) -> 2875 | I74: 6 | J74: 17250 | K74: FT | L74: 11 | M74: ДА | S74: 115 | T74: 115 | U74: =IF(VLOOKUP($E74,[0]!ProveraPDV,2,FALSE)=TRUE,$J74,) ->  | V74: =IF(VLOOKUP($E74,liste!$A$31:$B$818,2,FALSE)=TRUE,#REF!,) ->  | X74: =INDEX('Cenovnik 2'!$G$2:$G$411,MATCH('Plan unos i pregled'!$E74,Pozicije,0)) -> nebitno
A75: 2025. | B75: АПРИЛ | C75: Јавне зелене површине | D75: Гаџин Хан-Кеј: П 1-1381 | E75: 11.30 | F75: =IF($E75=0, " ", VLOOKUP($E75, 'Cenovnik 2'!$A$2:$D$411, 2, FALSE)) -> Моторна косачица за траву (спортски терени) | G75: =IF($E75=0, " ", VLOOKUP($E75, 'Cenovnik 2'!$A$2:$D$411, 3, FALSE)) -> m2 | H75: =IF($E75=0, " ", VLOOKUP($E75, 'Cenovnik 2'!$A$2:$D$411, 4, FALSE)) -> 2.13 | I75: 4464 | J75: 9508.32 | K75: JZP | L75: 11 | M75: ДА | N75: P1 | S75: 1130 | T75: 113 | U75: =IF(VLOOKUP($E75,[0]!ProveraPDV,2,FALSE)=TRUE,$J75,) ->  | V75: =IF(VLOOKUP($E75,liste!$A$31:$B$818,2,FALSE)=TRUE,#REF!,) ->  | X75: =INDEX('Cenovnik 2'!$G$2:$G$411,MATCH('Plan unos i pregled'!$E75,Pozicije,0)) -> nebitno
A76: 2025. | B76: АПРИЛ | C76: Јавне зелене површине | D76: Гаџин Хан-Кеј: П 2-4326 | E76: 11.30 | F76: =IF($E76=0, " ", VLOOKUP($E76, 'Cenovnik 2'!$A$2:$D$411, 2, FALSE)) -> Моторна косачица за траву (спортски терени) | G76: =IF($E76=0, " ", VLOOKUP($E76, 'Cenovnik 2'!$A$2:$D$411, 3, FALSE)) -> m2 | H76: =IF($E76=0, " ", VLOOKUP($E76, 'Cenovnik 2'!$A$2:$D$411, 4, FALSE)) -> 2.13 | I76: 7984 | J76: 17005.92 | K76: JZP | L76: 11 | M76: ДА | N76: P2 i P3 | S76: 1130 | T76: 113 | U76: =IF(VLOOKUP($E76,[0]!ProveraPDV,2,FALSE)=TRUE,$J76,) ->  | V76: =IF(VLOOKUP($E76,liste!$A$31:$B$818,2,FALSE)=TRUE,#REF!,) ->  | X76: =INDEX('Cenovnik 2'!$G$2:$G$411,MATCH('Plan unos i pregled'!$E76,Pozicije,0)) -> nebitno
A77: 2025. | B77: АПРИЛ | C77: Јавне зелене површине | D77: Доњи Душник -Задружни дом-Дом културе: П 1-1922 | E77: 11.30 | F77: =IF($E77=0, " ", VLOOKUP($E77, 'Cenovnik 2'!$A$2:$D$411, 2, FALSE)) -> Моторна косачица за траву (спортски терени) | G77: =IF($E77=0, " ", VLOOKUP($E77, 'Cenovnik 2'!$A$2:$D$411, 3, FALSE)) -> m2 | H77: =IF($E77=0, " ", VLOOKUP($E77, 'Cenovnik 2'!$A$2:$D$411, 4, FALSE)) -> 2.13 | I77: 5990 | J77: 12758.7 | K77: JZP | L77: 11 | M77: ДА | S77: 1130 | T77: 113 | U77: =IF(VLOOKUP($E77,[0]!ProveraPDV,2,FALSE)=TRUE,$J77,) ->  | V77: =IF(VLOOKUP($E77,liste!$A$31:$B$818,2,FALSE)=TRUE,#REF!,) ->  | X77: =INDEX('Cenovnik 2'!$G$2:$G$411,MATCH('Plan unos i pregled'!$E77,Pozicije,0)) -> nebitno
A78: 2025. | B78: АПРИЛ | C78: Јавне зелене површине | D78: Гаџин Хан-Дом културе: П 1-560 | E78: 11.30 | F78: =IF($E78=0, " ", VLOOKUP($E78, 'Cenovnik 2'!$A$2:$D$411, 2, FALSE)) -> Моторна косачица за траву (спортски терени) | G78: =IF($E78=0, " ", VLOOKUP($E78, 'Cenovnik 2'!$A$2:$D$411, 3, FALSE)) -> m2 | H78: =IF($E78=0, " ", VLOOKUP($E78, 'Cenovnik 2'!$A$2:$D$411, 4, FALSE)) -> 2.13 | I78: 1901 | J78: 4049.13 | K78: JZP | L78: 11 | M78: ДА | N78: P1, P2, P3 i P4 | S78: 1130 | T78: 113 | U78: =IF(VLOOKUP($E78,[0]!ProveraPDV,2,FALSE)=TRUE,$J78,) ->  | V78: =IF(VLOOKUP($E78,liste!$A$31:$B$818,2,FALSE)=TRUE,#REF!,) ->  | X78: =INDEX('Cenovnik 2'!$G$2:$G$411,MATCH('Plan unos i pregled'!$E78,Pozicije,0)) -> nebitno
A79: 2025. | B79: АПРИЛ | C79: Јавне зелене површине | D79: Гаџин Хан-Дом културе: П 3-848 | E79: 11.30 | F79: =IF($E79=0, " ", VLOOKUP($E79, 'Cenovnik 2'!$A$2:$D$411, 2, FALSE)) -> Моторна косачица за траву (спортски терени) | G79: =IF($E79=0, " ", VLOOKUP($E79, 'Cenovnik 2'!$A$2:$D$411, 3, FALSE)) -> m2 | H79: =IF($E79=0, " ", VLOOKUP($E79, 'Cenovnik 2'!$A$2:$D$411, 4, FALSE)) -> 2.13 | I79: 1600 | J79: 3408 | K79: JZP | L79: 11 | M79: ДА | N79: P1, P2, P3 | S79: 1130 | T79: 113 | U79: =IF(VLOOKUP($E79,[0]!ProveraPDV,2,FALSE)=TRUE,$J79,) ->  | V79: =IF(VLOOKUP($E79,liste!$A$31:$B$818,2,FALSE)=TRUE,#REF!,) ->  | X79: =INDEX('Cenovnik 2'!$G$2:$G$411,MATCH('Plan unos i pregled'!$E79,Pozicije,0)) -> nebitno
A80: 2025. | B80: АПРИЛ | C80: Јавне зелене површине | D80: Горњи Душник-Црква: П 1-2466 | E80: 11.30 | F80: =IF($E80=0, " ", VLOOKUP($E80, 'Cenovnik 2'!$A$2:$D$411, 2, FALSE)) -> Моторна косачица за траву (спортски терени) | G80: =IF($E80=0, " ", VLOOKUP($E80, 'Cenovnik 2'!$A$2:$D$411, 3, FALSE)) -> m2 | H80: =IF($E80=0, " ", VLOOKUP($E80, 'Cenovnik 2'!$A$2:$D$411, 4, FALSE)) -> 2.13 | I80: 3699 | J80: 7878.87 | K80: JZP | L80: 11 | M80: ДА | S80: 1130 | T80: 113 | U80: =IF(VLOOKUP($E80,[0]!ProveraPDV,2,FALSE)=TRUE,$J80,) ->  | V80: =IF(VLOOKUP($E80,liste!$A$31:$B$818,2,FALSE)=TRUE,#REF!,) ->  | X80: =INDEX('Cenovnik 2'!$G$2:$G$411,MATCH('Plan unos i pregled'!$E80,Pozicije,0)) -> nebitno
A81: 2025. | B81: АПРИЛ | C81: Јавне зелене површине | D81: Гаџин Хан-Кеј: П 1-1318 | E81: 4.6 | F81: =IF($E81=0, " ", VLOOKUP($E81, 'Cenovnik 2'!$A$2:$D$411, 2, FALSE)) -> Кошење парковског травњака тримером | G81: =IF($E81=0, " ", VLOOKUP($E81, 'Cenovnik 2'!$A$2:$D$411, 3, FALSE)) -> m2 | H81: =IF($E81=0, " ", VLOOKUP($E81, 'Cenovnik 2'!$A$2:$D$411, 4, FALSE)) -> 6.5 | I81: 1441 | J81: 9366.5 | K81: JZP | L81: 04 | M81: ДА | S81: 46 | T81: 46 | U81: =IF(VLOOKUP($E81,[0]!ProveraPDV,2,FALSE)=TRUE,$J81,) ->  | V81: =IF(VLOOKUP($E81,liste!$A$31:$B$818,2,FALSE)=TRUE,#REF!,) ->  | X81: =INDEX('Cenovnik 2'!$G$2:$G$411,MATCH('Plan unos i pregled'!$E81,Pozicije,0)) -> nebitno
A82: 2025. | B82: АПРИЛ | C82: Јавне зелене површине | D82: Гаџин Хан-Дом културе: П 1-560 | E82: 4.6 | F82: =IF($E82=0, " ", VLOOKUP($E82, 'Cenovnik 2'!$A$2:$D$411, 2, FALSE)) -> Кошење парковског травњака тримером | G82: =IF($E82=0, " ", VLOOKUP($E82, 'Cenovnik 2'!$A$2:$D$411, 3, FALSE)) -> m2 | H82: =IF($E82=0, " ", VLOOKUP($E82, 'Cenovnik 2'!$A$2:$D$411, 4, FALSE)) -> 6.5 | I82: 1570 | J82: 10205 | K82: JZP | L82: 04 | M82: ДА | R82: =IF($C82=0, " ", VLOOKUP($C82, DrzavniPuteviRed, 2, FALSE)) ->  | S82: 46 | T82: 46 | U82: =IF(VLOOKUP($E82,[0]!ProveraPDV,2,FALSE)=TRUE,$J82,) ->  | V82: =IF(VLOOKUP($E82,liste!$A$31:$B$818,2,FALSE)=TRUE,#REF!,) ->  | X82: =INDEX('Cenovnik 2'!$G$2:$G$411,MATCH('Plan unos i pregled'!$E82,Pozicije,0)) -> nebitno
A83: 2025. | B83: АПРИЛ | C83: Јавне зелене површине | D83: Гаџин Хан-Спортска Хала: П 1-325 | E83: 4.6 | F83: =IF($E83=0, " ", VLOOKUP($E83, 'Cenovnik 2'!$A$2:$D$411, 2, FALSE)) -> Кошење парковског травњака тримером | G83: =IF($E83=0, " ", VLOOKUP($E83, 'Cenovnik 2'!$A$2:$D$411, 3, FALSE)) -> m2 | H83: =IF($E83=0, " ", VLOOKUP($E83, 'Cenovnik 2'!$A$2:$D$411, 4, FALSE)) -> 6.5 | I83: 760 | J83: 4940 | K83: JZP | L83: 04 | M83: ДА | S83: 46 | T83: 46 | U83: =IF(VLOOKUP($E83,[0]!ProveraPDV,2,FALSE)=TRUE,$J83,) ->  | V83: =IF(VLOOKUP($E83,liste!$A$31:$B$818,2,FALSE)=TRUE,#REF!,) ->  | X83: =INDEX('Cenovnik 2'!$G$2:$G$411,MATCH('Plan unos i pregled'!$E83,Pozicije,0)) -> nebitno
A84: 2025. | B84: АПРИЛ | C84: Јавне зелене површине | D84: Гаџин Хан-Кеј: П 1-1318 | E84: 4.6 | F84: =IF($E84=0, " ", VLOOKUP($E84, 'Cenovnik 2'!$A$2:$D$411, 2, FALSE)) -> Кошење парковског травњака тримером | G84: =IF($E84=0, " ", VLOOKUP($E84, 'Cenovnik 2'!$A$2:$D$411, 3, FALSE)) -> m2 | H84: =IF($E84=0, " ", VLOOKUP($E84, 'Cenovnik 2'!$A$2:$D$411, 4, FALSE)) -> 6.5 | I84: 1180 | J84: 7670 | K84: JZP | L84: 04 | M84: ДА | S84: 46 | T84: 46 | U84: =IF(VLOOKUP($E84,[0]!ProveraPDV,2,FALSE)=TRUE,$J84,) ->  | V84: =IF(VLOOKUP($E84,liste!$A$31:$B$818,2,FALSE)=TRUE,#REF!,) ->  | X84: =INDEX('Cenovnik 2'!$G$2:$G$411,MATCH('Plan unos i pregled'!$E84,Pozicije,0)) -> nebitno
A85: 2025. | B85: АПРИЛ | C85: Јавне зелене површине | D85: Доњи Душник-Туристичка организација: П 5-762 | E85: 4.6 | F85: =IF($E85=0, " ", VLOOKUP($E85, 'Cenovnik 2'!$A$2:$D$411, 2, FALSE)) -> Кошење парковског травњака тримером | G85: =IF($E85=0, " ", VLOOKUP($E85, 'Cenovnik 2'!$A$2:$D$411, 3, FALSE)) -> m2 | H85: =IF($E85=0, " ", VLOOKUP($E85, 'Cenovnik 2'!$A$2:$D$411, 4, FALSE)) -> 6.5 | I85: 648 | J85: 4212 | K85: JZP | L85: 04 | M85: ДА | S85: 46 | T85: 46 | U85: =IF(VLOOKUP($E85,[0]!ProveraPDV,2,FALSE)=TRUE,$J85,) ->  | V85: =IF(VLOOKUP($E85,liste!$A$31:$B$818,2,FALSE)=TRUE,#REF!,) ->  | X85: =INDEX('Cenovnik 2'!$G$2:$G$411,MATCH('Plan unos i pregled'!$E85,Pozicije,0)) -> nebitno
A86: 2025. | B86: АПРИЛ | C86: Улице | D86: Равна Дубрава - Некатегорисан пут | E86: 4.6 | F86: =IF($E86=0, " ", VLOOKUP($E86, 'Cenovnik 2'!$A$2:$D$411, 2, FALSE)) -> Кошење парковског травњака тримером | G86: =IF($E86=0, " ", VLOOKUP($E86, 'Cenovnik 2'!$A$2:$D$411, 3, FALSE)) -> m2 | H86: =IF($E86=0, " ", VLOOKUP($E86, 'Cenovnik 2'!$A$2:$D$411, 4, FALSE)) -> 6.5 | I86: 8000 | J86: 52000 | K86: Ul | L86: 04 | M86: ДА | N86: Ravna Dubrava 2231; 2233 | S86: 46 | T86: 46 | U86: =IF(VLOOKUP($E86,[0]!ProveraPDV,2,FALSE)=TRUE,$J86,) ->  | V86: =IF(VLOOKUP($E86,liste!$A$31:$B$818,2,FALSE)=TRUE,#REF!,) ->  | X86: =INDEX('Cenovnik 2'!$G$2:$G$411,MATCH('Plan unos i pregled'!$E86,Pozicije,0)) -> nebitno
A87: 2025. | B87: АПРИЛ | C87: Јавне зелене површине | D87: Горњи Душник-Основна школа: П 1-2320 | E87: 4.6 | F87: =IF($E87=0, " ", VLOOKUP($E87, 'Cenovnik 2'!$A$2:$D$411, 2, FALSE)) -> Кошење парковског травњака тримером | G87: =IF($E87=0, " ", VLOOKUP($E87, 'Cenovnik 2'!$A$2:$D$411, 3, FALSE)) -> m2 | H87: =IF($E87=0, " ", VLOOKUP($E87, 'Cenovnik 2'!$A$2:$D$411, 4, FALSE)) -> 6.5 | I87: 4640 | J87: 30160 | K87: JZP | L87: 04 | M87: ДА | S87: 46 | T87: 46 | U87: =IF(VLOOKUP($E87,[0]!ProveraPDV,2,FALSE)=TRUE,$J87,) ->  | V87: =IF(VLOOKUP($E87,liste!$A$31:$B$818,2,FALSE)=TRUE,#REF!,) ->  | X87: =INDEX('Cenovnik 2'!$G$2:$G$411,MATCH('Plan unos i pregled'!$E87,Pozicije,0)) -> nebitno
A88: 2025. | B88: АПРИЛ | C88: Улице | D88: Гаџин Хан - Некатегорисан пут | E88: 4.26 | F88: =IF($E88=0, " ", VLOOKUP($E88, 'Cenovnik 2'!$A$2:$D$411, 2, FALSE)) -> Кошење траве на слободним површинама косачицом прикљученом на трактор | G88: =IF($E88=0, " ", VLOOKUP($E88, 'Cenovnik 2'!$A$2:$D$411, 3, FALSE)) -> m2 | H88: =IF($E88=0, " ", VLOOKUP($E88, 'Cenovnik 2'!$A$2:$D$411, 4, FALSE)) -> 4.35 | I88: 1315 | J88: 5720.25 | K88: Ul | L88: 04 | M88: ДА | N88: G. Han 4004; 4003/1 | S88: 426 | T88: 426 | U88: =IF(VLOOKUP($E88,[0]!ProveraPDV,2,FALSE)=TRUE,$J88,) ->  | V88: =IF(VLOOKUP($E88,liste!$A$31:$B$818,2,FALSE)=TRUE,#REF!,) ->  | X88: =INDEX('Cenovnik 2'!$G$2:$G$411,MATCH('Plan unos i pregled'!$E88,Pozicije,0)) -> nebitno
A89: 2025. | B89: АПРИЛ | C89: Улице | D89: Гаџин Хан - Некатегорисан пут | E89: 4.26 | F89: =IF($E89=0, " ", VLOOKUP($E89, 'Cenovnik 2'!$A$2:$D$411, 2, FALSE)) -> Кошење траве на слободним површинама косачицом прикљученом на трактор | G89: =IF($E89=0, " ", VLOOKUP($E89, 'Cenovnik 2'!$A$2:$D$411, 3, FALSE)) -> m2 | H89: =IF($E89=0, " ", VLOOKUP($E89, 'Cenovnik 2'!$A$2:$D$411, 4, FALSE)) -> 4.35 | I89: 1058 | J89: 4602.3 | K89: Ul | L89: 04 | M89: ДА | N89: G. Han 4003/3; 3998; 4001/4 | S89: =IF($E89=0, " ", VLOOKUP($E89, SifrePozicijaBezTacke, 2, FALSE)) -> 426 | T89: 426 | U89: =IF(VLOOKUP($E89,[0]!ProveraPDV,2,FALSE)=TRUE,$J89,) ->  | V89: =IF(VLOOKUP($E89,liste!$A$31:$B$818,2,FALSE)=TRUE,#REF!,) ->  | X89: =INDEX('Cenovnik 2'!$G$2:$G$411,MATCH('Plan unos i pregled'!$E89,Pozicije,0)) -> nebitno
A90: 2025. | B90: АПРИЛ | C90: Јавне зелене површине | D90: Заплањска Топоница-Вртић "Прва радост": П1-1493 | E90: 4.26 | F90: =IF($E90=0, " ", VLOOKUP($E90, 'Cenovnik 2'!$A$2:$D$411, 2, FALSE)) -> Кошење траве на слободним површинама косачицом прикљученом на трактор | G90: =IF($E90=0, " ", VLOOKUP($E90, 'Cenovnik 2'!$A$2:$D$411, 3, FALSE)) -> m2 | H90: =IF($E90=0, " ", VLOOKUP($E90, 'Cenovnik 2'!$A$2:$D$411, 4, FALSE)) -> 4.35 | I90: 2110 | J90: 9178.5 | K90: JZP | L90: 04 | M90: ДА | S90: 426 | T90: 426 | U90: =IF(VLOOKUP($E90,[0]!ProveraPDV,2,FALSE)=TRUE,$J90,) ->  | V90: =IF(VLOOKUP($E90,liste!$A$31:$B$818,2,FALSE)=TRUE,#REF!,) ->  | X90: =INDEX('Cenovnik 2'!$G$2:$G$411,MATCH('Plan unos i pregled'!$E90,Pozicije,0)) -> nebitno
A91: 2025. | B91: АПРИЛ | C91: Јавне зелене површине | D91: Заплањска Топоница-Школа: П1-4834 | E91: 4.26 | F91: =IF($E91=0, " ", VLOOKUP($E91, 'Cenovnik 2'!$A$2:$D$411, 2, FALSE)) -> Кошење траве на слободним површинама косачицом прикљученом на трактор | G91: =IF($E91=0, " ", VLOOKUP($E91, 'Cenovnik 2'!$A$2:$D$411, 3, FALSE)) -> m2 | H91: =IF($E91=0, " ", VLOOKUP($E91, 'Cenovnik 2'!$A$2:$D$411, 4, FALSE)) -> 4.35 | I91: 2150 | J91: 9352.5 | K91: JZP | L91: 04 | M91: ДА | S91: 426 | T91: 426 | U91: =IF(VLOOKUP($E91,[0]!ProveraPDV,2,FALSE)=TRUE,$J91,) ->  | V91: =IF(VLOOKUP($E91,liste!$A$31:$B$818,2,FALSE)=TRUE,#REF!,) ->  | X91: =INDEX('Cenovnik 2'!$G$2:$G$411,MATCH('Plan unos i pregled'!$E91,Pozicije,0)) -> nebitno
A92: 2025. | B92: АПРИЛ | C92: Јавне зелене површине | D92: Гаџин Хан-Крст: П1-686 | E92: 4.26 | F92: =IF($E92=0, " ", VLOOKUP($E92, 'Cenovnik 2'!$A$2:$D$411, 2, FALSE)) -> Кошење траве на слободним површинама косачицом прикљученом на трактор | G92: =IF($E92=0, " ", VLOOKUP($E92, 'Cenovnik 2'!$A$2:$D$411, 3, FALSE)) -> m2 | H92: =IF($E92=0, " ", VLOOKUP($E92, 'Cenovnik 2'!$A$2:$D$411, 4, FALSE)) -> 4.35 | I92: 1207 | J92: 5250.45 | K92: JZP | L92: 04 | M92: ДА | S92: 426 | T92: 426 | U92: =IF(VLOOKUP($E92,[0]!ProveraPDV,2,FALSE)=TRUE,$J92,) ->  | V92: =IF(VLOOKUP($E92,liste!$A$31:$B$818,2,FALSE)=TRUE,#REF!,) ->  | X92: =INDEX('Cenovnik 2'!$G$2:$G$411,MATCH('Plan unos i pregled'!$E92,Pozicije,0)) -> nebitno
A93: 2025. | B93: АПРИЛ | C93: Улице | D93: Равна Дубрава - Некатегорисан пут | E93: 4.26 | F93: =IF($E93=0, " ", VLOOKUP($E93, 'Cenovnik 2'!$A$2:$D$411, 2, FALSE)) -> Кошење траве на слободним површинама косачицом прикљученом на трактор | G93: =IF($E93=0, " ", VLOOKUP($E93, 'Cenovnik 2'!$A$2:$D$411, 3, FALSE)) -> m2 | H93: =IF($E93=0, " ", VLOOKUP($E93, 'Cenovnik 2'!$A$2:$D$411, 4, FALSE)) -> 4.35 | I93: 40000 | J93: 174000 | K93: Ul | L93: 04 | M93: ДА | N93: Ravna Dubrava 3007 | S93: 426 | T93: 426 | U93: =IF(VLOOKUP($E93,[0]!ProveraPDV,2,FALSE)=TRUE,$J93,) ->  | V93: =IF(VLOOKUP($E93,liste!$A$31:$B$818,2,FALSE)=TRUE,#REF!,) ->  | X93: =INDEX('Cenovnik 2'!$G$2:$G$411,MATCH('Plan unos i pregled'!$E93,Pozicije,0)) -> nebitno
